Workbook

Sheet Guide
B2: Cells Colour Code | P2: Asset Base range
P3: 2006
B4: Data input cells have a green background with blue text for positive numbers and red for negative numbers | D4: 10.5 | E4: -20.6 | P4: 2007
P5: 2008 | R5: Yes/No toggle
B6: Cells containing formula or referring to other cells have a white background and black text when positive and red text when negative | D6: =D4 -> 10.5 | E6: =E4+D4 -> -10.1 | P6: 2009 | R6: 0
P7: 2010 | R7: 1
B8: Cells that are used to determine scenarios have an orange background and black text | D8: 2016 | P8: 2011
P9: 2012
B10: Cells that are used to profile revenue have a yellow background and blue text | D10: 2.9 | P10: 2013
P11: 2014
B12: Cells that contain asset categories have an olive green background and black text | D12: Scada Tel (15 years) | P12: 2015
P13: 2016
B15: Macros
B17: This model uses macros to calculate depreciation, opening asset value and to profile revenue. These macros were developed using MS Excel 2007 SP1 and MS Visual Basic 6.5. To ensure that the macros work correctly please ensure that your system is compatible.

Sheet Revenue
A1: PR3 Distribution Revenue
C2: 2010 | D2: 2011 | E2: 2012 | F2: 2013 | G2: 2014 | H2: 2015 | J2: Total
A3: Opex | D3: =Opex!E61*1000000 -> 220897417.4 | E3: =Opex!F61*1000000 -> 217206909.7 | F3: =Opex!G61*1000000 -> 213599113.7 | G3: =Opex!H61*1000000 -> 210072116.6 | H3: =Opex!I61*1000000 -> 210162557.7 | J3: =SUM(Opex_2011_to_2015) -> 1071938115
A4: Further Opex and Capex efficiencies | D4: -10087663 | E4: -10316484 | F4: -10558978 | G4: -10854026 | H4: -11166243 | J4: =SUM(D4:H4) -> -52983394
A5: Capex | D5: ='RAB Summary'!C6 -> 354368201.6 | E5: ='RAB Summary'!D6 -> 358601971.3 | F5: ='RAB Summary'!E6 -> 475541069.5 | G5: ='RAB Summary'!F6 -> 513725086.8 | H5: ='RAB Summary'!G6 -> 610700097.5 | J5: =SUM(Capex_2011_to_2015) -> 2312936427
A6: PR2 Adjustments /Clawbacks | D6: ='PR2 Adjustments'!C7 -> 68448220.05 | E6: ='PR2 Adjustments'!D7 -> 52975000 | F6: ='PR2 Adjustments'!E7 -> 0 | G6: ='PR2 Adjustments'!F7 -> 0 | H6: ='PR2 Adjustments'!G7 -> 0 | J6: =SUM(D6:H6) -> 121423220
A7: Incentives | D7: =IF(incent=1,incentamount,0) -> 8000000 | E7: =IF(incent=1,incentamount,0) -> 8000000 | F7: =IF(incent=1,incentamount,0) -> 8000000 | G7: =IF(incent=1,incentamount,0) -> 8000000 | H7: =IF(incent=1,incentamount,0) -> 8000000 | J7: =SUM(D7:H7) -> 40000000
A9: NPV of Costs | B9: =(NPV(RoR,D3:H3)+NPV(RoR,D4:H4)+NPV(RoR,D5:H5)+NPV(RoR,D7:H7))*((1+RoR)^0.5)+D6+NPV(RoR,E6:H6) -> 3014715566
A10: OAV | D10: =OAV_2011 -> 4974523268 | E10: =D13 -> 5156970170 | F10: =E13 -> 5337996176 | G10: 5620869415 | H10: 5921821412
A11: Capex | D11: ='RAB Summary'!C6 -> 354368201.6 | E11: ='RAB Summary'!D6 -> 358601971.3 | F11: ='RAB Summary'!E6 -> 475541069.5 | G11: ='RAB Summary'!F6 -> 513725086.8 | H11: ='RAB Summary'!G6 -> 610700097.5
A12: Depreciation | D12: =Dep_2011 -> -171921299.8 | E12: =Dep_2012 -> -177575964.9 | F12: =Dep_2013 -> -192667830.7 | G12: =Dep_2014 -> -212773089.7 | H12: =Dep_2015 -> -239055774
A13: CAV | D13: =SUM(D10:D12) -> 5156970170 | E13: =SUM(E10:E12) -> 5337996176 | F13: 5620869415 | G13: 5921821412 | H13: 6293465736
A14: NPV of Return | B14: =D10-(H13/((1+RoR)^5)) -> 260572235.9
A15: NPV of Costs + Return | B15: =INT(B9+B14) -> 3275287802
A17: Opex | D17: =D3 -> 220897417.4 | E17: =E3 -> 217206909.7 | F17: 213599113.7 | G17: 210072116.6 | H17: 210162557.7 | J17: =SUM(D17:H17) -> 1071938115
A18: =A4 -> Further Opex and Capex efficiencies | D18: =D4 -> -10087663 | E18: -10316484 | F18: -10558978 | G18: -10854026 | H18: -11166243 | J18: =SUM(D18:H18) -> -52983394
A19: =A6 -> PR2 Adjustments /Clawbacks | D19: ='PR2 Adjustments'!C7 -> 68448220.05 | E19: ='PR2 Adjustments'!D7 -> 52975000 | F19: ='PR2 Adjustments'!E7 -> 0 | G19: ='PR2 Adjustments'!F7 -> 0 | H19: ='PR2 Adjustments'!G7 -> 0 | J19: =SUM(D19:H19) -> 121423220
A20: Depreciation | D20: =-D12 -> 171921299.8 | E20: =-E12 -> 177575964.9 | F20: 192667830.7 | G20: 212773089.7 | H20: 239055774 | J20: =SUM(Total_Depreciation) -> 993993959
A21: Return on Capital + Incentives | D21: =D22-D17-D20-D19-D18 -> 231411536.4 | E21: =E22-E17-E20-E19-E18 -> 279993362.8 | F21: 358955644.8 | G21: 385274772 | H21: =H22-H17-H20-H19-H18 -> 404894945.6 | J21: =SUM(Total_Return) -> 1660530262
A22: Annual Revenue | D22: =D26*D29*10000 -> 682590810.7 | E22: =E26*E29*10000 -> 717434753.3 | F22: 754663611.1 | G22: 797265952.3 | H22: =H26*H29*10000 -> 842947034.2 | J22: =SUM(Total_Revenue) -> 3794902162
A24: NPV of Revenue | B24: =INT(NPV(RoR,D22:H22)*((1+RoR)^0.5)) -> 3275287802
A26: Annual Consumption (GWhr) | C26: 23080.67418 | D26: =IF(Growth1=1,C26*(1+Growth),'System Data'!B3) -> 23549.03817 | E26: =IF(Growth1=1,D26*(1+Growth),'System Data'!C3) -> 24083.20641 | F26: =IF(Growth1=1,E26*(1+Growth),'System Data'!D3) -> 24649.29303 | G26: =IF(Growth1=1,F26*(1+Growth),'System Data'!E3) -> 25338.06449 | H26: =IF(Growth1=1,G26*(1+Growth),'System Data'!F3) -> 26066.9169
A27: Annual Consumption Growth (%) | D27: =D26/C26-1 -> 0.02029247426 | E27: =E26/D26-1 -> 0.0226832296 | F27: =F26/E26-1 -> 0.02350545084 | G27: 0.02794284829 | H27: 0.02876511799
A29: AUP (c/kWh) | C29: 3.1 | D29: 2.898593165 | E29: =D29*(1+$D34) -> 2.978983534 | F29: =E29*(1+$D34) -> 3.061603472 | G29: =F29*(1+$D34) -> 3.146514813 | H29: =G29*(1+$D34) -> 3.233781108
A30: AUP increase(decrease) (%) | D30: =AUP_2011/AUP_2010-1 -> -0.06496994683 | E30: =E29/AUP_2011-1 -> 0.0277342713 | F30: =F29/E29-1 -> 0.0277342713 | G30: =G29/F29-1 -> 0.0277342713 | H30: 0.0277342713
B34: Profile-Factor | D34: 0.0277342713 | F34: 0 | G34: Linear (1) or ESBN forecast (0)
B35: Po | D35: -0.06496994683 | F35: 0.016 | G35: Consumption (Growth %)
B37: RoR | D37: 0.0595 | F37: 1 | G37: Include Smart Metering (1 Yes, 0 No)
F39: 1 | G39: Include Incentives Up front ( 1 Yes, 0 No)
F40: 8000000 | G40: Annual Incentive Amount

Sheet Opex
B1: OPEX
B2: Real Values
E3: 2011 | F3: 2012 | G3: 2013 | H3: 2014 | I3: 2015 | K3: Total
B5: Capital Driven Opex | C5: [€m] | E5: =SUM(E6:E6) -> 0 | F5: =SUM(F6:F6) -> 0 | G5: =SUM(G6:G6) -> 0 | H5: =SUM(H6:H6) -> 0 | I5: =SUM(I6:I6) -> 0 | K5: =SUM(E5:I5) -> 0
B6: Non Repayable Line Diversions | C6: [€m] | E6: 0 | F6: 0 | G6: 0 | H6: 0 | I6: 0 | K6: =SUM(E6:I6) -> 0
B7: Network Operations & Maintenance | C7: [€m] | E7: =SUM(E8:E10) -> 93.10459732 | F7: =SUM(F8:F10) -> 91.06945722 | G7: =SUM(G8:G10) -> 89.08021866 | H7: =SUM(H8:H10) -> 87.13582057 | I7: =SUM(I8:I10) -> 85.23522685 | K7: 445.6253206
B8: System control | C8: [€m] | E8: 14.73517177 | F8: 14.36679247 | G8: 14.00762266 | H8: 13.65743209 | I8: 13.31599629 | K8: 70.08301529
B9: Planned maintenance | C9: [€m] | E9: 41.04406734 | F9: 40.31044049 | G9: 39.59017735 | H9: 38.88303029 | I9: 38.18875633 | K9: 198.0164718
B10: Fault maintenance | C10: [€m] | E10: 37.32535821 | F10: 36.39222426 | G10: 35.48241865 | H10: 34.59535819 | I10: 33.73047423 | K10: 177.5258335
B11: Asset Management | C11: [€m] | E11: =E12 -> 12.39542903 | F11: 12.20821524 | G11: 12.0256818 | H11: 11.84771169 | I11: 11.67419083 | K11: 60.15122859
B12: Asset Management | C12: [€m] | E12: 12.39542903 | F12: 12.20821524 | G12: 12.0256818 | H12: 11.84771169 | I12: 11.67419083 | K12: 60.15122859
B13: Metering | C13: [€m] | E13: =SUM(E14:E17) -> 20.80870864 | F13: 20.45212591 | G13: 20.10200321 | H13: 19.75821588 | I13: 19.4206418 | K13: 100.5416954
B14: Meter reading | C14: [€m] | E14: 12.51845879 | F14: 12.33068191 | G14: 12.14572168 | H14: 11.96353585 | I14: 11.78408281 | K14: 60.74248104
B15: QH Data | C15: [€m] | E15: 1.532964272 | F15: 1.509969807 | G15: 1.48732026 | H15: 1.465010456 | I15: 1.4430353 | K15: 7.438300095
B16: Data Aggregation | C16: [€m] | E16: 4.445210493 | F16: 4.33408023 | G16: 4.225728224 | H16: 4.120085019 | I16: 4.017082893 | K16: 21.14218686
B17: Customer meter operation | C17: [€m] | E17: 2.312075088 | F17: 2.277393961 | G17: 2.243233052 | H17: 2.209584556 | I17: 2.176440788 | K17: 11.21872744
B18: Customer Service | C18: [€m] | E18: =SUM(E19:E21) -> 17.29931667 | F18: 16.86683375 | G18: 16.44516291 | H18: 16.03403384 | I18: 15.63318299 | K18: 82.27853017
B19: Call centre | C19: [€m] | E19: 6.902183091 | F19: 6.729628514 | G19: 6.561387801 | H19: 6.397353106 | I19: 6.237419278 | K19: 32.82797179
B20: Area Operations | C20: [€m] | E20: 9.555 | F20: 9.316125 | G20: 9.083221875 | H20: 8.856141328 | I20: 8.634737795 | K20: 45.445226
B21: Customer relations / Other Cust Service | C21: [€m] | E21: 0.8421335806 | F21: 0.8210802411 | G21: 0.8005532351 | H21: 0.7805394042 | I21: 0.7610259191 | K21: 4.00533238
B22: Provision of information | C22: [€m] | E22: =SUM(E23:E25) -> 14.79830488 | F22: 14.58635562 | G22: 14.37758559 | H22: 14.17194711 | I22: 13.96939321 | K22: 71.90358641
B23: DUoS Billing | C23: [€m] | E23: 0.6683538576 | F23: 0.6683538576 | G23: 0.6683538576 | H23: 0.6683538576 | I23: 0.6683538576 | K23: 3.341769288
B24: MRSO | C24: [€m] | E24: 1.942451023 | F24: 1.913314257 | G24: 1.884614544 | H24: 1.856345325 | I24: 1.828500146 | K24: 9.425225295
B25: Market Opening | C25: [€m] | E25: 12.1875 | F25: 12.0046875 | G25: 11.82461719 | H25: 11.64724793 | I25: 11.47253921 | K25: 59.13659183
B26: Commercial | C26: [€m] | E26: =SUM(E27:E29) -> 39.28169396 | F26: 39.64608234 | G26: 41.01377741 | H26: 41.49128593 | I26: 43.18279563 | K26: 204.6156353
B27: External repayable / COS adjustments | C27: [€m] | E27: 25.15719218 | F27: 25.01575984 | G27: 25.82556115 | H27: 25.79997422 | I27: 26.78266662 | K27: 128.581154
B28: Supply repayable | C28: [€m] | E28: 10.71160092 | F28: 11.33209485 | G28: 11.95916612 | H28: 12.53384145 | I28: 13.25469143 | K28: 59.79139478
B29: Other inter ESB | C29: [€m] | E29: 3.412900862 | F29: 3.298227644 | G29: 3.229050143 | H29: 3.157470249 | I29: 3.145437581 | K29: 16.24308648
B30: Other | C30: [€m] | E30: =SUM(E31:E34) -> 61.85106084 | F30: =SUM(F31:F34) -> 61.38392193 | G30: =SUM(G31:G34) -> 60.92846148 | H30: =SUM(H31:H34) -> 60.48438755 | I30: =SUM(I31:I34) -> 63.58992198 | K30: 308.2377538
B31: Network Rates | C31: [€m] | E31: 35.38506513 | F31: 35.38506513 | G31: 35.38506513 | H31: 35.38506513 | I31: 38.92357165 | K31: 180.4638322
B32: Insurance | C32: [€m] | E32: 2.5 | F32: 2.5 | G32: 2.5 | H32: 2.5 | I32: 2.5 | K32: 12.5
B33: CER Levy | C33: [€m] | E33: 1.9 | F33: 1.9 | G33: 1.9 | H33: 1.9 | I33: 1.9 | K33: 9.5
B34: Other | C34: [€m] | E34: =SUM(E35:E42) -> 22.06599571 | F34: =SUM(F35:F42) -> 21.59885679 | G34: =SUM(G35:G42) -> 21.14339635 | H34: =SUM(H35:H42) -> 20.69932242 | I34: =SUM(I35:I42) -> 20.26635033 | K34: 105.7739216
B35: Company wide costs | C35: [€m] | E35: 1.929557935 | F35: 1.881318987 | G35: 1.834286012 | H35: 1.788428862 | I35: 1.743718141 | K35: 9.177309938
B36: Corporate Charges & Corporate Affairs | C36: [€m] | E36: 11.5960925 | F36: 11.30619019 | G36: 11.02353544 | H36: 10.74794705 | I36: 10.47924838 | K36: 55.15301356
B37: Legal | C37: [€m] | E37: 2.257439054 | F37: 2.257439054 | G37: 2.257439054 | H37: 2.257439054 | I37: 2.257439054 | K37: 11.28719527
B38: Pension | C38: [€m] | E38: 1.654107 | F38: 1.612754325 | G38: 1.572435467 | H38: 1.53312458 | I38: 1.494796466 | K38: 7.867217838
B39: Environmental | C39: [€m] | E39: 1.1 | F39: 1.1 | G39: 1.1 | H39: 1.1 | I39: 1.1 | K39: 5.5
B40: Revenue | C40: [€m] | E40: 0.615082182 | F40: 0.5997051275 | G40: 0.5847124993 | H40: 0.5700946868 | I40: 0.5558423196 | K40: 2.925436815
B41: Misc | C41: [€m] | E41: 0.023 | F41: 0.023 | G41: 0.023 | H41: 0.023 | I41: 0.023 | K41: 0.115
B42: Health & Safety | C42: [€m] | E42: 2.890717033 | F42: 2.818449108 | G42: 2.74798788 | H42: 2.679288183 | I42: 2.612305978 | K42: 13.74874818
B43: Sustainability & RD&D | C43: [€m] | E43: =SUM(E44:E45) -> 3.64 | F43: =SUM(F44:F45) -> 3.64 | G43: 3.64 | H43: 3.64 | I43: 3.64 | K43: 18.2
B44: Sustainability | C44: [€m] | E44: 2.96 | F44: 2.96 | G44: 2.96 | H44: 2.96 | I44: 2.96 | K44: 14.8
B45: R&D | C45: [€m] | E45: 0.68 | F45: 0.68 | G45: 0.68 | H45: 0.68 | I45: 0.68 | K45: 3.4
B46: TOTAL OPEX | C46: [€m] | E46: =E30+E26+E22+E18+E13+E11+E7+E5+E43 -> 263.1791113 | F46: =F30+F26+F22+F18+F13+F11+F7+F5+F43 -> 259.852992 | G46: 257.6128911 | H46: 254.5634026 | I46: 256.3453533 | K46: =SUM(E46:I46) -> 1291.55375
B48: LESS...
B49: Comercial Expenditures | C49: [€m] | E49: =-E26 -> -39.28169396 | F49: =-F26 -> -39.64608234 | G49: =-G26 -> -41.01377741 | H49: =-H26 -> -41.49128593 | I49: =-I26 -> -43.18279563 | K49: -204.6156353
B50: Other Misc. Incomes Reductions | C50: [€m] | E50: =SUM(E51:E56) -> -3 | F50: =SUM(F51:F56) -> -3 | G50: =SUM(G51:G56) -> -3 | H50: =SUM(H51:H56) -> -3 | I50: =SUM(I51:I56) -> -3 | K50: =SUM(E50:I50) -> -15
B51: Sale of scrap | C51: [€m] | E51: 0 | F51: 0 | G51: 0 | H51: 0 | I51: 0 | K51: 0
B52: DOE | C52: [€m] | E52: 0 | F52: 0 | G52: 0 | H52: 0 | I52: 0 | K52: 0
B53: Tower Co and Fibre Co | C53: [€m] | E53: 0 | F53: 0 | G53: 0 | H53: 0 | I53: 0 | K53: 0
B54: Supply Chain | C54: [€m] | E54: 0 | F54: 0 | G54: 0 | H54: 0 | I54: 0 | K54: 0
B55: Misc | C55: [€m] | E55: 0 | F55: 0 | G55: 0 | H55: 0 | I55: 0 | K55: 0
B56: €15m Various Revenue | C56: [€m] | E56: -3 | F56: -3 | G56: -3 | H56: -3 | I56: -3 | K56: -15
B57: Non Retained Porperty Disposal | C57: [€m] | E57: =E58*(1-E59) -> 0 | F57: =F58*(1-F59) -> 0 | G57: =G58*(1-G59) -> 0 | H57: =H58*(1-H59) -> 0 | I57: =I58*(1-I59) -> 0 | K57: 0
B58: (Loss)/Profit on sale of Assets (Nominal values) | C58: [€m] | E58: 0 | F58: 0 | G58: 0 | H58: 0 | I58: 0 | K58: 0
B59: % Retained by the Company | C59: [%] | E59: 0.6 | F59: 0.6 | G59: 0.6 | H59: 0.6 | I59: 0.6 | K59: 3
B61: TOTAL ALLOWED OPEX | C61: [€m] | E61: =E46+E49+E50+E57 -> 220.8974174 | F61: =F46+F49+F50+F57 -> 217.2069097 | G61: =G46+G49+G50+G57 -> 213.5991137 | H61: =H46+H49+H50+H57 -> 210.0721166 | I61: =I46+I49+I50+I57 -> 210.1625577 | K61: =SUM(E61:I61) -> 1071.938115

Sheet Capex
A1: Capex
C2: Asset Categorisation | E2: 2011 | F2: 2012 | G2: 2013 | H2: 2014 | I2: 2015 | K2: Totals
A3: LOAD RELATED CAPEX
A4: (G1) New housing Schemes | B4: [€m] | E4: 12.06734553 | F4: 13.33145332 | G4: 14.57023402 | H4: 15.78175578 | I4: 16.96759007 | K4: =SUM(E4:I4) -> 72.71837872
A5: (G2) Non-scheme Houses | B5: [€m] | E5: 31.2693201 | F5: 31.6945643 | G5: 32.1142394 | H5: 32.52235154 | I5: 32.91611898 | K5: 160.5165943
A6: (G3) Commercial/Industrial Supplies | B6: [€m] | E6: 39.96162434 | F6: 40.75853258 | G6: 41.4848843 | H6: 42.18762153 | I6: 42.87711701 | K6: 207.2697798
A7: Whole Current Metering | B7: [€m] | E7: 2.16527215 | F7: 2.29938345 | G7: 2.43318025 | H7: 2.5668351 | I7: 2.7004619 | K7: 12.16513285
A8: New Business | B8: [€m] | E8: =SUM(E4:E7) -> 85.46356212 | F8: =SUM(F4:F7) -> 88.08393364 | G8: =SUM(G4:G7) -> 90.60253797 | H8: =SUM(H4:H7) -> 93.05856395 | I8: =SUM(I4:I7) -> 95.46128797 | K8: =SUM(E8:I8) -> 452.6698857
A9: Transmission Connection Costs | E9: 5.252445 | F9: 5.19992055 | G9: 5.147921345 | H9: 5.096442131 | I9: 5.04547771 | K9: =SUM(E9:I9) -> 25.74220674
A10: 110kV | E10: 47.74761745 | F10: 46.46700926 | G10: 45.89785319 | H10: 45.49489408 | I10: 44.94095789 | K10: 230.5483319
A11: 38kV | E11: 43.44079424 | F11: 42.30296677 | G11: 41.84760851 | H11: 41.52532149 | I11: 41.13315154 | K11: 210.2498425
A12: MVLV System Improvements | E12: 14.47760875 | F12: 14.05855727 | G12: 13.7397152 | H12: 13.49990468 | I12: 13.32479047 | K12: 69.10057638
A13: IFTs associated with 20kV Conversion | B13: [€m] | E13: 3.338452782 | F13: 3.271715041 | G13: 3.239242438 | H13: 3.212705492 | I13: 3.188558932 | K13: 16.25067469
A14: 20kV Conversion | B14: [€m] | E14: 16.56180721 | F14: 16.26093352 | G14: 16.12697192 | H14: 16.01783615 | I14: 15.97130402 | K14: 80.93885282
A15: Reinforcements | B15: [€m] | E15: =SUM(E9:E14) -> 130.8187254 | F15: =SUM(F9:F14) -> 127.5611024 | G15: 125.9993126 | H15: 124.847104 | I15: 123.6042406 | K15: =SUM(E15:I15) -> 632.830485
A16: Generation Connections | B16: [€m] | E16: 7.225939226 | F16: 40.17947872 | G16: 31.80060581 | H16: 16.49260287 | I16: 66.80081634 | K16: 162.499443
A17: Dismantling | B17: [€m] | E17: 11.84089021 | F17: 11.61200845 | G17: 11.4656194 | H17: 11.3486324 | I17: 11.22820989 | K17: 57.49536036
A18: Non-Repayable Line Diversions | B18: [€m] | E18: 9.754747443 | F18: 10.12969115 | G18: 10.39511512 | H18: 10.60832167 | I18: 10.86715987 | K18: 51.75503526
A19: Total Load Related CAPEX | B19: [€m] | E19: =E8+E15+E16+E17+E18 -> 245.1038644 | F19: =F8+F15+F16+F17+F18 -> 277.5662144 | G19: 270.2631909 | H19: 256.3552249 | I19: 307.9617146 | K19: =SUM(E19:I19) -> 1357.250209
A21: NON-LOAD RELATED CAPEX
A22: Renew Prog - 110kV & 38kV Lines | B22: [€m] | E22: 3.318099401 | F22: 3.284918407 | G22: 3.252069223 | H22: 3.21954853 | I22: 3.187353045
A23: Renew Prog - 110 & 38kV Cables | B23: [€m] | E23: 4.183497375 | F23: 4.141662401 | G23: 4.100245777 | H23: 4.05924332 | I23: 4.018650886
A24: Renew Prog - HV Substation | B24: [€m] | E24: 23.97311837 | F24: 23.73338719 | G24: 23.49605332 | H24: 23.26109278 | I24: 23.02848186
A25: Renew Prog - MV Overhead Lines | B25: [€m] | E25: 14.07442084 | F25: 13.93367663 | G25: 13.79433987 | H25: 13.65639647 | I25: 13.5198325
A26: Renew Prog - MV Cables | B26: [€m] | E26: 0.51168 | F26: 0.5065632 | G26: 0.501497568 | H26: 0.4964825923 | I26: 0.4915177664
A27: Renew Prog - MV Substations | B27: [€m] | E27: 4.914392668 | F27: 4.865248742 | G27: 4.816596254 | H27: 4.768430292 | I27: 4.720745989
A28: Renew Prog - Urban LV Renewal | B28: [€m] | E28: 12.84740574 | F28: 12.71893169 | G28: 12.59174237 | H28: 12.46582495 | I28: 12.3411667
A29: Renew Prog - Rural LV Network | B29: [€m] | E29: 19.10417863 | F29: 18.91313684 | G29: 18.72400548 | H29: 18.53676542 | I29: 18.35139777
A30: Renew Prog - LV cables and associated items | B30: [€m] | E30: 3.419817372 | F30: 3.385619198 | G30: 3.351763006 | H30: 3.318245376 | I30: 3.285062922
A31: Renew Prog - Cutouts | B31: [€m] | E31: 1.167152796 | F31: 1.155481268 | G31: 1.143926456 | H31: 1.132487191 | I31: 1.121162319
A32: Response capex | B32: [€m] | E32: 4.542607045 | F32: 4.497180975 | G32: 4.452209165 | H32: 4.407687073 | I32: 4.363610203
A33: Continuity Imporvement | B33: [€m] | E33: 20.79011705 | F33: 20.19993369 | G33: 19.62330984 | H33: 19.24053375 | I33: 18.86781689
A34: System Control | E34: 3.02 | F34: 3.02 | G34: 3.02 | H34: 3.02 | I34: 3.02
A35: Total Non-Load Related CAPEX | B35: [€m] | E35: =SUM(E22:E34) -> 115.8664873 | F35: =SUM(F22:F34) -> 114.3557402 | G35: 112.8677583 | H35: 111.5827377 | I35: 110.3167988 | K35: =SUM(E35:I35) -> 564.9895224
A37: TOTAL NETWORK CAPEX | B37: [€m] | C37: HV/MV/LV Networks | E37: =E19+E35 -> 360.9703517 | F37: =F19+F35 -> 391.9219546 | G37: =G19+G35 -> 383.1309492 | H37: =H19+H35 -> 367.9379627 | I37: =I19+I35 -> 418.2785135 | K37: =SUM(E37:I37) -> 1922.239732
A39: NON NETWORK CAPEX
A40: New Accommodation | B40: [€m] | C40: Premises | E40: 0 | F40: 0 | G40: 0 | H40: 49.96217449 | I40: 49.95292992
A41: Accommodation Refurbishment | B41: [€m] | C41: Premises | E41: 3.54525 | F41: 3.54525 | G41: 3.66525 | H41: 3.7665 | I41: 3.7665
A42: Fixture & Fittings | B42: [€m] | C42: F&F | E42: 0.35625 | F42: 0.285 | G42: 0.285 | H42: 0.285 | I42: 0.21375
A43: Office Equipment | B43: [€m] | C43: Office Equip,Telecoms & Smart Metering (10 Year) | E43: 0.11875 | F43: 0.095 | G43: 0.095 | H43: 0.095 | I43: 0.07125
A44: Vehicles | B44: [€m] | C44: Vehicles | E44: 7.04 | F44: 7.04 | G44: 7.04 | H44: 7.04 | I44: 7.04
A45: Tools | B45: [€m] | C45: Tools | E45: 3.58092 | F45: 3.39864 | G45: 3.12816 | H45: 2.8224 | I45: 2.7489
A46: Distribution Assets Management | B46: [€m] | C46: IT (7 year) | E46: 0 | F46: 2.5 | G46: 8.5 | H46: 3 | I46: 2.5
A47: Distribution Control / Operation | B47: [€m] | C47: Scada Tel (15 years) | E47: 6 | F47: 5.5 | G47: 0 | H47: 0 | I47: 0
A48: IT Infrastructure | B48: [€m] | C48: IT (5 year) | E48: 0.9 | F48: 2 | G48: 1.7 | H48: 0.7 | I48: 0.7
A49: Enterprise Applicactions | B49: [€m] | C49: IT (5 year) | E49: 4.5 | F49: 3.31 | G49: 2.7 | H49: 12.2 | I49: 12.9
A50: Environment | B50: [€m] | C50: IT (5 year) | E50: 1.372 | F50: 1.372 | G50: 1.372 | H50: 1.372 | I50: 1.372
A51: Telecomms & System Control | B51: [€m] | C51: Office Equip,Telecoms & Smart Metering (10 Year) | E51: 6.3488 | F51: 6.3488 | G51: 6.3568 | H51: 6.3488 | I51: 6.3488 | K51: =SUM(E41:I51) -> 179.28977
A52: TOTAL NON-NETWORK CAPEX | B52: [€m] | E52: =SUM(E40:E51) -> 33.76197 | F52: =SUM(F40:F51) -> 35.39469 | G52: =SUM(G40:G51) -> 34.84221 | H52: =SUM(H40:H51) -> 87.59187449 | I52: =SUM(I40:I51) -> 87.61412992 | K52: =SUM(E52:I52) -> 279.2048744
A54: OTHER
A55: Smart Metering | B55: [€m] | E55: 9.593600145 | F55: 15.5067722 | G55: 134.6697851 | H55: 121.2171345 | I55: 219.3389144
A56: =A55 -> Smart Metering | B56: [€m] | C56: Office Equip,Telecoms & Smart Metering (10 Year) | E56: =IF(SMin=1,E55,0) -> 9.593600145 | F56: =IF(SMin=1,F55,0) -> 15.5067722 | G56: =IF(SMin=1,G55,0) -> 134.6697851 | H56: =IF(SMin=1,H55,0) -> 121.2171345 | I56: =IF(SMin=1,I55,0) -> 219.3389144
A57: Electric Vehicles Infrastructure | B57: [€m] | C57: Vehicles | E57: 0 | F57: 0 | G57: 0 | H57: 0 | I57: 0
A58: Total Other | B58: [€m] | E58: =E56+E57 -> 9.593600145 | F58: =F56+F57 -> 15.5067722 | G58: 134.6697851 | H58: 121.2171345 | I58: 219.3389144 | K58: =SUM(E58:I58) -> 500.3262063
A60: TOTAL GROSS CAPEX | B60: [€m] | E60: =E37+E52+E58 -> 404.3259219 | F60: =F37+F52+F58 -> 442.8234168 | G60: =G37+G52+G58 -> 552.6429443 | H60: =H37+H52+H58 -> 576.7469716 | I60: =I37+I52+I58 -> 725.2315578 | K60: =SUM(E60:I60) -> 2701.770812
A62: CONTRIBUTIONS
A63: Customer Contributions as % of New Demand Connections | B63: [%] | E63: 0.5 | F63: 0.5 | G63: 0.5 | H63: 0.5 | I63: 0.5
A64: Customer Contributions as % of Generation Connections | B64: [%] | E64: 1 | F64: 1 | G64: 1 | H64: 1 | I64: 1
A65: Customer Contributions | B65: [€m] | C65: Customer Contributions | E65: =-SUM(E4:E7)*E63-(E16*E64) -> -49.95772029 | F65: =-SUM(F4:F7)*F63-(F16*F64) -> -84.22144554 | G65: -77.1018748 | H65: -63.02188484 | I65: -114.5314603
A66: Capital Grants | B66: [€m] | C66: Grants | E66: 0 | F66: 0 | G66: 0 | H66: 0 | I66: 0
A67: IDC | B67: [€m] | C67: Other | E67: 0 | F67: 0 | G67: 0 | H67: 0 | I67: 0
A68: Total Contributions | B68: [€m] | E68: =E66+E65+E67 -> -49.95772029 | F68: =F66+F65+F67 -> -84.22144554 | G68: -77.1018748 | H68: -63.02188484 | I68: -114.5314603 | K68: =SUM(E68:I68) -> -388.8343858
A70: TOTAL NET CAPEX | B70: [€m] | E70: =E60+E68 -> 354.3682016 | F70: =F60+F68 -> 358.6019713 | G70: =G60+G68 -> 475.5410695 | H70: =H60+H68 -> 513.7250868 | I70: =I60+I68 -> 610.7000975 | K70: =SUM(E70:I70) -> 2312.936427

Sheet Cashflow (Nominal)
B2: CASH FLOW (Nominal)
B4: Annual Inflation | D4: -0.015 | E4: 0.005 | F4: 0.02 | G4: 0.02 | H4: 0.02 | I4: 0.02
B5: Inflation Index | D5: =1+D4 -> 0.985 | E5: =D5*(1+E4) -> 0.989925 | F5: =E5*(1+F4) -> 1.0097235 | G5: 1.02991797 | H5: 1.050516329 | I5: 1.071526656
D7: 2010 | E7: 2011 | F7: 2012 | G7: 2013 | H7: 2014 | I7: 2015 | K7: TOTAL
B8: Operating Activities:
B9: Operating profit | C9: [€m] | E9: =(Revenue!D21+Revenue!D19)*E5/1000000 -> 296.8386694 | F9: =(Revenue!E21+Revenue!E19)*F5/1000000 -> 336.2059806 | G9: =(Revenue!F21+Revenue!F19)*G5/1000000 -> 369.694869 | H9: =(Revenue!G21+Revenue!G19)*H5/1000000 -> 404.7374393 | I9: =(Revenue!H21+Revenue!H19)*I5/1000000 -> 433.8557271 | K9: =SUM(E9:I9) -> 1841.332685
B10: Depreciation | C10: [€m] | E10: =-Dep_2011*E5/1000000 -> 170.1891927 | F10: =-Dep_2012*F5/1000000 -> 179.3026248 | G10: =-Dep_2013*G5/1000000 -> 198.432061 | H10: =-Dep_2014*H5/1000000 -> 223.5216052 | I10: =-Dep_2015*I5/1000000 -> 256.1546341 | K10: =SUM(E10:I10) -> 1027.600118
B11: Other fixed asset and revaluation adjustment | C11: [€m] | E11: 0 | F11: 0 | G11: 0 | H11: 0 | I11: 0 | K11: =SUM(E11:I11) -> 0 | M11: Source: ESBN submission Table 3.1.3
B12: (Profit)/Loss on sale of assets | C12: [€m] | E12: 0 | F12: 0 | G12: 0 | H12: 0 | I12: 0 | K12: 0 | M12: Source: ESBN submission Table 3.1.3
B13: (Increase)/Decrease in stocks | C13: [€m] | E13: 0 | F13: 0 | G13: 0 | H13: 0 | I13: 0 | K13: 0 | M13: Source: ESBN submission Table 3.1.3
B14: (Increase)/Decrease in Debtors | C14: [€m] | E14: 3.584334859 | F14: -4.384379424 | G14: -4.827460782 | H14: -5.134355564 | I14: -5.46126017 | K14: -16.22312108 | M14: Source: ESBN submission Table 3.1.3
B15: Increase/(Decrease) in Creditors | C15: [€m] | E15: -8.669871275 | F15: 5.286769373 | G15: 9.593196998 | H15: 2.441021061 | I15: 11.61270303 | K15: 20.26381919 | M15: Source: ESBN submission Table 3.1.3
B16: (Increase)/Decrease in provisions | C16: [€m] | E16: -4 | F16: -4 | G16: -4 | H16: -4 | I16: -4 | K16: -20 | M16: Source: ESBN submission Table 3.1.3
B17: Net cash inflow / (outflow) from Operating Activities | C17: [€m] | E17: =SUM(E9:E16) -> 457.9423257 | F17: =SUM(F9:F16) -> 512.4109954 | G17: =SUM(G9:G16) -> 568.8926663 | H17: =SUM(H9:H16) -> 621.56571 | I17: =SUM(I9:I16) -> 692.161804 | K17: =SUM(K9:K16) -> 2852.973501
B19: Taxation | C19: 0.125
B20: Taxation Payments | C20: [€m] | E20: =-$C$19*(E9+E23) -> -21.56220007 | F20: =-$C$19*(F9+F23) -> -25.93013403 | G20: =-$C$19*(G9+G23) -> -29.7291689 | H20: =-$C$19*(H9+H23) -> -33.15606419 | I20: =-$C$19*(I9+I23) -> -35.74052603 | K20: =-$C$19*(K9+K23) -> -146.1180932
B22: Returns on Investments (ROI) & Servicing of Finance:
B23: Debt Interest Payment | C23: [€m] | E23: =-E72 -> -124.3410688 | F23: =-F72 -> -128.7649084 | G23: -131.8615178 | H23: -139.4889258 | I23: -147.9315189 | K23: =SUM(E23:I23) -> -672.3879397
B25: Dividend
B26: % of Profit after tax and interest | C26: 0.3
B27: Total Dividend | C27: [€m] | E27: =-$C$26*(E9+E20+E23) -> -45.28062016 | F27: =-$C$26*(F9+F20+F23) -> -54.45328146 | G27: =-$C$26*(G9+G20+G23) -> -62.4312547 | H27: =-$C$26*(H9+H20+H23) -> -69.6277348 | I27: =-$C$26*(I9+I20+I23) -> -75.05510466 | K27: =SUM(E27:I27) -> -306.8479958
B29: Capital Expenditure and Financial Investments:
B30: Purchase of fixed assets | C30: [€m] | E30: =-Capex!E60*E5 -> -400.2523382 | F30: =-Capex!F60*F5 -> -447.1292103 | G30: =-Capex!G60*G5 -> -569.1768993 | H30: =-Capex!H60*H5 -> -605.8821116 | I30: =-Capex!I60*I5 -> -777.104946 | K30: =SUM(E30:I30) -> -2799.545505
B31: Receipts from Sale of Fixed Assets | C31: [€m] | E31: 0 | F31: 0 | G31: 0 | H31: 0 | I31: 0 | K31: =SUM(E31:I31) -> 0 | M31: Source: ESBN submission Table 3.1.3
B32: Receipt of Consumers' Contributions | C32: [€m] | E32: =-Capex!E68*E5 -> 49.45439625 | F32: =-Capex!F68*F5 -> 85.04037277 | G32: =-Capex!G68*G5 -> 79.40860637 | H32: =-Capex!H68*H5 -> 66.20551914 | I32: =-Capex!I68*I5 -> 122.7235127 | K32: =SUM(E32:I32) -> 402.8324072
B33: Net cash inflow / (outflow) from Capital Expenditure | C33: [€m] | E33: =SUM(E30:E32) -> -350.797942 | F33: -362.0888375 | G33: -489.768293 | H33: -539.6765925 | I33: -654.3814333 | K33: -2396.713098
B35: Financing:
B36: New Loans in year | C36: [€m] | E36: 84.03950532 | F36: 58.82616606 | G36: 144.8975681 | H36: 160.3836073 | I36: 220.9467788 | K36: =SUM(E36:I36) -> 669.0936255
B37: Repayment of Debt | C37: [€m] | E37: 0 | F37: 0 | G37: 0 | H37: 0 | I37: 0 | K37: =SUM(E37:I37) -> 0
B38: New Equity | C38: [€m] | E38: 0 | F38: 0 | G38: 0 | H38: 0 | I38: 0 | K38: =SUM(E38:I38) -> 0
B39: Total | C39: [€m] | E39: =SUM(E36:E38) -> 84.03950532 | F39: =SUM(F36:F38) -> 58.82616606 | G39: 144.8975681 | H39: 160.3836073 | I39: 220.9467788 | K39: =SUM(K36:K38) -> 669.0936255
B41: Increase / (Decrease) in Cash and Cash Equivalents | C41: [€m] | E41: =E17+E20+E23+E27+E33+E39 -> 0 | F41: =F17+F20+F23+F27+F33+F39 -> 0 | G41: 0 | H41: 0 | I41: 0 | K41: =+K39+K33+K27+K23+K20+K17 -> 0
B43: Cash Balance | C43: [€m] | D43: =$C45*-E33 -> 0 | E43: =$C45*-F33 -> 0 | F43: 0 | G43: 0 | H43: 0 | I43: =H43 -> 0
B45: Cash balance at start of period as a %age of capex programme | C45: 0 | I45: Cash Inflow/(Outflow) from Business excl. Loan Finance | K45: =K17+K20+K23 -> 2034.467468
I46: Net Capital Expenditure | K46: =K33 -> -2396.713098
I47: Cash Inflow/(Outflow) before Dividends and Loan Finance | K47: =K45+K46 -> -362.2456298
B51: RAV (Nominal)
B53: OAV | E53: =Nom_OAV_2011/1000000 -> 4294.731585 | F53: =E56 -> 4498.051914 | G53: =F56 -> 4706.643512 | H53: 5027.33644 | I53: 5376.762687
B54: Capex | E54: ='RAB Summary (Nominal)'!C6/1000000 -> 350.797942 | F54: ='RAB Summary (Nominal)'!D6/1000000 -> 362.0888375 | G54: ='RAB Summary (Nominal)'!E6/1000000 -> 489.768293 | H54: ='RAB Summary (Nominal)'!F6/1000000 -> 539.6765925 | I54: ='RAB Summary (Nominal)'!G6/1000000 -> 654.3814333
B55: Depreciation | E55: =Nom_Dep_2011/1000000 -> -147.4776132 | F55: =Nom_Dep_2012/1000000 -> -153.4972395 | G55: =Nom_Dep_2013/1000000 -> -169.0753644 | H55: =Nom_Dep_2014/1000000 -> -190.2503456 | I55: =Nom_Dep_2015/1000000 -> -218.3983538
B56: CAV | E56: =E53+E54+E55 -> 4498.051914 | F56: =F53+F54+F55 -> 4706.643512 | G56: 5027.33644 | H56: 5376.762687 | I56: 5812.745767
B58: Gearing | C58: [%] | D58: 0.55
B60: Opening debt | E60: =E53*D58 -> 2362.102372 | F60: =E62 -> 2446.141877 | G60: =F62 -> 2504.968043 | H60: 2649.865611 | I60: 2810.249218
B61: Net financing | E61: =E39 -> 84.03950532 | F61: =F39 -> 58.82616606 | G61: 144.8975681 | H61: 160.3836073 | I61: 220.9467788
B62: Closing debt | E62: =E60+E61 -> 2446.141877 | F62: =F60+F61 -> 2504.968043 | G62: 2649.865611 | H62: 2810.249218 | I62: 3031.195997
B64: Opening equity | E64: =E53-E60 -> 1932.629213 | F64: =E66 -> 2051.910037 | G64: =F66 -> 2201.675469 | H64: 2377.470829 | I64: 2566.513469
B65: Retained earnings | E65: =E17+E20+E23+E27-E10+(E10+E55) -> 119.2808235 | F65: =F17+F20+F23+F27-F10+(F10+F55) -> 149.765432 | G65: 175.7953605 | H65: 189.0426396 | I65: 215.0363007
B66: Closing equity | E66: =E64+E65 -> 2051.910037 | F66: =F64+F65 -> 2201.675469 | G66: 2377.470829 | H66: 2566.513469 | I66: 2781.549769
B68: Long Term Inflation + Inflation Risk Premium | C68: [%] | D68: 0.02
B70: Real Interest Rate | C70: [%] | D70: 0.032 | H70: Nominal Interest Rate | I70: =(1+D68)*(1+D70)-1 -> 0.05264
B72: Interest | E72: =E60*$I$70 -> 124.3410688 | F72: =F60*$I$70 -> 128.7649084 | G72: 131.8615178 | H72: 139.4889258 | I72: 147.9315189
B75: Ratios | K75: Avg
B77: EBIT | C77: [€m] | E77: =E9 -> 296.8386694 | F77: =F9 -> 336.2059806 | G77: =G9 -> 369.694869 | H77: =H9 -> 404.7374393 | I77: =I9 -> 433.8557271
B78: Interest | C78: [€m] | E78: =E72 -> 124.3410688 | F78: =F72 -> 128.7649084 | G78: 131.8615178 | H78: 139.4889258 | I78: 147.9315189
B79: EBIT Interest Cover | C79: times | E79: =E77/E78 -> 2.387293854 | F79: =F77/F78 -> 2.61100625 | G79: 2.803660046 | H79: 2.901573993 | I79: 2.932814659 | K79: =AVERAGE(E79:I79) -> 2.72726976
B81: EBITDA | C81: [€m] | E81: =E9+E10 -> 467.0278621 | F81: =F9+F10 -> 515.5086054 | G81: =G9+G10 -> 568.1269301 | H81: =H9+H10 -> 628.2590445 | I81: =I9+I10 -> 690.0103612
B82: Interest | C82: [€m] | E82: =E72 -> 124.3410688 | F82: =F72 -> 128.7649084 | G82: 131.8615178 | H82: 139.4889258 | I82: 147.9315189
B83: EBITDA Interest Cover | C83: times | E83: =E81/E82 -> 3.756022579 | F83: =F81/F82 -> 4.003486756 | G83: 4.308511987 | H83: 4.504006615 | I83: 4.664390432 | K83: 4.247283674
B85: Net Debt (Closing) | C85: [€m] | E85: =E62 -> 2446.141877 | F85: =F62 -> 2504.968043 | G85: 2649.865611 | H85: 2810.249218 | I85: 3031.195997
B86: RAV (Closing) | C86: [€m] | E86: =E56 -> 4498.051914 | F86: =F56 -> 4706.643512 | G86: 5027.33644 | H86: 5376.762687 | I86: 5812.745767
B87: Net Debt/RAV | C87: % | E87: =E85/E86 -> 0.5438225089 | F87: =F85/F86 -> 0.5322196246 | G87: 0.5270913619 | H87: 0.52266566 | I87: 0.5214740364 | K87: =AVERAGE(E87:I87) -> 0.5294546384
B89: EBITDA | C89: [€m] | E89: =E81 -> 467.0278621 | F89: =F81 -> 515.5086054 | G89: 568.1269301 | H89: 628.2590445 | I89: 690.0103612
B90: Net Debt (Closing) | C90: [€m] | E90: =E85 -> 2446.141877 | F90: =F85 -> 2504.968043 | G90: 2649.865611 | H90: 2810.249218 | I90: 3031.195997
B91: EBITDA/Net Debt | C91: % | E91: =E89/E90 -> 0.1909242741 | F91: =F89/F90 -> 0.2057944838 | G91: 0.2143983935 | H91: 0.2235599036 | I91: 0.2276363395 | K91: 0.2124626789
B93: Operating Cashflows | C93: [€m] | E93: =E17 -> 457.9423257 | F93: =F17 -> 512.4109954 | G93: =G17 -> 568.8926663 | H93: =H17 -> 621.56571 | I93: =I17 -> 692.161804
B94: Capex | C94: [€m] | E94: =-E30 -> 400.2523382 | F94: =-F30 -> 447.1292103 | G94: =-G30 -> 569.1768993 | H94: =-H30 -> 605.8821116 | I94: =-I30 -> 777.104946
B95: Operating Cashflows/Capex | C95: % | E95: =E93/E94 -> 1.144134042 | F95: =F93/F94 -> 1.146002058 | G95: 0.9995006244 | H95: 1.025885561 | I95: 0.8906928306 | K95: 1.041243023
B97: FFO | C97: [€m] | E97: =E9+E10+E20+E23 -> 321.1245932 | F97: =F9+F10+F20+F23 -> 360.813563 | G97: =G9+G10+G20+G23 -> 406.5362434 | H97: =H9+H10+H20+H23 -> 455.6140545 | I97: =I9+I10+I20+I23 -> 506.3383163
B98: Interest | C98: [€m] | E98: =E72 -> 124.3410688 | F98: =F72 -> 128.7649084 | G98: 131.8615178 | H98: 139.4889258 | I98: 147.9315189
B99: FFO Interest Cover | C99: times | E99: =(E97+E98)/E98 -> 3.582610848 | F99: =(F97+F98)/F98 -> 3.802110974 | G99: 4.083054482 | H99: 4.266309866 | I99: 4.4227886 | K99: =AVERAGE(E99:I99) -> 4.031374954
B101: FFO | C101: [€m] | E101: =E9+E10+E20+E23 -> 321.1245932 | F101: =F9+F10+F20+F23 -> 360.813563 | G101: =G9+G10+G20+G23 -> 406.5362434 | H101: =H9+H10+H20+H23 -> 455.6140545 | I101: =I9+I10+I20+I23 -> 506.3383163
B102: Net Debt (Closing) | C102: [€m] | E102: =E85 -> 2446.141877 | F102: =F85 -> 2504.968043 | G102: 2649.865611 | H102: 2810.249218 | I102: 3031.195997
B103: FFO/Net Debt | C103: % | E103: =E101/E102 -> 0.1312779918 | F103: =F101/F102 -> 0.144039188 | G103: 0.1534176834 | H103: 0.162125854 | I103: 0.1670424205 | K103: =AVERAGE(E103:I103) -> 0.1515806275
B105: Retained Cash Flow | C105: [€m] | E105: =E9+E10+E20+E23+E27 -> 275.8439731 | F105: =F9+F10+F20+F23+F27 -> 306.3602815 | G105: =G9+G10+G20+G23+G27 -> 344.1049887 | H105: =H9+H10+H20+H23+H27 -> 385.9863197 | I105: =I9+I10+I20+I23+I27 -> 431.2832116
B106: Net Debt (Closing) | C106: [€m] | E106: =E85 -> 2446.141877 | F106: =F85 -> 2504.968043 | G106: 2649.865611 | H106: 2810.249218 | I106: 3031.195997
B107: Retained Cash Flow / Net Debt | C107: % | E107: =E105/E106 -> 0.1127669559 | F107: =F105/F106 -> 0.1223010738 | G107: 0.1298575246 | H107: 0.1373494981 | I107: 0.1422815324 | K107: =AVERAGE(E107:I107) -> 0.128911317
B109: Retained Cash Flow | C109: [€m] | E109: =E9+E10+E20+E23+E27 -> 275.8439731 | F109: =F9+F10+F20+F23+F27 -> 306.3602815 | G109: =G9+G10+G20+G23+G27 -> 344.1049887 | H109: =H9+H10+H20+H23+H27 -> 385.9863197 | I109: =I9+I10+I20+I23+I27 -> 431.2832116
B110: Capex | C110: [€m] | E110: =-E30 -> 400.2523382 | F110: =-F30 -> 447.1292103 | G110: =-G30 -> 569.1768993 | H110: =-H30 -> 605.8821116 | I110: =-I30 -> 777.104946
B111: Retained Cash Flow / Capex | C111: times | E111: =E109/E110 -> 0.6891751696 | F111: =F109/F110 -> 0.6851717008 | G111: 0.6045659778 | H111: 0.6370650533 | I111: 0.5549870887 | K111: 0.634192998

Sheet RAB Summary
A2: Distribution RAB 2011 to 2015
B3: (€ 2009 prices)
C4: 2011 | D4: 2012 | E4: 2013 | F4: 2014 | G4: 2015
B5: OAV | C5: 4974523268 | D5: =C8 -> 5156970170 | E5: =D8 -> 5337996176 | F5: 5620869415 | G5: 5921821412
B6: Capex | C6: ='2011 to 2015 Distribution RAB'!Q76 -> 354368201.6 | D6: ='2011 to 2015 Distribution RAB'!Q77 -> 358601971.3 | E6: ='2011 to 2015 Distribution RAB'!Q78 -> 475541069.5 | F6: ='2011 to 2015 Distribution RAB'!Q79 -> 513725086.8 | G6: ='2011 to 2015 Distribution RAB'!Q80 -> 610700097.5
B7: Depreciation | C7: -171921299.8 | D7: -177575964.9 | E7: -192667830.7 | F7: -212773089.7 | G7: -239055774
B8: CAV | C8: =SUM(C5:C7) -> 5156970170 | D8: =SUM(D5:D7) -> 5337996176 | E8: 5620869415 | F8: 5921821412 | G8: 6293465736

Sheet 2011 to 2015 Distribution RAB
B1: Historic Cost | S1: Indexed Gross Asset Value | AK1: Indexed Net Book Value (CAV 2000 using ESB asset lifes) | AW1: Opening Asset Base | AX1: 2001 | BC1: Indexed Net Book Value (CAV 2005 applying FRS 15 and CER PR1 asset lifes) | BN1: Opening Asset Base | BO1: 2006 | BT1: Indexed Net Book Value | CD1: Opening Asset Base | CE1: 2016
V2: 40
AK3: Asset Life | AL3: 30 | AM3: 25 | AN3: 5 | AO3: 7 | AP3: 10 | AQ3: 5 | AR3: 15 | AS3: 7 | AT3: 50 | AU3: 5 | AV3: 15 | AW3: 25 | AX3: 25 | AY3: 40 | BB3: Asset Life | BC3: 40 | BD3: 40 | BE3: 5 | BF3: 7 | BG3: 10 | BH3: 5 | BI3: 15 | BJ3: 7 | BK3: 50 | BL3: 5 | BM3: 15 | BN3: 40 | BO3: 40 | BP3: 40 | BS3: Asset Life | BT3: 45 | BU3: 45 | BV3: 5 | BW3: 7 | BX3: 10 | BY3: 5 | BZ3: 15 | CA3: 7 | CB3: 50 | CC3: 5 | CD3: 15 | CE3: 45 | CF3: 45 | CG3: 45
A4: Capitalised Year | C4: 110kV Networks | D4: HV/MV/LV Networks | E4: IT (5 year) | F4: IT (7 year) | G4: Office Equip,Telecoms & Smart Metering (10 Year) | H4: F&F | I4: Scada Tel (15 years) | J4: Vehicles | K4: Premises | L4: Tools | M4: Telecoms (15 Years) | N4: Grants | O4: Customer Contributions | P4: Other | Q4: Total | S4: Indexation | U4: =C4 -> 110kV Networks | V4: =D4 -> HV/MV/LV Networks | W4: =E4 -> IT (5 year) | X4: =F4 -> IT (7 year) | Y4: =G4 -> Office Equip,Telecoms & Smart Metering (10 Year) | Z4: F&F | AA4: Scada Tel (15 years) | AB4: Vehicles | AC4: Premises | AD4: Tools | AE4: Telecoms (15 Years) | AF4: Grants | AG4: Customer Contributions | AH4: Other | AI4: Total | AL4: =C4 -> 110kV Networks | AM4: =D4 -> HV/MV/LV Networks | AN4: IT (5 year) | AO4: IT (7 year) | AP4: Office Equip,Telecoms & Smart Metering (10 Year) | AQ4: F&F | AR4: Scada Tel (15 years) | AS4: Vehicles | AT4: Premises | AU4: Tools | AV4: Telecoms (15 Years) | AW4: Grants | AX4: Customer Contributions | AY4: Other | AZ4: Total | BC4: =C4 -> 110kV Networks | BD4: =D4 -> HV/MV/LV Networks | BE4: IT (5 year) | BF4: IT (7 year) | BG4: Office Equip,Telecoms & Smart Metering (10 Year) | BH4: F&F | BI4: Scada Tel (15 years) | BJ4: Vehicles | BK4: Premises | BL4: Tools | BM4: Telecoms (15 Years) | BN4: Grants | BO4: Customer Contributions | BP4: Other | BQ4: Total | BT4: =C4 -> 110kV Networks | BU4: =D4 -> HV/MV/LV Networks | BV4: IT (5 year) | BW4: IT (7 year) | BX4: Office Equip,Telecoms & Smart Metering (10 Year) | BY4: F&F | BZ4: Scada Tel (15 years) | CA4: Vehicles | CB4: Premises | CC4: Tools | CD4: Telecoms (15 Years) | CE4: Grants | CF4: Customer Contributions | CG4: Other | CH4: Total
D5: € | E5: € | F5: € | G5: € | H5: € | I5: € | J5: € | K5: € | L5: € | M5: € | N5: € | O5: € | Q5: € | V5: € | W5: € | Y5: € | Z5: € | AA5: € | AB5: € | AC5: € | AD5: € | AE5: € | AF5: € | AG5: € | AI5: € | AL5: € | AM5: € | AN5: € | AP5: € | AQ5: € | AR5: € | AS5: € | AT5: € | AU5: € | AV5: € | AW5: € | AX5: € | AY5: € | AZ5: € | BC5: € | BD5: € | BE5: € | BG5: € | BH5: € | BI5: € | BJ5: € | BK5: € | BL5: € | BM5: € | BN5: € | BO5: € | BP5: € | BQ5: € | BT5: € | BU5: € | BV5: € | BX5: € | BY5: € | BZ5: € | CA5: € | CB5: € | CC5: € | CD5: € | CE5: € | CF5: € | CG5: € | CH5: €
A7: 1950 | C7: 0 | D7: 1040673.3 | E7: 0 | F7: 0 | G7: 0 | H7: 0 | I7: 0 | J7: 0 | K7: 0 | L7: 0 | M7: 0 | N7: 0 | O7: -1133288.78 | P7: 0 | Q7: =SUM(C7:P7) -> -92615.48017 | S7: =Inflation!O7 -> 29.19916248 | U7: =+C7*$S7 -> 0 | V7: =+D7*$S7 -> 30386788.77 | W7: 0 | X7: 0 | Y7: 0 | Z7: 0 | AA7: 0 | AB7: 0 | AC7: 0 | AD7: 0 | AE7: 0 | AF7: 0 | AG7: -33091083.23 | AH7: 0 | AI7: =SUM(U7:AG7) -> -2704294.454 | AL7: =IF(AND(($AX$1-$A7)<AL$3,$A7<$AX$1),((AL$3-($AX$1-$A7))/AL$3*U7),0) -> 0 | AM7: =IF(AND(($AX$1-$A7)<AM$3,$A7<$AX$1),((AM$3-($AX$1-$A7))/AM$3*V7),0) -> 0 | AN7: =IF(AND(($AX$1-$A7)<AN$3,$A7<$AX$1),((AN$3-($AX$1-$A7))/AN$3*W7),0) -> 0 | AO7: 0 | AP7: =IF(AND(($AX$1-$A7)<AP$3,$A7<$AX$1),((AP$3-($AX$1-$A7))/AP$3*Y7),0) -> 0 | AQ7: =IF(AND(($AX$1-$A7)<AQ$3,$A7<$AX$1),((AQ$3-($AX$1-$A7))/AQ$3*Z7),0) -> 0 | AR7: =IF(AND(($AX$1-$A7)<AR$3,$A7<$AX$1),((AR$3-($AX$1-$A7))/AR$3*AA7),0) -> 0 | AS7: =IF(AND(($AX$1-$A7)<AS$3,$A7<$AX$1),((AS$3-($AX$1-$A7))/AS$3*AB7),0) -> 0 | AT7: =IF(AND(($AX$1-$A7)<AT$3,$A7<$AX$1),((AT$3-($AX$1-$A7))/AT$3*AC7),0) -> 0 | AU7: =IF(AND(($AX$1-$A7)<AU$3,$A7<$AX$1),((AU$3-($AX$1-$A7))/AU$3*AD7),0) -> 0 | AV7: =IF(AND(($AX$1-$A7)<AV$3,$A7<$AX$1),((AV$3-($AX$1-$A7))/AV$3*AE7),0) -> 0 | AW7: =IF(AND(($AX$1-$A7)<AW$3,$A7<$AX$1),((AW$3-($AX$1-$A7))/AW$3*AF7),0) -> 0 | AX7: =IF(AND(($AX$1-$A7)<AX$3,$A7<$AX$1),((AX$3-($AX$1-$A7))/AX$3*AG7),0) -> 0 | AY7: =IF(AND(($AX$1-$A7)<AY$3,$A7<$AX$1),((AY$3-($AX$1-$A7))/AY$3*AH7),0) -> 0 | AZ7: =SUM(AL7:AY7) -> 0 | BC7: =IF(AND(($BO$1-$A7)<BC$3,$A7<$BO$1),((BC$3-($BO$1-$A7))/(BC$3-(2001-$A7))*AL7),0) -> 0 | BD7: =IF(AND(($BO$1-$A7)<BD$3,$A7<$BO$1),((BD$3-($BO$1-$A7))/(BD$3-(2001-$A7))*AM7),0) -> 0 | BE7: =IF(AND(($BO$1-$A7)<BE$3,$A7<$BO$1),((BE$3-($BO$1-$A7))/(BE$3-(2001-$A7))*AN7),0) -> 0 | BF7: 0 | BG7: =IF(AND(($BO$1-$A7)<BG$3,$A7<$BO$1),((BG$3-($BO$1-$A7))/(BG$3-(2001-$A7))*AP7),0) -> 0 | BH7: =IF(AND(($BO$1-$A7)<BH$3,$A7<$BO$1),((BH$3-($BO$1-$A7))/(BH$3-(2001-$A7))*AQ7),0) -> 0 | BI7: =IF(AND(($BO$1-$A7)<BI$3,$A7<$BO$1),((BI$3-($BO$1-$A7))/(BI$3-(2001-$A7))*AR7),0) -> 0 | BJ7: =IF(AND(($BO$1-$A7)<BJ$3,$A7<$BO$1),((BJ$3-($BO$1-$A7))/(BJ$3-(2001-$A7))*AS7),0) -> 0 | BK7: =IF(AND(($BO$1-$A7)<BK$3,$A7<$BO$1),((BK$3-($BO$1-$A7))/(BK$3-(2001-$A7))*AT7),0) -> 0 | BL7: =IF(AND(($BO$1-$A7)<BL$3,$A7<$BO$1),((BL$3-($BO$1-$A7))/(BL$3-(2001-$A7))*AU7),0) -> 0 | BM7: =IF(AND(($BO$1-$A7)<BM$3,$A7<$BO$1),((BM$3-($BO$1-$A7))/(BM$3-(2001-$A7))*AV7),0) -> 0 | BN7: =IF(AND(($BO$1-$A7)<BN$3,$A7<$BO$1),((BN$3-($BO$1-$A7))/(BN$3-(2001-$A7))*AW7),0) -> 0 | BO7: =IF(AND(($BO$1-$A7)<BO$3,$A7<$BO$1),((BO$3-($BO$1-$A7))/(BO$3-(2001-$A7))*AX7),0) -> 0 | BP7: =IF(AND(($BO$1-$A7)<BP$3,$A7<$BO$1),((BP$3-($BO$1-$A7))/(BP$3-(2001-$A7))*AY7),0) -> 0 | BQ7: =SUM(BC7:BP7) -> 0 | BT7: =IF(AND(($CE$1-$A7)<BT$3,$A7<$CE$1),((BT$3-($CE$1-$A7))/(BT$3-(2006-$A7))*BC7),0) -> 0 | BU7: 0 | BV7: 0 | BW7: 0 | BX7: 0 | BY7: 0 | BZ7: 0 | CA7: 0 | CB7: 0 | CC7: 0 | CD7: 0 | CE7: 0 | CF7: 0 | CG7: 0 | CH7: =SUM(BT7:CG7) -> 0
A8: 1951 | C8: 98142.91 | D8: 1262213.45 | E8: 0 | F8: 0 | G8: 0 | H8: 0 | I8: 0 | J8: 0 | K8: 15366.37 | L8: 0 | M8: 0 | N8: 0 | O8: -1133288.78 | P8: 0 | Q8: 242433.9498 | S8: =Inflation!O8 -> 28.76551155 | U8: =+C8*$S8 -> 2823131.011 | V8: =+D8*$S8 -> 36308215.58 | W8: =+E8*$S8 -> 0 | X8: =+F8*$S8 -> 0 | Y8: =+G8*$S8 -> 0 | Z8: =+H8*$S8 -> 0 | AA8: =+I8*$S8 -> 0 | AB8: =+J8*$S8 -> 0 | AC8: =+K8*$S8 -> 442021.4937 | AD8: =+L8*$S8 -> 0 | AE8: =+M8*$S8 -> 0 | AF8: =+N8*$S8 -> 0 | AG8: =+O8*$S8 -> -32599631.5 | AH8: =+P8*$S8 -> 0 | AI8: =SUM(U8:AG8) -> 6973736.584 | AL8: 0 | AM8: 0 | AN8: 0 | AO8: 0 | AP8: 0 | AQ8: 0 | AR8: 0 | AS8: 0 | AT8: 0 | AU8: 0 | AV8: 0 | AW8: 0 | AX8: 0 | AY8: 0 | AZ8: =SUM(AL8:AY8) -> 0 | BC8: 0 | BD8: 0 | BE8: 0 | BF8: 0 | BG8: 0 | BH8: 0 | BI8: 0 | BJ8: 0 | BK8: 0 | BL8: 0 | BM8: 0 | BN8: 0 | BO8: 0 | BP8: 0 | BQ8: 0 | BT8: =IF(AND(($CE$1-$A8)<BT$3,$A8<$CE$1),((BT$3-($CE$1-$A8))/(BT$3-(2006-$A8))*BC8),0) -> 0 | BU8: =IF(AND(($CE$1-$A8)<BU$3,$A8<$CE$1),((BU$3-($CE$1-$A8))/(BU$3-(2006-$A8))*BD8),0) -> 0 | BV8: =IF(AND(($CE$1-$A8)<BV$3,$A8<$CE$1),((BV$3-($CE$1-$A8))/(BV$3-(2006-$A8))*BE8),0) -> 0 | BW8: =IF(AND(($CE$1-$A8)<BW$3,$A8<$CE$1),((BW$3-($CE$1-$A8))/(BW$3-(2006-$A8))*BF8),0) -> 0 | BX8: =IF(AND(($CE$1-$A8)<BX$3,$A8<$CE$1),((BX$3-($CE$1-$A8))/(BX$3-(2006-$A8))*BG8),0) -> 0 | BY8: =IF(AND(($CE$1-$A8)<BY$3,$A8<$CE$1),((BY$3-($CE$1-$A8))/(BY$3-(2006-$A8))*BH8),0) -> 0 | BZ8: =IF(AND(($CE$1-$A8)<BZ$3,$A8<$CE$1),((BZ$3-($CE$1-$A8))/(BZ$3-(2006-$A8))*BI8),0) -> 0 | CA8: =IF(AND(($CE$1-$A8)<CA$3,$A8<$CE$1),((CA$3-($CE$1-$A8))/(CA$3-(2006-$A8))*BJ8),0) -> 0 | CB8: =IF(AND(($CE$1-$A8)<CB$3,$A8<$CE$1),((CB$3-($CE$1-$A8))/(CB$3-(2006-$A8))*BK8),0) -> 0 | CC8: =IF(AND(($CE$1-$A8)<CC$3,$A8<$CE$1),((CC$3-($CE$1-$A8))/(CC$3-(2006-$A8))*BL8),0) -> 0 | CD8: =IF(AND(($CE$1-$A8)<CD$3,$A8<$CE$1),((CD$3-($CE$1-$A8))/(CD$3-(2006-$A8))*BM8),0) -> 0 | CE8: =IF(AND(($CE$1-$A8)<CE$3,$A8<$CE$1),((CE$3-($CE$1-$A8))/(CE$3-(2006-$A8))*BN8),0) -> 0 | CF8: =IF(AND(($CE$1-$A8)<CF$3,$A8<$CE$1),((CF$3-($CE$1-$A8))/(CF$3-(2006-$A8))*BO8),0) -> 0 | CG8: =IF(AND(($CE$1-$A8)<CG$3,$A8<$CE$1),((CG$3-($CE$1-$A8))/(CG$3-(2006-$A8))*BP8),0) -> 0 | CH8: =SUM(BT8:CG8) -> 0
A9: 1952 | C9: 635771.83 | D9: 2314774.03 | E9: 0 | F9: 0 | G9: 0 | H9: 0 | I9: 0 | J9: 0 | K9: 41555.99 | L9: 0 | M9: 0 | N9: 0 | O9: -1133288.78 | P9: 0 | Q9: 1858813.07 | S9: =Inflation!O9 -> 26.65428135 | U9: 16946041.23 | V9: =+D9*$S9 -> 61698638.25 | W9: =+E9*$S9 -> 0 | X9: 0 | Y9: 0 | Z9: 0 | AA9: 0 | AB9: 0 | AC9: 1107645.049 | AD9: 0 | AE9: 0 | AF9: 0 | AG9: -30206997.99 | AH9: 0 | AI9: 49545326.53 | AL9: 0 | AM9: 0 | AN9: 0 | AO9: 0 | AP9: 0 | AQ9: 0 | AR9: 0 | AS9: 0 | AT9: 22152.90098 | AU9: 0 | AV9: 0 | AW9: 0 | AX9: 0 | AY9: 0 | AZ9: 22152.90098 | BC9: 0 | BD9: 0 | BE9: 0 | BF9: 0 | BG9: 0 | BH9: 0 | BI9: 0 | BJ9: 0 | BK9: 0 | BL9: 0 | BM9: 0 | BN9: 0 | BO9: 0 | BP9: 0 | BQ9: 0 | BT9: 0 | BU9: 0 | BV9: 0 | BW9: 0 | BX9: 0 | BY9: 0 | BZ9: 0 | CA9: 0 | CB9: 0 | CC9: 0 | CD9: 0 | CE9: 0 | CF9: 0 | CG9: 0 | CH9: 0
A10: 1953 | C10: 88938.79 | D10: 3258531.48 | E10: 0 | F10: 0 | G10: 0 | H10: 0 | I10: 0 | J10: 0 | K10: 495.89 | L10: 0 | M10: 0 | N10: 0 | O10: -1133288.78 | P10: 0 | Q10: 2214677.38 | S10: =Inflation!O10 -> 24.51744023 | U10: 2180551.468 | V10: 79890850.78 | W10: 0 | X10: 0 | Y10: 0 | Z10: 0 | AA10: 0 | AB10: 0 | AC10: 12157.95343 | AD10: 0 | AE10: 0 | AF10: 0 | AG10: -27785339.93 | AH10: 0 | AI10: 54298220.28 | AL10: 0 | AM10: 0 | AN10: 0 | AO10: 0 | AP10: 0 | AQ10: 0 | AR10: 0 | AS10: 0 | AT10: 486.3181373 | AU10: 0 | AV10: 0 | AW10: 0 | AX10: 0 | AY10: 0 | AZ10: 486.3181373 | BC10: 0 | BD10: 0 | BE10: 0 | BF10: 0 | BG10: 0 | BH10: 0 | BI10: 0 | BJ10: 0 | BK10: 0 | BL10: 0 | BM10: 0 | BN10: 0 | BO10: 0 | BP10: 0 | BQ10: 0 | BT10: 0 | BU10: 0 | BV10: 0 | BW10: 0 | BX10: 0 | BY10: 0 | BZ10: 0 | CA10: 0 | CB10: 0 | CC10: 0 | CD10: 0 | CE10: 0 | CF10: 0 | CG10: 0 | CH10: 0
A11: 1954 | C11: 133577.72 | D11: 2327058.17 | E11: 0 | F11: 0 | G11: 0 | H11: 0 | I11: 0 | J11: 0 | K11: 40225.3 | L11: 0 | M11: 0 | N11: 0 | O11: -1133288.78 | P11: 0 | Q11: 1367572.41 | S11: =Inflation!O11 -> 23.28444533 | U11: 3110283.119 | V11: 54184258.75 | W11: 0 | X11: 0 | Y11: 0 | Z11: 0 | AA11: 0 | AB11: 0 | AC11: 936623.7989 | AD11: 0 | AE11: 0 | AF11: 0 | AG11: -26388000.65 | AH11: 0 | AI11: 31843165.02 | AL11: 0 | AM11: 0 | AN11: 0 | AO11: 0 | AP11: 0 | AQ11: 0 | AR11: 0 | AS11: 0 | AT11: 56197.42794 | AU11: 0 | AV11: 0 | AW11: 0 | AX11: 0 | AY11: 0 | AZ11: 56197.42794 | BC11: 0 | BD11: 0 | BE11: 0 | BF11: 0 | BG11: 0 | BH11: 0 | BI11: 0 | BJ11: 0 | BK11: 0 | BL11: 0 | BM11: 0 | BN11: 0 | BO11: 0 | BP11: 0 | BQ11: 0 | BT11: 0 | BU11: 0 | BV11: 0 | BW11: 0 | BX11: 0 | BY11: 0 | BZ11: 0 | CA11: 0 | CB11: 0 | CC11: 0 | CD11: 0 | CE11: 0 | CF11: 0 | CG11: 0 | CH11: 0
A12: 1955 | C12: 61203.93 | D12: 3488740.09 | E12: 0 | F12: 0 | G12: 0 | H12: 0 | I12: 0 | J12: 0 | K12: 380807.15 | L12: 0 | M12: 0 | N12: 0 | O12: -1133288.78 | P12: 0 | Q12: 2797462.39 | S12: =Inflation!O12 -> 23.21467572 | U12: 1420829.388 | V12: 80989969.87 | W12: 0 | X12: 0 | Y12: 0 | Z12: 0 | AA12: 0 | AB12: 0 | AC12: 8840314.5 | AD12: 0 | AE12: 0 | AF12: 0 | AG12: -26308931.53 | AH12: 0 | AI12: 64942182.23 | AL12: 0 | AM12: 0 | AN12: 0 | AO12: 0 | AP12: 0 | AQ12: 0 | AR12: 0 | AS12: 0 | AT12: 707225.16 | AU12: 0 | AV12: 0 | AW12: 0 | AX12: 0 | AY12: 0 | AZ12: 707225.16 | BC12: 0 | BD12: 0 | BE12: 0 | BF12: 0 | BG12: 0 | BH12: 0 | BI12: 0 | BJ12: 0 | BK12: 0 | BL12: 0 | BM12: 0 | BN12: 0 | BO12: 0 | BP12: 0 | BQ12: 0 | BT12: 0 | BU12: 0 | BV12: 0 | BW12: 0 | BX12: 0 | BY12: 0 | BZ12: 0 | CA12: 0 | CB12: 0 | CC12: 0 | CD12: 0 | CE12: 0 | CF12: 0 | CG12: 0 | CH12: 0
A13: 1956 | C13: 122537.33 | D13: 1805001.52 | E13: 0 | F13: 0 | G13: 0 | H13: 0 | I13: 0 | J13: 0 | K13: 0 | L13: 0 | M13: 0 | N13: 0 | O13: -1133288.78 | P13: 0 | Q13: 794250.0698 | S13: =Inflation!O13 -> 22.62707684 | U13: 2772661.582 | V13: 40841908.1 | W13: 0 | X13: 0 | Y13: 0 | Z13: 0 | AA13: 0 | AB13: 0 | AC13: 0 | AD13: 0 | AE13: 0 | AF13: 0 | AG13: -25643012.31 | AH13: 0 | AI13: 17971557.36 | AL13: 0 | AM13: 0 | AN13: 0 | AO13: 0 | AP13: 0 | AQ13: 0 | AR13: 0 | AS13: 0 | AT13: 0 | AU13: 0 | AV13: 0 | AW13: 0 | AX13: 0 | AY13: 0 | AZ13: 0 | BC13: 0 | BD13: 0 | BE13: 0 | BF13: 0 | BG13: 0 | BH13: 0 | BI13: 0 | BJ13: 0 | BK13: 0 | BL13: 0 | BM13: 0 | BN13: 0 | BO13: 0 | BP13: 0 | BQ13: 0 | BT13: 0 | BU13: 0 | BV13: 0 | BW13: 0 | BX13: 0 | BY13: 0 | BZ13: 0 | CA13: 0 | CB13: 0 | CC13: 0 | CD13: 0 | CE13: 0 | CF13: 0 | CG13: 0 | CH13: 0
A14: 1957 | C14: 72223.97 | D14: 2225517.04 | E14: 0 | F14: 0 | G14: 0 | H14: 0 | I14: 0 | J14: 0 | K14: 11480.97 | L14: 0 | M14: 0 | N14: 0 | O14: -1133288.78 | P14: 0 | Q14: 1175933.2 | S14: =Inflation!O14 -> 21.7017118 | U14: 1567383.782 | V14: 48297529.4 | W14: 0 | X14: 0 | Y14: 0 | Z14: 0 | AA14: 0 | AB14: 0 | AC14: 249156.7021 | AD14: 0 | AE14: 0 | AF14: 0 | AG14: -24594306.49 | AH14: 0 | AI14: 25519763.39 | AL14: 0 | AM14: 0 | AN14: 0 | AO14: 0 | AP14: 0 | AQ14: 0 | AR14: 0 | AS14: 0 | AT14: 29898.80425 | AU14: 0 | AV14: 0 | AW14: 0 | AX14: 0 | AY14: 0 | AZ14: 29898.80425 | BC14: 0 | BD14: 0 | BE14: 0 | BF14: 0 | BG14: 0 | BH14: 0 | BI14: 0 | BJ14: 0 | BK14: 4983.134042 | BL14: 0 | BM14: 0 | BN14: 0 | BO14: 0 | BP14: 0 | BQ14: 4983.134042 | BT14: 0 | BU14: 0 | BV14: 0 | BW14: 0 | BX14: 0 | BY14: 0 | BZ14: 0 | CA14: 0 | CB14: 0 | CC14: 0 | CD14: 0 | CE14: 0 | CF14: 0 | CG14: 0 | CH14: 0
A15: 1958 | C15: 37688.37 | D15: 1139886.52 | E15: 0 | F15: 0 | G15: 0 | H15: 0 | I15: 0 | J15: 0 | K15: 0 | L15: 0 | M15: 0 | N15: 0 | O15: -1133288.78 | P15: 0 | Q15: 44286.10982 | S15: =Inflation!O15 -> 20.84906112 | U15: 785767.1295 | V15: 23765563.72 | W15: 0 | X15: 0 | Y15: 0 | Z15: 0 | AA15: 0 | AB15: 0 | AC15: 0 | AD15: 0 | AE15: 0 | AF15: 0 | AG15: -23628007.04 | AH15: 0 | AI15: 923323.8104 | AL15: 0 | AM15: 0 | AN15: 0 | AO15: 0 | AP15: 0 | AQ15: 0 | AR15: 0 | AS15: 0 | AT15: 0 | AU15: 0 | AV15: 0 | AW15: 0 | AX15: 0 | AY15: 0 | AZ15: 0 | BC15: 0 | BD15: 0 | BE15: 0 | BF15: 0 | BG15: 0 | BH15: 0 | BI15: 0 | BJ15: 0 | BK15: 0 | BL15: 0 | BM15: 0 | BN15: 0 | BO15: 0 | BP15: 0 | BQ15: 0 | BT15: 0 | BU15: 0 | BV15: 0 | BW15: 0 | BX15: 0 | BY15: 0 | BZ15: 0 | CA15: 0 | CB15: 0 | CC15: 0 | CD15: 0 | CE15: 0 | CF15: 0 | CG15: 0 | CH15: 0
A16: 1959 | C16: 43444.93 | D16: 1208564.75 | E16: 0 | F16: 0 | G16: 0 | H16: 0 | I16: 0 | J16: 0 | K16: 11962.2 | L16: 0 | M16: 0 | N16: 0 | O16: -1133288.78 | P16: 0 | Q16: 130683.0998 | S16: =Inflation!O16 -> 19.96095271 | U16: 867202.1931 | V16: 24124103.82 | W16: 0 | X16: 0 | Y16: 0 | Z16: 0 | AA16: 0 | AB16: 0 | AC16: 238776.9085 | AD16: 0 | AE16: 0 | AF16: 0 | AG16: -22621523.75 | AH16: 0 | AI16: 2608559.175 | AL16: 0 | AM16: 0 | AN16: 0 | AO16: 0 | AP16: 0 | AQ16: 0 | AR16: 0 | AS16: 0 | AT16: 38204.30536 | AU16: 0 | AV16: 0 | AW16: 0 | AX16: 0 | AY16: 0 | AZ16: 38204.30536 | BC16: 0 | BD16: 0 | BE16: 0 | BF16: 0 | BG16: 0 | BH16: 0 | BI16: 0 | BJ16: 0 | BK16: 14326.61451 | BL16: 0 | BM16: 0 | BN16: 0 | BO16: 0 | BP16: 0 | BQ16: 14326.61451 | BT16: 0 | BU16: 0 | BV16: 0 | BW16: 0 | BX16: 0 | BY16: 0 | BZ16: 0 | CA16: 0 | CB16: 0 | CC16: 0 | CD16: 0 | CE16: 0 | CF16: 0 | CG16: 0 | CH16: 0
A17: 1960 | C17: 19957.74 | D17: 829406.33 | E17: 0 | F17: 0 | G17: 0 | H17: 0 | I17: 0 | J17: 0 | K17: 892.63 | L17: 0 | M17: 0 | N17: 0 | O17: -1133288.78 | P17: 0 | Q17: -283032.0802 | S17: =Inflation!O17 -> 19.96095271 | U17: 398375.5043 | V17: 16555740.53 | W17: 0 | X17: 0 | Y17: 0 | Z17: 0 | AA17: 0 | AB17: 0 | AC17: 17817.74522 | AD17: 0 | AE17: 0 | AF17: 0 | AG17: -22621523.75 | AH17: 0 | AI17: -5649589.967 | AL17: 0 | AM17: 0 | AN17: 0 | AO17: 0 | AP17: 0 | AQ17: 0 | AR17: 0 | AS17: 0 | AT17: 3207.194139 | AU17: 0 | AV17: 0 | AW17: 0 | AX17: 0 | AY17: 0 | AZ17: 3207.194139 | BC17: 0 | BD17: 0 | BE17: 0 | BF17: 0 | BG17: 0 | BH17: 0 | BI17: 0 | BJ17: 0 | BK17: 1425.419617 | BL17: 0 | BM17: 0 | BN17: 0 | BO17: 0 | BP17: 0 | BQ17: 1425.419617 | BT17: 0 | BU17: 0 | BV17: 0 | BW17: 0 | BX17: 0 | BY17: 0 | BZ17: 0 | CA17: 0 | CB17: 0 | CC17: 0 | CD17: 0 | CE17: 0 | CF17: 0 | CG17: 0 | CH17: 0
A18: 1961 | C18: 3920.95 | D18: 1291001.76 | E18: 0 | F18: 0 | G18: 0 | H18: 0 | I18: 0 | J18: 0 | K18: 42840.96 | L18: 0 | M18: 0 | N18: 0 | O18: -1133288.78 | P18: 0 | Q18: 204474.8898 | S18: =Inflation!O18 -> 19.87220702 | U18: 77917.93012 | V18: 25655054.24 | W18: 0 | X18: 0 | Y18: 0 | Z18: 0 | AA18: 0 | AB18: 0 | AC18: 851344.4262 | AD18: 0 | AE18: 0 | AF18: 0 | AG18: -22520949.26 | AH18: 0 | AI18: 4063367.341 | AL18: 0 | AM18: 0 | AN18: 0 | AO18: 0 | AP18: 0 | AQ18: 0 | AR18: 0 | AS18: 0 | AT18: 170268.8852 | AU18: 0 | AV18: 0 | AW18: 0 | AX18: 0 | AY18: 0 | AZ18: 170268.8852 | BC18: 0 | BD18: 0 | BE18: 0 | BF18: 0 | BG18: 0 | BH18: 0 | BI18: 0 | BJ18: 0 | BK18: 85134.44262 | BL18: 0 | BM18: 0 | BN18: 0 | BO18: 0 | BP18: 0 | BQ18: 85134.44262 | BT18: 0 | BU18: 0 | BV18: 0 | BW18: 0 | BX18: 0 | BY18: 0 | BZ18: 0 | CA18: 0 | CB18: 0 | CC18: 0 | CD18: 0 | CE18: 0 | CF18: 0 | CG18: 0 | CH18: 0
A19: 1962 | C19: 227247.56 | D19: 2039974.22 | E19: 0 | F19: 0 | G19: 0 | H19: 0 | I19: 0 | J19: 0 | K19: 0 | L19: 0 | M19: 0 | N19: 0 | O19: -1133288.78 | P19: 0 | Q19: 1133933 | S19: =Inflation!O19 -> 19.33655019 | U19: 4394183.85 | V19: 39446063.9 | W19: 0 | X19: 0 | Y19: 0 | Z19: 0 | AA19: 0 | AB19: 0 | AC19: 0 | AD19: 0 | AE19: 0 | AF19: 0 | AG19: -21913895.38 | AH19: 0 | AI19: 21926352.37 | AL19: 0 | AM19: 0 | AN19: 0 | AO19: 0 | AP19: 0 | AQ19: 0 | AR19: 0 | AS19: 0 | AT19: 0 | AU19: 0 | AV19: 0 | AW19: 0 | AX19: 0 | AY19: 0 | AZ19: 0 | BC19: 0 | BD19: 0 | BE19: 0 | BF19: 0 | BG19: 0 | BH19: 0 | BI19: 0 | BJ19: 0 | BK19: 0 | BL19: 0 | BM19: 0 | BN19: 0 | BO19: 0 | BP19: 0 | BQ19: 0 | BT19: 0 | BU19: 0 | BV19: 0 | BW19: 0 | BX19: 0 | BY19: 0 | BZ19: 0 | CA19: 0 | CB19: 0 | CC19: 0 | CD19: 0 | CE19: 0 | CF19: 0 | CG19: 0 | CH19: 0
A20: 1963 | C20: 354047.77 | D20: 1980843.28 | E20: 0 | F20: 0 | G20: 0 | H20: 0 | I20: 0 | J20: 0 | K20: 10268.37 | L20: 0 | M20: 0 | N20: 0 | O20: -1133288.78 | P20: 0 | Q20: 1211870.64 | S20: =Inflation!O20 -> 18.54654751 | U20: 6566363.785 | V20: 36737803.99 | W20: 0 | X20: 0 | Y20: 0 | Z20: 0 | AA20: 0 | AB20: 0 | AC20: 190442.812 | AD20: 0 | AE20: 0 | AF20: 0 | AG20: -21018594.2 | AH20: 0 | AI20: 22476016.39 | AL20: 0 | AM20: 0 | AN20: 0 | AO20: 0 | AP20: 0 | AQ20: 0 | AR20: 0 | AS20: 0 | AT20: 45706.27488 | AU20: 0 | AV20: 0 | AW20: 0 | AX20: 0 | AY20: 0 | AZ20: 45706.27488 | BC20: 0 | BD20: 0 | BE20: 0 | BF20: 0 | BG20: 0 | BH20: 0 | BI20: 0 | BJ20: 0 | BK20: 26661.99368 | BL20: 0 | BM20: 0 | BN20: 0 | BO20: 0 | BP20: 0 | BQ20: 26661.99368 | BT20: 0 | BU20: 0 | BV20: 0 | BW20: 0 | BX20: 0 | BY20: 0 | BZ20: 0 | CA20: 0 | CB20: 0 | CC20: 0 | CD20: 0 | CE20: 0 | CF20: 0 | CG20: 0 | CH20: 0
A21: 1964 | C21: 235862.73 | D21: 3710274.48 | E21: 0 | F21: 0 | G21: 0 | H21: 0 | I21: 0 | J21: 0 | K21: 0 | L21: 0 | M21: 0 | N21: 0 | O21: -1133288.78 | P21: 0 | Q21: 2812848.43 | S21: =Inflation!O21 -> 18.10448149 | U21: 4270172.429 | V21: 67172595.64 | W21: 0 | X21: 0 | Y21: 0 | Z21: 0 | AA21: 0 | AB21: 0 | AC21: 0 | AD21: 0 | AE21: 0 | AF21: 0 | AG21: -20517605.74 | AH21: 0 | AI21: 50925162.32 | AL21: 0 | AM21: 0 | AN21: 0 | AO21: 0 | AP21: 0 | AQ21: 0 | AR21: 0 | AS21: 0 | AT21: 0 | AU21: 0 | AV21: 0 | AW21: 0 | AX21: 0 | AY21: 0 | AZ21: 0 | BC21: 0 | BD21: 0 | BE21: 0 | BF21: 0 | BG21: 0 | BH21: 0 | BI21: 0 | BJ21: 0 | BK21: 0 | BL21: 0 | BM21: 0 | BN21: 0 | BO21: 0 | BP21: 0 | BQ21: 0 | BT21: 0 | BU21: 0 | BV21: 0 | BW21: 0 | BX21: 0 | BY21: 0 | BZ21: 0 | CA21: 0 | CB21: 0 | CC21: 0 | CD21: 0 | CE21: 0 | CF21: 0 | CG21: 0 | CH21: 0
A22: 1965 | C22: 1033290.7 | D22: 4548239.42 | E22: 0 | F22: 0 | G22: 0 | H22: 0 | I22: 0 | J22: 0 | K22: 0 | L22: 0 | M22: 0 | N22: 0 | O22: -1125058.34 | P22: 0 | Q22: 4456471.78 | S22: =Inflation!O22 -> 16.96040086 | U22: 17525024.47 | V22: 77139963.75 | W22: 0 | X22: 0 | Y22: 0 | Z22: 0 | AA22: 0 | AB22: 0 | AC22: 0 | AD22: 0 | AE22: 0 | AF22: 0 | AG22: -19081440.44 | AH22: 0 | AI22: 75583547.79 | AL22: 0 | AM22: 0 | AN22: 0 | AO22: 0 | AP22: 0 | AQ22: 0 | AR22: 0 | AS22: 0 | AT22: 0 | AU22: 0 | AV22: 0 | AW22: 0 | AX22: 0 | AY22: 0 | AZ22: 0 | BC22: 0 | BD22: 0 | BE22: 0 | BF22: 0 | BG22: 0 | BH22: 0 | BI22: 0 | BJ22: 0 | BK22: 0 | BL22: 0 | BM22: 0 | BN22: 0 | BO22: 0 | BP22: 0 | BQ22: 0 | BT22: 0 | BU22: 0 | BV22: 0 | BW22: 0 | BX22: 0 | BY22: 0 | BZ22: 0 | CA22: 0 | CB22: 0 | CC22: 0 | CD22: 0 | CE22: 0 | CF22: 0 | CG22: 0 | CH22: 0
A23: 1966 | C23: 530589.27 | D23: 5128232.27 | E23: 0 | F23: 0 | G23: 0 | H23: 0 | I23: 0 | J23: 0 | K23: 0 | L23: 0 | M23: 0 | N23: 0 | O23: -1133288.78 | P23: 0 | Q23: 4525532.76 | S23: =Inflation!O23 -> 16.14962016 | U23: 8568815.171 | V23: 82819003.25 | W23: 0 | X23: 0 | Y23: 0 | Z23: 0 | AA23: 0 | AB23: 0 | AC23: 0 | AD23: 0 | AE23: 0 | AF23: 0 | AG23: -18302183.33 | AH23: 0 | AI23: 73085635.09 | AL23: 0 | AM23: 0 | AN23: 0 | AO23: 0 | AP23: 0 | AQ23: 0 | AR23: 0 | AS23: 0 | AT23: 0 | AU23: 0 | AV23: 0 | AW23: 0 | AX23: 0 | AY23: 0 | AZ23: 0 | BC23: 0 | BD23: 0 | BE23: 0 | BF23: 0 | BG23: 0 | BH23: 0 | BI23: 0 | BJ23: 0 | BK23: 0 | BL23: 0 | BM23: 0 | BN23: 0 | BO23: 0 | BP23: 0 | BQ23: 0 | BT23: 0 | BU23: =IF(AND(($CE$1-$A23)<BU$3,$A23<$CE$1),((BU$3-($CE$1-$A23))/(BU$3-(2006-$A23))*BD23),0) -> 0 | BV23: =IF(AND(($CE$1-$A23)<BV$3,$A23<$CE$1),((BV$3-($CE$1-$A23))/(BV$3-(2006-$A23))*BE23),0) -> 0 | BW23: 0 | BX23: =IF(AND(($CE$1-$A23)<BX$3,$A23<$CE$1),((BX$3-($CE$1-$A23))/(BX$3-(2006-$A23))*BG23),0) -> 0 | BY23: =IF(AND(($CE$1-$A23)<BY$3,$A23<$CE$1),((BY$3-($CE$1-$A23))/(BY$3-(2006-$A23))*BH23),0) -> 0 | BZ23: =IF(AND(($CE$1-$A23)<BZ$3,$A23<$CE$1),((BZ$3-($CE$1-$A23))/(BZ$3-(2006-$A23))*BI23),0) -> 0 | CA23: =IF(AND(($CE$1-$A23)<CA$3,$A23<$CE$1),((CA$3-($CE$1-$A23))/(CA$3-(2006-$A23))*BJ23),0) -> 0 | CB23: =IF(AND(($CE$1-$A23)<CB$3,$A23<$CE$1),((CB$3-($CE$1-$A23))/(CB$3-(2006-$A23))*BK23),0) -> 0 | CC23: =IF(AND(($CE$1-$A23)<CC$3,$A23<$CE$1),((CC$3-($CE$1-$A23))/(CC$3-(2006-$A23))*BL23),0) -> 0 | CD23: =IF(AND(($CE$1-$A23)<CD$3,$A23<$CE$1),((CD$3-($CE$1-$A23))/(CD$3-(2006-$A23))*BM23),0) -> 0 | CE23: =IF(AND(($CE$1-$A23)<CE$3,$A23<$CE$1),((CE$3-($CE$1-$A23))/(CE$3-(2006-$A23))*BN23),0) -> 0 | CF23: =IF(AND(($CE$1-$A23)<CF$3,$A23<$CE$1),((CF$3-($CE$1-$A23))/(CF$3-(2006-$A23))*BO23),0) -> 0 | CG23: =IF(AND(($CE$1-$A23)<CG$3,$A23<$CE$1),((CG$3-($CE$1-$A23))/(CG$3-(2006-$A23))*BP23),0) -> 0 | CH23: 0
A24: 1967 | C24: 849018.04 | D24: 5295909.31 | E24: 0 | F24: 0 | G24: 0 | H24: 0 | I24: 0 | J24: 0 | K24: 258532.63 | L24: 0 | M24: 0 | N24: 0 | O24: -1133288.78 | P24: 0 | Q24: 5270171.2 | S24: =Inflation!O24 -> 15.68110466 | U24: 13313540.75 | V24: 83045708.18 | W24: 0 | X24: 0 | Y24: 0 | Z24: 0 | AA24: 0 | AB24: 0 | AC24: 4054077.23 | AD24: 0 | AE24: 0 | AF24: 0 | AG24: -17771219.98 | AH24: 0 | AI24: 82642106.18 | AL24: 0 | AM24: 0 | AN24: 0 | AO24: 0 | AP24: 0 | AQ24: 0 | AR24: 0 | AS24: 0 | AT24: 1297304.714 | AU24: 0 | AV24: 0 | AW24: 0 | AX24: 0 | AY24: 0 | AZ24: 1297304.714 | BC24: 0 | BD24: 0 | BE24: 0 | BF24: 0 | BG24: 0 | BH24: 0 | BI24: 0 | BJ24: 0 | BK24: 891896.9906 | BL24: 0 | BM24: 0 | BN24: 0 | BO24: 0 | BP24: 0 | BQ24: 891896.9906 | BT24: 0 | BU24: 0 | BV24: 0 | BW24: 0 | BX24: 0 | BY24: 0 | BZ24: 0 | CA24: 0 | CB24: 81081.5446 | CC24: 0 | CD24: 0 | CE24: 0 | CF24: 0 | CG24: 0 | CH24: 81081.5446
A25: 1968 | C25: 2095221.65 | D25: 5974407.21 | E25: 0 | F25: 0 | G25: 0 | H25: 0 | I25: 0 | J25: 0 | K25: 24460.23 | L25: 0 | M25: 0 | N25: 0 | O25: -1133288.78 | P25: 0 | Q25: 6960800.31 | S25: =Inflation!O25 -> 15.20710111 | U25: 31862247.48 | V25: 90853414.5 | W25: 0 | X25: 0 | Y25: 0 | Z25: 0 | AA25: 0 | AB25: 0 | AC25: 371969.1907 | AD25: 0 | AE25: 0 | AF25: 0 | AG25: -17234037.06 | AH25: 0 | AI25: 105853594.1 | AL25: 0 | AM25: 0 | AN25: 0 | AO25: 0 | AP25: 0 | AQ25: 0 | AR25: 0 | AS25: 0 | AT25: 126469.5248 | AU25: 0 | AV25: 0 | AW25: 0 | AX25: 0 | AY25: 0 | AZ25: 126469.5248 | BC25: 0 | BD25: 0 | BE25: 0 | BF25: 0 | BG25: 0 | BH25: 0 | BI25: 0 | BJ25: 0 | BK25: 89272.60578 | BL25: 0 | BM25: 0 | BN25: 0 | BO25: 0 | BP25: 0 | BQ25: 89272.60578 | BT25: 0 | BU25: 0 | BV25: 0 | BW25: 0 | BX25: 0 | BY25: 0 | BZ25: 0 | CA25: 0 | CB25: 14878.76763 | CC25: 0 | CD25: 0 | CE25: 0 | CF25: 0 | CG25: 0 | CH25: 14878.76763
A26: 1969 | C26: 57142.3 | D26: 5806671.06 | E26: 0 | F26: 0 | G26: 0 | H26: 0 | I26: 0 | J26: 0 | K26: 12252.97 | L26: 0 | M26: 0 | N26: 0 | O26: -1133288.78 | P26: 0 | Q26: 4742777.55 | S26: =Inflation!O26 -> 14.51388369 | U26: 829356.6957 | V26: 84277348.36 | W26: 0 | X26: 0 | Y26: 0 | Z26: 0 | AA26: 0 | AB26: 0 | AC26: 177838.1814 | AD26: 0 | AE26: 0 | AF26: 0 | AG26: -16448421.54 | AH26: 0 | AI26: 68836121.7 | AL26: 0 | AM26: 0 | AN26: 0 | AO26: 0 | AP26: 0 | AQ26: 0 | AR26: 0 | AS26: 0 | AT26: 64021.7453 | AU26: 0 | AV26: 0 | AW26: 0 | AX26: 0 | AY26: 0 | AZ26: 64021.7453 | BC26: 0 | BD26: 0 | BE26: 0 | BF26: 0 | BG26: 0 | BH26: 0 | BI26: 0 | BJ26: 0 | BK26: 46237.92716 | BL26: 0 | BM26: 0 | BN26: 0 | BO26: 0 | BP26: 0 | BQ26: 46237.92716 | BT26: 0 | BU26: 0 | BV26: 0 | BW26: 0 | BX26: 0 | BY26: 0 | BZ26: 0 | CA26: 0 | CB26: 10670.29088 | CC26: 0 | CD26: 0 | CE26: 0 | CF26: 0 | CG26: 0 | CH26: 10670.29088
A27: 1970 | C27: 690591.56 | D27: 8258520.08 | E27: 0 | F27: 0 | G27: 0 | H27: 0 | I27: 0 | J27: 0 | K27: 64708.4 | L27: 0 | M27: 0 | N27: 0 | O27: -2538540.203 | P27: 0 | Q27: 6475279.837 | S27: =Inflation!O27 -> 13.51624409 | U27: 9334204.09 | V27: 111624173.2 | W27: 0 | X27: 0 | Y27: 0 | Z27: 0 | AA27: 0 | AB27: 0 | AC27: 874614.5289 | AD27: 0 | AE27: 0 | AF27: 0 | AG27: -34311529.01 | AH27: 0 | AI27: 87521462.81 | AL27: 0 | AM27: 0 | AN27: 0 | AO27: 0 | AP27: 0 | AQ27: 0 | AR27: 0 | AS27: 0 | AT27: 332353.521 | AU27: 0 | AV27: 0 | AW27: 0 | AX27: 0 | AY27: 0 | AZ27: 332353.521 | BC27: 0 | BD27: 0 | BE27: 0 | BF27: 0 | BG27: 0 | BH27: 0 | BI27: 0 | BJ27: 0 | BK27: 244892.0681 | BL27: 0 | BM27: 0 | BN27: 0 | BO27: 0 | BP27: 0 | BQ27: 244892.0681 | BT27: 0 | BU27: 0 | BV27: 0 | BW27: 0 | BX27: 0 | BY27: 0 | BZ27: 0 | CA27: 0 | CB27: 69969.16231 | CC27: 0 | CD27: 0 | CE27: 0 | CF27: 0 | CG27: 0 | CH27: 69969.16231
A28: 1971 | C28: 511192.28 | D28: 11050340.55 | E28: 0 | F28: 0 | G28: 0 | H28: 0 | I28: 0 | J28: 0 | K28: 211027.24 | L28: 0 | M28: 0 | N28: 0 | O28: -1939524.795 | P28: 0 | Q28: 9833035.275 | S28: =Inflation!O28 -> 12.49061336 | U28: 6385105.12 | V28: 138025531.3 | W28: 0 | X28: 0 | Y28: 0 | Z28: 0 | AA28: 0 | AB28: 0 | AC28: 2635859.662 | AD28: 0 | AE28: 0 | AF28: 0 | AG28: -24225854.31 | AH28: 0 | AI28: 122820641.7 | AL28: 0 | AM28: 0 | AN28: 0 | AO28: 0 | AP28: 0 | AQ28: 0 | AR28: 0 | AS28: 0 | AT28: 1054343.865 | AU28: 0 | AV28: 0 | AW28: 0 | AX28: 0 | AY28: 0 | AZ28: 1054343.865 | BC28: 0 | BD28: 0 | BE28: 0 | BF28: 0 | BG28: 0 | BH28: 0 | BI28: 0 | BJ28: 0 | BK28: 790757.8987 | BL28: 0 | BM28: 0 | BN28: 0 | BO28: 0 | BP28: 0 | BQ28: 790757.8987 | BT28: 0 | BU28: 0 | BV28: 0 | BW28: 0 | BX28: 0 | BY28: 0 | BZ28: 0 | CA28: 0 | CB28: 263585.9662 | CC28: 0 | CD28: 0 | CE28: 0 | CF28: 0 | CG28: 0 | CH28: 263585.9662
A29: 1972 | C29: 2361752.17 | D29: 10192632.26 | E29: 0 | F29: 0 | G29: 0 | H29: 0 | I29: 0 | J29: 0 | K29: 110455.71 | L29: 0 | M29: 0 | N29: 0 | O29: -2036977.187 | P29: 0 | Q29: 10627862.95 | S29: =Inflation!O29 -> 11.46194562 | U29: 27070274.95 | V29: 116827396.7 | W29: 0 | X29: 0 | Y29: 0 | Z29: 0 | AA29: 0 | AB29: 0 | AC29: 1266037.342 | AD29: 0 | AE29: 0 | AF29: 0 | AG29: -23347721.75 | AH29: 0 | AI29: 121815987.3 | AL29: 902342.4982 | AM29: 0 | AN29: 0 | AO29: 0 | AP29: 0 | AQ29: 0 | AR29: 0 | AS29: 0 | AT29: 531735.6835 | AU29: 0 | AV29: 0 | AW29: 0 | AX29: 0 | AY29: 0 | AZ29: 1434078.182 | BC29: 492186.8172 | BD29: 0 | BE29: 0 | BF29: 0 | BG29: 0 | BH29: 0 | BI29: 0 | BJ29: 0 | BK29: 405131.9493 | BL29: 0 | BM29: 0 | BN29: 0 | BO29: 0 | BP29: 0 | BQ29: 897318.7666 | BT29: 44744.25611 | BU29: 0 | BV29: 0 | BW29: 0 | BX29: 0 | BY29: 0 | BZ29: 0 | CA29: 0 | CB29: 151924.481 | CC29: 0 | CD29: 0 | CE29: 0 | CF29: 0 | CG29: 0 | CH29: 196668.7371
A30: 1973 | C30: 144772.7 | D30: 12954114.61 | E30: 0 | F30: 0 | G30: 0 | H30: 0 | I30: 0 | J30: 0 | K30: 195964.38 | L30: 61070.59 | M30: 4243.0225 | N30: 0 | O30: -2271561.282 | P30: 0 | Q30: 11088604.02 | S30: =Inflation!O30 -> 10.55519225 | U30: 1528103.681 | V30: 136733170.1 | W30: 0 | X30: 0 | Y30: 0 | Z30: 0 | AA30: 0 | AB30: 0 | AC30: 2068441.705 | AD30: 644611.8182 | AE30: 44785.91821 | AF30: 0 | AG30: -23976766.04 | AH30: 0 | AI30: 117042347.2 | AL30: 101873.5787 | AM30: 0 | AN30: 0 | AO30: 0 | AP30: 0 | AQ30: 0 | AR30: 0 | AS30: 0 | AT30: 910114.3502 | AU30: 0 | AV30: 0 | AW30: 0 | AX30: 0 | AY30: 0 | AZ30: 1011987.929 | BC30: 59426.25426 | BD30: 0 | BE30: 0 | BF30: 0 | BG30: 0 | BH30: 0 | BI30: 0 | BJ30: 0 | BK30: 703270.1797 | BL30: 0 | BM30: 0 | BN30: 0 | BO30: 0 | BP30: 0 | BQ30: 762696.4339 | BT30: 9904.37571 | BU30: 0 | BV30: 0 | BW30: 0 | BX30: 0 | BY30: 0 | BZ30: 0 | CA30: 0 | CB30: 289581.8387 | CC30: 0 | CD30: 0 | CE30: 0 | CF30: 0 | CG30: 0 | CH30: 299486.2144
A31: 1974 | C31: 1651595.32 | D31: 16310329.75 | E31: 0 | F31: 0 | G31: 0 | H31: 0 | I31: 0 | J31: 0 | K31: 512916.37 | L31: 10030.93 | M31: 0 | N31: 0 | O31: -2427739.056 | P31: 0 | Q31: 16057133.31 | S31: =Inflation!O31 -> 9.47282904 | U31: 15645280.11 | V31: 154504965.3 | W31: 0 | X31: 0 | Y31: 0 | Z31: 0 | AA31: 0 | AB31: 0 | AC31: 4858769.085 | AD31: 95021.28501 | AE31: 0 | AF31: 0 | AG31: -22997557.03 | AH31: 0 | AI31: 152106478.8 | AL31: 1564528.011 | AM31: 0 | AN31: 0 | AO31: 0 | AP31: 0 | AQ31: 0 | AR31: 0 | AS31: 0 | AT31: 2235033.779 | AU31: 0 | AV31: 0 | AW31: 0 | AX31: 0 | AY31: 0 | AZ31: 3799561.79 | BC31: 962786.4683 | BD31: 0 | BE31: 0 | BF31: 0 | BG31: 0 | BH31: 0 | BI31: 0 | BJ31: 0 | BK31: 1749156.871 | BL31: 0 | BM31: 0 | BN31: 0 | BO31: 0 | BP31: 0 | BQ31: 2711943.339 | BT31: 222181.4927 | BU31: 0 | BV31: 0 | BW31: 0 | BX31: 0 | BY31: 0 | BZ31: 0 | CA31: 0 | CB31: 777403.0536 | CC31: 0 | CD31: 0 | CE31: 0 | CF31: 0 | CG31: 0 | CH31: 999584.5463
A32: 1975 | C32: 2626095.87 | D32: 16509149.66 | E32: 0 | F32: 0 | G32: 0 | H32: 0 | I32: 0 | J32: 0 | K32: 289256.17 | L32: 15104.8 | M32: 0 | N32: 0 | O32: -2420144.183 | P32: 0 | Q32: 17019462.32 | S32: =Inflation!O32 -> 8.09844367 | U32: 21267289.48 | V32: 133698418.6 | W32: 0 | X32: 0 | Y32: 0 | Z32: 0 | AA32: 0 | AB32: 0 | AC32: 2342524.799 | AD32: 122325.3719 | AE32: 0 | AF32: 0 | AG32: -19599401.34 | AH32: 0 | AI32: 137831156.9 | AL32: 2835638.597 | AM32: 0 | AN32: 0 | AO32: 0 | AP32: 0 | AQ32: 0 | AR32: 0 | AS32: 0 | AT32: 1124411.904 | AU32: 0 | AV32: 0 | AW32: 0 | AX32: 0 | AY32: 0 | AZ32: 3960050.5 | BC32: 1822910.526 | BD32: 0 | BE32: 0 | BF32: 0 | BG32: 0 | BH32: 0 | BI32: 0 | BJ32: 0 | BK32: 890159.4236 | BL32: 0 | BM32: 0 | BN32: 0 | BO32: 0 | BP32: 0 | BQ32: 2713069.95 | BT32: 520831.579 | BU32: 0 | BV32: 0 | BW32: 0 | BX32: 0 | BY32: 0 | BZ32: 0 | CA32: 0 | CB32: 421654.4638 | CC32: 0 | CD32: 0 | CE32: 0 | CF32: 0 | CG32: 0 | CH32: 942486.0428
A33: 1976 | C33: 314233.27 | D33: 17083970.18 | E33: 0 | F33: 0 | G33: 0 | H33: 0 | I33: 0 | J33: 0 | K33: 1017170.27 | L33: 0 | M33: 0 | N33: 0 | O33: -3072448.525 | P33: 0 | Q33: 15342925.19 | S33: =Inflation!O33 -> 6.699681002 | U33: 2105262.669 | V33: 114457150.5 | W33: 0 | X33: 0 | Y33: 0 | Z33: 0 | AA33: 0 | AB33: 0 | AC33: 6814716.334 | AD33: 0 | AE33: 0 | AF33: 0 | AG33: -20584425.02 | AH33: 0 | AI33: 102792704.4 | AL33: 350877.1116 | AM33: 0 | AN33: 0 | AO33: 0 | AP33: 0 | AQ33: 0 | AR33: 0 | AS33: 0 | AT33: 3407358.167 | AU33: 0 | AV33: 0 | AW33: 0 | AX33: 0 | AY33: 0 | AZ33: 3758235.279 | BC33: 233918.0744 | BD33: 0 | BE33: 0 | BF33: 0 | BG33: 0 | BH33: 0 | BI33: 0 | BJ33: 0 | BK33: 2725886.534 | BL33: 0 | BM33: 0 | BN33: 0 | BO33: 0 | BP33: 0 | BQ33: 2959804.608 | BT33: 77972.69146 | BU33: 0 | BV33: 0 | BW33: 0 | BX33: 0 | BY33: 0 | BZ33: 0 | CA33: 0 | CB33: 1362943.267 | CC33: 0 | CD33: 0 | CE33: 0 | CF33: 0 | CG33: 0 | CH33: 1440915.958
A34: 1977 | C34: 425564.15 | D34: 18542857.25 | E34: 0 | F34: 0 | G34: 0 | H34: 0 | I34: 0 | J34: 0 | K34: 1955478.21 | L34: 39556.15 | M34: 0 | N34: 0 | O34: -3480351.858 | P34: 0 | Q34: 17483103.9 | S34: =Inflation!O34 -> 5.678883242 | U34: 2416729.12 | V34: 105302721.3 | W34: 0 | X34: 0 | Y34: 0 | Z34: 0 | AA34: 0 | AB34: 0 | AC34: 11104932.44 | AD34: 224634.7574 | AE34: 0 | AF34: 0 | AG34: -19764511.84 | AH34: 0 | AI34: 99284505.77 | AL34: 483345.824 | AM34: 4212108.852 | AN34: 0 | AO34: 0 | AP34: 0 | AQ34: 0 | AR34: 0 | AS34: 0 | AT34: 5774564.867 | AU34: 0 | AV34: 0 | AW34: 0 | AX34: -790580.4737 | AY34: 0 | AZ34: 9679439.069 | BC34: 332300.254 | BD34: 2895824.836 | BE34: 0 | BF34: 0 | BG34: 0 | BH34: 0 | BI34: 0 | BJ34: 0 | BK34: 4664071.624 | BL34: 0 | BM34: 0 | BN34: 0 | BO34: -543524.0757 | BP34: 0 | BQ34: 7348672.638 | BT34: 124612.5952 | BU34: 1085934.313 | BV34: 0 | BW34: 0 | BX34: 0 | BY34: 0 | BZ34: 0 | CA34: 0 | CB34: 2443085.136 | CC34: 0 | CD34: 0 | CE34: 0 | CF34: -203821.5284 | CG34: 0 | CH34: 3449810.516
A35: 1978 | C35: 333571.62 | D35: 20245103.32 | E35: 0 | F35: 0 | G35: 0 | H35: 0 | I35: 0 | J35: 0 | K35: 1171040.07 | L35: 31401.89 | M35: 0 | N35: 0 | O35: -15342879.12 | P35: 0 | Q35: 6438237.777 | S35: =Inflation!O35 -> 4.997319573 | U35: 1666963.986 | V35: 101171251.1 | W35: 0 | X35: 0 | Y35: 0 | Z35: 0 | AA35: 0 | AB35: 0 | AC35: 5852061.462 | AD35: 156925.2795 | AE35: 0 | AF35: 0 | AG35: -76673270.15 | AH35: 0 | AI35: 32173931.66 | AL35: 388958.2633 | AM35: 8093700.086 | AN35: 0 | AO35: 0 | AP35: 0 | AQ35: 0 | AR35: 0 | AS35: 0 | AT35: 3160113.19 | AU35: 0 | AV35: 0 | AW35: 0 | AX35: -6133861.612 | AY35: 0 | AZ35: 5508909.927 | BC35: 274558.7741 | BD35: 5713200.061 | BE35: 0 | BF35: 0 | BG35: 0 | BH35: 0 | BI35: 0 | BJ35: 0 | BK35: 2574907.043 | BL35: 0 | BM35: 0 | BN35: 0 | BO35: -4329784.667 | BP35: 0 | BQ35: 4232881.211 | BT35: 113053.6129 | BU35: 2352494.143 | BV35: 0 | BW35: 0 | BX35: 0 | BY35: 0 | BZ35: 0 | CA35: 0 | CB35: 1404494.751 | CC35: 0 | CD35: 0 | CE35: 0 | CF35: -1782852.51 | CG35: 0 | CH35: 2087189.997
A36: 1979 | C36: 1106339.29 | D36: 25536226.78 | E36: 0 | F36: 0 | G36: 0 | H36: 0 | I36: 0 | J36: 29511.25 | K36: 1735434.91 | L36: 58617.45 | M36: 0 | N36: 0 | O36: -15797445.33 | P36: 0 | Q36: 12668684.35 | S36: =Inflation!O36 -> 4.642749657 | U36: 5136456.359 | V36: 118558308.1 | W36: 0 | X36: 0 | Y36: 0 | Z36: 0 | AA36: 0 | AB36: 137013.3458 | AC36: 8057189.833 | AD36: 272146.1459 | AE36: 0 | AF36: 0 | AG36: -73343583.87 | AH36: 0 | AI36: 58817529.94 | AL36: 1369721.696 | AM36: 14226996.98 | AN36: 0 | AO36: 0 | AP36: 0 | AQ36: 0 | AR36: 0 | AS36: 0 | AT36: 4512026.307 | AU36: 0 | AV36: 0 | AW36: 0 | AX36: -8801230.065 | AY36: 0 | AZ36: 11307514.91 | BC36: 989243.447 | BD36: 10275053.37 | BE36: 0 | BF36: 0 | BG36: 0 | BH36: 0 | BI36: 0 | BJ36: 0 | BK36: 3706307.323 | BL36: 0 | BM36: 0 | BN36: 0 | BO36: -6356443.936 | BP36: 0 | BQ36: 8614160.205 | BT36: 439663.7542 | BU36: 4566690.387 | BV36: 0 | BW36: 0 | BX36: 0 | BY36: 0 | BZ36: 0 | CA36: 0 | CB36: 2094869.357 | CC36: 0 | CD36: 0 | CE36: 0 | CF36: -2825086.194 | CG36: 0 | CH36: 4276137.304
A37: 1980 | C37: 1522339.45 | D37: 32884789.86 | E37: 0 | F37: 0 | G37: 0 | H37: 0 | I37: 0 | J37: 5392.58 | K37: 1030878.15 | L37: 205984.53 | M37: 14385.6238 | N37: 0 | O37: -13280189.74 | P37: 0 | Q37: 22383580.45 | S37: =Inflation!O37 -> 4.099935321 | U37: 6241493.281 | V37: 134825511.5 | W37: 0 | X37: 0 | Y37: 0 | Z37: 0 | AA37: 0 | AB37: 22109.22921 | AC37: 4226533.739 | AD37: 844523.2501 | AE37: 58980.12713 | AF37: 0 | AG37: -54447918.99 | AH37: 0 | AI37: 91771232.1 | AL37: 1872447.984 | AM37: 21572081.83 | AN37: 0 | AO37: 0 | AP37: 0 | AQ37: 0 | AR37: 0 | AS37: 0 | AT37: 2451389.568 | AU37: 0 | AV37: 0 | AW37: 0 | AX37: -8711667.038 | AY37: 0 | AZ37: 17184252.35 | BC37: 1379698.515 | BD37: 15895218.19 | BE37: 0 | BF37: 0 | BG37: 0 | BH37: 0 | BI37: 0 | BJ37: 0 | BK37: 2028736.195 | BL37: 0 | BM37: 0 | BN37: 0 | BO37: -6419123.081 | BP37: 0 | BQ37: 12884529.82 | BT37: 653541.4017 | BU37: 7529313.881 | BV37: 0 | BW37: 0 | BX37: 0 | BY37: 0 | BZ37: 0 | CA37: 0 | CB37: 1183429.447 | CC37: 0 | CD37: 0 | CE37: 0 | CF37: -3040637.249 | CG37: 0 | CH37: 6325647.481
A38: 1981 | C38: 4386656.6 | D38: 36803953.12 | E38: 0 | F38: 0 | G38: 0 | H38: 0 | I38: 0 | J38: 0 | K38: 3928916.06 | L38: 285094.29 | M38: 0 | N38: 0 | O38: -15939053.49 | P38: 0 | Q38: 29465566.58 | S38: =Inflation!O38 -> 3.467896114 | U38: 15212469.38 | V38: 127632286 | W38: 0 | X38: 0 | Y38: 0 | Z38: 0 | AA38: 0 | AB38: 0 | AC38: 13625072.74 | AD38: 988677.3803 | AE38: 0 | AF38: 0 | AG38: -55274981.65 | AH38: 0 | AI38: 102183523.8 | AL38: 5070823.125 | AM38: 25526457.2 | AN38: 0 | AO38: 0 | AP38: 0 | AQ38: 0 | AR38: 0 | AS38: 0 | AT38: 8175043.641 | AU38: 0 | AV38: 0 | AW38: 0 | AX38: -11054996.33 | AY38: 0 | AZ38: 27717327.64 | BC38: 3803117.344 | BD38: 19144842.9 | BE38: 0 | BF38: 0 | BG38: 0 | BH38: 0 | BI38: 0 | BJ38: 0 | BK38: 6812536.368 | BL38: 0 | BM38: 0 | BN38: 0 | BO38: -8291247.247 | BP38: 0 | BQ38: 21469249.36 | BT38: 1901558.672 | BU38: 9572421.45 | BV38: 0 | BW38: 0 | BX38: 0 | BY38: 0 | BZ38: 0 | CA38: 0 | CB38: 4087521.821 | CC38: 0 | CD38: 0 | CE38: 0 | CF38: -4145623.623 | CG38: 0 | CH38: 11415878.32
A39: 1982 | C39: 6698911.87 | D39: 42381283.71 | E39: 0 | F39: 0 | G39: 0 | H39: 0 | I39: 0 | J39: 55732.61 | K39: 3108323.89 | L39: 300007.34 | M39: 23004.6849 | N39: 0 | O39: -17191488.11 | P39: 0 | Q39: 35375775.99 | S39: =Inflation!O39 -> 2.880258418 | U39: 19294597.31 | V39: 122069049.2 | W39: 0 | X39: 0 | Y39: 0 | Z39: 0 | AA39: 0 | AB39: 160524.3191 | AC39: 8952776.051 | AD39: 864098.6666 | AE39: 66259.43735 | AF39: 0 | AG39: -49515928.36 | AH39: 0 | AI39: 101891376.6 | AL39: =IF(AND(($AX$1-$A39)<AL$3,$A39<$AX$1),((AL$3-($AX$1-$A39))/AL$3*U39),0) -> 7074685.68 | AM39: =IF(AND(($AX$1-$A39)<AM$3,$A39<$AX$1),((AM$3-($AX$1-$A39))/AM$3*V39),0) -> 29296571.81 | AN39: =IF(AND(($AX$1-$A39)<AN$3,$A39<$AX$1),((AN$3-($AX$1-$A39))/AN$3*W39),0) -> 0 | AO39: 0 | AP39: =IF(AND(($AX$1-$A39)<AP$3,$A39<$AX$1),((AP$3-($AX$1-$A39))/AP$3*Y39),0) -> 0 | AQ39: =IF(AND(($AX$1-$A39)<AQ$3,$A39<$AX$1),((AQ$3-($AX$1-$A39))/AQ$3*Z39),0) -> 0 | AR39: =IF(AND(($AX$1-$A39)<AR$3,$A39<$AX$1),((AR$3-($AX$1-$A39))/AR$3*AA39),0) -> 0 | AS39: =IF(AND(($AX$1-$A39)<AS$3,$A39<$AX$1),((AS$3-($AX$1-$A39))/AS$3*AB39),0) -> 0 | AT39: =IF(AND(($AX$1-$A39)<AT$3,$A39<$AX$1),((AT$3-($AX$1-$A39))/AT$3*AC39),0) -> 5550721.152 | AU39: =IF(AND(($AX$1-$A39)<AU$3,$A39<$AX$1),((AU$3-($AX$1-$A39))/AU$3*AD39),0) -> 0 | AV39: =IF(AND(($AX$1-$A39)<AV$3,$A39<$AX$1),((AV$3-($AX$1-$A39))/AV$3*AE39),0) -> 0 | AW39: =IF(AND(($AX$1-$A39)<AW$3,$A39<$AX$1),((AW$3-($AX$1-$A39))/AW$3*AF39),0) -> 0 | AX39: =IF(AND(($AX$1-$A39)<AX$3,$A39<$AX$1),((AX$3-($AX$1-$A39))/AX$3*AG39),0) -> -11883822.81 | AY39: =IF(AND(($AX$1-$A39)<AY$3,$A39<$AX$1),((AY$3-($AX$1-$A39))/AY$3*AH39),0) -> 0 | AZ39: 30038155.83 | BC39: =IF(AND(($BO$1-$A39)<BC$3,$A39<$BO$1),((BC$3-($BO$1-$A39))/(BC$3-(2001-$A39))*AL39),0) -> 5390236.708 | BD39: =IF(AND(($BO$1-$A39)<BD$3,$A39<$BO$1),((BD$3-($BO$1-$A39))/(BD$3-(2001-$A39))*AM39),0) -> 22321197.57 | BE39: =IF(AND(($BO$1-$A39)<BE$3,$A39<$BO$1),((BE$3-($BO$1-$A39))/(BE$3-(2001-$A39))*AN39),0) -> 0 | BF39: 0 | BG39: =IF(AND(($BO$1-$A39)<BG$3,$A39<$BO$1),((BG$3-($BO$1-$A39))/(BG$3-(2001-$A39))*AP39),0) -> 0 | BH39: =IF(AND(($BO$1-$A39)<BH$3,$A39<$BO$1),((BH$3-($BO$1-$A39))/(BH$3-(2001-$A39))*AQ39),0) -> 0 | BI39: =IF(AND(($BO$1-$A39)<BI$3,$A39<$BO$1),((BI$3-($BO$1-$A39))/(BI$3-(2001-$A39))*AR39),0) -> 0 | BJ39: =IF(AND(($BO$1-$A39)<BJ$3,$A39<$BO$1),((BJ$3-($BO$1-$A39))/(BJ$3-(2001-$A39))*AS39),0) -> 0 | BK39: =IF(AND(($BO$1-$A39)<BK$3,$A39<$BO$1),((BK$3-($BO$1-$A39))/(BK$3-(2001-$A39))*AT39),0) -> 4655443.547 | BL39: =IF(AND(($BO$1-$A39)<BL$3,$A39<$BO$1),((BL$3-($BO$1-$A39))/(BL$3-(2001-$A39))*AU39),0) -> 0 | BM39: =IF(AND(($BO$1-$A39)<BM$3,$A39<$BO$1),((BM$3-($BO$1-$A39))/(BM$3-(2001-$A39))*AV39),0) -> 0 | BN39: =IF(AND(($BO$1-$A39)<BN$3,$A39<$BO$1),((BN$3-($BO$1-$A39))/(BN$3-(2001-$A39))*AW39),0) -> 0 | BO39: =IF(AND(($BO$1-$A39)<BO$3,$A39<$BO$1),((BO$3-($BO$1-$A39))/(BO$3-(2001-$A39))*AX39),0) -> -9054341.186 | BP39: =IF(AND(($BO$1-$A39)<BP$3,$A39<$BO$1),((BP$3-($BO$1-$A39))/(BP$3-(2001-$A39))*AY39),0) -> 0 | BQ39: 23312536.63 | BT39: 2823457.323 | BU39: 11692055.87 | BV39: 0 | BW39: 0 | BX39: 0 | BY39: 0 | BZ39: 0 | CA39: 0 | CB39: 2864888.336 | CC39: 0 | CD39: 0 | CE39: 0 | CF39: -4742750.145 | CG39: 0 | CH39: 12637651.38
A40: 1983 | C40: 3593919.03 | D40: 34612142.18 | E40: 0 | F40: 0 | G40: 0 | H40: 0 | I40: 0 | J40: 30579.1 | K40: 0 | L40: 164763.74 | M40: 0 | N40: 0 | O40: -16377025.49 | P40: 0 | Q40: 22024378.56 | S40: =Inflation!O40 -> 2.459110979 | U40: 8837845.746 | V40: 85115098.86 | W40: 0 | X40: 0 | Y40: 0 | Z40: 0 | AA40: 0 | AB40: 75197.40055 | AC40: 0 | AD40: 405172.322 | AE40: 0 | AF40: 0 | AG40: -40272923.2 | AH40: 0 | AI40: 54160391.13 | AL40: 3535138.298 | AM40: 23832227.68 | AN40: 0 | AO40: 0 | AP40: 0 | AQ40: 0 | AR40: 0 | AS40: 0 | AT40: 0 | AU40: 0 | AV40: 0 | AW40: 0 | AX40: -11276418.5 | AY40: 0 | AZ40: 16090947.48 | BC40: 2731697.776 | BD40: 18415812.3 | BE40: 0 | BF40: 0 | BG40: 0 | BH40: 0 | BI40: 0 | BJ40: 0 | BK40: 0 | BL40: 0 | BM40: 0 | BN40: 0 | BO40: -8713596.11 | BP40: 0 | BQ40: 12433913.96 | BT40: 1490016.969 | BU40: 10044988.53 | BV40: 0 | BW40: 0 | BX40: 0 | BY40: 0 | BZ40: 0 | CA40: 0 | CB40: 0 | CC40: 0 | CD40: 0 | CE40: 0 | CF40: -4752870.606 | CG40: 0 | CH40: 6782134.889
A41: 1984 | C41: 5277851.73 | D41: 47133201.21 | E41: 0 | F41: 0 | G41: 0 | H41: 0 | I41: 0 | J41: 31564.42 | K41: 8160463.83 | L41: 13042.75 | M41: 0 | N41: 0 | O41: -16878944.67 | P41: 0 | Q41: 43737179.27 | S41: =Inflation!O41 -> 2.225784622 | U41: 11747361.22 | V41: 104908354.4 | W41: 0 | X41: 0 | Y41: 0 | Z41: 0 | AA41: 0 | AB41: 70255.60063 | AC41: 18163434.9 | AD41: 29030.35237 | AE41: 0 | AF41: 0 | AG41: -37568895.47 | AH41: 0 | AI41: 97349541.02 | AL41: 5090523.194 | AM41: 33570673.42 | AN41: 0 | AO41: 0 | AP41: 0 | AQ41: 0 | AR41: 0 | AS41: 0 | AT41: 11987867.03 | AU41: 0 | AV41: 0 | AW41: 0 | AX41: -12022046.55 | AY41: 0 | AZ41: 38627017.09 | BC41: 3983887.717 | BD41: 26272700.93 | BE41: 0 | BF41: 0 | BG41: 0 | BH41: 0 | BI41: 0 | BJ41: 0 | BK41: 10171523.54 | BL41: 0 | BM41: 0 | BN41: 0 | BO41: -9408558.171 | BP41: 0 | BQ41: 31019554.02 | BT41: 2251762.623 | BU41: 14849787.48 | BV41: 0 | BW41: 0 | BX41: 0 | BY41: 0 | BZ41: 0 | CA41: 0 | CB41: 6538836.563 | CC41: 0 | CD41: 0 | CE41: 0 | CF41: -5317880.705 | CG41: 0 | CH41: 18322505.97
A42: 1985 | C42: 7545396.96 | D42: 34009357.39 | E42: 0 | F42: 0 | G42: 0 | H42: 0 | I42: 0 | J42: 0 | K42: 237537.51 | L42: 121059.36 | M42: 0 | N42: 0 | O42: -17449057.03 | P42: 0 | Q42: 24464294.19 | S42: =Inflation!O42 -> 2.049823027 | U42: 15466728.43 | V42: 69713163.9 | W42: 0 | X42: 0 | Y42: 0 | Z42: 0 | AA42: 0 | AB42: 0 | AC42: 486909.8577 | AD42: 248150.2637 | AE42: 0 | AF42: 0 | AG42: -35767478.89 | AH42: 0 | AI42: 50147473.56 | AL42: 7217806.602 | AM42: 25096739 | AN42: 0 | AO42: 0 | AP42: 0 | AQ42: 0 | AR42: 0 | AS42: 0 | AT42: 331098.7032 | AU42: 0 | AV42: 0 | AW42: 0 | AX42: -12876292.4 | AY42: 0 | AZ42: 19769351.91 | BC42: 5714096.893 | BD42: 19868251.71 | BE42: 0 | BF42: 0 | BG42: 0 | BH42: 0 | BI42: 0 | BJ42: 0 | BK42: 282407.7174 | BL42: 0 | BM42: 0 | BN42: 0 | BO42: -10193731.48 | BP42: 0 | BQ42: 15671024.84 | BT42: 3333223.188 | BU42: 11589813.5 | BV42: 0 | BW42: 0 | BX42: 0 | BY42: 0 | BZ42: 0 | CA42: 0 | CB42: 185025.7459 | CC42: 0 | CD42: 0 | CE42: 0 | CF42: -5946343.366 | CG42: 0 | CH42: 9161719.065
A43: 1986 | C43: 2805191.69 | D43: 33005357.2 | E43: 0 | F43: 0 | G43: 0 | H43: 0 | I43: 0 | J43: 0 | K43: 88493.12 | L43: 82275.21 | M43: 14960.8047 | N43: 0 | O43: -18162332.35 | P43: 0 | Q43: 17833945.67 | S43: =Inflation!O43 -> 1.944005799 | U43: 5453308.913 | V43: =+D43*$S43 -> 64162605.8 | W43: =+E43*$S43 -> 0 | X43: 0 | Y43: =+G43*$S43 -> 0 | Z43: =+H43*$S43 -> 0 | AA43: =+I43*$S43 -> 0 | AB43: =+J43*$S43 -> 0 | AC43: =+K43*$S43 -> 172031.1385 | AD43: =+L43*$S43 -> 159943.4854 | AE43: =+M43*$S43 -> 29083.8911 | AF43: =+N43*$S43 -> 0 | AG43: =+O43*$S43 -> -35307679.42 | AH43: =+P43*$S43 -> 0 | AI43: 34669293.81 | AL43: 2726654.456 | AM43: 25665042.32 | AN43: 0 | AO43: 0 | AP43: 0 | AQ43: 0 | AR43: 0 | AS43: 0 | AT43: 120421.7969 | AU43: 0 | AV43: 0 | AW43: 0 | AX43: -14123071.77 | AY43: 0 | AZ43: 14389046.81 | BC43: 2181323.565 | BD43: 20532033.85 | BE43: 0 | BF43: 0 | BG43: 0 | BH43: 0 | BI43: 0 | BJ43: 0 | BK43: 103218.6831 | BL43: 0 | BM43: 0 | BN43: 0 | BO43: -11298457.41 | BP43: 0 | BQ43: 11518118.69 | BT43: 1308794.139 | BU43: 12319220.31 | BV43: 0 | BW43: 0 | BX43: 0 | BY43: 0 | BZ43: 0 | CA43: 0 | CB43: 68812.45538 | CC43: 0 | CD43: 0 | CE43: 0 | CF43: -6779074.448 | CG43: 0 | CH43: 6917752.459
A44: 1987 | C44: 1787226.19 | D44: 50918902.19 | E44: 0 | F44: 0 | G44: 0 | H44: 0 | I44: 0 | J44: 65928.61 | K44: 994151.58 | L44: 187026.05 | M44: 300290.0586 | N44: 0 | O44: -14741658.18 | P44: 0 | Q44: 39511866.5 | S44: =Inflation!O44 -> 1.872676196 | U44: 3346895.942 | V44: 95354616.03 | W44: 0 | X44: 0 | Y44: 0 | Z44: 0 | AA44: 0 | AB44: 123462.9386 | AC44: 1861723.999 | AD44: 350239.2318 | AE44: 562346.0445 | AF44: 0 | AG44: -27606352.36 | AH44: 0 | AI44: 73992931.83 | AL44: 1785011.169 | AM44: 41956031.06 | AN44: 0 | AO44: 0 | AP44: 0 | AQ44: 0 | AR44: 0 | AS44: 0 | AT44: 1340441.279 | AU44: 0 | AV44: 37489.7363 | AW44: 0 | AX44: -12146795.04 | AY44: 0 | AZ44: 32972178.2 | BC44: 1441739.79 | BD44: 33887563.54 | BE44: 0 | BF44: 0 | BG44: 0 | BH44: 0 | BI44: 0 | BJ44: 0 | BK44: 1154268.879 | BL44: 0 | BM44: 0 | BN44: 0 | BO44: -9810872.914 | BP44: 0 | BQ44: 26672699.3 | BT44: 887224.4864 | BU44: 20853885.26 | BV44: 0 | BW44: 0 | BX44: 0 | BY44: 0 | BZ44: 0 | CA44: 0 | CB44: 781924.0794 | CC44: 0 | CD44: 0 | CE44: 0 | CF44: -6037460.255 | CG44: 0 | CH44: 16485573.57
A45: 1988 | C45: 1672278.08 | D45: 52465543.22 | E45: 0 | F45: 0 | G45: 0 | H45: 0 | I45: 0 | J45: 0 | K45: 3304204.15 | L45: 168203.48 | M45: 148307.4128 | N45: 0 | O45: -12125997.9 | P45: 0 | Q45: 45632538.44 | S45: =Inflation!O45 -> 1.815681067 | U45: 3036323.648 | V45: 95260693.47 | W45: 0 | X45: 0 | Y45: 0 | Z45: 0 | AA45: 0 | AB45: 0 | AC45: 5999380.915 | AD45: 305403.874 | AE45: 269278.9615 | AF45: 0 | AG45: -22016944.8 | AH45: 0 | AI45: 82854136.07 | AL45: 1720583.4 | AM45: 45725132.87 | AN45: 0 | AO45: 0 | AP45: 0 | AQ45: 0 | AR45: 0 | AS45: 0 | AT45: 4439541.877 | AU45: 0 | AV45: 35903.86153 | AW45: 0 | AX45: -10568133.5 | AY45: 0 | AZ45: 41353028.5 | BC45: 1401956.845 | BD45: 37257515.67 | BE45: 0 | BF45: 0 | BG45: 0 | BH45: 0 | BI45: 0 | BJ45: 0 | BK45: 3839603.786 | BL45: 0 | BM45: 0 | BN45: 0 | BO45: -8611071.744 | BP45: 0 | BQ45: 33888004.56 | BT45: 882713.569 | BU45: 23458435.79 | BV45: 0 | BW45: 0 | BX45: 0 | BY45: 0 | BZ45: 0 | CA45: 0 | CB45: 2639727.603 | CC45: 0 | CD45: 0 | CE45: 0 | CF45: -5421785.913 | CG45: 0 | CH45: 21559091.05
A46: 1989 | C46: 996376.18 | D46: 57928050.07 | E46: 0 | F46: 0 | G46: 0 | H46: 0 | I46: 0 | J46: 135959.75 | K46: 2171557.56 | L46: 166250.61 | M46: 738400.0646 | N46: 0 | O46: -15019730.8 | P46: 0 | Q46: 47116863.43 | S46: =Inflation!O46 -> 1.777604422 | U46: 1771162.703 | V46: 102973157.9 | W46: 0 | X46: 0 | Y46: 0 | Z46: 0 | AA46: 0 | AB46: 241682.6528 | AC46: 3860170.32 | AD46: 295527.8194 | AE46: 1312583.22 | AF46: 0 | AG46: -26699139.88 | AH46: 0 | AI46: 83755144.77 | AL46: 1062697.622 | AM46: 53546042.13 | AN46: 0 | AO46: 0 | AP46: 0 | AQ46: 0 | AR46: 0 | AS46: 0 | AT46: 2933729.444 | AU46: 0 | AV46: 262516.6439 | AW46: 0 | AX46: -13883552.74 | AY46: 0 | AZ46: 43921433.1 | BC46: 872930.1894 | BD46: 43984248.89 | BE46: 0 | BF46: 0 | BG46: 0 | BH46: 0 | BI46: 0 | BJ46: 0 | BK46: 2547712.411 | BL46: 0 | BM46: 0 | BN46: 0 | BO46: -11404346.89 | BP46: 0 | BQ46: 36000544.6 | BT46: 561169.4075 | BU46: 28275588.57 | BV46: 0 | BW46: 0 | BX46: 0 | BY46: 0 | BZ46: 0 | CA46: 0 | CB46: 1775678.347 | CC46: 0 | CD46: 0 | CE46: 0 | CF46: -7331365.86 | CG46: 0 | CH46: 23281070.47
A47: 1990 | C47: 3171753.66 | D47: 64882462.31 | E47: 0 | F47: 0 | G47: 0 | H47: 0 | I47: 0 | J47: 335492.75 | K47: 6109579.83 | L47: 293086 | M47: 1129549.878 | N47: 0 | O47: -18314700.91 | P47: 0 | Q47: 57607223.52 | S47: =Inflation!O47 -> 1.707854491 | U47: 5416893.731 | V47: 110809804.6 | W47: 0 | X47: 0 | Y47: 0 | Z47: 0 | AA47: 0 | AB47: 572972.7996 | AC47: 10434273.35 | AD47: 500548.2412 | AE47: 1929106.831 | AF47: 0 | AG47: -31278844.2 | AH47: 0 | AI47: 98384755.37 | AL47: 3430699.363 | AM47: 62053490.59 | AN47: 0 | AO47: 0 | AP47: 0 | AQ47: 0 | AR47: 0 | AS47: 0 | AT47: 8138733.212 | AU47: 0 | AV47: 514428.4883 | AW47: 0 | AX47: -17516152.75 | AY47: 0 | AZ47: 56621198.9 | BC47: 2839199.473 | BD47: 51354612.9 | BE47: 0 | BF47: 0 | BG47: 0 | BH47: 0 | BI47: 0 | BJ47: 0 | BK47: 7095305.877 | BL47: 0 | BM47: 0 | BN47: 0 | BO47: -14496126.41 | BP47: 0 | BQ47: 46792991.83 | BT47: 1860165.172 | BU47: 33646125.69 | BV47: 0 | BW47: 0 | BX47: 0 | BY47: 0 | BZ47: 0 | CA47: 0 | CB47: 5008451.207 | CC47: 0 | CD47: 0 | CE47: 0 | CF47: -9497462.133 | CG47: 0 | CH47: 31017279.94
A48: 1991 | C48: 2419623.04 | D48: 86593877.49 | E48: 0 | F48: 0 | G48: 0 | H48: 0 | I48: 159325.7107 | J48: 290442.43 | K48: 3055160.02 | L48: 361283.65 | M48: 616638.3217 | N48: 0 | O48: -15545402.33 | P48: 0 | Q48: 77950948.33 | S48: =Inflation!O48 -> 1.653049226 | U48: 3999755.993 | V48: 143143942.1 | W48: 0 | X48: 0 | Y48: 0 | Z48: 0 | AA48: 263373.2427 | AB48: 480115.634 | AC48: 5050329.906 | AD48: 597219.6579 | AE48: 1019333.5 | AF48: 0 | AG48: -25697315.29 | AH48: 0 | AI48: 128856754.8 | AL48: 2666503.995 | AM48: 85886365.28 | AN48: 0 | AO48: 0 | AP48: 0 | AQ48: 0 | AR48: 87791.0809 | AS48: 0 | AT48: 4040263.924 | AU48: 0 | AV48: 339777.8334 | AW48: 0 | AX48: -15418389.18 | AY48: 0 | AZ48: 77602312.94 | BC48: 2222086.663 | BD48: 71571971.07 | BE48: 0 | BF48: 0 | BG48: 0 | BH48: 0 | BI48: 0 | BJ48: 0 | BK48: 3535230.934 | BL48: 0 | BM48: 0 | BN48: 0 | BO48: -12848657.65 | BP48: 0 | BQ48: 64480631.02 | BT48: 1481391.108 | BU48: 47714647.38 | BV48: 0 | BW48: 0 | BX48: 0 | BY48: 0 | BZ48: 0 | CA48: 0 | CB48: 2525164.953 | CC48: 0 | CD48: 0 | CE48: 0 | CF48: -8565771.764 | CG48: 0 | CH48: 43155431.68
A49: 1992 | C49: 1851909.17 | D49: 50758966.79 | E49: 0 | F49: 0 | G49: 0 | H49: 0 | I49: 2422136.424 | J49: 718916.81 | K49: 1290707.81 | L49: 324729.16 | M49: 1927300.498 | N49: 0 | O49: -16642507.98 | P49: 0 | Q49: 42652158.68 | S49: =Inflation!O49 -> 1.601872783 | U49: 2966522.896 | V49: 81309407.4 | W49: 0 | X49: 0 | Y49: 0 | Z49: 0 | AA49: 3879954.415 | AB49: 1151613.271 | AC49: 2067549.712 | AD49: 520174.8033 | AE49: 3087290.213 | AF49: 0 | AG49: -26659180.58 | AH49: 0 | AI49: 68323332.13 | AL49: 2076566.027 | AM49: 52038020.73 | AN49: 0 | AO49: 0 | AP49: 0 | AQ49: 0 | AR49: 1551981.766 | AS49: 0 | AT49: 1695390.764 | AU49: 0 | AV49: 1234916.085 | AW49: 0 | AX49: -17061875.57 | AY49: 0 | AZ49: 41534999.81 | BC49: 1741636.023 | BD49: 43644791.58 | BE49: 0 | BF49: 0 | BG49: 0 | BH49: 0 | BI49: 258663.6277 | BJ49: 0 | BK49: 1488635.792 | BL49: 0 | BM49: 205819.3475 | BN49: 0 | BO49: -14309960.16 | BP49: 0 | BQ49: 33029586.22 | BT49: 1179817.951 | BU49: 29565826.56 | BV49: 0 | BW49: 0 | BX49: 0 | BY49: 0 | BZ49: 0 | CA49: 0 | CB49: 1075125.85 | CC49: 0 | CD49: 0 | CE49: 0 | CF49: -9693843.977 | CG49: 0 | CH49: 22126926.38
A50: 1993 | C50: 6956025.44 | D50: 105102669.7 | E50: 0 | F50: 0 | G50: 0 | H50: 0 | I50: 940606.769 | J50: 1577861.65 | K50: 3309484.68 | L50: 494036.03 | M50: 3410538.449 | N50: 0 | O50: -14243920.88 | P50: 0 | Q50: 107547301.9 | S50: =Inflation!O50 -> 1.553396068 | U50: 10805462.57 | V50: 163266073.9 | W50: 0 | X50: 0 | Y50: 0 | Z50: 0 | AA50: 1461134.857 | AB50: 2451044.084 | AC50: 5140940.49 | AD50: 767433.6266 | AE50: 5297917.018 | AF50: 0 | AG50: -22126450.7 | AH50: 0 | AI50: 167063555.9 | AL50: 7924005.885 | AM50: 111020930.3 | AN50: 0 | AO50: 0 | AP50: 0 | AQ50: 0 | AR50: 681862.9332 | AS50: 0 | AT50: 4318390.012 | AU50: 0 | AV50: 2472361.275 | AW50: 0 | AX50: -15045986.48 | AY50: 0 | AZ50: 111371563.9 | BC50: 6685879.965 | BD50: 93673909.93 | BE50: 0 | BF50: 0 | BG50: 0 | BH50: 0 | BI50: 194817.9809 | BJ50: 0 | BK50: 3804295.963 | BL50: 0 | BM50: 706388.9358 | BN50: 0 | BO50: -12695051.09 | BP50: 0 | BQ50: 92370241.68 | BT50: 4596542.476 | BU50: 64400813.08 | BV50: 0 | BW50: 0 | BX50: 0 | BY50: 0 | BZ50: 0 | CA50: 0 | CB50: 2776107.865 | CC50: 0 | CD50: 0 | CE50: 0 | CF50: -8727847.624 | CG50: 0 | CH50: 63045615.79
A51: 1994 | C51: 10121188.18 | D51: 101425375.1 | E51: 0 | F51: 0 | G51: 56883.5645 | H51: 343253.5508 | I51: 520943.1172 | J51: 3090444.71 | K51: 1036163.2 | L51: 1740276.37 | M51: 3399403.131 | N51: 0 | O51: -19359695.29 | P51: 0 | Q51: 102374235.7 | S51: =Inflation!O51 -> 1.531814867 | U51: 15503786.52 | V51: 155364897.5 | W51: 0 | X51: 0 | Y51: 87135.08976 | Z51: 525800.8921 | AA51: 797988.4116 | AB51: 4733989.151 | AC51: 1587210.194 | AD51: 2665781.215 | AE51: 5207256.253 | AF51: 0 | AG51: -29655469.05 | AH51: 0 | AI51: 156818376.1 | AL51: 11886236.33 | AM51: 111862726.2 | AN51: 0 | AO51: 0 | AP51: 26140.52693 | AQ51: 0 | AR51: 425593.8195 | AS51: 0 | AT51: 1365000.767 | AU51: 0 | AV51: 2777203.335 | AW51: 0 | AX51: -21351937.72 | AY51: 0 | AZ51: 106990963.2 | BC51: 10085291.43 | BD51: 94913828.26 | BE51: 0 | BF51: 0 | BG51: 0 | BH51: 0 | BI51: 159597.6823 | BJ51: 0 | BK51: 1206279.747 | BL51: 0 | BM51: 1041451.251 | BN51: 0 | BO51: -18116795.64 | BP51: 0 | BQ51: 89289652.74 | BT51: 7029142.515 | BU51: 66152062.12 | BV51: 0 | BW51: 0 | BX51: 0 | BY51: 0 | BZ51: 0 | CA51: 0 | CB51: 888837.7086 | CC51: 0 | CD51: 0 | CE51: 0 | CF51: -12626857.57 | CG51: 0 | CH51: 61443184.78
A52: 1995 | C52: 6599715.06 | D52: 114724692.7 | E52: 0 | F52: 0 | G52: 162029.1783 | H52: 55208.5297 | I52: 427636.1012 | J52: 3323694.36 | K52: 1879386.32 | L52: 1065410.18 | M52: 903201.6872 | N52: 0 | O52: -22106138.58 | P52: 0 | Q52: 107034835.5 | S52: =Inflation!O52 -> 1.496698692 | U52: 9877784.9 | V52: =+D52*$S52 -> 171708297.5 | W52: 0 | X52: 0 | Y52: =+G52*$S52 -> 242508.8593 | Z52: 82630.53421 | AA52: 640042.3935 | AB52: 4974569.002 | AC52: 2812875.048 | AD52: 1594598.023 | AE52: 1351820.784 | AF52: 0 | AG52: -33086228.71 | AH52: 0 | AI52: 160198898.4 | AL52: 7902227.92 | AM52: 130498306.1 | AN52: 0 | AO52: 0 | AP52: 97003.54371 | AQ52: 0 | AR52: 384025.4361 | AS52: 710652.7146 | AT52: 2475330.042 | AU52: 0 | AV52: 811092.4705 | AW52: 0 | AX52: -25145533.82 | AY52: 0 | AZ52: 117733104.4 | BC52: 6740135.579 | BD52: 111307378.8 | BE52: 0 | BF52: 0 | BG52: 0 | BH52: 0 | BI52: 170677.9716 | BJ52: 0 | BK52: 2194042.537 | BL52: 0 | BM52: 360485.5424 | BN52: 0 | BO52: -21447661.2 | BP52: 0 | BQ52: 99325059.2 | BT52: 4757742.762 | BU52: 78569914.42 | BV52: 0 | BW52: 0 | BX52: 0 | BY52: 0 | BZ52: 0 | CA52: 0 | CB52: 1631467.528 | CC52: 0 | CD52: 0 | CE52: 0 | CF52: -15139525.55 | CG52: 0 | CH52: 69819599.16
A53: 1996 | C53: 5899441.43 | D53: 121523642.4 | E53: 0 | F53: 0 | G53: 22879.0505 | H53: 247898.2925 | I53: 338531.4356 | J53: 3858744.23 | K53: 6151835.27 | L53: 1435165.95 | M53: 439186.4635 | N53: 0 | O53: -28316670.86 | P53: 0 | Q53: 111600653.7 | S53: =Inflation!O53 -> 1.46001315 | U53: 8613262.063 | V53: 177426115.9 | W53: 0 | X53: 0 | Y53: 33403.71458 | Z53: 361934.7668 | AA53: 494260.3475 | AB53: 5633817.317 | AC53: 8981760.388 | AD53: 2095361.159 | AE53: 641218.0118 | AF53: 0 | AG53: -41342711.8 | AH53: 0 | AI53: 162938421.9 | AL53: 7177718.386 | AM53: 141940892.7 | AN53: 0 | AO53: 0 | AP53: 16701.85729 | AQ53: 0 | AR53: 329506.8983 | AS53: 1609662.09 | AT53: 8083584.349 | AU53: 0 | AV53: 427478.6746 | AW53: 0 | AX53: -33074169.44 | AY53: 0 | AZ53: 126511375.5 | BC53: 6152330.045 | BD53: 121663622.3 | BE53: 0 | BF53: 0 | BG53: 0 | BH53: 0 | BI53: 164753.4492 | BJ53: 0 | BK53: 7185408.311 | BL53: 0 | BM53: 213739.3373 | BN53: 0 | BO53: -28349288.09 | BP53: 0 | BQ53: 107030565.4 | BT53: 4394521.461 | BU53: 86902587.39 | BV53: 0 | BW53: 0 | BX53: 0 | BY53: 0 | BZ53: 0 | CA53: 0 | CB53: 5389056.233 | CC53: 0 | CD53: 0 | CE53: 0 | CF53: -20249491.49 | CG53: 0 | CH53: 76436673.59
A54: 1997 | C54: 4924663.94 | D54: 141074173.7 | E54: 0 | F54: 0 | G54: 17338.27 | H54: 224840.13 | I54: 0 | J54: 5917408.96 | K54: 2458777.74 | L54: 621269.2 | M54: 529492.21 | N54: 0 | O54: -34155952.2 | P54: 0 | Q54: 121612012 | S54: =Inflation!O54 -> 1.435681401 | U54: 7070248.424 | V54: 202537567.4 | W54: 0 | X54: 0 | Y54: 24892.23176 | Z54: 322798.7928 | AA54: 0 | AB54: 8495513.985 | AC54: 3530021.47 | AD54: 891944.6353 | AE54: 760182.1177 | AF54: 0 | AG54: -49037065.3 | AH54: 0 | AI54: 174596103.7 | AL54: 6127548.634 | AM54: 170131556.6 | AN54: 0 | AO54: 0 | AP54: 14935.33906 | AQ54: 64559.75856 | AR54: 0 | AS54: 3640934.565 | AT54: 3247619.752 | AU54: 178388.9271 | AV54: 557466.8863 | AW54: 0 | AX54: -41191134.85 | AY54: 0 | AZ54: 142771875.6 | BC54: 5276500.212 | BD54: 146502173.7 | BE54: 0 | BF54: 0 | BG54: 2489.223176 | BH54: 0 | BI54: 0 | BJ54: 0 | BK54: 2894617.605 | BL54: 0 | BM54: 304072.8471 | BN54: 0 | BO54: -35470143.9 | BP54: 0 | BQ54: 119509709.7 | BT54: 3810805.709 | BU54: 105807125.5 | BV54: 0 | BW54: 0 | BX54: 0 | BY54: 0 | BZ54: 0 | CA54: 0 | CB54: 2188613.311 | CC54: 0 | CD54: 0 | CE54: 0 | CF54: -25617326.15 | CG54: 0 | CH54: 86189218.34
A55: 1998 | C55: 14761618.45 | D55: 189654100.9 | E55: 5463651.21 | F55: 0 | G55: 51706.27 | H55: 173627.79 | I55: 0 | J55: 12421795.29 | K55: 4260430.76 | L55: 3010951.51 | M55: 1200717.66 | N55: 0 | O55: -36918054.09 | P55: 0 | Q55: 194080545.8 | S55: =Inflation!O55 -> 1.415225616 | U55: 20891020.56 | V55: 268403341.8 | W55: 7732299.148 | X55: 0 | Y55: 73176.0378 | Z55: 245722.496 | AA55: 0 | AB55: 17579642.89 | AC55: 6029470.746 | AD55: 4261175.705 | AE55: 1699286.39 | AF55: 0 | AG55: -52247375.84 | AH55: 0 | AI55: 274667759.9 | AL55: 18801918.5 | AM55: 236194940.8 | AN55: 3092919.659 | AO55: 0 | AP55: 51223.22646 | AQ55: 98288.99841 | AR55: 0 | AS55: 10045510.22 | AT55: 5667702.501 | AU55: 1704470.282 | AV55: 1359429.112 | AW55: 0 | AX55: -45977690.74 | AY55: 0 | AZ55: 231038712.5 | BC55: 16261118.71 | BD55: 204276705.5 | BE55: 0 | BF55: 0 | BG55: 14635.20756 | BH55: 0 | BI55: 0 | BJ55: 0 | BK55: 5064755.427 | BL55: 0 | BM55: 793000.3152 | BN55: 0 | BO55: -39764489.29 | BP55: 0 | BQ55: 186645725.9 | BT55: 11866221.76 | BU55: 149066785.1 | BV55: 0 | BW55: 0 | BX55: 0 | BY55: 0 | BZ55: 0 | CA55: 0 | CB55: 3858861.277 | CC55: 0 | CD55: 0 | CE55: 0 | CF55: -29017330.02 | CG55: 0 | CH55: 135774538.1
A56: 1999 | C56: 15187269.75 | D56: 230993452.7 | E56: 1978822.46 | F56: 0 | G56: 252274.56 | H56: 355029.69 | I56: 0 | J56: 10152016.84 | K56: 523000.39 | L56: 6032700.28 | M56: 0 | N56: -8931841.203 | O56: -47552192.21 | P56: 0 | Q56: 208990533.3 | S56: =Inflation!O56 -> 1.381724074 | U56: 20984616.23 | V56: 319169214.5 | W56: 2734186.631 | X56: 0 | Y56: 348573.8327 | Z56: 490553.0696 | AA56: 0 | AB56: 14027286.06 | AC56: 722642.2294 | AD56: 8335527.206 | AE56: 0 | AF56: -12341340.01 | AG56: -65704008.73 | AH56: 0 | AI56: 288767251 | AL56: 19585641.81 | AM56: 293635677.3 | AN56: 1640511.978 | AO56: 0 | AP56: 278859.0662 | AQ56: 294331.8417 | AR56: 0 | AS56: 10019490.05 | AT56: 693736.5402 | AU56: 5001316.324 | AV56: 0 | AW56: -11354032.81 | AX56: -60447688.04 | AY56: 0 | AZ56: 259347844.1 | BC56: 17008583.68 | BD56: 254999404 | BE56: 0 | BF56: 0 | BG56: 104572.1498 | BH56: 0 | BI56: 0 | BJ56: 0 | BK56: 621472.3173 | BL56: 0 | BM56: 0 | BN56: -9860081.125 | BO56: -52494044.87 | BP56: 0 | BQ56: 210379906.2 | BT56: 12532640.61 | BU56: 187894297.7 | BV56: 0 | BW56: 0 | BX56: 0 | BY56: 0 | BZ56: 0 | CA56: 0 | CB56: 476943.8714 | CC56: 0 | CD56: 0 | CE56: -7265322.934 | CF56: -38679822.54 | CG56: 0 | CH56: 154958736.7
A57: 2000 | C57: 43427949.5 | D57: 200787052.9 | E57: 1564822.89 | F57: 0 | G57: 24586.29 | H57: 349654.84 | I57: 0 | J57: 9740059.59 | K57: 856943.36 | L57: 3978205.8 | M57: 0 | N57: -1041058.388 | O57: -47132547.79 | P57: 0 | Q57: 212555669 | S57: =Inflation!O57 -> 1.359424472 | U57: 59037017.3 | V57: 272954833.3 | W57: 2127258.53 | X57: 0 | Y57: 33423.20429 | Z57: 475329.3461 | AA57: 0 | AB57: 13240875.36 | AC57: 1164949.774 | AD57: 5408070.318 | AE57: 0 | AF57: -1415240.249 | AG57: -64073138.87 | AH57: 0 | AI57: 288953378 | AL57: 57069116.73 | AM57: 262036640 | AN57: 1701806.824 | AO57: 0 | AP57: 30080.88386 | AQ57: 380263.4769 | AR57: 0 | AS57: 11349321.74 | AT57: 1141650.779 | AU57: 4326456.254 | AV57: 0 | AW57: -1358630.639 | AX57: -61510213.32 | AY57: 0 | AZ57: 275166492.7 | BC57: 49752563.3 | BD57: 228442199 | BE57: 0 | BF57: 0 | BG57: 13369.28172 | BH57: 0 | BI57: 0 | BJ57: 1891553.623 | BK57: 1025155.801 | BL57: 0 | BM57: 0 | BN57: -1184447.224 | BO57: -53624288.54 | BP57: 0 | BQ57: 226316105.2 | BT57: 36995495.79 | BU57: 169867276.2 | BV57: 0 | BW57: 0 | BX57: 0 | BY57: 0 | BZ57: 0 | CA57: 0 | CB57: 792165.8466 | CC57: 0 | CD57: 0 | CE57: -880742.8077 | CF57: -39874470.96 | CG57: 0 | CH57: 166899724
A58: 2000 | B58: WIP | C58: 0 | D58: =92493090.3300004+1830841.25075942 -> 94323931.58 | E58: 0 | F58: 0 | G58: 0 | H58: 0 | I58: 0 | J58: 6463679.43 | K58: 13842791.51 | L58: 6576622.92 | M58: 0 | N58: 0 | O58: 0 | P58: 0 | Q58: =SUM(C58:P58) -> 121207025.4 | S58: =Inflation!O58 -> 1.28776059 | U58: 0 | V58: =+D58*$S58 -> 121466641.8 | W58: =+E58*$S58 -> 0 | X58: 0 | Y58: =+G58*$S58 -> 0 | Z58: =+H58*$S58 -> 0 | AA58: =+I58*$S58 -> 0 | AB58: =+J58*$S58 -> 8323671.635 | AC58: =+K58*$S58 -> 17826201.36 | AD58: =+L58*$S58 -> 8469115.81 | AE58: =+M58*$S58 -> 0 | AF58: =+N58*$S58 -> 0 | AG58: =+O58*$S58 -> 0 | AH58: =+P58*$S58 -> 0 | AI58: 156085630.6 | AL58: 0 | AM58: 116607976.1 | AN58: 0 | AO58: 0 | AP58: 0 | AQ58: 0 | AR58: 0 | AS58: 7134575.687 | AT58: 17469677.33 | AU58: 6775292.648 | AV58: 0 | AW58: 0 | AX58: 0 | AY58: 0 | AZ58: 147987521.8 | BC58: 0 | BD58: 101658235.6 | BE58: 0 | BF58: 0 | BG58: 0 | BH58: 0 | BI58: 0 | BJ58: 1189095.948 | BK58: 15687057.2 | BL58: 0 | BM58: 0 | BN58: 0 | BO58: 0 | BP58: 0 | BQ58: 118534388.7 | BT58: 0 | BU58: 75592021.32 | BV58: 0 | BW58: 0 | BX58: 0 | BY58: 0 | BZ58: 0 | CA58: 0 | CB58: 12121816.92 | CC58: 0 | CD58: 0 | CE58: 0 | CF58: 0 | CG58: 0 | CH58: 87713838.25
A60: 2001 | C60: 0 | D60: 291831394 | E60: 17981395.8 | F60: 7447393.16 | G60: 1331955.244 | H60: 266391.0489 | I60: 0 | J60: 9323686.71 | K60: 665977.6221 | L60: 5993798.599 | M60: 0 | N60: -2131128.391 | O60: -45020087.26 | P60: 932368.671 | Q60: =SUM(C60:P60) -> 288623145.2 | S60: =Inflation!O59 -> 1.227927192 | U60: =+C60*$S60 -> 0 | V60: =+D60*$S60 -> 358347704.1 | W60: 22079844.85 | X60: 9144856.569 | Y60: 1635544.063 | Z60: 327108.8125 | AA60: 0 | AB60: 11448808.44 | AC60: 817772.0313 | AD60: 7359948.282 | AE60: 0 | AF60: -2616870.5 | AG60: -55281389.32 | AH60: 1144880.844 | AI60: =SUM(U60:AH60) -> 354408208.2 | BC60: =IF(AND(($BO$1-$A60)<BC$3,$A60<$BO$1),((BC$3-($BO$1-$A60))/BC$3*U60),0) -> 0 | BD60: =IF(AND(($BO$1-$A60)<BD$3,$A60<$BO$1),((BD$3-($BO$1-$A60))/BD$3*V60),0) -> 313554241.1 | BE60: 0 | BF60: 2612816.163 | BG60: 817772.0313 | BH60: 0 | BI60: 0 | BJ60: 3271088.125 | BK60: =IF(AND(($BO$1-$A60)<BK$3,$A60<$BO$1),((BK$3-($BO$1-$A60))/BK$3*AC60),0) -> 735994.8282 | BL60: =IF(AND(($BO$1-$A60)<BL$3,$A60<$BO$1),((BL$3-($BO$1-$A60))/BL$3*AD60),0) -> 0 | BM60: =IF(AND(($BO$1-$A60)<BM$3,$A60<$BO$1),((BM$3-($BO$1-$A60))/BM$3*AE60),0) -> 0 | BN60: =IF(AND(($BO$1-$A60)<BN$3,$A60<$BO$1),((BN$3-($BO$1-$A60))/BN$3*AF60),0) -> -2289761.688 | BO60: =IF(AND(($BO$1-$A60)<BO$3,$A60<$BO$1),((BO$3-($BO$1-$A60))/BO$3*AG60),0) -> -48371215.65 | BP60: =IF(AND(($BO$1-$A60)<BP$3,$A60<$BO$1),((BP$3-($BO$1-$A60))/BP$3*AH60),0) -> 1001770.738 | BQ60: 271332705.7 | BT60: 0 | BU60: =IF(AND(($CE$1-$A60)<BU$3,$A60<$CE$1),((BU$3-($CE$1-$A60))/(BU$3-(2006-$A60))*BD60),0) -> 235165680.8 | BV60: =IF(AND(($CE$1-$A60)<BV$3,$A60<$CE$1),((BV$3-($CE$1-$A60))/(BV$3-(2006-$A60))*BE60),0) -> 0 | BW60: 0 | BX60: =IF(AND(($CE$1-$A60)<BX$3,$A60<$CE$1),((BX$3-($CE$1-$A60))/(BX$3-(2006-$A60))*BG60),0) -> 0 | BY60: =IF(AND(($CE$1-$A60)<BY$3,$A60<$CE$1),((BY$3-($CE$1-$A60))/(BY$3-(2006-$A60))*BH60),0) -> 0 | BZ60: =IF(AND(($CE$1-$A60)<BZ$3,$A60<$CE$1),((BZ$3-($CE$1-$A60))/(BZ$3-(2006-$A60))*BI60),0) -> 0 | CA60: =IF(AND(($CE$1-$A60)<CA$3,$A60<$CE$1),((CA$3-($CE$1-$A60))/(CA$3-(2006-$A60))*BJ60),0) -> 0 | CB60: =IF(AND(($CE$1-$A60)<CB$3,$A60<$CE$1),((CB$3-($CE$1-$A60))/(CB$3-(2006-$A60))*BK60),0) -> 572440.4219 | CC60: =IF(AND(($CE$1-$A60)<CC$3,$A60<$CE$1),((CC$3-($CE$1-$A60))/(CC$3-(2006-$A60))*BL60),0) -> 0 | CD60: =IF(AND(($CE$1-$A60)<CD$3,$A60<$CE$1),((CD$3-($CE$1-$A60))/(CD$3-(2006-$A60))*BM60),0) -> 0 | CE60: =IF(AND(($CE$1-$A60)<CE$3,$A60<$CE$1),((CE$3-($CE$1-$A60))/(CE$3-(2006-$A60))*BN60),0) -> -1717321.266 | CF60: =IF(AND(($CE$1-$A60)<CF$3,$A60<$CE$1),((CF$3-($CE$1-$A60))/(CF$3-(2006-$A60))*BO60),0) -> -36278411.74 | CG60: =IF(AND(($CE$1-$A60)<CG$3,$A60<$CE$1),((CG$3-($CE$1-$A60))/(CG$3-(2006-$A60))*BP60),0) -> 751328.0538 | CH60: 198493716.3
A61: 2002 | C61: 0 | D61: 333120141.9 | E61: 18808540 | F61: 0 | G61: 3630133.186 | H61: 278645.0371 | I61: 0 | J61: 9752576.299 | K61: 1114580.148 | L61: 6269513.335 | M61: 0 | N61: 0 | O61: -45976431.12 | P61: 278645.0371 | Q61: =SUM(C61:P61) -> 327276343.8 | S61: =Inflation!O60 -> 1.173501811 | U61: =+C61*$S61 -> 0 | V61: 390917089.7 | W61: 22071855.76 | X61: 0 | Y61: 4259967.867 | Z61: 326990.4556 | AA61: 0 | AB61: 11444665.95 | AC61: 1307961.823 | AD61: 7357285.252 | AE61: 0 | AF61: 0 | AG61: -53953425.18 | AH61: 326990.4556 | AI61: =SUM(U61:AH61) -> 384059382.1 | BC61: =IF(AND(($BO$1-$A61)<BC$3,$A61<$BO$1),((BC$3-($BO$1-$A61))/BC$3*U61),0) -> 0 | BD61: 351825380.7 | BE61: 4414371.151 | BF61: 0 | BG61: 2555980.72 | BH61: 65398.09113 | BI61: 0 | BJ61: 4904856.835 | BK61: 1203324.877 | BL61: 1471457.05 | BM61: 0 | BN61: 0 | BO61: -48558082.66 | BP61: 294291.4101 | BQ61: 318176978.2 | BT61: 0 | BU61: 266014312.3 | BV61: 0 | BW61: 0 | BX61: 0 | BY61: 0 | BZ61: 0 | CA61: 0 | CB61: 941732.5122 | CC61: 0 | CD61: 0 | CE61: 0 | CF61: -36714647.87 | CG61: 222513.0174 | CH61: 230463909.9
A62: 2003 | C62: 0 | D62: 417897610.4 | E62: 19466838.9 | F62: -3816046.967 | G62: 2373495.067 | H62: 288397.6134 | I62: 0 | J62: 6344747.495 | K62: 1153590.454 | L62: 5335355.848 | M62: 0 | N62: 0 | O62: -49171793.08 | P62: 1441988.067 | Q62: 401314183.8 | S62: =Inflation!O61 -> 1.134025514 | U62: 0 | V62: 473906552.6 | W62: 22075892 | X62: -4327494.624 | Y62: 2691603.964 | Z62: 327050.2519 | AA62: 0 | AB62: 7195105.542 | AC62: 1308201.008 | AD62: 6050429.66 | AE62: 0 | AF62: 0 | AG62: -55762067.95 | AH62: 1635251.259 | AI62: 455100523.7 | BC62: 0 | BD62: 438363561.1 | BE62: 8830356.801 | BF62: -2472854.071 | BG62: 1884122.775 | BH62: 130820.1008 | BI62: 0 | BJ62: 4111488.881 | BK62: 1229708.947 | BL62: 2420171.864 | BM62: 0 | BN62: 0 | BO62: -51579912.85 | BP62: 1512607.415 | BQ62: 404430071 | BT62: 0 | BU62: 333991284.7 | BV62: 0 | BW62: 0 | BX62: 0 | BY62: 0 | BZ62: 0 | CA62: 0 | CB62: 968068.7456 | CC62: 0 | CD62: 0 | CE62: 0 | CF62: -39298981.22 | CG62: 1152462.792 | CH62: 296812835
A63: 2004 | C63: 0 | D63: 480465541 | E63: 11052838.53 | F63: 39550000 | G63: 3060366.804 | H63: 294742.3609 | I63: 0 | J63: 10315982.63 | K63: 1178969.444 | L63: 5452733.677 | M63: 0 | N63: 0 | O63: -52169397.88 | P63: 5157991.316 | Q63: 504359767.9 | S63: =Inflation!O62 -> 1.109683046 | U63: 0 | V63: 533164465 | W63: 12265147.53 | X63: 43887964.47 | Y63: 3396037.157 | Z63: 327070.6008 | AA63: 0 | AB63: 11447471.03 | AC63: 1308282.403 | AD63: 6050806.115 | AE63: 0 | AF63: 0 | AG63: -57891496.34 | AH63: 5723735.514 | AI63: 559679483.5 | BC63: 0 | BD63: 506506241.8 | BE63: 7359088.518 | BF63: 31348546.05 | BG63: 2716829.726 | BH63: 196242.3605 | BI63: 0 | BJ63: 8176765.02 | BK63: 1255951.107 | BL63: 3630483.669 | BM63: 0 | BN63: 0 | BO63: -54996921.52 | BP63: 5437548.738 | BQ63: 511630775.4 | BT63: 0 | BU63: 388714092.5 | BV63: 0 | BW63: 0 | BX63: 0 | BY63: 0 | BZ63: 0 | CA63: 0 | CB63: 994294.6264 | CC63: 0 | CD63: 0 | CE63: 0 | CF63: -42206939.77 | CG63: 4173002.52 | CH63: 351674449.9
A64: 2005 | C64: 0 | D64: 492720625 | E64: 11321615.11 | F64: 9332123.799 | G64: 1509548.681 | H64: 301909.7362 | I64: 0 | J64: 10566840.77 | K64: 6863468.042 | L64: 5585330.12 | M64: 0 | N64: -2264323.021 | O64: -53588978.17 | P64: 6491059.328 | Q64: 488839219.4 | S64: =Inflation!O63 -> 1.08333903 | U64: 0 | V64: 533783484 | W64: 12265147.53 | X64: 10109853.95 | Y64: 1635353.004 | Z64: 327070.6008 | AA64: 0 | AB64: 11447471.03 | AC64: 7435462.813 | AD64: 6050806.115 | AE64: 0 | AF64: -2453029.506 | AG64: -58055031.64 | AH64: 7032017.917 | AI64: 529578605.8 | BC64: 0 | BD64: 520438896.9 | BE64: 9812118.024 | BF64: 8665589.096 | BG64: 1471817.704 | BH64: 261656.4806 | BI64: 0 | BJ64: 9812118.024 | BK64: 7286753.556 | BL64: 4840644.892 | BM64: 0 | BN64: -2391703.768 | BO64: -56603655.85 | BP64: 6856217.469 | BQ64: 510450452.5 | BT64: 0 | BU64: 402157329.4 | BV64: 0 | BW64: 0 | BX64: 0 | BY64: 0 | BZ64: 0 | CA64: 0 | CB64: 5799660.994 | CC64: 0 | CD64: 0 | CE64: -1848134.73 | CF64: -43739188.61 | CG64: 5297986.226 | CH64: 367667653.3
A66: 2006 | C66: 0 | D66: 153777467.1 | E66: 0 | F66: 0 | G66: -3309376.858 | H66: 0 | I66: 0 | J66: -5828324.171 | K66: 10998760.24 | L66: -12481565.59 | M66: 0 | N66: 0 | O66: -80248063.96 | P66: 0 | Q66: =SUM(C66:P66) -> 62908896.76 | S66: =Inflation!O64 -> 1.042284764 | U66: =+C66*$S66 -> 0 | V66: =+D66*$S66 -> 160279911.1 | W66: =+E66*$S66 -> 0 | X66: 0 | Y66: =+G66*$S66 -> -3449313.079 | Z66: =+H66*$S66 -> 0 | AA66: =+I66*$S66 -> 0 | AB66: =+J66*$S66 -> -6074773.485 | AC66: =+K66*$S66 -> 11463840.23 | AD66: =+L66*$S66 -> -13009345.65 | AE66: =+M66*$S66 -> 0 | AF66: =+N66*$S66 -> 0 | AG66: =+O66*$S66 -> -83641334.44 | AH66: =+P66*$S66 -> 0 | AI66: =SUM(U66:AH66) -> 65568984.64 | BT66: =IF($CE$1=2006,U66,IF(AND(($CE$1-$A66)<BT$3,$A66<$CE$1),((BT$3-($CE$1-$A66))/BT$3*U66),0)) -> 0 | BU66: =IF($CE$1=2006,V66,IF(AND(($CE$1-$A66)<BU$3,$A66<$CE$1),((BU$3-($CE$1-$A66))/BU$3*V66),0)) -> 124662153.1 | BV66: =IF($CE$1=2006,W66,IF(AND(($CE$1-$A66)<BV$3,$A66<$CE$1),((BV$3-($CE$1-$A66))/BV$3*W66),0)) -> 0 | BX66: =IF($CE$1=2006,Y66,IF(AND(($CE$1-$A66)<BX$3,$A66<$CE$1),((BX$3-($CE$1-$A66))/BX$3*Y66),0)) -> 0 | BY66: 0 | BZ66: 0 | CA66: 0 | CB66: 9171072.185 | CC66: 0 | CD66: 0 | CE66: 0 | CF66: -65054371.23 | CG66: 0 | CH66: =SUM(BT66:CG66) -> 68778854
A68: 2006 | C68: ='PR2 Allow Outturn Revised Capex'!C79 -> 0 | D68: ='PR2 Allow Outturn Revised Capex'!D79 -> 560253130.6 | E68: ='PR2 Allow Outturn Revised Capex'!E79 -> 14041734.52 | F68: ='PR2 Allow Outturn Revised Capex'!F79 -> 0 | G68: ='PR2 Allow Outturn Revised Capex'!G79 -> 1264095.582 | H68: ='PR2 Allow Outturn Revised Capex'!H79 -> 0 | I68: ='PR2 Allow Outturn Revised Capex'!I79 -> 0 | J68: ='PR2 Allow Outturn Revised Capex'!J79 -> 22239946.02 | K68: ='PR2 Allow Outturn Revised Capex'!K79 -> 0 | L68: ='PR2 Allow Outturn Revised Capex'!L79 -> 0 | M68: ='PR2 Allow Outturn Revised Capex'!M79 -> 0 | N68: ='PR2 Allow Outturn Revised Capex'!N79 -> 0 | O68: ='PR2 Allow Outturn Revised Capex'!O79 -> -130995771 | P68: ='PR2 Allow Outturn Revised Capex'!P79 -> 17354022.88 | Q68: =SUM(C68:P68) -> 484157158.6 | S68: =Inflation!O64 -> 1.042284764 | U68: =+C68*$S68 -> 0 | V68: =+D68*$S68 -> 583943302.2 | W68: 14635485.96 | X68: 0 | Y68: 1317547.565 | Z68: 0 | AA68: 0 | AB68: 23180356.89 | AC68: 0 | AD68: 0 | AE68: 0 | AF68: 0 | AG68: -136534896.3 | AH68: 18087833.65 | AI68: 504629630 | BT68: =IF(AND(($CE$1-$A68)<(BT$3+1),$A68<$CE$1),((BT$3-($CE$1-$A68)+0.5)/BT$3*U68),0) -> 0 | BU68: =IF(AND(($CE$1-$A68)<(BU$3+1),$A68<$CE$1),((BU$3-($CE$1-$A68)+0.5)/BU$3*V68),0) -> 460666382.9 | BV68: =IF(AND(($CE$1-$A68)<(BV$3+1),$A68<$CE$1),((BV$3-($CE$1-$A68)+0.5)/BV$3*W68),0) -> 0 | BW68: 0 | BX68: 65877.37827 | BY68: 0 | BZ68: 0 | CA68: 0 | CB68: 0 | CC68: 0 | CD68: 0 | CE68: 0 | CF68: -107710862.6 | CG68: 14269290.99 | CH68: 367290688.6
A69: 2007 | C69: ='PR2 Allow Outturn Revised Capex'!C80 -> 0 | D69: ='PR2 Allow Outturn Revised Capex'!D80 -> 561870621.3 | E69: ='PR2 Allow Outturn Revised Capex'!E80 -> 18579726.24 | F69: ='PR2 Allow Outturn Revised Capex'!F80 -> 6036000 | G69: ='PR2 Allow Outturn Revised Capex'!G80 -> 2746074.767 | H69: ='PR2 Allow Outturn Revised Capex'!H80 -> 0 | I69: ='PR2 Allow Outturn Revised Capex'!I80 -> 0 | J69: ='PR2 Allow Outturn Revised Capex'!J80 -> 16912924.34 | K69: ='PR2 Allow Outturn Revised Capex'!K80 -> 0 | L69: ='PR2 Allow Outturn Revised Capex'!L80 -> 0 | M69: ='PR2 Allow Outturn Revised Capex'!M80 -> 0 | N69: ='PR2 Allow Outturn Revised Capex'!N80 -> 0 | O69: ='PR2 Allow Outturn Revised Capex'!O80 -> -180750041.1 | P69: ='PR2 Allow Outturn Revised Capex'!P80 -> 14625785.7 | Q69: =SUM(C69:P69) -> 440021091.3 | S69: =Inflation!O65 -> 0.9939191096 | U69: =+C69*$S69 -> 0 | V69: 558453947.6 | W69: 18466744.96 | X69: 5999295.746 | Y69: 2729376.187 | Z69: 0 | AA69: 0 | AB69: 16810078.7 | AC69: 0 | AD69: 0 | AE69: 0 | AF69: 0 | AG69: -179650919.9 | AH69: 14536847.9 | AI69: 437345371.2 | BT69: =IF(AND(($CE$1-$A69)<(BT$3+1),$A69<$CE$1),((BT$3-($CE$1-$A69)+0.5)/BT$3*U69),0) -> 0 | BU69: =IF(AND(($CE$1-$A69)<(BU$3+1),$A69<$CE$1),((BU$3-($CE$1-$A69)+0.5)/BU$3*V69),0) -> 452968202 | BV69: 0 | BW69: 0 | BX69: 409406.4281 | BY69: 0 | BZ69: 0 | CA69: 0 | CB69: 0 | CC69: 0 | CD69: 0 | CE69: 0 | CF69: -145716857.3 | CG69: 11790998.85 | CH69: 319451750
A70: 2008 | C70: ='PR2 Allow Outturn Revised Capex'!C81 -> 0 | D70: ='PR2 Allow Outturn Revised Capex'!D81 -> 515688017 | E70: ='PR2 Allow Outturn Revised Capex'!E81 -> 9024899.978 | F70: ='PR2 Allow Outturn Revised Capex'!F81 -> 78000 | G70: ='PR2 Allow Outturn Revised Capex'!G81 -> 6693730.775 | H70: ='PR2 Allow Outturn Revised Capex'!H81 -> 0 | I70: ='PR2 Allow Outturn Revised Capex'!I81 -> 0 | J70: ='PR2 Allow Outturn Revised Capex'!J81 -> 16812114.17 | K70: ='PR2 Allow Outturn Revised Capex'!K81 -> -23810838.93 | L70: ='PR2 Allow Outturn Revised Capex'!L81 -> 0 | M70: ='PR2 Allow Outturn Revised Capex'!M81 -> 0 | N70: ='PR2 Allow Outturn Revised Capex'!N81 -> 0 | O70: ='PR2 Allow Outturn Revised Capex'!O81 -> -138735566.8 | P70: ='PR2 Allow Outturn Revised Capex'!P81 -> 15450924 | Q70: 401201280.2 | S70: =Inflation!O66 -> 0.9552040067 | U70: 0 | V70: 492587260 | W70: 8620620.619 | X70: 74505.91252 | Y70: 6393878.456 | Z70: 0 | AA70: 0 | AB70: 16058998.82 | AC70: -22744208.75 | AD70: 0 | AE70: 0 | AF70: 0 | AG70: -132520769.2 | AH70: 14758784.51 | AI70: 383229070.4 | BT70: 0 | BU70: 410489383.4 | BV70: 0 | BW70: 0 | BX70: 1598469.614 | BY70: 0 | BZ70: 0 | CA70: 0 | CB70: -19332577.44 | CC70: 0 | CD70: 0 | CE70: 0 | CF70: -110433974.4 | CG70: 12298987.09 | CH70: 294620288.3
A71: 2009 | C71: ='PR2 Allow Outturn Revised Capex'!C82 -> 0 | D71: ='PR2 Allow Outturn Revised Capex'!D82 -> 394701065 | E71: ='PR2 Allow Outturn Revised Capex'!E82 -> 6930379.422 | F71: ='PR2 Allow Outturn Revised Capex'!F82 -> 779685 | G71: ='PR2 Allow Outturn Revised Capex'!G82 -> 10190639.84 | H71: ='PR2 Allow Outturn Revised Capex'!H82 -> 0 | I71: ='PR2 Allow Outturn Revised Capex'!I82 -> 0 | J71: ='PR2 Allow Outturn Revised Capex'!J82 -> 19283339.63 | K71: ='PR2 Allow Outturn Revised Capex'!K82 -> 0 | L71: ='PR2 Allow Outturn Revised Capex'!L82 -> 0 | M71: ='PR2 Allow Outturn Revised Capex'!M82 -> 0 | N71: ='PR2 Allow Outturn Revised Capex'!N82 -> 0 | O71: ='PR2 Allow Outturn Revised Capex'!O82 -> -98754611.57 | P71: ='PR2 Allow Outturn Revised Capex'!P82 -> 12872323.33 | Q71: 346002820.6 | S71: =Inflation!O67 -> 1 | U71: 0 | V71: 394701065 | W71: 6930379.422 | X71: 779685 | Y71: 10190639.84 | Z71: 0 | AA71: 0 | AB71: 19283339.63 | AC71: 0 | AD71: 0 | AE71: 0 | AF71: 0 | AG71: -98754611.57 | AH71: 12872323.33 | AI71: 346002820.6 | BT71: 0 | BU71: 337688688.9 | BV71: 0 | BW71: 55691.78571 | BX71: 3566723.944 | BY71: 0 | BZ71: 0 | CA71: 1377381.402 | CB71: 0 | CC71: 0 | CD71: 0 | CE71: 0 | CF71: -84490056.57 | CG71: 11012987.74 | CH71: 269211417.2
A72: 2010 | C72: ='PR2 Allow Outturn Revised Capex'!C83 -> 0 | D72: ='PR2 Allow Outturn Revised Capex'!D83 -> 327624888.3 | E72: ='PR2 Allow Outturn Revised Capex'!E83 -> 5174843.263 | F72: ='PR2 Allow Outturn Revised Capex'!F83 -> 0 | G72: ='PR2 Allow Outturn Revised Capex'!G83 -> 5738088 | H72: ='PR2 Allow Outturn Revised Capex'!H83 -> 0 | I72: ='PR2 Allow Outturn Revised Capex'!I83 -> 0 | J72: ='PR2 Allow Outturn Revised Capex'!J83 -> 10454522.37 | K72: ='PR2 Allow Outturn Revised Capex'!K83 -> 0 | L72: ='PR2 Allow Outturn Revised Capex'!L83 -> 0 | M72: ='PR2 Allow Outturn Revised Capex'!M83 -> 0 | N72: ='PR2 Allow Outturn Revised Capex'!N83 -> 0 | O72: ='PR2 Allow Outturn Revised Capex'!O83 -> -39076517.57 | P72: ='PR2 Allow Outturn Revised Capex'!P83 -> 12761355.03 | Q72: 322677179.4 | S72: 1 | U72: 0 | V72: 327624888.3 | W72: 5174843.263 | X72: 0 | Y72: 5738088 | Z72: 0 | AA72: 0 | AB72: 10454522.37 | AC72: 0 | AD72: 0 | AE72: 0 | AF72: 0 | AG72: -39076517.57 | AH72: 12761355.03 | AI72: 322677179.4 | BT72: 0 | BU72: 287581846.4 | BV72: 0 | BW72: 0 | BX72: 2582139.6 | BY72: 0 | BZ72: 0 | CA72: 2240254.793 | CB72: 0 | CC72: 0 | CD72: 0 | CE72: 0 | CF72: -34300498.76 | CG72: 11201633.86 | CH72: =SUM(BT72:CG72) -> 269305375.9
A74: 2011 | C74: ='PR2 Allow Outturn Revised Capex'!C85 -> 0 | D74: ='PR2 Allow Outturn Revised Capex'!D85 -> 21952486.43 | E74: ='PR2 Allow Outturn Revised Capex'!E85 -> 0 | F74: ='PR2 Allow Outturn Revised Capex'!F85 -> 0 | G74: ='PR2 Allow Outturn Revised Capex'!G85 -> 0 | H74: ='PR2 Allow Outturn Revised Capex'!H85 -> 0 | I74: ='PR2 Allow Outturn Revised Capex'!I85 -> 0 | J74: ='PR2 Allow Outturn Revised Capex'!J85 -> 0 | K74: ='PR2 Allow Outturn Revised Capex'!K85 -> 0 | L74: ='PR2 Allow Outturn Revised Capex'!L85 -> 0 | M74: ='PR2 Allow Outturn Revised Capex'!M85 -> 0 | N74: ='PR2 Allow Outturn Revised Capex'!N85 -> 0 | O74: ='PR2 Allow Outturn Revised Capex'!O85 -> 0 | P74: ='PR2 Allow Outturn Revised Capex'!P85 -> 0 | Q74: 21952486.43 | S74: 1 | U74: 0 | V74: =+D74*$S74 -> 21952486.43 | W74: =+E74*$S74 -> 0 | X74: =+F74*$S74 -> 0 | Y74: =+G74*$S74 -> 0 | Z74: =+H74*$S74 -> 0 | AA74: =+I74*$S74 -> 0 | AB74: =+J74*$S74 -> 0 | AC74: =+K74*$S74 -> 0 | AD74: =+L74*$S74 -> 0 | AE74: =+M74*$S74 -> 0 | AF74: =+N74*$S74 -> 0 | AG74: =+O74*$S74 -> 0 | AH74: =+P74*$S74 -> 0 | AI74: 21952486.43 | BT74: =IF($CE$1=2011,U74,IF(AND(($CE$1-$A74)<BT$3,$A74<$CE$1),((BT$3-($CE$1-$A74))/BT$3*U74),0)) -> 0 | BU74: =IF($CE$1=2011,V74,IF(AND(($CE$1-$A74)<BU$3,$A74<$CE$1),((BU$3-($CE$1-$A74))/BU$3*V74),0)) -> 19513321.27 | BV74: 0 | BW74: 0 | BX74: 0 | BY74: 0 | BZ74: 0 | CA74: 0 | CB74: 0 | CC74: 0 | CD74: 0 | CE74: 0 | CF74: 0 | CG74: 0 | CH74: =SUM(BT74:CG74) -> 19513321.27
A76: 2011 | C76: =SUMIF(Capex!$C$37:$C$67,C$4,Capex!$E$37:$E$67)*1000000 -> 0 | D76: =SUMIF(Capex!$C$37:$C$67,D$4,Capex!$E$37:$E$67)*1000000 -> 360970351.7 | E76: =SUMIF(Capex!$C$37:$C$67,E$4,Capex!$E$37:$E$67)*1000000 -> 6772000 | F76: =SUMIF(Capex!$C$37:$C$67,F$4,Capex!$E$37:$E$67)*1000000 -> 0 | G76: =SUMIF(Capex!$C$37:$C$67,G$4,Capex!$E$37:$E$67)*1000000 -> 16061150.15 | H76: =SUMIF(Capex!$C$37:$C$67,H$4,Capex!$E$37:$E$67)*1000000 -> 356250 | I76: =SUMIF(Capex!$C$37:$C$67,I$4,Capex!$E$37:$E$67)*1000000 -> 6000000 | J76: =SUMIF(Capex!$C$37:$C$67,J$4,Capex!$E$37:$E$67)*1000000 -> 7040000 | K76: =SUMIF(Capex!$C$37:$C$67,K$4,Capex!$E$37:$E$67)*1000000 -> 3545250 | L76: =SUMIF(Capex!$C$37:$C$67,L$4,Capex!$E$37:$E$67)*1000000 -> 3580920 | M76: =SUMIF(Capex!$C$37:$C$67,M$4,Capex!$E$37:$E$67)*1000000 -> 0 | N76: =SUMIF(Capex!$C$37:$C$67,N$4,Capex!$E$37:$E$67)*1000000 -> 0 | O76: =SUMIF(Capex!$C$37:$C$67,O$4,Capex!$E$37:$E$67)*1000000 -> -49957720.29 | P76: =SUMIF(Capex!$C$37:$C$67,P$4,Capex!$E$37:$E$67)*1000000 -> 0 | Q76: 354368201.6 | S76: 1 | U76: 0 | V76: 360970351.7 | W76: 6772000 | X76: 0 | Y76: 16061150.15 | Z76: 356250 | AA76: 6000000 | AB76: 7040000 | AC76: 3545250 | AD76: 3580920 | AE76: 0 | AF76: 0 | AG76: -49957720.29 | AH76: 0 | AI76: 354368201.6 | BT76: 0 | BU76: =IF(AND(($CE$1-$A76)<(BU$3+1),$A76<$CE$1),((BU$3-($CE$1-$A76)+0.5)/BU$3*V76),0) -> 324873316.6 | BV76: =IF(AND(($CE$1-$A76)<(BV$3+1),$A76<$CE$1),((BV$3-($CE$1-$A76)+0.5)/BV$3*W76),0) -> 677200 | BW76: =IF(AND(($CE$1-$A76)<(BW$3+1),$A76<$CE$1),((BW$3-($CE$1-$A76)+0.5)/BW$3*X76),0) -> 0 | BX76: =IF(AND(($CE$1-$A76)<(BX$3+1),$A76<$CE$1),((BX$3-($CE$1-$A76)+0.5)/BX$3*Y76),0) -> 8833632.58 | BY76: =IF(AND(($CE$1-$A76)<(BY$3+1),$A76<$CE$1),((BY$3-($CE$1-$A76)+0.5)/BY$3*Z76),0) -> 35625 | BZ76: =IF(AND(($CE$1-$A76)<(BZ$3+1),$A76<$CE$1),((BZ$3-($CE$1-$A76)+0.5)/BZ$3*AA76),0) -> 4200000 | CA76: =IF(AND(($CE$1-$A76)<(CA$3+1),$A76<$CE$1),((CA$3-($CE$1-$A76)+0.5)/CA$3*AB76),0) -> 2514285.714 | CB76: =IF(AND(($CE$1-$A76)<(CB$3+1),$A76<$CE$1),((CB$3-($CE$1-$A76)+0.5)/CB$3*AC76),0) -> 3226177.5 | CC76: =IF(AND(($CE$1-$A76)<(CC$3+1),$A76<$CE$1),((CC$3-($CE$1-$A76)+0.5)/CC$3*AD76),0) -> 358092 | CD76: =IF(AND(($CE$1-$A76)<(CD$3+1),$A76<$CE$1),((CD$3-($CE$1-$A76)+0.5)/CD$3*AE76),0) -> 0 | CE76: =IF(AND(($CE$1-$A76)<(CE$3+1),$A76<$CE$1),((CE$3-($CE$1-$A76)+0.5)/CE$3*AF76),0) -> 0 | CF76: =IF(AND(($CE$1-$A76)<(CF$3+1),$A76<$CE$1),((CF$3-($CE$1-$A76)+0.5)/CF$3*AG76),0) -> -44961948.26 | CG76: =IF(AND(($CE$1-$A76)<(CG$3+1),$A76<$CE$1),((CG$3-($CE$1-$A76)+0.5)/CG$3*AH76),0) -> 0 | CH76: 299756381.1
A77: 2012 | C77: =SUMIF(Capex!$C$37:$C$67,C$4,Capex!$F$37:$F$67)*1000000 -> 0 | D77: =SUMIF(Capex!$C$37:$C$67,D$4,Capex!$F$37:$F$67)*1000000 -> 391921954.6 | E77: =SUMIF(Capex!$C$37:$C$67,E$4,Capex!$F$37:$F$67)*1000000 -> 6682000 | F77: =SUMIF(Capex!$C$37:$C$67,F$4,Capex!$F$37:$F$67)*1000000 -> 2500000 | G77: =SUMIF(Capex!$C$37:$C$67,G$4,Capex!$F$37:$F$67)*1000000 -> 21950572.2 | H77: =SUMIF(Capex!$C$37:$C$67,H$4,Capex!$F$37:$F$67)*1000000 -> 285000 | I77: =SUMIF(Capex!$C$37:$C$67,I$4,Capex!$F$37:$F$67)*1000000 -> 5500000 | J77: =SUMIF(Capex!$C$37:$C$67,J$4,Capex!$F$37:$F$67)*1000000 -> 7040000 | K77: =SUMIF(Capex!$C$37:$C$67,K$4,Capex!$F$37:$F$67)*1000000 -> 3545250 | L77: =SUMIF(Capex!$C$37:$C$67,L$4,Capex!$F$37:$F$67)*1000000 -> 3398640 | M77: =SUMIF(Capex!$C$37:$C$67,M$4,Capex!$F$37:$F$67)*1000000 -> 0 | N77: =SUMIF(Capex!$C$37:$C$67,N$4,Capex!$F$37:$F$67)*1000000 -> 0 | O77: =SUMIF(Capex!$C$37:$C$67,O$4,Capex!$F$37:$F$67)*1000000 -> -84221445.54 | P77: =SUMIF(Capex!$C$37:$C$67,P$4,Capex!$F$37:$F$67)*1000000 -> 0 | Q77: 358601971.3 | S77: 1 | U77: 0 | V77: 391921954.6 | W77: 6682000 | X77: 2500000 | Y77: 21950572.2 | Z77: 285000 | AA77: 5500000 | AB77: 7040000 | AC77: 3545250 | AD77: 3398640 | AE77: 0 | AF77: 0 | AG77: -84221445.54 | AH77: 0 | AI77: 358601971.3 | BT77: 0 | BU77: 361439135.9 | BV77: 2004600 | BW77: 1250000 | BX77: 14267871.93 | BY77: 85500 | BZ77: 4216666.667 | CA77: 3520000 | CB77: 3297082.5 | CC77: 1019592 | CD77: 0 | CE77: 0 | CF77: -77670888.66 | CG77: 0 | CH77: 313429560.3
A78: 2013 | C78: =SUMIF(Capex!$C$37:$C$67,C$4,Capex!$G$37:$G$67)*1000000 -> 0 | D78: =SUMIF(Capex!$C$37:$C$67,D$4,Capex!$G$37:$G$67)*1000000 -> 383130949.2 | E78: =SUMIF(Capex!$C$37:$C$67,E$4,Capex!$G$37:$G$67)*1000000 -> 5772000 | F78: =SUMIF(Capex!$C$37:$C$67,F$4,Capex!$G$37:$G$67)*1000000 -> 8500000 | G78: =SUMIF(Capex!$C$37:$C$67,G$4,Capex!$G$37:$G$67)*1000000 -> 141121585.1 | H78: =SUMIF(Capex!$C$37:$C$67,H$4,Capex!$G$37:$G$67)*1000000 -> 285000 | I78: =SUMIF(Capex!$C$37:$C$67,I$4,Capex!$G$37:$G$67)*1000000 -> 0 | J78: =SUMIF(Capex!$C$37:$C$67,J$4,Capex!$G$37:$G$67)*1000000 -> 7040000 | K78: =SUMIF(Capex!$C$37:$C$67,K$4,Capex!$G$37:$G$67)*1000000 -> 3665250 | L78: =SUMIF(Capex!$C$37:$C$67,L$4,Capex!$G$37:$G$67)*1000000 -> 3128160 | M78: =SUMIF(Capex!$C$37:$C$67,M$4,Capex!$G$37:$G$67)*1000000 -> 0 | N78: =SUMIF(Capex!$C$37:$C$67,N$4,Capex!$G$37:$G$67)*1000000 -> 0 | O78: =SUMIF(Capex!$C$37:$C$67,O$4,Capex!$G$37:$G$67)*1000000 -> -77101874.8 | P78: =SUMIF(Capex!$C$37:$C$67,P$4,Capex!$G$37:$G$67)*1000000 -> 0 | Q78: 475541069.5 | S78: 1 | U78: 0 | V78: 383130949.2 | W78: 5772000 | X78: 8500000 | Y78: 141121585.1 | Z78: 285000 | AA78: 0 | AB78: 7040000 | AC78: 3665250 | AD78: 3128160 | AE78: 0 | AF78: 0 | AG78: -77101874.8 | AH78: 0 | AI78: 475541069.5 | BT78: 0 | BU78: 361845896.5 | BV78: 2886000 | BW78: 5464285.714 | BX78: 105841188.8 | BY78: 142500 | BZ78: 0 | CA78: 4525714.286 | CB78: 3481987.5 | CC78: 1564080 | CD78: 0 | CE78: 0 | CF78: -72818437.31 | CG78: 0 | CH78: 412933215.5
A79: 2014 | C79: =SUMIF(Capex!$C$37:$C$67,C$4,Capex!$H$37:$H$67)*1000000 -> 0 | D79: =SUMIF(Capex!$C$37:$C$67,D$4,Capex!$H$37:$H$67)*1000000 -> 367937962.7 | E79: =SUMIF(Capex!$C$37:$C$67,E$4,Capex!$H$37:$H$67)*1000000 -> 14272000 | F79: =SUMIF(Capex!$C$37:$C$67,F$4,Capex!$H$37:$H$67)*1000000 -> 3000000 | G79: =SUMIF(Capex!$C$37:$C$67,G$4,Capex!$H$37:$H$67)*1000000 -> 127660934.5 | H79: =SUMIF(Capex!$C$37:$C$67,H$4,Capex!$H$37:$H$67)*1000000 -> 285000 | I79: =SUMIF(Capex!$C$37:$C$67,I$4,Capex!$H$37:$H$67)*1000000 -> 0 | J79: =SUMIF(Capex!$C$37:$C$67,J$4,Capex!$H$37:$H$67)*1000000 -> 7040000 | K79: =SUMIF(Capex!$C$37:$C$67,K$4,Capex!$H$37:$H$67)*1000000 -> 53728674.49 | L79: =SUMIF(Capex!$C$37:$C$67,L$4,Capex!$H$37:$H$67)*1000000 -> 2822400 | M79: =SUMIF(Capex!$C$37:$C$67,M$4,Capex!$H$37:$H$67)*1000000 -> 0 | N79: =SUMIF(Capex!$C$37:$C$67,N$4,Capex!$H$37:$H$67)*1000000 -> 0 | O79: =SUMIF(Capex!$C$37:$C$67,O$4,Capex!$H$37:$H$67)*1000000 -> -63021884.84 | P79: =SUMIF(Capex!$C$37:$C$67,P$4,Capex!$H$37:$H$67)*1000000 -> 0 | Q79: 513725086.8 | S79: 1 | U79: 0 | V79: 367937962.7 | W79: 14272000 | X79: 3000000 | Y79: 127660934.5 | Z79: 285000 | AA79: 0 | AB79: 7040000 | AC79: 53728674.49 | AD79: 2822400 | AE79: 0 | AF79: 0 | AG79: -63021884.84 | AH79: 0 | AI79: 513725086.8 | BT79: 0 | BU79: 355673363.9 | BV79: 9990400 | BW79: 2357142.857 | BX79: 108511794.3 | BY79: 199500 | BZ79: 0 | CA79: 5531428.571 | CB79: 52116814.26 | CC79: 1975680 | CD79: 0 | CE79: 0 | CF79: -60921155.35 | CG79: 0 | CH79: 475434968.5
A80: 2015 | C80: =SUMIF(Capex!$C$37:$C$67,C$4,Capex!$I$37:$I$67)*1000000 -> 0 | D80: =SUMIF(Capex!$C$37:$C$67,D$4,Capex!$I$37:$I$67)*1000000 -> 418278513.5 | E80: =SUMIF(Capex!$C$37:$C$67,E$4,Capex!$I$37:$I$67)*1000000 -> 14972000 | F80: =SUMIF(Capex!$C$37:$C$67,F$4,Capex!$I$37:$I$67)*1000000 -> 2500000 | G80: =SUMIF(Capex!$C$37:$C$67,G$4,Capex!$I$37:$I$67)*1000000 -> 225758964.4 | H80: =SUMIF(Capex!$C$37:$C$67,H$4,Capex!$I$37:$I$67)*1000000 -> 213750 | I80: =SUMIF(Capex!$C$37:$C$67,I$4,Capex!$I$37:$I$67)*1000000 -> 0 | J80: =SUMIF(Capex!$C$37:$C$67,J$4,Capex!$I$37:$I$67)*1000000 -> 7040000 | K80: =SUMIF(Capex!$C$37:$C$67,K$4,Capex!$I$37:$I$67)*1000000 -> 53719429.92 | L80: =SUMIF(Capex!$C$37:$C$67,L$4,Capex!$I$37:$I$67)*1000000 -> 2748900 | M80: =SUMIF(Capex!$C$37:$C$67,M$4,Capex!$I$37:$I$67)*1000000 -> 0 | N80: =SUMIF(Capex!$C$37:$C$67,N$4,Capex!$I$37:$I$67)*1000000 -> 0 | O80: =SUMIF(Capex!$C$37:$C$67,O$4,Capex!$I$37:$I$67)*1000000 -> -114531460.3 | P80: =SUMIF(Capex!$C$37:$C$67,P$4,Capex!$I$37:$I$67)*1000000 -> 0 | Q80: 610700097.5 | S80: 1 | U80: 0 | V80: 418278513.5 | W80: 14972000 | X80: 2500000 | Y80: 225758964.4 | Z80: 213750 | AA80: 0 | AB80: 7040000 | AC80: 53719429.92 | AD80: 2748900 | AE80: 0 | AF80: 0 | AG80: -114531460.3 | AH80: 0 | AI80: 610700097.5 | BT80: 0 | BU80: 413630974.4 | BV80: 13474800 | BW80: 2321428.571 | BX80: 214471016.2 | BY80: 192375 | BZ80: 0 | CA80: 6537142.857 | CB80: 53182235.62 | CC80: 2474010 | CD80: 0 | CE80: 0 | CF80: -113258888.5 | CG80: 0 | CH80: 593025094.2
A81: 2016
BT82: =SUM(BT7:BT80) -> 108150913.4 | BU82: 6790445477 | BV82: 29033000 | BW82: 11448548.93 | BX82: 460148120.8 | BY82: 655500 | BZ82: 8416666.667 | CA82: 26246207.62 | CB82: 182663588.5 | CC82: 7391454 | CD82: 0 | CE82: -11711521.74 | CF82: -1391593410 | CG82: 72171191.14 | CH82: =SUM(CH7:CH80) -> 6293465736

Sheet System Data
B1: 2011 | C1: 2012 | D1: 2013 | E1: 2014 | F1: 2015
A3: Total regulated units distributed including 110kV (GWh) | B3: 23549.03817 | C3: 24083.20641 | D3: 24649.29303 | E3: 25338.06449 | F3: 26066.9169
A5: Growth (%) | C5: =C3/B3-1 -> 0.0226832296 | D5: 0.02350545084 | E5: 0.02794284829 | F5: 0.02876511799

Sheet Inflation
A1: Source: CSO 1947 base CPI table | N1: Average | O1: Factor to convert to 2009 money
B2: Mid- | C2: Mid- | D2: Mid- | E2: Mid- | F2: Mid- | G2: Mid- | H2: Mid- | I2: Mid- | J2: Mid- | K2: Mid- | L2: Mid- | M2: Mid- | N2: Annual
B3: Jan | C3: Feb | D3: Mar | E3: Apr | F3: May | G3: Jun | H3: Jul | I3: Aug | J3: Sep | K3: Oct | L3: Nov | M3: Dec | N3: Index
A5: 1947 | C5: - | F5: - | I5: 100 | J5: 100 | K5: 97 | L5: 97 | M5: 97 | N5: 100 | O5: =N$67/N5 -> 29.05316667
A6: 1948 | B6: 99 | C6: 99 | D6: 99 | E6: 100 | F6: 100 | G6: 100 | H6: 99 | I6: 99 | J6: 99 | K6: 99 | L6: 99 | M6: 99 | N6: =SUM(B6:M6)/12 -> 99.25 | O6: =N$67/N6 -> 29.27271201
A7: 1949 | B7: 99 | C7: 99 | D7: 99 | E7: 99 | F7: 99 | G7: 99 | H7: 100 | I7: 100 | J7: 100 | K7: 100 | L7: 100 | M7: 100 | N7: 99.5 | O7: 29.19916248
A8: 1950 | B8: 100 | C8: 100 | D8: 100 | E8: 102 | F8: 102 | G8: 102 | H8: 100 | I8: 100 | J8: 100 | K8: 102 | L8: 102 | M8: 102 | N8: 101 | O8: 28.76551155
A9: 1951 | B9: 103 | C9: 103 | D9: 103 | E9: 109 | F9: 109 | G9: 109 | H9: 111 | I9: 111 | J9: 111 | K9: 113 | L9: 113 | M9: 113 | N9: 109 | O9: 26.65428135
A10: 1952 | B10: 114 | C10: 114 | D10: 114 | E10: 115 | F10: 115 | G10: 115 | H10: 122 | I10: 122 | J10: 122 | K10: 123 | L10: 123 | M10: 123 | N10: 118.5 | O10: 24.51744023
A11: 1953 | B11: 123 | C11: 123 | D11: 123 | E11: 126 | F11: 126 | G11: 126 | H11: 125 | I11: 125 | J11: 125 | K11: 125.1 | L11: 125.1 | M11: 125.1 | N11: 124.775 | O11: 23.28444533
A12: 1954 | B12: 124.2 | C12: 124.2 | D12: 124.2 | E12: 124.4 | F12: 124.4 | G12: 124.4 | H12: 126.4 | I12: 126.4 | J12: 126.4 | K12: 125.6 | L12: 125.6 | M12: 125.6 | N12: =SUM(B12:M12)/12 -> 125.15 | O12: 23.21467572
A13: 1955 | B13: 126.5 | C13: 126.5 | D13: 126.5 | E13: 127.5 | F13: 127.5 | G13: 127.5 | H13: 128.4 | I13: 128.4 | J13: 128.4 | K13: 131.2 | L13: 131.2 | M13: 131.2 | N13: 128.4 | O13: 22.62707684
A14: 1956 | B14: 131.9 | C14: 131.9 | D14: 131.9 | E14: 134.4 | F14: 134.4 | G14: 134.4 | H14: 134.8 | I14: 134.8 | J14: 134.8 | K14: 134.4 | L14: 134.4 | M14: 134.4 | N14: 133.875 | O14: 21.7017118
A15: 1957 | B15: 134.6 | C15: 134.6 | D15: 134.6 | E15: 138 | F15: 138 | G15: 138 | H15: 142.6 | I15: 142.6 | J15: 142.6 | K15: 142.2 | L15: 142.2 | M15: 142.2 | N15: =SUM(B15:M15)/12 -> 139.35 | O15: 20.84906112
A16: 1958 | B16: 144.2 | C16: 144.2 | D16: 144.2 | E16: 145.8 | F16: 145.8 | G16: 145.8 | H16: 146.1 | I16: 146.1 | J16: 146.1 | K16: 146.1 | L16: 146.1 | M16: 146.1 | N16: 145.55 | O16: 19.96095271
A17: 1959 | B17: 147.1 | C17: 147.1 | D17: 147.1 | E17: 147 | F17: 147 | G17: 147 | H17: 144.5 | I17: 144.5 | J17: 144.5 | K17: 143.6 | L17: 143.6 | M17: 143.6 | N17: 145.55 | O17: 19.96095271
A18: 1960 | B18: 144.2 | C18: 144.2 | D18: 144.2 | E18: 146.5 | F18: 146.5 | G18: 146.5 | H18: 146.5 | I18: 146.5 | J18: 146.5 | K18: 147.6 | L18: 147.6 | M18: 147.6 | N18: 146.2 | O18: 19.87220702
A19: 1961 | B19: 148.6 | C19: 148.6 | D19: 148.6 | E19: 150.4 | F19: 150.4 | G19: 150.4 | H19: 150.6 | I19: 150.6 | J19: 150.6 | K19: 151.4 | L19: 151.4 | M19: 151.4 | N19: 150.25 | O19: 19.33655019
A20: 1962 | B20: 154.1 | C20: 154.1 | D20: 154.1 | E20: 158.1 | F20: 158.1 | G20: 158.1 | H20: 157.4 | I20: 157.4 | J20: 157.4 | K20: 157 | L20: 157 | M20: 157 | N20: 156.65 | O20: 18.54654751
A21: 1963 | B21: 159.6 | C21: 159.6 | D21: 159.6 | E21: 159.2 | F21: 159.2 | G21: 159.2 | H21: 159.1 | I21: 159.1 | J21: 159.1 | K21: 164 | L21: 164 | M21: 164 | N21: 160.475 | O21: 18.10448149
A22: 1964 | B22: 164.9 | C22: 164.9 | D22: 164.9 | E22: 171.4 | F22: 171.4 | G22: 171.4 | H22: 173.5 | I22: 173.5 | J22: 173.5 | K22: 175.4 | L22: 175.4 | M22: 175.4 | N22: 171.3 | O22: 16.96040086
A23: 1965 | B23: 177.2 | C23: 177.2 | D23: 177.2 | E23: 180.4 | F23: 180.4 | G23: 180.4 | H23: 181 | I23: 181 | J23: 181 | K23: 181 | L23: 181 | M23: 181 | N23: 179.9 | O23: 16.14962016
A24: 1966 | B24: 181.1 | C24: 181.1 | D24: 181.1 | E24: 184.5 | F24: 184.5 | G24: 184.5 | H24: 187.5 | I24: 187.5 | J24: 187.5 | K24: 188 | L24: 188 | M24: 188 | N24: 185.275 | O24: 15.68110466
A25: 1967 | B25: 188.2 | C25: 188.2 | D25: 188.2 | E25: 191.5 | F25: 191.5 | G25: 191.5 | H25: 191.6 | I25: 191.6 | J25: 191.6 | K25: 192.9 | L25: 192.9 | M25: 192.9 | N25: 191.05 | O25: 15.20710111
A26: 1968 | B26: 196.9 | C26: 196.9 | D26: 196.9 | E26: 200 | F26: 200 | G26: 200 | H26: 200.4 | I26: 200.4 | J26: 200.4 | K26: 203.4 | L26: 203.4 | M26: 203.4 | N26: 200.175 | O26: 14.51388369
A27: 1969 | B27: 210.1 | C27: 210.1 | D27: 210.1 | E27: 213.7 | F27: 213.7 | G27: 213.7 | H27: 217.2 | I27: 217.2 | J27: 217.2 | K27: 218.8 | L27: 218.8 | M27: 218.8 | N27: 214.95 | O27: 13.51624409
A28: 1970 | B28: 222.5 | C28: 222.5 | D28: 222.5 | E28: 231.6 | F28: 231.6 | G28: 231.6 | H28: 235.5 | I28: 235.5 | J28: 235.5 | K28: 240.8 | L28: 240.8 | M28: 240.8 | N28: 232.6 | O28: 12.49061336
A29: 1971 | B29: 244.7 | C29: 244.7 | D29: 244.7 | E29: 251.4 | F29: 251.4 | G29: 251.4 | H29: 256.3 | I29: 256.3 | J29: 256.3 | K29: 261.5 | L29: 261.5 | M29: 261.5 | N29: 253.475 | O29: 11.46194562
A30: 1972 | B30: 267.4 | C30: 267.4 | D30: 267.4 | E30: 271.5 | F30: 271.5 | G30: 271.5 | H30: 279 | I30: 279 | J30: 279 | K30: 283.1 | L30: 283.1 | M30: 283.1 | N30: 275.25 | O30: 10.55519225
A31: 1973 | B31: 294.3 | C31: 294.3 | D31: 294.3 | E31: 303.2 | F31: 303.2 | G31: 303.2 | H31: 310.4 | I31: 310.4 | J31: 310.4 | K31: 318.9 | L31: 318.9 | M31: 318.9 | N31: 306.7 | O31: 9.47282904
A32: 1974 | B32: 333.9 | C32: 333.9 | D32: 333.9 | E32: 352.4 | F32: 352.4 | G32: 352.4 | H32: 365.9 | I32: 365.9 | J32: 365.9 | K32: 382.8 | L32: 382.8 | M32: 382.8 | N32: 358.75 | O32: 8.09844367
A33: 1975 | B33: 413.5 | C33: 413.5 | D33: 413.5 | E33: 438.7 | F33: 438.7 | G33: 438.7 | H33: 435.2 | I33: 435.2 | J33: 435.2 | K33: 447.2 | L33: 447.2 | M33: 447.2 | N33: 433.65 | O33: 6.699681002
A34: 1976 | B34: 479.9 | C34: 479.9 | D34: 479.9 | E34: 509.8 | F34: 509.8 | G34: 509.8 | H34: 517.4 | I34: 517.4 | J34: 517.4 | K34: 539.3 | L34: 539.3 | M34: 539.3 | N34: 511.6 | O34: 5.678883242
A35: 1977 | B35: 559.9 | C35: 559.9 | D35: 559.9 | E35: 580.9 | F35: 580.9 | G35: 580.9 | H35: 587.2 | I35: 587.2 | J35: 587.2 | K35: 597.5 | L35: 597.5 | M35: 597.5 | N35: 581.375 | O35: 4.997319573
A36: 1978 | B36: 606 | C36: 606 | D36: 606 | E36: 616.7 | F36: 616.7 | G36: 616.7 | H36: 635.5 | I36: 635.5 | J36: 635.5 | K36: 644.9 | L36: 644.9 | M36: 644.9 | N36: 625.775 | O36: 4.642749657
A37: 1979 | B37: 671.7 | C37: 671.7 | D37: 671.7 | E37: 693.2 | F37: 693.2 | G37: 693.2 | H37: 721.8 | I37: 721.8 | J37: 721.8 | K37: 747.8 | L37: 747.8 | M37: 747.8 | N37: 708.625 | O37: =N$67/N37 -> 4.099935321
A38: 1980 | B38: 775.9 | C38: 775.9 | D38: 775.9 | E38: 833.2 | F38: 833.2 | G38: 833.2 | H38: 857.8 | I38: 857.8 | J38: 857.8 | K38: 884.2 | L38: 884.2 | M38: 884.2 | N38: 837.775 | O38: 3.467896114
A39: 1981 | B39: 938.7 | C39: 938.7 | D39: 938.7 | E39: 975.4 | F39: 975.4 | G39: 975.4 | H39: 1030.4 | I39: 1030.4 | J39: 1030.4 | K39: 1090.3 | L39: 1090.3 | M39: 1090.3 | N39: 1008.7 | O39: 2.880258418
A40: 1982 | B40: 1115.8 | C40: 1115.8 | D40: 1115.8 | E40: 1180.2 | F40: 1180.2 | G40: 1180.2 | H40: 1205.3 | I40: 1205.3 | J40: 1205.3 | K40: 1224.5 | L40: 1224.5 | M40: 1224.5 | N40: 1181.45 | O40: 2.459110979
A41: 1983 | B41: 1255.1 | C41: 1255.1 | D41: 1255.1 | E41: 1289.4 | F41: 1289.4 | G41: 1289.4 | H41: 1326.1 | I41: 1326.1 | J41: 1326.1 | K41: 1350.6 | L41: 1350.6 | M41: 1350.6 | N41: 1305.3 | O41: 2.225784622
A42: 1984 | B42: 1382.5 | C42: 1382.5 | D42: 1382.5 | E42: 1414.3 | F42: 1414.3 | G42: 1414.3 | H42: 1431.4 | I42: 1431.4 | J42: 1431.4 | K42: 1441.2 | L42: 1441.2 | M42: 1441.2 | N42: 1417.35 | O42: 2.049823027
A43: 1985 | B43: 1468.2 | C43: 1468.2 | D43: 1468.2 | E43: 1487.8 | F43: 1487.8 | G43: 1487.8 | H43: 1509.8 | I43: 1509.8 | J43: 1509.8 | K43: 1512.2 | L43: 1512.2 | M43: 1512.2 | N43: 1494.5 | O43: 1.944005799
A44: 1986 | B44: 1535.5 | C44: 1535.5 | D44: 1535.5 | E44: 1553.9 | F44: 1553.9 | G44: 1553.9 | H44: 1556.3 | I44: 1556.3 | J44: 1556.3 | K44: 1560 | L44: 1560 | M44: 1560 | N44: 1551.425 | O44: 1.872676196
A45: 1987 | B45: 1588.2 | C45: 1588.2 | D45: 1588.2 | E45: 1598 | F45: 1598 | G45: 1598 | H45: 1606.5 | I45: 1606.5 | J45: 1606.5 | K45: 1607.8 | L45: 1607.8 | M45: 1607.8 | N45: 1600.125 | O45: 1.815681067
A46: 1988 | B46: 1618.8 | C46: 1618.8 | D46: 1618.8 | E46: 1627.4 | F46: 1627.4 | G46: 1627.4 | H46: 1640.8 | I46: 1640.8 | J46: 1640.8 | K46: 1650.6 | L46: 1650.6 | M46: 1650.6 | N46: 1634.4 | O46: 1.777604422
A47: 1989 | B47: 1672.7 | C47: 1672.7 | D47: 1672.7 | E47: 1689.8 | F47: 1689.8 | G47: 1689.8 | H47: 1714.3 | I47: 1714.3 | J47: 1714.3 | K47: 1727.8 | L47: 1727.8 | M47: 1727.8 | N47: 1701.15 | O47: 1.707854491
A48: 1990 | B48: 1743.3 | C48: 1743.3 | D48: 1743.3 | E48: 1748.5 | F48: 1748.5 | G48: 1748.5 | H48: 1764 | I48: 1764 | J48: 1764 | K48: 1774.4 | L48: 1774.4 | M48: 1774.4 | N48: 1757.55 | O48: 1.653049226
A49: 1991 | B49: 1788.2 | C49: 1788.2 | D49: 1788.2 | E49: 1802.1 | F49: 1802.1 | G49: 1802.1 | H49: 1826.2 | I49: 1826.2 | J49: 1826.2 | K49: 1838.3 | L49: 1838.3 | M49: 1838.3 | N49: 1813.7 | O49: 1.601872783
A50: 1992 | B50: 1853.9 | C50: 1853.9 | D50: 1853.9 | E50: 1867.7 | F50: 1867.7 | G50: 1867.7 | H50: 1878.1 | I50: 1878.1 | J50: 1878.1 | K50: 1881.5 | L50: 1881.5 | M50: 1881.5 | N50: 1870.3 | O50: 1.553396068
A51: 1993 | B51: 1888.4 | C51: 1888.4 | D51: 1888.4 | E51: 1885 | F51: 1885 | G51: 1885 | H51: 1904 | I51: 1904 | J51: 1904 | K51: 1909.2 | L51: 1909.2 | M51: 1909.2 | N51: 1896.65 | O51: 1.531814867
A52: 1994 | B52: 1921.3 | C52: 1921.3 | D52: 1921.3 | E52: 1936.8 | F52: 1936.8 | G52: 1936.8 | H52: 1952.4 | I52: 1952.4 | J52: 1952.4 | K52: 1954.1 | L52: 1954.1 | M52: 1954.1 | N52: 1941.15 | O52: 1.496698692
A53: 1995 | B53: 1969.6 | C53: 1969.6 | D53: 1969.6 | E53: 1990.4 | F53: 1990.4 | G53: 1990.4 | H53: 1999 | I53: 1999 | J53: 1999 | K53: 2000.7 | L53: 2000.7 | M53: 2000.7 | N53: 1989.925 | O53: 1.46001315
A54: 1996 | B54: 2009.4 | C54: 2009.4 | D54: 2009.4 | E54: 2018 | F54: 2018 | G54: 2018 | H54: 2028.4 | I54: 2028.4 | J54: 2028.4 | K54: 2038.8 | L54: 2038.8 | M54: 2038.8 | N54: 2023.65 | O54: 1.435681401
A55: 1997 | B55: 2028.6 | C55: 2040.8 | D55: 2042.9 | E55: 2044.9 | F55: 2049 | G55: 2055.1 | H55: 2053.1 | I55: 2049 | J55: 2059.2 | K55: 2063.3 | L55: 2071.4 | M55: 2077.5 | N55: 2052.9 | O55: 1.415225616
A56: 1998 | B56: 2065.3 | C56: 2075.5 | D56: 2085.7 | E56: 2095.9 | F56: 2104 | G56: 2114.2 | H56: 2108.1 | I56: 2114.2 | J56: 2120.4 | K56: 2122.4 | L56: 2114.2 | M56: 2112.2 | N56: 2102.675 | O56: 1.381724074
A57: 1999 | B57: 2095.9 | C57: 2108.1 | D57: 2114.2 | E57: 2124.4 | F57: 2134.6 | G57: 2140.7 | H57: 2132.6 | I57: 2144.8 | J57: 2153 | K57: 2155 | L57: 2159.1 | M57: 2183.6 | N57: 2137.166667 | O57: 1.359424472
A58: 2000 | B58: 2179.5 | C58: 2197.8 | D58: 2212.1 | E58: 2228.4 | F58: 2244.7 | G58: 2259 | H58: 2265.1 | I58: 2277.3 | J58: 2285.5 | K58: 2301.8 | L58: 2310 | M58: 2312 | N58: 2256.1 | O58: 1.28776059
A59: 2001 | B59: 2293.7 | C59: 2314 | D59: 2332.4 | E59: 2352.8 | F59: 2367 | G59: 2379.3 | H59: 2373.2 | I59: 2381.3 | J59: 2391.5 | K59: 2399.7 | L59: 2397.6 | M59: 2409.9 | N59: 2366.033333 | O59: 1.227927192
A60: 2002 | B60: 2405.1 | C60: 2421.9 | D60: 2443.6 | E60: 2465.3 | F60: 2477.4 | G60: 2482.2 | H60: 2472.6 | I60: 2487 | J60: 2499.1 | K60: 2511.1 | L60: 2513.5 | M60: 2530.4 | N60: 2475.766667 | O60: 1.173501811
A61: 2003 | B61: 2520.8 | C61: 2544.9 | D61: 2564.1 | E61: 2571.4 | F61: 2569 | G61: 2569 | H61: 2549.7 | I61: 2566.5 | J61: 2571.4 | K61: 2569 | L61: 2569 | M61: 2578.6 | N61: 2561.95 | O61: 1.134025514
A62: 2004 | B62: 2566.5 | C62: 2588.2 | D62: 2597.9 | E62: 2607.5 | F62: 2612.3 | G62: 2626.8 | H62: 2619.6 | I62: 2634 | J62: 2636.4 | K62: 2638.8 | L62: 2643.7 | M62: 2646.1 | N62: 2618.15 | O62: 1.109683046
A63: 2005 | B63: 2624.4 | C63: 2646.1 | D63: 2653.3 | E63: 2665.3 | F63: 2675 | G63: 2682.2 | H63: 2682.2 | I63: 2694.3 | J63: 2716 | K63: 2718.4 | L63: 2713.5 | M63: 2711.1 | N63: =SUM(B63:M63)/12 -> 2681.816667 | O63: 1.08333903
A64: 2006 | B64: 2703.9 | C64: 2732.8 | D64: 2744.9 | E64: 2766.6 | F64: 2778.6 | G64: 2785.8 | H64: 2795.5 | I64: 2814.8 | J64: 2824.4 | K64: 2824.4 | L64: 2834 | M64: 2843.7 | N64: =SUM(B64:M64)/12 -> 2787.45 | O64: 1.042284764
A65: 2007 | B65: 2840.9 | C65: 2863.6 | D65: 2883.5 | E65: 2906.3 | F65: 2917.6 | G65: 2923.3 | H65: 2931.9 | I65: 2946.1 | J65: 2954.6 | K65: 2957.4 | L65: 2974.5 | M65: 2977.4 | N65: 2923.091667 | O65: 0.9939191096
A66: 2008 | B66: 2963.1 | C66: 3000.1 | D66: 3028.5 | E66: 3031.4 | F66: 3054.1 | G66: 3068.4 | H66: 3059.8 | I66: 3074 | J66: 3082.6 | K66: 3076.9 | L66: 3048.4 | M66: 3011.5 | N66: 3041.566667 | O66: 0.9552040067
A67: 2009 | B67: 2960.3 | C67: 2948.9 | D67: 2948.9 | E67: 2926.2 | F67: 2911.9 | G67: 2903.4 | H67: 2880.7 | I67: 2892 | J67: 2880.7 | K67: 2875 | L67: 2875 | M67: 2860.8 | N67: =SUM(B67:M67)/12 -> 2905.316667 | O67: 1

Sheet PR2 Allow Outturn Revised Capex
B1: New Business
B3: As per PR2 determination CER/05/138 (2004 prices) | L3: Total
F4: 2006 | G4: 2007 | H4: 2008 | I4: 2009 | J4: 2010
C5: (i) Commercial/Industrial Supplies | D5: [€m] | F5: 46.06520085 | G5: 46.06520085 | H5: 46.06520085 | I5: 46.06520085 | J5: 46.06520085 | L5: =SUM(F5:J5) -> 230.3260043
C6: (ii). New housing Schemes | D6: [€m] | F6: 45.06287525 | G6: 44.61224649 | H6: 41.30246014 | I6: 40.88943554 | J6: 40.48054118 | L6: 212.3475586
C7: (iv) Non-scheme Houses | D7: [€m] | F7: 46.25077505 | G7: 45.7882673 | H7: 42.36403523 | I7: 41.94039488 | J7: 41.52099093 | L7: 217.8644634
C8: (v) Whole Current Metering | D8: [€m] | F8: 6.245663452 | G8: 5.490783756 | H8: 3.692053676 | I8: 3.757607377 | J8: 3.793113569 | L8: 22.97922183
C9: New Business | D9: [€m] | F9: =SUM(F5:F8) -> 143.6245146 | G9: =SUM(G5:G8) -> 141.9564984 | H9: 133.4237499 | I9: 132.6526387 | J9: 131.8598465 | L9: =SUM(F9:J9) -> 683.5172481
B11: Allowed Unit prices (2004 prices)
C12: G1 | D12: [€] | F12: 1138.935568 | G12: 1126.308788 | H12: 1078.46055 | I12: 1066.923915 | J12: 1058.63088
C13: G2 | D13: [€] | F13: 2728.226294 | G13: 2698.763807 | H13: 2583.238555 | I13: 2550.886841 | J13: 2530.983377
C14: G3 | D14: [€] | F14: 4610 | G14: 4606.520085 | H14: 4606.520085 | I14: 4606.520085 | J14: 4606.520085
C15: Meters | D15: [€] | F15: 96.02114695 | G15: 86.72877789 | H15: 59.00259149 | I15: 59.92123596 | J15: 60.48744065
B17: Actual & Forecast Units | I17: Outturn as per 12/3/09 note revised | J17: Forecast as per DH01
C18: G1 | F18: 69406 | G18: 59297 | H18: 33800 | I18: 14224 | J18: 9000
C19: G2 | F19: 21959 | G19: 19802 | H19: 17596 | I19: 12257 | J19: 9867
C20: G3 | F20: 13762 | G20: 15301 | H20: 13654 | I20: 8370 | J20: 7473
F21: =SUM(F18:F20) -> 105127 | G21: =SUM(G18:G20) -> 94400 | H21: =SUM(H18:H20) -> 65050 | I21: =SUM(I18:I20) -> 34851 | J21: =SUM(J18:J20) -> 26340
C23: Percentage of G3 connections metered | D23: % | F23: 0.8 | G23: 0.8 | H23: 0.8 | I23: 0.8 | J23: 0.8
C25: Allowed Costs (2004 prices)
C27: G1 | D27: [€] | F27: =F12*F18 -> 79048962.03 | G27: 66786732.19 | H27: 36451966.58 | I27: 15175925.76 | J27: 9527677.916
C28: G2 | D28: [€] | F28: 59909121.19 | G28: 53440920.91 | H28: 45454665.62 | I28: 31266220.01 | J28: 24973212.98
C29: G3 | D29: [€] | F29: 63442820 | G29: 70484363.83 | H29: 62897425.25 | I29: 38556573.11 | J29: 34424524.6
C30: Meters | D30: [€] | F30: =(F18+F19)*F15+F20*F23*F15 -> 9830126.511 | G30: =(G18+G19)*G15+G20*G23*G15 -> 7921789.227 | H30: 3676994.3 | I30: 1988006.845 | J30: 1502834.658
C32: Total Allowed Costs (2004 prices) | D32: [€] | F32: =SUM(F27:F30) -> 212231029.7 | G32: =SUM(G27:G30) -> 198633806.2 | H32: =SUM(H27:H30) -> 148481051.7 | I32: 86986725.73 | J32: 70428250.15
C34: Diffence due to volumes | D34: [€] | F34: =F32-(F9*1000000) -> 68606515.13 | G34: =G32-(G9*1000000) -> 56677307.75 | H34: 15057301.84 | I34: -45665912.92 | J34: -61431596.39
C35: Percentage of customer contribution | D35: % | F35: 0.5 | G35: 0.5 | H35: 0.5 | I35: 0.5 | J35: 0.5
C36: Contribution (2004 prices) | D36: [€] | F36: =-F34*F35 -> -34303257.56 | G36: =-G34*G35 -> -28338653.87 | H36: -7528650.92 | I36: 22832956.46 | J36: 30715798.19
C38: Additional New Business (Nominal, 2010 in 2009 prices) | D38: [€] | F38: =F34*Inflation!N64/Inflation!N62 -> 73042885.47 | G38: =G34*Inflation!N65/Inflation!N62 -> 63278637.96 | H38: =H34*Inflation!N66/Inflation!N62 -> 17492423.03 | I38: =I34*Inflation!N67/Inflation!N62 -> -50674689.34 | J38: =J34*Inflation!N67/Inflation!N62 -> -68169601
C39: Additional Contribution (Nominal, 2010 in 2009 prices) | D39: [€] | F39: =-F38*F35 -> -36521442.73 | G39: =-G38*G35 -> -31639318.98 | H39: -8746211.517 | I39: 25337344.67 | J39: 34084800.5
B42: Additional Non-Network Capex
B43: Nominal Money, 2010 & 2011 in 2009 prices | F43: 2006 | G43: 2007 | H43: 2008 | I43: 2009 | J43: 2010 | K43: 2011
C44: Smart Metering Pilot (10 Years) | D44: [€] | F44: 0 | G44: =172000 -> 172000 | H44: =4100000 -> 4100000 | I44: =7730000 -> 7730000 | J44: =3300000 -> 3300000 | K44: 0
C45: IT Expenditure Associated with SEM (7 years) | D45: [€] | F45: 0 | G45: =5780000 -> 5780000 | H45: =56000 -> 56000 | I45: 0 | J45: 0 | K45: 0
C46: Market Enhancements Programme (7 years) | D46: [€] | F46: 0 | G46: =256000 -> 256000 | H46: =22000 -> 22000 | I46: 779685 | J46: 0 | K46: 0
B50: Additional Other Capex | F50: 2006 | G50: 2007 | H50: 2008 | I50: 2009 | J50: 2010 | K50: 2011
B51: Nominal Money, 2010 & 2011 in 2009 prices
C52: New Business (Allowed cost driver variations) | D52: [€] | F52: 0 | G52: 0 | H52: 0 | I52: 0 | J52: 0 | K52: 29800000
C53: Capex underspend | D53: [€] | F53: 0 | G53: 0 | H53: 0 | I53: 0 | J53: 0 | K53: -7847513.57
C54: Carrickmines Adjustment | D54: [€] | H54: -23810838.93
B57: Summary of Capex Adjustments
E58: Asset Categorisation | F58: 2006 | G58: 2007 | H58: 2008 | I58: 2009 | J58: 2010 | K58: 2011
C59: =C38 -> Additional New Business (Nominal, 2010 in 2009 prices) | D59: =D38 -> [€] | E59: HV/MV/LV Networks | F59: 73042885.47 | G59: 63278637.96 | H59: 17492423.03 | I59: -50674689.34 | J59: -68169601 | K59: 0
C60: =C39 -> Additional Contribution (Nominal, 2010 in 2009 prices) | D60: =D39 -> [€] | E60: Customer Contributions | F60: -36521442.73 | G60: -31639318.98 | H60: -8746211.517 | I60: 25337344.67 | J60: 34084800.5 | K60: 0
C61: =C44 -> Smart Metering Pilot (10 Years) | D61: =D44 -> [€] | E61: Office Equip,Telecoms & Smart Metering (10 Year) | F61: 0 | G61: 172000 | H61: 4100000 | I61: 7730000 | J61: 3300000 | K61: 0
C62: =C45 -> IT Expenditure Associated with SEM (7 years) | D62: [€] | E62: IT (7 year) | F62: 0 | G62: 5780000 | H62: 56000 | I62: 0 | J62: 0 | K62: 0
C63: Market Enhancements Programme (7 years) | D63: [€] | E63: IT (7 year) | F63: 0 | G63: 256000 | H63: 22000 | I63: 779685 | J63: 0 | K63: 0
C64: =C52 -> New Business (Allowed cost driver variations) | D64: =D52 -> [€] | E64: HV/MV/LV Networks | F64: 0 | G64: 0 | H64: 0 | I64: 0 | J64: 0 | K64: 29800000
C65: =C53 -> Capex underspend | D65: [€] | E65: HV/MV/LV Networks | F65: 0 | G65: 0 | H65: 0 | I65: 0 | J65: 0 | K65: -7847513.57
C66: Carrickmines Adjustment | D66: [€] | E66: Premises | F66: 0 | G66: 0 | H66: -23810838.93 | I66: 0 | J66: 0 | K66: 0
A69: Capitalised Year | C69: ='2011 to 2015 Distribution RAB'!C4 -> 110kV Networks | D69: ='2011 to 2015 Distribution RAB'!D4 -> HV/MV/LV Networks | E69: ='2011 to 2015 Distribution RAB'!E4 -> IT (5 year) | F69: ='2011 to 2015 Distribution RAB'!F4 -> IT (7 year) | G69: ='2011 to 2015 Distribution RAB'!G4 -> Office Equip,Telecoms & Smart Metering (10 Year) | H69: ='2011 to 2015 Distribution RAB'!H4 -> F&F | I69: ='2011 to 2015 Distribution RAB'!I4 -> Scada Tel (15 years) | J69: ='2011 to 2015 Distribution RAB'!J4 -> Vehicles | K69: ='2011 to 2015 Distribution RAB'!K4 -> Premises | L69: ='2011 to 2015 Distribution RAB'!L4 -> Tools | M69: ='2011 to 2015 Distribution RAB'!M4 -> Telecoms (15 Years) | N69: ='2011 to 2015 Distribution RAB'!N4 -> Grants | O69: ='2011 to 2015 Distribution RAB'!O4 -> Customer Contributions | P69: ='2011 to 2015 Distribution RAB'!P4 -> Other | Q69: ='2011 to 2015 Distribution RAB'!Q4 -> Total
A70: Allowed as per PR2 determination in Nominal Prices to 2009, 2010 in 2009 prices
A71: 2006 | C71: 0 | D71: 487210245.1 | E71: 14041734.52 | F71: 0 | G71: 1264095.582 | H71: 0 | I71: 0 | J71: 22239946.02 | K71: 0 | L71: 0 | M71: 0 | N71: 0 | O71: -94474328.22 | P71: 17354022.88 | Q71: =SUM(C71:P71) -> 447635715.9
A72: 2007 | C72: 0 | D72: 498591983.3 | E72: 18579726.24 | F72: 0 | G72: 2574074.767 | H72: 0 | I72: 0 | J72: 16912924.34 | K72: 0 | L72: 0 | M72: 0 | N72: 0 | O72: -149110722.1 | P72: 14625785.7 | Q72: =SUM(C72:P72) -> 402173772.3
A73: 2008 | C73: 0 | D73: 498195594 | E73: 9024899.978 | F73: 0 | G73: 2593730.775 | H73: 0 | I73: 0 | J73: 16812114.17 | K73: 0 | L73: 0 | M73: 0 | N73: 0 | O73: -129989355.2 | P73: 15450924 | Q73: 412087907.6
A74: 2009 | C74: 0 | D74: 445375754.3 | E74: 6930379.422 | F74: 0 | G74: 2460639.839 | H74: 0 | I74: 0 | J74: 19283339.63 | K74: 0 | L74: 0 | M74: 0 | N74: 0 | O74: -124091956.2 | P74: 12872323.33 | Q74: 362830480.3
A75: 2010 | C75: 0 | D75: 395794489.3 | E75: 5174843.263 | F75: 0 | G75: 2438088 | H75: 0 | I75: 0 | J75: 10454522.37 | K75: 0 | L75: 0 | M75: 0 | N75: 0 | O75: -73161318.07 | P75: 12761355.03 | Q75: 353461979.9
A78: Adjusted capex in Nominal Prices to 2009, 2010 & 2011 in 2009 prices
A79: 2006 | C79: =C71+SUMIF($E$59:$E$66,C$69,$F$59:$F$66) -> 0 | D79: =D71+SUMIF($E$59:$E$66,D$69,$F$59:$F$66) -> 560253130.6 | E79: 14041734.52 | F79: 0 | G79: 1264095.582 | H79: 0 | I79: 0 | J79: 22239946.02 | K79: 0 | L79: 0 | M79: 0 | N79: 0 | O79: -130995771 | P79: 17354022.88 | Q79: =SUM(C79:P79) -> 484157158.6
A80: 2007 | C80: =C72+SUMIF($E$59:$E$66,C$69,$G$59:$G$66) -> 0 | D80: =D72+SUMIF($E$59:$E$66,D$69,$G$59:$G$66) -> 561870621.3 | E80: 18579726.24 | F80: 6036000 | G80: 2746074.767 | H80: 0 | I80: 0 | J80: 16912924.34 | K80: 0 | L80: 0 | M80: 0 | N80: 0 | O80: -180750041.1 | P80: 14625785.7 | Q80: =SUM(C80:P80) -> 440021091.3
A81: 2008 | C81: =C73+SUMIF($E$59:$E$66,C$69,$H$59:$H$66) -> 0 | D81: =D73+SUMIF($E$59:$E$66,D$69,$H$59:$H$66) -> 515688017 | E81: 9024899.978 | F81: 78000 | G81: 6693730.775 | H81: 0 | I81: 0 | J81: 16812114.17 | K81: -23810838.93 | L81: 0 | M81: 0 | N81: 0 | O81: -138735566.8 | P81: 15450924 | Q81: 401201280.2
A82: 2009 | C82: =C74+SUMIF($E$59:$E$66,C$69,$I$59:$I$66) -> 0 | D82: =D74+SUMIF($E$59:$E$66,D$69,$I$59:$I$66) -> 394701065 | E82: 6930379.422 | F82: 779685 | G82: 10190639.84 | H82: 0 | I82: 0 | J82: 19283339.63 | K82: 0 | L82: 0 | M82: 0 | N82: 0 | O82: -98754611.57 | P82: 12872323.33 | Q82: 346002820.6
A83: 2010 | C83: =C75+SUMIF($E$59:$E$66,C$69,$J$59:$J$66) -> 0 | D83: =D75+SUMIF($E$59:$E$66,D$69,$J$59:$J$66) -> 327624888.3 | E83: 5174843.263 | F83: 0 | G83: 5738088 | H83: 0 | I83: 0 | J83: 10454522.37 | K83: 0 | L83: 0 | M83: 0 | N83: 0 | O83: -39076517.57 | P83: 12761355.03 | Q83: 322677179.4
A85: 2011 | C85: =SUMIF($E$59:$E$66,C$69,$K$59:$K$66) -> 0 | D85: =SUMIF($E$59:$E$66,D$69,$K$59:$K$66) -> 21952486.43 | E85: 0 | F85: 0 | G85: 0 | H85: 0 | I85: 0 | J85: 0 | K85: 0 | L85: 0 | M85: 0 | N85: 0 | O85: 0 | P85: 0 | Q85: 21952486.43

Sheet PR2 Adjustments
A1: PR2 Adjustments
A2: 2009 Money | C2: 2011 | D2: 2012 | E2: 2013 | F2: 2014 | G2: 2015 | I2: Total
A3: Revenue associated with PR2 Capex underspend | B3: [€] | C3: -1101512.825
A4: Revenue associated with error in calculation of RAB | B4: [€] | C4: -6752764.794
A5: PR2 K factors | B5: [€] | C5: =C9/((1+C11)*(1+C12)) -> 126302497.7
A6: Deferral | B6: [€] | C6: -50000000 | D6: =-C6*(1+RoR) -> 52975000
A7: Total | B7: [€] | C7: =SUM(C3:C6) -> 68448220.05 | D7: =SUM(D3:D6) -> 52975000 | E7: =SUM(E3:E6) -> 0 | F7: =SUM(F3:F6) -> 0 | G7: =SUM(G3:G6) -> 0 | I7: =SUM(C7:G7) -> 121423220
A9: PR2 K factors (2011 money) | B9: [€] | C9: =109030000+16000000 -> 125030000
A11: 2010 HICP estimate | C11: -0.015
A12: 2011 HICP estmiate | C12: 0.005

Sheet Error check
A1: Errors
C2: No of Errors | D2: =COUNTIF(D4:D16,"No") -> 0
A4: 1 | B4: NPV of Revenue equals NPV of costs | D4: =IF(INT(NPV_of_Costs_Benefits)=INT(NPV_of_Revenue),"Yes","No") -> Yes
A5: 2 | B5: Capex input equals capex in RAB | D5: =IF((Capex!K70*1000000)=SUM('2011 to 2015 Distribution RAB'!Q76:Q80),"Yes","No") -> Yes
A6: 3 | B6: Total Deferals/Clawback input equals Deferals/Clawback in Revenue calculations | D6: =IF('PR2 Adjustments'!I7=Revenue!J6,"Yes","No") -> Yes

Sheet Nominal Asset Base
B1: Historic Cost | S1: Indexed Gross Asset Value | AK1: Indexed Net Book Value (CAV 2000 using ESB asset lifes) | AW1: Opening Asset Base | AX1: 2001 | BC1: Indexed Net Book Value (CAV 2005 applying FRS 15 and CER PR1 asset lifes) | BN1: Opening Asset Base | BO1: 2006 | BT1: Indexed Net Book Value | CD1: Opening Asset Base | CE1: 2016
V2: 40
AK3: Asset Life | AL3: 30 | AM3: 25 | AN3: 5 | AO3: 7 | AP3: 10 | AQ3: 5 | AR3: 15 | AS3: 7 | AT3: 50 | AU3: 5 | AV3: 15 | AW3: 25 | AX3: 25 | AY3: 40 | BB3: Asset Life | BC3: 40 | BD3: 40 | BE3: 5 | BF3: 7 | BG3: 10 | BH3: 5 | BI3: 15 | BJ3: 7 | BK3: 50 | BL3: 5 | BM3: 15 | BN3: 40 | BO3: 40 | BP3: 40 | BS3: Asset Life | BT3: 45 | BU3: 45 | BV3: 5 | BW3: 7 | BX3: 10 | BY3: 5 | BZ3: 15 | CA3: 7 | CB3: 50 | CC3: 5 | CD3: 15 | CE3: 45 | CF3: 45 | CG3: 45
A4: Capitalised Year | C4: 110kV Networks | D4: HV/MV/LV Networks | E4: IT (5 year) | F4: IT (7 year) | G4: Office Equip,Telecoms & Smart Metering (10 Year) | H4: F&F | I4: Scada Tel (15 years) | J4: Vehicles | K4: Premises | L4: Tools | M4: Telecoms (15 Years) | N4: Grants | O4: Customer Contributions | P4: Other | Q4: Total | S4: Indexation | U4: =C4 -> 110kV Networks | V4: =D4 -> HV/MV/LV Networks | W4: =E4 -> IT (5 year) | X4: =F4 -> IT (7 year) | Y4: =G4 -> Office Equip,Telecoms & Smart Metering (10 Year) | Z4: F&F | AA4: Scada Tel (15 years) | AB4: Vehicles | AC4: Premises | AD4: Tools | AE4: Telecoms (15 Years) | AF4: Grants | AG4: Customer Contributions | AH4: Other | AI4: Total | AL4: =C4 -> 110kV Networks | AM4: =D4 -> HV/MV/LV Networks | AN4: IT (5 year) | AO4: IT (7 year) | AP4: Office Equip,Telecoms & Smart Metering (10 Year) | AQ4: F&F | AR4: Scada Tel (15 years) | AS4: Vehicles | AT4: Premises | AU4: Tools | AV4: Telecoms (15 Years) | AW4: Grants | AX4: Customer Contributions | AY4: Other | AZ4: Total | BC4: =C4 -> 110kV Networks | BD4: =D4 -> HV/MV/LV Networks | BE4: IT (5 year) | BF4: IT (7 year) | BG4: Office Equip,Telecoms & Smart Metering (10 Year) | BH4: F&F | BI4: Scada Tel (15 years) | BJ4: Vehicles | BK4: Premises | BL4: Tools | BM4: Telecoms (15 Years) | BN4: Grants | BO4: Customer Contributions | BP4: Other | BQ4: Total | BT4: =C4 -> 110kV Networks | BU4: =D4 -> HV/MV/LV Networks | BV4: IT (5 year) | BW4: IT (7 year) | BX4: Office Equip,Telecoms & Smart Metering (10 Year) | BY4: F&F | BZ4: Scada Tel (15 years) | CA4: Vehicles | CB4: Premises | CC4: Tools | CD4: Telecoms (15 Years) | CE4: Grants | CF4: Customer Contributions | CG4: Other | CH4: Total
D5: € | E5: € | F5: € | G5: € | H5: € | I5: € | J5: € | K5: € | L5: € | M5: € | N5: € | O5: € | Q5: € | V5: € | W5: € | Y5: € | Z5: € | AA5: € | AB5: € | AC5: € | AD5: € | AE5: € | AF5: € | AG5: € | AI5: € | AL5: € | AM5: € | AN5: € | AP5: € | AQ5: € | AR5: € | AS5: € | AT5: € | AU5: € | AV5: € | AW5: € | AX5: € | AY5: € | AZ5: € | BC5: € | BD5: € | BE5: € | BG5: € | BH5: € | BI5: € | BJ5: € | BK5: € | BL5: € | BM5: € | BN5: € | BO5: € | BP5: € | BQ5: € | BT5: € | BU5: € | BV5: € | BX5: € | BY5: € | BZ5: € | CA5: € | CB5: € | CC5: € | CD5: € | CE5: € | CF5: € | CG5: € | CH5: €
A7: 1950 | C7: ='2011 to 2015 Distribution RAB'!C7 -> 0 | D7: ='2011 to 2015 Distribution RAB'!D7 -> 1040673.3 | E7: ='2011 to 2015 Distribution RAB'!E7 -> 0 | F7: ='2011 to 2015 Distribution RAB'!F7 -> 0 | G7: ='2011 to 2015 Distribution RAB'!G7 -> 0 | H7: ='2011 to 2015 Distribution RAB'!H7 -> 0 | I7: ='2011 to 2015 Distribution RAB'!I7 -> 0 | J7: ='2011 to 2015 Distribution RAB'!J7 -> 0 | K7: ='2011 to 2015 Distribution RAB'!K7 -> 0 | L7: ='2011 to 2015 Distribution RAB'!L7 -> 0 | M7: ='2011 to 2015 Distribution RAB'!M7 -> 0 | N7: ='2011 to 2015 Distribution RAB'!N7 -> 0 | O7: ='2011 to 2015 Distribution RAB'!O7 -> -1133288.78 | P7: ='2011 to 2015 Distribution RAB'!P7 -> 0 | Q7: =SUM(C7:P7) -> -92615.48017 | S7: 1 | U7: =+C7*$S7 -> 0 | V7: =+D7*$S7 -> 1040673.3 | W7: 0 | X7: 0 | Y7: 0 | Z7: 0 | AA7: 0 | AB7: 0 | AC7: 0 | AD7: 0 | AE7: 0 | AF7: 0 | AG7: -1133288.78 | AH7: 0 | AI7: =SUM(U7:AG7) -> -92615.48017 | AL7: =IF(AND(($AX$1-$A7)<AL$3,$A7<$AX$1),((AL$3-($AX$1-$A7))/AL$3*U7),0) -> 0 | AM7: 0 | AN7: 0 | AO7: 0 | AP7: 0 | AQ7: 0 | AR7: 0 | AS7: 0 | AT7: 0 | AU7: 0 | AV7: 0 | AW7: 0 | AX7: 0 | AY7: 0 | AZ7: =SUM(AL7:AY7) -> 0 | BC7: =IF(AND(($BO$1-$A7)<BC$3,$A7<$BO$1),((BC$3-($BO$1-$A7))/(BC$3-(2001-$A7))*AL7),0) -> 0 | BD7: 0 | BE7: 0 | BF7: 0 | BG7: 0 | BH7: 0 | BI7: 0 | BJ7: 0 | BK7: 0 | BL7: 0 | BM7: 0 | BN7: 0 | BO7: 0 | BP7: 0 | BQ7: =SUM(BC7:BP7) -> 0 | BT7: =IF(AND(($CE$1-$A7)<BT$3,$A7<$CE$1),((BT$3-($CE$1-$A7))/(BT$3-(2006-$A7))*BC7),0) -> 0 | BU7: 0 | BV7: 0 | BW7: 0 | BX7: 0 | BY7: 0 | BZ7: 0 | CA7: 0 | CB7: 0 | CC7: 0 | CD7: 0 | CE7: 0 | CF7: 0 | CG7: 0 | CH7: =SUM(BT7:CG7) -> 0
A8: 1951 | C8: ='2011 to 2015 Distribution RAB'!C8 -> 98142.91 | D8: ='2011 to 2015 Distribution RAB'!D8 -> 1262213.45 | E8: ='2011 to 2015 Distribution RAB'!E8 -> 0 | F8: ='2011 to 2015 Distribution RAB'!F8 -> 0 | G8: ='2011 to 2015 Distribution RAB'!G8 -> 0 | H8: ='2011 to 2015 Distribution RAB'!H8 -> 0 | I8: ='2011 to 2015 Distribution RAB'!I8 -> 0 | J8: ='2011 to 2015 Distribution RAB'!J8 -> 0 | K8: ='2011 to 2015 Distribution RAB'!K8 -> 15366.37 | L8: ='2011 to 2015 Distribution RAB'!L8 -> 0 | M8: ='2011 to 2015 Distribution RAB'!M8 -> 0 | N8: ='2011 to 2015 Distribution RAB'!N8 -> 0 | O8: ='2011 to 2015 Distribution RAB'!O8 -> -1133288.78 | P8: ='2011 to 2015 Distribution RAB'!P8 -> 0 | Q8: 242433.9498 | S8: 1 | U8: =+C8*$S8 -> 98142.91 | V8: =+D8*$S8 -> 1262213.45 | W8: =+E8*$S8 -> 0 | X8: 0 | Y8: 0 | Z8: 0 | AA8: 0 | AB8: 0 | AC8: 15366.37 | AD8: 0 | AE8: 0 | AF8: 0 | AG8: -1133288.78 | AH8: 0 | AI8: =SUM(U8:AG8) -> 242433.9498 | AL8: 0 | AM8: 0 | AN8: 0 | AO8: 0 | AP8: 0 | AQ8: 0 | AR8: 0 | AS8: 0 | AT8: 0 | AU8: 0 | AV8: 0 | AW8: 0 | AX8: 0 | AY8: 0 | AZ8: =SUM(AL8:AY8) -> 0 | BC8: 0 | BD8: 0 | BE8: 0 | BF8: 0 | BG8: 0 | BH8: 0 | BI8: 0 | BJ8: 0 | BK8: 0 | BL8: 0 | BM8: 0 | BN8: 0 | BO8: 0 | BP8: 0 | BQ8: 0 | BT8: 0 | BU8: 0 | BV8: 0 | BW8: 0 | BX8: 0 | BY8: 0 | BZ8: 0 | CA8: 0 | CB8: 0 | CC8: 0 | CD8: 0 | CE8: 0 | CF8: 0 | CG8: 0 | CH8: =SUM(BT8:CG8) -> 0
A9: 1952 | C9: ='2011 to 2015 Distribution RAB'!C9 -> 635771.83 | D9: ='2011 to 2015 Distribution RAB'!D9 -> 2314774.03 | E9: ='2011 to 2015 Distribution RAB'!E9 -> 0 | F9: ='2011 to 2015 Distribution RAB'!F9 -> 0 | G9: ='2011 to 2015 Distribution RAB'!G9 -> 0 | H9: ='2011 to 2015 Distribution RAB'!H9 -> 0 | I9: ='2011 to 2015 Distribution RAB'!I9 -> 0 | J9: ='2011 to 2015 Distribution RAB'!J9 -> 0 | K9: ='2011 to 2015 Distribution RAB'!K9 -> 41555.99 | L9: ='2011 to 2015 Distribution RAB'!L9 -> 0 | M9: ='2011 to 2015 Distribution RAB'!M9 -> 0 | N9: ='2011 to 2015 Distribution RAB'!N9 -> 0 | O9: ='2011 to 2015 Distribution RAB'!O9 -> -1133288.78 | P9: ='2011 to 2015 Distribution RAB'!P9 -> 0 | Q9: 1858813.07 | S9: 1 | U9: 635771.83 | V9: 2314774.03 | W9: 0 | X9: 0 | Y9: 0 | Z9: 0 | AA9: 0 | AB9: 0 | AC9: 41555.99 | AD9: 0 | AE9: 0 | AF9: 0 | AG9: -1133288.78 | AH9: 0 | AI9: 1858813.07 | AL9: 0 | AM9: 0 | AN9: 0 | AO9: 0 | AP9: 0 | AQ9: 0 | AR9: 0 | AS9: 0 | AT9: 831.1198 | AU9: 0 | AV9: 0 | AW9: 0 | AX9: 0 | AY9: 0 | AZ9: 831.1198 | BC9: 0 | BD9: 0 | BE9: 0 | BF9: 0 | BG9: 0 | BH9: 0 | BI9: 0 | BJ9: 0 | BK9: 0 | BL9: 0 | BM9: 0 | BN9: 0 | BO9: 0 | BP9: 0 | BQ9: 0 | BT9: 0 | BU9: 0 | BV9: 0 | BW9: 0 | BX9: 0 | BY9: 0 | BZ9: 0 | CA9: 0 | CB9: 0 | CC9: 0 | CD9: 0 | CE9: 0 | CF9: 0 | CG9: 0 | CH9: 0
A10: 1953 | C10: ='2011 to 2015 Distribution RAB'!C10 -> 88938.79 | D10: ='2011 to 2015 Distribution RAB'!D10 -> 3258531.48 | E10: ='2011 to 2015 Distribution RAB'!E10 -> 0 | F10: ='2011 to 2015 Distribution RAB'!F10 -> 0 | G10: ='2011 to 2015 Distribution RAB'!G10 -> 0 | H10: ='2011 to 2015 Distribution RAB'!H10 -> 0 | I10: ='2011 to 2015 Distribution RAB'!I10 -> 0 | J10: ='2011 to 2015 Distribution RAB'!J10 -> 0 | K10: ='2011 to 2015 Distribution RAB'!K10 -> 495.89 | L10: ='2011 to 2015 Distribution RAB'!L10 -> 0 | M10: ='2011 to 2015 Distribution RAB'!M10 -> 0 | N10: ='2011 to 2015 Distribution RAB'!N10 -> 0 | O10: ='2011 to 2015 Distribution RAB'!O10 -> -1133288.78 | P10: ='2011 to 2015 Distribution RAB'!P10 -> 0 | Q10: 2214677.38 | S10: 1 | U10: 88938.79 | V10: 3258531.48 | W10: 0 | X10: 0 | Y10: 0 | Z10: 0 | AA10: 0 | AB10: 0 | AC10: 495.89 | AD10: 0 | AE10: 0 | AF10: 0 | AG10: -1133288.78 | AH10: 0 | AI10: 2214677.38 | AL10: 0 | AM10: 0 | AN10: 0 | AO10: 0 | AP10: 0 | AQ10: 0 | AR10: 0 | AS10: 0 | AT10: 19.8356 | AU10: 0 | AV10: 0 | AW10: 0 | AX10: 0 | AY10: 0 | AZ10: 19.8356 | BC10: 0 | BD10: 0 | BE10: 0 | BF10: 0 | BG10: 0 | BH10: 0 | BI10: 0 | BJ10: 0 | BK10: 0 | BL10: 0 | BM10: 0 | BN10: 0 | BO10: 0 | BP10: 0 | BQ10: 0 | BT10: 0 | BU10: 0 | BV10: 0 | BW10: 0 | BX10: 0 | BY10: 0 | BZ10: 0 | CA10: 0 | CB10: 0 | CC10: 0 | CD10: 0 | CE10: 0 | CF10: 0 | CG10: 0 | CH10: 0
A11: 1954 | C11: ='2011 to 2015 Distribution RAB'!C11 -> 133577.72 | D11: ='2011 to 2015 Distribution RAB'!D11 -> 2327058.17 | E11: ='2011 to 2015 Distribution RAB'!E11 -> 0 | F11: ='2011 to 2015 Distribution RAB'!F11 -> 0 | G11: ='2011 to 2015 Distribution RAB'!G11 -> 0 | H11: ='2011 to 2015 Distribution RAB'!H11 -> 0 | I11: ='2011 to 2015 Distribution RAB'!I11 -> 0 | J11: ='2011 to 2015 Distribution RAB'!J11 -> 0 | K11: ='2011 to 2015 Distribution RAB'!K11 -> 40225.3 | L11: ='2011 to 2015 Distribution RAB'!L11 -> 0 | M11: ='2011 to 2015 Distribution RAB'!M11 -> 0 | N11: ='2011 to 2015 Distribution RAB'!N11 -> 0 | O11: ='2011 to 2015 Distribution RAB'!O11 -> -1133288.78 | P11: ='2011 to 2015 Distribution RAB'!P11 -> 0 | Q11: 1367572.41 | S11: 1 | U11: 133577.72 | V11: 2327058.17 | W11: 0 | X11: 0 | Y11: 0 | Z11: 0 | AA11: 0 | AB11: 0 | AC11: 40225.3 | AD11: 0 | AE11: 0 | AF11: 0 | AG11: -1133288.78 | AH11: 0 | AI11: 1367572.41 | AL11: 0 | AM11: 0 | AN11: 0 | AO11: 0 | AP11: 0 | AQ11: 0 | AR11: 0 | AS11: 0 | AT11: 2413.518 | AU11: 0 | AV11: 0 | AW11: 0 | AX11: 0 | AY11: 0 | AZ11: 2413.518 | BC11: 0 | BD11: 0 | BE11: 0 | BF11: 0 | BG11: 0 | BH11: 0 | BI11: 0 | BJ11: 0 | BK11: 0 | BL11: 0 | BM11: 0 | BN11: 0 | BO11: 0 | BP11: 0 | BQ11: 0 | BT11: 0 | BU11: 0 | BV11: 0 | BW11: 0 | BX11: 0 | BY11: 0 | BZ11: 0 | CA11: 0 | CB11: 0 | CC11: 0 | CD11: 0 | CE11: 0 | CF11: 0 | CG11: 0 | CH11: 0
A12: 1955 | C12: ='2011 to 2015 Distribution RAB'!C12 -> 61203.93 | D12: ='2011 to 2015 Distribution RAB'!D12 -> 3488740.09 | E12: ='2011 to 2015 Distribution RAB'!E12 -> 0 | F12: ='2011 to 2015 Distribution RAB'!F12 -> 0 | G12: ='2011 to 2015 Distribution RAB'!G12 -> 0 | H12: ='2011 to 2015 Distribution RAB'!H12 -> 0 | I12: ='2011 to 2015 Distribution RAB'!I12 -> 0 | J12: ='2011 to 2015 Distribution RAB'!J12 -> 0 | K12: ='2011 to 2015 Distribution RAB'!K12 -> 380807.15 | L12: ='2011 to 2015 Distribution RAB'!L12 -> 0 | M12: ='2011 to 2015 Distribution RAB'!M12 -> 0 | N12: ='2011 to 2015 Distribution RAB'!N12 -> 0 | O12: ='2011 to 2015 Distribution RAB'!O12 -> -1133288.78 | P12: ='2011 to 2015 Distribution RAB'!P12 -> 0 | Q12: 2797462.39 | S12: 1 | U12: 61203.93 | V12: 3488740.09 | W12: 0 | X12: 0 | Y12: 0 | Z12: 0 | AA12: 0 | AB12: 0 | AC12: 380807.15 | AD12: 0 | AE12: 0 | AF12: 0 | AG12: -1133288.78 | AH12: 0 | AI12: 2797462.39 | AL12: 0 | AM12: 0 | AN12: 0 | AO12: 0 | AP12: 0 | AQ12: 0 | AR12: 0 | AS12: 0 | AT12: 30464.572 | AU12: 0 | AV12: 0 | AW12: 0 | AX12: 0 | AY12: 0 | AZ12: 30464.572 | BC12: 0 | BD12: 0 | BE12: 0 | BF12: 0 | BG12: 0 | BH12: 0 | BI12: 0 | BJ12: 0 | BK12: 0 | BL12: 0 | BM12: 0 | BN12: 0 | BO12: 0 | BP12: 0 | BQ12: 0 | BT12: 0 | BU12: 0 | BV12: 0 | BW12: 0 | BX12: 0 | BY12: 0 | BZ12: 0 | CA12: 0 | CB12: 0 | CC12: 0 | CD12: 0 | CE12: 0 | CF12: 0 | CG12: 0 | CH12: 0
A13: 1956 | C13: ='2011 to 2015 Distribution RAB'!C13 -> 122537.33 | D13: ='2011 to 2015 Distribution RAB'!D13 -> 1805001.52 | E13: ='2011 to 2015 Distribution RAB'!E13 -> 0 | F13: ='2011 to 2015 Distribution RAB'!F13 -> 0 | G13: ='2011 to 2015 Distribution RAB'!G13 -> 0 | H13: ='2011 to 2015 Distribution RAB'!H13 -> 0 | I13: ='2011 to 2015 Distribution RAB'!I13 -> 0 | J13: ='2011 to 2015 Distribution RAB'!J13 -> 0 | K13: ='2011 to 2015 Distribution RAB'!K13 -> 0 | L13: ='2011 to 2015 Distribution RAB'!L13 -> 0 | M13: ='2011 to 2015 Distribution RAB'!M13 -> 0 | N13: ='2011 to 2015 Distribution RAB'!N13 -> 0 | O13: ='2011 to 2015 Distribution RAB'!O13 -> -1133288.78 | P13: ='2011 to 2015 Distribution RAB'!P13 -> 0 | Q13: 794250.0698 | S13: 1 | U13: 122537.33 | V13: 1805001.52 | W13: 0 | X13: 0 | Y13: 0 | Z13: 0 | AA13: 0 | AB13: 0 | AC13: 0 | AD13: 0 | AE13: 0 | AF13: 0 | AG13: -1133288.78 | AH13: 0 | AI13: 794250.0698 | AL13: 0 | AM13: 0 | AN13: 0 | AO13: 0 | AP13: 0 | AQ13: 0 | AR13: 0 | AS13: 0 | AT13: 0 | AU13: 0 | AV13: 0 | AW13: 0 | AX13: 0 | AY13: 0 | AZ13: 0 | BC13: 0 | BD13: 0 | BE13: 0 | BF13: 0 | BG13: 0 | BH13: 0 | BI13: 0 | BJ13: 0 | BK13: 0 | BL13: 0 | BM13: 0 | BN13: 0 | BO13: 0 | BP13: 0 | BQ13: 0 | BT13: 0 | BU13: 0 | BV13: 0 | BW13: 0 | BX13: 0 | BY13: 0 | BZ13: 0 | CA13: 0 | CB13: 0 | CC13: 0 | CD13: 0 | CE13: 0 | CF13: 0 | CG13: 0 | CH13: 0
A14: 1957 | C14: ='2011 to 2015 Distribution RAB'!C14 -> 72223.97 | D14: ='2011 to 2015 Distribution RAB'!D14 -> 2225517.04 | E14: ='2011 to 2015 Distribution RAB'!E14 -> 0 | F14: ='2011 to 2015 Distribution RAB'!F14 -> 0 | G14: ='2011 to 2015 Distribution RAB'!G14 -> 0 | H14: ='2011 to 2015 Distribution RAB'!H14 -> 0 | I14: ='2011 to 2015 Distribution RAB'!I14 -> 0 | J14: ='2011 to 2015 Distribution RAB'!J14 -> 0 | K14: ='2011 to 2015 Distribution RAB'!K14 -> 11480.97 | L14: ='2011 to 2015 Distribution RAB'!L14 -> 0 | M14: ='2011 to 2015 Distribution RAB'!M14 -> 0 | N14: ='2011 to 2015 Distribution RAB'!N14 -> 0 | O14: ='2011 to 2015 Distribution RAB'!O14 -> -1133288.78 | P14: ='2011 to 2015 Distribution RAB'!P14 -> 0 | Q14: 1175933.2 | S14: 1 | U14: 72223.97 | V14: 2225517.04 | W14: 0 | X14: 0 | Y14: 0 | Z14: 0 | AA14: 0 | AB14: 0 | AC14: 11480.97 | AD14: 0 | AE14: 0 | AF14: 0 | AG14: -1133288.78 | AH14: 0 | AI14: 1175933.2 | AL14: 0 | AM14: 0 | AN14: 0 | AO14: 0 | AP14: 0 | AQ14: 0 | AR14: 0 | AS14: 0 | AT14: 1377.7164 | AU14: 0 | AV14: 0 | AW14: 0 | AX14: 0 | AY14: 0 | AZ14: 1377.7164 | BC14: 0 | BD14: 0 | BE14: 0 | BF14: 0 | BG14: 0 | BH14: 0 | BI14: 0 | BJ14: 0 | BK14: 229.6194 | BL14: 0 | BM14: 0 | BN14: 0 | BO14: 0 | BP14: 0 | BQ14: 229.6194 | BT14: 0 | BU14: 0 | BV14: 0 | BW14: 0 | BX14: 0 | BY14: 0 | BZ14: 0 | CA14: 0 | CB14: 0 | CC14: 0 | CD14: 0 | CE14: 0 | CF14: 0 | CG14: 0 | CH14: 0
A15: 1958 | C15: ='2011 to 2015 Distribution RAB'!C15 -> 37688.37 | D15: ='2011 to 2015 Distribution RAB'!D15 -> 1139886.52 | E15: ='2011 to 2015 Distribution RAB'!E15 -> 0 | F15: ='2011 to 2015 Distribution RAB'!F15 -> 0 | G15: ='2011 to 2015 Distribution RAB'!G15 -> 0 | H15: ='2011 to 2015 Distribution RAB'!H15 -> 0 | I15: ='2011 to 2015 Distribution RAB'!I15 -> 0 | J15: ='2011 to 2015 Distribution RAB'!J15 -> 0 | K15: ='2011 to 2015 Distribution RAB'!K15 -> 0 | L15: ='2011 to 2015 Distribution RAB'!L15 -> 0 | M15: ='2011 to 2015 Distribution RAB'!M15 -> 0 | N15: ='2011 to 2015 Distribution RAB'!N15 -> 0 | O15: ='2011 to 2015 Distribution RAB'!O15 -> -1133288.78 | P15: ='2011 to 2015 Distribution RAB'!P15 -> 0 | Q15: 44286.10982 | S15: 1 | U15: 37688.37 | V15: 1139886.52 | W15: 0 | X15: 0 | Y15: 0 | Z15: 0 | AA15: 0 | AB15: 0 | AC15: 0 | AD15: 0 | AE15: 0 | AF15: 0 | AG15: -1133288.78 | AH15: 0 | AI15: 44286.10982 | AL15: 0 | AM15: 0 | AN15: 0 | AO15: 0 | AP15: 0 | AQ15: 0 | AR15: 0 | AS15: 0 | AT15: 0 | AU15: 0 | AV15: 0 | AW15: 0 | AX15: 0 | AY15: 0 | AZ15: 0 | BC15: 0 | BD15: 0 | BE15: 0 | BF15: 0 | BG15: 0 | BH15: 0 | BI15: 0 | BJ15: 0 | BK15: 0 | BL15: 0 | BM15: 0 | BN15: 0 | BO15: 0 | BP15: 0 | BQ15: 0 | BT15: 0 | BU15: 0 | BV15: 0 | BW15: 0 | BX15: 0 | BY15: 0 | BZ15: 0 | CA15: 0 | CB15: 0 | CC15: 0 | CD15: 0 | CE15: 0 | CF15: 0 | CG15: 0 | CH15: 0
A16: 1959 | C16: ='2011 to 2015 Distribution RAB'!C16 -> 43444.93 | D16: ='2011 to 2015 Distribution RAB'!D16 -> 1208564.75 | E16: ='2011 to 2015 Distribution RAB'!E16 -> 0 | F16: ='2011 to 2015 Distribution RAB'!F16 -> 0 | G16: ='2011 to 2015 Distribution RAB'!G16 -> 0 | H16: ='2011 to 2015 Distribution RAB'!H16 -> 0 | I16: ='2011 to 2015 Distribution RAB'!I16 -> 0 | J16: ='2011 to 2015 Distribution RAB'!J16 -> 0 | K16: ='2011 to 2015 Distribution RAB'!K16 -> 11962.2 | L16: ='2011 to 2015 Distribution RAB'!L16 -> 0 | M16: ='2011 to 2015 Distribution RAB'!M16 -> 0 | N16: ='2011 to 2015 Distribution RAB'!N16 -> 0 | O16: ='2011 to 2015 Distribution RAB'!O16 -> -1133288.78 | P16: ='2011 to 2015 Distribution RAB'!P16 -> 0 | Q16: 130683.0998 | S16: 1 | U16: 43444.93 | V16: 1208564.75 | W16: 0 | X16: 0 | Y16: 0 | Z16: 0 | AA16: 0 | AB16: 0 | AC16: 11962.2 | AD16: 0 | AE16: 0 | AF16: 0 | AG16: -1133288.78 | AH16: 0 | AI16: 130683.0998 | AL16: 0 | AM16: 0 | AN16: 0 | AO16: 0 | AP16: 0 | AQ16: 0 | AR16: 0 | AS16: 0 | AT16: 1913.952 | AU16: 0 | AV16: 0 | AW16: 0 | AX16: 0 | AY16: 0 | AZ16: 1913.952 | BC16: 0 | BD16: 0 | BE16: 0 | BF16: 0 | BG16: 0 | BH16: 0 | BI16: 0 | BJ16: 0 | BK16: 717.732 | BL16: 0 | BM16: 0 | BN16: 0 | BO16: 0 | BP16: 0 | BQ16: 717.732 | BT16: 0 | BU16: 0 | BV16: 0 | BW16: 0 | BX16: 0 | BY16: 0 | BZ16: 0 | CA16: 0 | CB16: 0 | CC16: 0 | CD16: 0 | CE16: 0 | CF16: 0 | CG16: 0 | CH16: 0
A17: 1960 | C17: ='2011 to 2015 Distribution RAB'!C17 -> 19957.74 | D17: ='2011 to 2015 Distribution RAB'!D17 -> 829406.33 | E17: ='2011 to 2015 Distribution RAB'!E17 -> 0 | F17: ='2011 to 2015 Distribution RAB'!F17 -> 0 | G17: ='2011 to 2015 Distribution RAB'!G17 -> 0 | H17: ='2011 to 2015 Distribution RAB'!H17 -> 0 | I17: ='2011 to 2015 Distribution RAB'!I17 -> 0 | J17: ='2011 to 2015 Distribution RAB'!J17 -> 0 | K17: ='2011 to 2015 Distribution RAB'!K17 -> 892.63 | L17: ='2011 to 2015 Distribution RAB'!L17 -> 0 | M17: ='2011 to 2015 Distribution RAB'!M17 -> 0 | N17: ='2011 to 2015 Distribution RAB'!N17 -> 0 | O17: ='2011 to 2015 Distribution RAB'!O17 -> -1133288.78 | P17: ='2011 to 2015 Distribution RAB'!P17 -> 0 | Q17: -283032.0802 | S17: 1 | U17: 19957.74 | V17: 829406.33 | W17: 0 | X17: 0 | Y17: 0 | Z17: 0 | AA17: 0 | AB17: 0 | AC17: 892.63 | AD17: 0 | AE17: 0 | AF17: 0 | AG17: -1133288.78 | AH17: 0 | AI17: -283032.0802 | AL17: 0 | AM17: 0 | AN17: 0 | AO17: 0 | AP17: 0 | AQ17: 0 | AR17: 0 | AS17: 0 | AT17: 160.6734 | AU17: 0 | AV17: 0 | AW17: 0 | AX17: 0 | AY17: 0 | AZ17: 160.6734 | BC17: 0 | BD17: 0 | BE17: 0 | BF17: 0 | BG17: 0 | BH17: 0 | BI17: 0 | BJ17: 0 | BK17: 71.4104 | BL17: 0 | BM17: 0 | BN17: 0 | BO17: 0 | BP17: 0 | BQ17: 71.4104 | BT17: 0 | BU17: 0 | BV17: 0 | BW17: 0 | BX17: 0 | BY17: 0 | BZ17: 0 | CA17: 0 | CB17: 0 | CC17: 0 | CD17: 0 | CE17: 0 | CF17: 0 | CG17: 0 | CH17: 0
A18: 1961 | C18: ='2011 to 2015 Distribution RAB'!C18 -> 3920.95 | D18: ='2011 to 2015 Distribution RAB'!D18 -> 1291001.76 | E18: ='2011 to 2015 Distribution RAB'!E18 -> 0 | F18: ='2011 to 2015 Distribution RAB'!F18 -> 0 | G18: ='2011 to 2015 Distribution RAB'!G18 -> 0 | H18: ='2011 to 2015 Distribution RAB'!H18 -> 0 | I18: ='2011 to 2015 Distribution RAB'!I18 -> 0 | J18: ='2011 to 2015 Distribution RAB'!J18 -> 0 | K18: ='2011 to 2015 Distribution RAB'!K18 -> 42840.96 | L18: ='2011 to 2015 Distribution RAB'!L18 -> 0 | M18: ='2011 to 2015 Distribution RAB'!M18 -> 0 | N18: ='2011 to 2015 Distribution RAB'!N18 -> 0 | O18: ='2011 to 2015 Distribution RAB'!O18 -> -1133288.78 | P18: ='2011 to 2015 Distribution RAB'!P18 -> 0 | Q18: 204474.8898 | S18: 1 | U18: 3920.95 | V18: 1291001.76 | W18: 0 | X18: 0 | Y18: 0 | Z18: 0 | AA18: 0 | AB18: 0 | AC18: 42840.96 | AD18: 0 | AE18: 0 | AF18: 0 | AG18: -1133288.78 | AH18: 0 | AI18: 204474.8898 | AL18: 0 | AM18: 0 | AN18: 0 | AO18: 0 | AP18: 0 | AQ18: 0 | AR18: 0 | AS18: 0 | AT18: 8568.192 | AU18: 0 | AV18: 0 | AW18: 0 | AX18: 0 | AY18: 0 | AZ18: 8568.192 | BC18: 0 | BD18: 0 | BE18: 0 | BF18: 0 | BG18: 0 | BH18: 0 | BI18: 0 | BJ18: 0 | BK18: 4284.096 | BL18: 0 | BM18: 0 | BN18: 0 | BO18: 0 | BP18: 0 | BQ18: 4284.096 | BT18: 0 | BU18: 0 | BV18: 0 | BW18: 0 | BX18: 0 | BY18: 0 | BZ18: 0 | CA18: 0 | CB18: 0 | CC18: 0 | CD18: 0 | CE18: 0 | CF18: 0 | CG18: 0 | CH18: 0
A19: 1962 | C19: ='2011 to 2015 Distribution RAB'!C19 -> 227247.56 | D19: ='2011 to 2015 Distribution RAB'!D19 -> 2039974.22 | E19: ='2011 to 2015 Distribution RAB'!E19 -> 0 | F19: ='2011 to 2015 Distribution RAB'!F19 -> 0 | G19: ='2011 to 2015 Distribution RAB'!G19 -> 0 | H19: ='2011 to 2015 Distribution RAB'!H19 -> 0 | I19: ='2011 to 2015 Distribution RAB'!I19 -> 0 | J19: ='2011 to 2015 Distribution RAB'!J19 -> 0 | K19: ='2011 to 2015 Distribution RAB'!K19 -> 0 | L19: ='2011 to 2015 Distribution RAB'!L19 -> 0 | M19: ='2011 to 2015 Distribution RAB'!M19 -> 0 | N19: ='2011 to 2015 Distribution RAB'!N19 -> 0 | O19: ='2011 to 2015 Distribution RAB'!O19 -> -1133288.78 | P19: ='2011 to 2015 Distribution RAB'!P19 -> 0 | Q19: 1133933 | S19: 1 | U19: 227247.56 | V19: 2039974.22 | W19: 0 | X19: 0 | Y19: 0 | Z19: 0 | AA19: 0 | AB19: 0 | AC19: 0 | AD19: 0 | AE19: 0 | AF19: 0 | AG19: -1133288.78 | AH19: 0 | AI19: 1133933 | AL19: 0 | AM19: 0 | AN19: 0 | AO19: 0 | AP19: 0 | AQ19: 0 | AR19: 0 | AS19: 0 | AT19: 0 | AU19: 0 | AV19: 0 | AW19: 0 | AX19: 0 | AY19: 0 | AZ19: 0 | BC19: 0 | BD19: 0 | BE19: 0 | BF19: 0 | BG19: 0 | BH19: 0 | BI19: 0 | BJ19: 0 | BK19: 0 | BL19: 0 | BM19: 0 | BN19: 0 | BO19: 0 | BP19: 0 | BQ19: 0 | BT19: 0 | BU19: 0 | BV19: 0 | BW19: 0 | BX19: 0 | BY19: 0 | BZ19: 0 | CA19: 0 | CB19: 0 | CC19: 0 | CD19: 0 | CE19: 0 | CF19: 0 | CG19: 0 | CH19: 0
A20: 1963 | C20: ='2011 to 2015 Distribution RAB'!C20 -> 354047.77 | D20: ='2011 to 2015 Distribution RAB'!D20 -> 1980843.28 | E20: ='2011 to 2015 Distribution RAB'!E20 -> 0 | F20: ='2011 to 2015 Distribution RAB'!F20 -> 0 | G20: ='2011 to 2015 Distribution RAB'!G20 -> 0 | H20: ='2011 to 2015 Distribution RAB'!H20 -> 0 | I20: ='2011 to 2015 Distribution RAB'!I20 -> 0 | J20: ='2011 to 2015 Distribution RAB'!J20 -> 0 | K20: ='2011 to 2015 Distribution RAB'!K20 -> 10268.37 | L20: ='2011 to 2015 Distribution RAB'!L20 -> 0 | M20: ='2011 to 2015 Distribution RAB'!M20 -> 0 | N20: ='2011 to 2015 Distribution RAB'!N20 -> 0 | O20: ='2011 to 2015 Distribution RAB'!O20 -> -1133288.78 | P20: ='2011 to 2015 Distribution RAB'!P20 -> 0 | Q20: 1211870.64 | S20: 1 | U20: 354047.77 | V20: 1980843.28 | W20: 0 | X20: 0 | Y20: 0 | Z20: 0 | AA20: 0 | AB20: 0 | AC20: 10268.37 | AD20: 0 | AE20: 0 | AF20: 0 | AG20: -1133288.78 | AH20: 0 | AI20: 1211870.64 | AL20: 0 | AM20: 0 | AN20: 0 | AO20: 0 | AP20: 0 | AQ20: 0 | AR20: 0 | AS20: 0 | AT20: 2464.4088 | AU20: 0 | AV20: 0 | AW20: 0 | AX20: 0 | AY20: 0 | AZ20: 2464.4088 | BC20: 0 | BD20: 0 | BE20: 0 | BF20: 0 | BG20: 0 | BH20: 0 | BI20: 0 | BJ20: 0 | BK20: 1437.5718 | BL20: 0 | BM20: 0 | BN20: 0 | BO20: 0 | BP20: 0 | BQ20: 1437.5718 | BT20: 0 | BU20: 0 | BV20: 0 | BW20: 0 | BX20: 0 | BY20: 0 | BZ20: 0 | CA20: 0 | CB20: 0 | CC20: 0 | CD20: 0 | CE20: 0 | CF20: 0 | CG20: 0 | CH20: 0
A21: 1964 | C21: ='2011 to 2015 Distribution RAB'!C21 -> 235862.73 | D21: ='2011 to 2015 Distribution RAB'!D21 -> 3710274.48 | E21: ='2011 to 2015 Distribution RAB'!E21 -> 0 | F21: ='2011 to 2015 Distribution RAB'!F21 -> 0 | G21: ='2011 to 2015 Distribution RAB'!G21 -> 0 | H21: ='2011 to 2015 Distribution RAB'!H21 -> 0 | I21: ='2011 to 2015 Distribution RAB'!I21 -> 0 | J21: ='2011 to 2015 Distribution RAB'!J21 -> 0 | K21: ='2011 to 2015 Distribution RAB'!K21 -> 0 | L21: ='2011 to 2015 Distribution RAB'!L21 -> 0 | M21: ='2011 to 2015 Distribution RAB'!M21 -> 0 | N21: ='2011 to 2015 Distribution RAB'!N21 -> 0 | O21: ='2011 to 2015 Distribution RAB'!O21 -> -1133288.78 | P21: ='2011 to 2015 Distribution RAB'!P21 -> 0 | Q21: 2812848.43 | S21: 1 | U21: 235862.73 | V21: 3710274.48 | W21: 0 | X21: 0 | Y21: 0 | Z21: 0 | AA21: 0 | AB21: 0 | AC21: 0 | AD21: 0 | AE21: 0 | AF21: 0 | AG21: -1133288.78 | AH21: 0 | AI21: 2812848.43 | AL21: 0 | AM21: 0 | AN21: 0 | AO21: 0 | AP21: 0 | AQ21: 0 | AR21: 0 | AS21: 0 | AT21: 0 | AU21: 0 | AV21: 0 | AW21: 0 | AX21: 0 | AY21: 0 | AZ21: 0 | BC21: 0 | BD21: 0 | BE21: 0 | BF21: 0 | BG21: 0 | BH21: 0 | BI21: 0 | BJ21: 0 | BK21: 0 | BL21: 0 | BM21: 0 | BN21: 0 | BO21: 0 | BP21: 0 | BQ21: 0 | BT21: 0 | BU21: 0 | BV21: 0 | BW21: 0 | BX21: 0 | BY21: 0 | BZ21: 0 | CA21: 0 | CB21: 0 | CC21: 0 | CD21: 0 | CE21: 0 | CF21: 0 | CG21: 0 | CH21: 0
A22: 1965 | C22: ='2011 to 2015 Distribution RAB'!C22 -> 1033290.7 | D22: ='2011 to 2015 Distribution RAB'!D22 -> 4548239.42 | E22: ='2011 to 2015 Distribution RAB'!E22 -> 0 | F22: ='2011 to 2015 Distribution RAB'!F22 -> 0 | G22: ='2011 to 2015 Distribution RAB'!G22 -> 0 | H22: ='2011 to 2015 Distribution RAB'!H22 -> 0 | I22: ='2011 to 2015 Distribution RAB'!I22 -> 0 | J22: ='2011 to 2015 Distribution RAB'!J22 -> 0 | K22: ='2011 to 2015 Distribution RAB'!K22 -> 0 | L22: ='2011 to 2015 Distribution RAB'!L22 -> 0 | M22: ='2011 to 2015 Distribution RAB'!M22 -> 0 | N22: ='2011 to 2015 Distribution RAB'!N22 -> 0 | O22: ='2011 to 2015 Distribution RAB'!O22 -> -1125058.34 | P22: ='2011 to 2015 Distribution RAB'!P22 -> 0 | Q22: 4456471.78 | S22: 1 | U22: 1033290.7 | V22: 4548239.42 | W22: 0 | X22: 0 | Y22: 0 | Z22: 0 | AA22: 0 | AB22: 0 | AC22: 0 | AD22: 0 | AE22: 0 | AF22: 0 | AG22: -1125058.34 | AH22: 0 | AI22: 4456471.78 | AL22: 0 | AM22: 0 | AN22: 0 | AO22: 0 | AP22: 0 | AQ22: 0 | AR22: 0 | AS22: 0 | AT22: 0 | AU22: 0 | AV22: 0 | AW22: 0 | AX22: 0 | AY22: 0 | AZ22: 0 | BC22: 0 | BD22: 0 | BE22: 0 | BF22: 0 | BG22: 0 | BH22: 0 | BI22: 0 | BJ22: 0 | BK22: 0 | BL22: 0 | BM22: 0 | BN22: 0 | BO22: 0 | BP22: 0 | BQ22: 0 | BT22: 0 | BU22: 0 | BV22: 0 | BW22: 0 | BX22: 0 | BY22: 0 | BZ22: 0 | CA22: 0 | CB22: 0 | CC22: 0 | CD22: 0 | CE22: 0 | CF22: 0 | CG22: 0 | CH22: 0
A23: 1966 | C23: ='2011 to 2015 Distribution RAB'!C23 -> 530589.27 | D23: ='2011 to 2015 Distribution RAB'!D23 -> 5128232.27 | E23: ='2011 to 2015 Distribution RAB'!E23 -> 0 | F23: ='2011 to 2015 Distribution RAB'!F23 -> 0 | G23: ='2011 to 2015 Distribution RAB'!G23 -> 0 | H23: ='2011 to 2015 Distribution RAB'!H23 -> 0 | I23: ='2011 to 2015 Distribution RAB'!I23 -> 0 | J23: ='2011 to 2015 Distribution RAB'!J23 -> 0 | K23: ='2011 to 2015 Distribution RAB'!K23 -> 0 | L23: ='2011 to 2015 Distribution RAB'!L23 -> 0 | M23: ='2011 to 2015 Distribution RAB'!M23 -> 0 | N23: ='2011 to 2015 Distribution RAB'!N23 -> 0 | O23: ='2011 to 2015 Distribution RAB'!O23 -> -1133288.78 | P23: ='2011 to 2015 Distribution RAB'!P23 -> 0 | Q23: 4525532.76 | S23: 1 | U23: 530589.27 | V23: 5128232.27 | W23: 0 | X23: 0 | Y23: 0 | Z23: 0 | AA23: 0 | AB23: 0 | AC23: 0 | AD23: 0 | AE23: 0 | AF23: 0 | AG23: -1133288.78 | AH23: 0 | AI23: 4525532.76 | AL23: 0 | AM23: 0 | AN23: 0 | AO23: 0 | AP23: 0 | AQ23: 0 | AR23: 0 | AS23: 0 | AT23: 0 | AU23: 0 | AV23: 0 | AW23: 0 | AX23: 0 | AY23: 0 | AZ23: 0 | BC23: 0 | BD23: 0 | BE23: 0 | BF23: 0 | BG23: 0 | BH23: 0 | BI23: 0 | BJ23: 0 | BK23: 0 | BL23: 0 | BM23: 0 | BN23: 0 | BO23: 0 | BP23: 0 | BQ23: 0 | BT23: =IF(AND(($CE$1-$A23)<BT$3,$A23<$CE$1),((BT$3-($CE$1-$A23))/(BT$3-(2006-$A23))*BC23),0) -> 0 | BU23: 0 | BV23: 0 | BW23: 0 | BX23: 0 | BY23: 0 | BZ23: 0 | CA23: 0 | CB23: 0 | CC23: 0 | CD23: 0 | CE23: 0 | CF23: 0 | CG23: 0 | CH23: 0
A24: 1967 | C24: ='2011 to 2015 Distribution RAB'!C24 -> 849018.04 | D24: ='2011 to 2015 Distribution RAB'!D24 -> 5295909.31 | E24: ='2011 to 2015 Distribution RAB'!E24 -> 0 | F24: ='2011 to 2015 Distribution RAB'!F24 -> 0 | G24: ='2011 to 2015 Distribution RAB'!G24 -> 0 | H24: ='2011 to 2015 Distribution RAB'!H24 -> 0 | I24: ='2011 to 2015 Distribution RAB'!I24 -> 0 | J24: ='2011 to 2015 Distribution RAB'!J24 -> 0 | K24: ='2011 to 2015 Distribution RAB'!K24 -> 258532.63 | L24: ='2011 to 2015 Distribution RAB'!L24 -> 0 | M24: ='2011 to 2015 Distribution RAB'!M24 -> 0 | N24: ='2011 to 2015 Distribution RAB'!N24 -> 0 | O24: ='2011 to 2015 Distribution RAB'!O24 -> -1133288.78 | P24: ='2011 to 2015 Distribution RAB'!P24 -> 0 | Q24: 5270171.2 | S24: 1 | U24: 849018.04 | V24: 5295909.31 | W24: 0 | X24: 0 | Y24: 0 | Z24: 0 | AA24: 0 | AB24: 0 | AC24: 258532.63 | AD24: 0 | AE24: 0 | AF24: 0 | AG24: -1133288.78 | AH24: 0 | AI24: 5270171.2 | AL24: 0 | AM24: 0 | AN24: 0 | AO24: 0 | AP24: 0 | AQ24: 0 | AR24: 0 | AS24: 0 | AT24: 82730.4416 | AU24: 0 | AV24: 0 | AW24: 0 | AX24: 0 | AY24: 0 | AZ24: 82730.4416 | BC24: 0 | BD24: 0 | BE24: 0 | BF24: 0 | BG24: 0 | BH24: 0 | BI24: 0 | BJ24: 0 | BK24: 56877.1786 | BL24: 0 | BM24: 0 | BN24: 0 | BO24: 0 | BP24: 0 | BQ24: 56877.1786 | BT24: 0 | BU24: 0 | BV24: 0 | BW24: 0 | BX24: 0 | BY24: 0 | BZ24: 0 | CA24: 0 | CB24: 5170.6526 | CC24: 0 | CD24: 0 | CE24: 0 | CF24: 0 | CG24: 0 | CH24: 5170.6526
A25: 1968 | C25: ='2011 to 2015 Distribution RAB'!C25 -> 2095221.65 | D25: ='2011 to 2015 Distribution RAB'!D25 -> 5974407.21 | E25: ='2011 to 2015 Distribution RAB'!E25 -> 0 | F25: ='2011 to 2015 Distribution RAB'!F25 -> 0 | G25: ='2011 to 2015 Distribution RAB'!G25 -> 0 | H25: ='2011 to 2015 Distribution RAB'!H25 -> 0 | I25: ='2011 to 2015 Distribution RAB'!I25 -> 0 | J25: ='2011 to 2015 Distribution RAB'!J25 -> 0 | K25: ='2011 to 2015 Distribution RAB'!K25 -> 24460.23 | L25: ='2011 to 2015 Distribution RAB'!L25 -> 0 | M25: ='2011 to 2015 Distribution RAB'!M25 -> 0 | N25: ='2011 to 2015 Distribution RAB'!N25 -> 0 | O25: ='2011 to 2015 Distribution RAB'!O25 -> -1133288.78 | P25: ='2011 to 2015 Distribution RAB'!P25 -> 0 | Q25: 6960800.31 | S25: 1 | U25: 2095221.65 | V25: 5974407.21 | W25: 0 | X25: 0 | Y25: 0 | Z25: 0 | AA25: 0 | AB25: 0 | AC25: 24460.23 | AD25: 0 | AE25: 0 | AF25: 0 | AG25: -1133288.78 | AH25: 0 | AI25: 6960800.31 | AL25: 0 | AM25: 0 | AN25: 0 | AO25: =IF(AND(($AX$1-$A25)<AO$3,$A25<$AX$1),((AO$3-($AX$1-$A25))/AO$3*X25),0) -> 0 | AP25: 0 | AQ25: 0 | AR25: 0 | AS25: 0 | AT25: 8316.4782 | AU25: 0 | AV25: 0 | AW25: 0 | AX25: 0 | AY25: 0 | AZ25: 8316.4782 | BC25: 0 | BD25: 0 | BE25: 0 | BF25: =IF(AND(($BO$1-$A25)<BF$3,$A25<$BO$1),((BF$3-($BO$1-$A25))/(BF$3-(2001-$A25))*AO25),0) -> 0 | BG25: 0 | BH25: 0 | BI25: 0 | BJ25: 0 | BK25: 5870.4552 | BL25: 0 | BM25: 0 | BN25: 0 | BO25: 0 | BP25: 0 | BQ25: 5870.4552 | BT25: 0 | BU25: 0 | BV25: 0 | BW25: 0 | BX25: 0 | BY25: 0 | BZ25: 0 | CA25: 0 | CB25: 978.4092 | CC25: 0 | CD25: 0 | CE25: 0 | CF25: 0 | CG25: 0 | CH25: 978.4092
A26: 1969 | C26: ='2011 to 2015 Distribution RAB'!C26 -> 57142.3 | D26: ='2011 to 2015 Distribution RAB'!D26 -> 5806671.06 | E26: ='2011 to 2015 Distribution RAB'!E26 -> 0 | F26: ='2011 to 2015 Distribution RAB'!F26 -> 0 | G26: ='2011 to 2015 Distribution RAB'!G26 -> 0 | H26: ='2011 to 2015 Distribution RAB'!H26 -> 0 | I26: ='2011 to 2015 Distribution RAB'!I26 -> 0 | J26: ='2011 to 2015 Distribution RAB'!J26 -> 0 | K26: ='2011 to 2015 Distribution RAB'!K26 -> 12252.97 | L26: ='2011 to 2015 Distribution RAB'!L26 -> 0 | M26: ='2011 to 2015 Distribution RAB'!M26 -> 0 | N26: ='2011 to 2015 Distribution RAB'!N26 -> 0 | O26: ='2011 to 2015 Distribution RAB'!O26 -> -1133288.78 | P26: ='2011 to 2015 Distribution RAB'!P26 -> 0 | Q26: 4742777.55 | S26: 1 | U26: 57142.3 | V26: 5806671.06 | W26: 0 | X26: 0 | Y26: 0 | Z26: 0 | AA26: 0 | AB26: 0 | AC26: 12252.97 | AD26: 0 | AE26: 0 | AF26: 0 | AG26: -1133288.78 | AH26: 0 | AI26: 4742777.55 | AL26: =IF(AND(($AX$1-$A26)<AL$3,$A26<$AX$1),((AL$3-($AX$1-$A26))/AL$3*U26),0) -> 0 | AM26: 0 | AN26: 0 | AO26: 0 | AP26: 0 | AQ26: 0 | AR26: 0 | AS26: 0 | AT26: 4411.0692 | AU26: 0 | AV26: 0 | AW26: 0 | AX26: 0 | AY26: 0 | AZ26: 4411.0692 | BC26: =IF(AND(($BO$1-$A26)<BC$3,$A26<$BO$1),((BC$3-($BO$1-$A26))/(BC$3-(2001-$A26))*AL26),0) -> 0 | BD26: 0 | BE26: 0 | BF26: 0 | BG26: 0 | BH26: 0 | BI26: 0 | BJ26: 0 | BK26: 3185.7722 | BL26: 0 | BM26: 0 | BN26: 0 | BO26: 0 | BP26: 0 | BQ26: 3185.7722 | BT26: 0 | BU26: 0 | BV26: 0 | BW26: 0 | BX26: 0 | BY26: 0 | BZ26: 0 | CA26: 0 | CB26: 735.1782 | CC26: 0 | CD26: 0 | CE26: 0 | CF26: 0 | CG26: 0 | CH26: 735.1782
A27: 1970 | C27: ='2011 to 2015 Distribution RAB'!C27 -> 690591.56 | D27: ='2011 to 2015 Distribution RAB'!D27 -> 8258520.08 | E27: ='2011 to 2015 Distribution RAB'!E27 -> 0 | F27: ='2011 to 2015 Distribution RAB'!F27 -> 0 | G27: ='2011 to 2015 Distribution RAB'!G27 -> 0 | H27: ='2011 to 2015 Distribution RAB'!H27 -> 0 | I27: ='2011 to 2015 Distribution RAB'!I27 -> 0 | J27: ='2011 to 2015 Distribution RAB'!J27 -> 0 | K27: ='2011 to 2015 Distribution RAB'!K27 -> 64708.4 | L27: ='2011 to 2015 Distribution RAB'!L27 -> 0 | M27: ='2011 to 2015 Distribution RAB'!M27 -> 0 | N27: ='2011 to 2015 Distribution RAB'!N27 -> 0 | O27: ='2011 to 2015 Distribution RAB'!O27 -> -2538540.203 | P27: ='2011 to 2015 Distribution RAB'!P27 -> 0 | Q27: 6475279.837 | S27: 1 | U27: 690591.56 | V27: 8258520.08 | W27: 0 | X27: 0 | Y27: 0 | Z27: 0 | AA27: 0 | AB27: 0 | AC27: 64708.4 | AD27: 0 | AE27: 0 | AF27: 0 | AG27: -2538540.203 | AH27: 0 | AI27: 6475279.837 | AL27: 0 | AM27: 0 | AN27: 0 | AO27: 0 | AP27: 0 | AQ27: 0 | AR27: 0 | AS27: 0 | AT27: 24589.192 | AU27: 0 | AV27: 0 | AW27: 0 | AX27: 0 | AY27: 0 | AZ27: 24589.192 | BC27: 0 | BD27: 0 | BE27: 0 | BF27: 0 | BG27: 0 | BH27: 0 | BI27: 0 | BJ27: 0 | BK27: 18118.352 | BL27: 0 | BM27: 0 | BN27: 0 | BO27: 0 | BP27: 0 | BQ27: 18118.352 | BT27: 0 | BU27: 0 | BV27: 0 | BW27: 0 | BX27: 0 | BY27: 0 | BZ27: 0 | CA27: 0 | CB27: 5176.672 | CC27: 0 | CD27: 0 | CE27: 0 | CF27: 0 | CG27: 0 | CH27: 5176.672
A28: 1971 | C28: ='2011 to 2015 Distribution RAB'!C28 -> 511192.28 | D28: ='2011 to 2015 Distribution RAB'!D28 -> 11050340.55 | E28: ='2011 to 2015 Distribution RAB'!E28 -> 0 | F28: ='2011 to 2015 Distribution RAB'!F28 -> 0 | G28: ='2011 to 2015 Distribution RAB'!G28 -> 0 | H28: ='2011 to 2015 Distribution RAB'!H28 -> 0 | I28: ='2011 to 2015 Distribution RAB'!I28 -> 0 | J28: ='2011 to 2015 Distribution RAB'!J28 -> 0 | K28: ='2011 to 2015 Distribution RAB'!K28 -> 211027.24 | L28: ='2011 to 2015 Distribution RAB'!L28 -> 0 | M28: ='2011 to 2015 Distribution RAB'!M28 -> 0 | N28: ='2011 to 2015 Distribution RAB'!N28 -> 0 | O28: ='2011 to 2015 Distribution RAB'!O28 -> -1939524.795 | P28: ='2011 to 2015 Distribution RAB'!P28 -> 0 | Q28: 9833035.275 | S28: 1 | U28: 511192.28 | V28: 11050340.55 | W28: 0 | X28: 0 | Y28: 0 | Z28: 0 | AA28: 0 | AB28: 0 | AC28: 211027.24 | AD28: 0 | AE28: 0 | AF28: 0 | AG28: -1939524.795 | AH28: 0 | AI28: 9833035.275 | AL28: 0 | AM28: 0 | AN28: 0 | AO28: 0 | AP28: 0 | AQ28: 0 | AR28: 0 | AS28: 0 | AT28: 84410.896 | AU28: 0 | AV28: 0 | AW28: 0 | AX28: 0 | AY28: 0 | AZ28: 84410.896 | BC28: 0 | BD28: 0 | BE28: 0 | BF28: 0 | BG28: 0 | BH28: 0 | BI28: 0 | BJ28: 0 | BK28: 63308.172 | BL28: 0 | BM28: 0 | BN28: 0 | BO28: 0 | BP28: 0 | BQ28: 63308.172 | BT28: 0 | BU28: 0 | BV28: 0 | BW28: 0 | BX28: 0 | BY28: 0 | BZ28: 0 | CA28: 0 | CB28: 21102.724 | CC28: 0 | CD28: 0 | CE28: 0 | CF28: 0 | CG28: 0 | CH28: 21102.724
A29: 1972 | C29: ='2011 to 2015 Distribution RAB'!C29 -> 2361752.17 | D29: ='2011 to 2015 Distribution RAB'!D29 -> 10192632.26 | E29: ='2011 to 2015 Distribution RAB'!E29 -> 0 | F29: ='2011 to 2015 Distribution RAB'!F29 -> 0 | G29: ='2011 to 2015 Distribution RAB'!G29 -> 0 | H29: ='2011 to 2015 Distribution RAB'!H29 -> 0 | I29: ='2011 to 2015 Distribution RAB'!I29 -> 0 | J29: ='2011 to 2015 Distribution RAB'!J29 -> 0 | K29: ='2011 to 2015 Distribution RAB'!K29 -> 110455.71 | L29: ='2011 to 2015 Distribution RAB'!L29 -> 0 | M29: ='2011 to 2015 Distribution RAB'!M29 -> 0 | N29: ='2011 to 2015 Distribution RAB'!N29 -> 0 | O29: ='2011 to 2015 Distribution RAB'!O29 -> -2036977.187 | P29: ='2011 to 2015 Distribution RAB'!P29 -> 0 | Q29: 10627862.95 | S29: 1 | U29: 2361752.17 | V29: 10192632.26 | W29: 0 | X29: 0 | Y29: 0 | Z29: 0 | AA29: 0 | AB29: 0 | AC29: 110455.71 | AD29: 0 | AE29: 0 | AF29: 0 | AG29: -2036977.187 | AH29: 0 | AI29: 10627862.95 | AL29: 78725.07233 | AM29: 0 | AN29: 0 | AO29: 0 | AP29: 0 | AQ29: 0 | AR29: 0 | AS29: 0 | AT29: 46391.3982 | AU29: 0 | AV29: 0 | AW29: 0 | AX29: 0 | AY29: 0 | AZ29: 125116.4705 | BC29: 42940.94855 | BD29: 0 | BE29: 0 | BF29: 0 | BG29: 0 | BH29: 0 | BI29: 0 | BJ29: 0 | BK29: 35345.8272 | BL29: 0 | BM29: 0 | BN29: 0 | BO29: 0 | BP29: 0 | BQ29: 78286.77575 | BT29: 3903.722595 | BU29: 0 | BV29: 0 | BW29: 0 | BX29: 0 | BY29: 0 | BZ29: 0 | CA29: 0 | CB29: 13254.6852 | CC29: 0 | CD29: 0 | CE29: 0 | CF29: 0 | CG29: 0 | CH29: 17158.4078
A30: 1973 | C30: ='2011 to 2015 Distribution RAB'!C30 -> 144772.7 | D30: ='2011 to 2015 Distribution RAB'!D30 -> 12954114.61 | E30: ='2011 to 2015 Distribution RAB'!E30 -> 0 | F30: ='2011 to 2015 Distribution RAB'!F30 -> 0 | G30: ='2011 to 2015 Distribution RAB'!G30 -> 0 | H30: ='2011 to 2015 Distribution RAB'!H30 -> 0 | I30: ='2011 to 2015 Distribution RAB'!I30 -> 0 | J30: ='2011 to 2015 Distribution RAB'!J30 -> 0 | K30: ='2011 to 2015 Distribution RAB'!K30 -> 195964.38 | L30: ='2011 to 2015 Distribution RAB'!L30 -> 61070.59 | M30: ='2011 to 2015 Distribution RAB'!M30 -> 4243.0225 | N30: ='2011 to 2015 Distribution RAB'!N30 -> 0 | O30: ='2011 to 2015 Distribution RAB'!O30 -> -2271561.282 | P30: ='2011 to 2015 Distribution RAB'!P30 -> 0 | Q30: 11088604.02 | S30: 1 | U30: 144772.7 | V30: 12954114.61 | W30: 0 | X30: 0 | Y30: 0 | Z30: 0 | AA30: 0 | AB30: 0 | AC30: 195964.38 | AD30: 61070.59 | AE30: 4243.0225 | AF30: 0 | AG30: -2271561.282 | AH30: 0 | AI30: 11088604.02 | AL30: 9651.513333 | AM30: 0 | AN30: 0 | AO30: 0 | AP30: 0 | AQ30: 0 | AR30: 0 | AS30: 0 | AT30: 86224.3272 | AU30: 0 | AV30: 0 | AW30: 0 | AX30: 0 | AY30: 0 | AZ30: 95875.84053 | BC30: 5630.049444 | BD30: 0 | BE30: 0 | BF30: 0 | BG30: 0 | BH30: 0 | BI30: 0 | BJ30: 0 | BK30: 66627.8892 | BL30: 0 | BM30: 0 | BN30: 0 | BO30: 0 | BP30: 0 | BQ30: 72257.93864 | BT30: 938.3415741 | BU30: 0 | BV30: 0 | BW30: 0 | BX30: 0 | BY30: 0 | BZ30: 0 | CA30: 0 | CB30: 27435.0132 | CC30: 0 | CD30: 0 | CE30: 0 | CF30: 0 | CG30: 0 | CH30: 28373.35477
A31: 1974 | C31: ='2011 to 2015 Distribution RAB'!C31 -> 1651595.32 | D31: ='2011 to 2015 Distribution RAB'!D31 -> 16310329.75 | E31: ='2011 to 2015 Distribution RAB'!E31 -> 0 | F31: ='2011 to 2015 Distribution RAB'!F31 -> 0 | G31: ='2011 to 2015 Distribution RAB'!G31 -> 0 | H31: ='2011 to 2015 Distribution RAB'!H31 -> 0 | I31: ='2011 to 2015 Distribution RAB'!I31 -> 0 | J31: ='2011 to 2015 Distribution RAB'!J31 -> 0 | K31: ='2011 to 2015 Distribution RAB'!K31 -> 512916.37 | L31: ='2011 to 2015 Distribution RAB'!L31 -> 10030.93 | M31: ='2011 to 2015 Distribution RAB'!M31 -> 0 | N31: ='2011 to 2015 Distribution RAB'!N31 -> 0 | O31: ='2011 to 2015 Distribution RAB'!O31 -> -2427739.056 | P31: ='2011 to 2015 Distribution RAB'!P31 -> 0 | Q31: 16057133.31 | S31: 1 | U31: 1651595.32 | V31: 16310329.75 | W31: 0 | X31: 0 | Y31: 0 | Z31: 0 | AA31: 0 | AB31: 0 | AC31: 512916.37 | AD31: 10030.93 | AE31: 0 | AF31: 0 | AG31: -2427739.056 | AH31: 0 | AI31: 16057133.31 | AL31: 165159.532 | AM31: 0 | AN31: 0 | AO31: 0 | AP31: 0 | AQ31: 0 | AR31: 0 | AS31: 0 | AT31: 235941.5302 | AU31: 0 | AV31: 0 | AW31: 0 | AX31: 0 | AY31: 0 | AZ31: 401101.0622 | BC31: 101636.6351 | BD31: 0 | BE31: 0 | BF31: 0 | BG31: 0 | BH31: 0 | BI31: 0 | BJ31: 0 | BK31: 184649.8932 | BL31: 0 | BM31: 0 | BN31: 0 | BO31: 0 | BP31: 0 | BQ31: 286286.5283 | BT31: 23454.60809 | BU31: 0 | BV31: 0 | BW31: 0 | BX31: 0 | BY31: 0 | BZ31: 0 | CA31: 0 | CB31: 82066.6192 | CC31: 0 | CD31: 0 | CE31: 0 | CF31: 0 | CG31: 0 | CH31: 105521.2273
A32: 1975 | C32: ='2011 to 2015 Distribution RAB'!C32 -> 2626095.87 | D32: ='2011 to 2015 Distribution RAB'!D32 -> 16509149.66 | E32: ='2011 to 2015 Distribution RAB'!E32 -> 0 | F32: ='2011 to 2015 Distribution RAB'!F32 -> 0 | G32: ='2011 to 2015 Distribution RAB'!G32 -> 0 | H32: ='2011 to 2015 Distribution RAB'!H32 -> 0 | I32: ='2011 to 2015 Distribution RAB'!I32 -> 0 | J32: ='2011 to 2015 Distribution RAB'!J32 -> 0 | K32: ='2011 to 2015 Distribution RAB'!K32 -> 289256.17 | L32: ='2011 to 2015 Distribution RAB'!L32 -> 15104.8 | M32: ='2011 to 2015 Distribution RAB'!M32 -> 0 | N32: ='2011 to 2015 Distribution RAB'!N32 -> 0 | O32: ='2011 to 2015 Distribution RAB'!O32 -> -2420144.183 | P32: ='2011 to 2015 Distribution RAB'!P32 -> 0 | Q32: 17019462.32 | S32: 1 | U32: 2626095.87 | V32: 16509149.66 | W32: 0 | X32: 0 | Y32: 0 | Z32: 0 | AA32: 0 | AB32: 0 | AC32: 289256.17 | AD32: 15104.8 | AE32: 0 | AF32: 0 | AG32: -2420144.183 | AH32: 0 | AI32: 17019462.32 | AL32: 350146.116 | AM32: 0 | AN32: 0 | AO32: 0 | AP32: 0 | AQ32: 0 | AR32: 0 | AS32: 0 | AT32: 138842.9616 | AU32: 0 | AV32: 0 | AW32: 0 | AX32: 0 | AY32: 0 | AZ32: 488989.0776 | BC32: 225093.9317 | BD32: 0 | BE32: 0 | BF32: 0 | BG32: 0 | BH32: 0 | BI32: 0 | BJ32: 0 | BK32: 109917.3446 | BL32: 0 | BM32: 0 | BN32: 0 | BO32: 0 | BP32: 0 | BQ32: 335011.2763 | BT32: 64312.55192 | BU32: 0 | BV32: 0 | BW32: 0 | BX32: 0 | BY32: 0 | BZ32: 0 | CA32: 0 | CB32: 52066.1106 | CC32: 0 | CD32: 0 | CE32: 0 | CF32: 0 | CG32: 0 | CH32: 116378.6625
A33: 1976 | C33: ='2011 to 2015 Distribution RAB'!C33 -> 314233.27 | D33: ='2011 to 2015 Distribution RAB'!D33 -> 17083970.18 | E33: ='2011 to 2015 Distribution RAB'!E33 -> 0 | F33: ='2011 to 2015 Distribution RAB'!F33 -> 0 | G33: ='2011 to 2015 Distribution RAB'!G33 -> 0 | H33: ='2011 to 2015 Distribution RAB'!H33 -> 0 | I33: ='2011 to 2015 Distribution RAB'!I33 -> 0 | J33: ='2011 to 2015 Distribution RAB'!J33 -> 0 | K33: ='2011 to 2015 Distribution RAB'!K33 -> 1017170.27 | L33: ='2011 to 2015 Distribution RAB'!L33 -> 0 | M33: ='2011 to 2015 Distribution RAB'!M33 -> 0 | N33: ='2011 to 2015 Distribution RAB'!N33 -> 0 | O33: ='2011 to 2015 Distribution RAB'!O33 -> -3072448.525 | P33: ='2011 to 2015 Distribution RAB'!P33 -> 0 | Q33: 15342925.19 | S33: 1 | U33: 314233.27 | V33: 17083970.18 | W33: 0 | X33: 0 | Y33: 0 | Z33: 0 | AA33: 0 | AB33: 0 | AC33: 1017170.27 | AD33: 0 | AE33: 0 | AF33: 0 | AG33: -3072448.525 | AH33: 0 | AI33: 15342925.19 | AL33: 52372.21167 | AM33: 0 | AN33: 0 | AO33: 0 | AP33: 0 | AQ33: 0 | AR33: 0 | AS33: 0 | AT33: 508585.135 | AU33: 0 | AV33: 0 | AW33: 0 | AX33: 0 | AY33: 0 | AZ33: 560957.3467 | BC33: 34914.80778 | BD33: 0 | BE33: 0 | BF33: 0 | BG33: 0 | BH33: 0 | BI33: 0 | BJ33: 0 | BK33: 406868.108 | BL33: 0 | BM33: 0 | BN33: 0 | BO33: 0 | BP33: 0 | BQ33: 441782.9158 | BT33: 11638.26926 | BU33: 0 | BV33: 0 | BW33: 0 | BX33: 0 | BY33: 0 | BZ33: 0 | CA33: 0 | CB33: 203434.054 | CC33: 0 | CD33: 0 | CE33: 0 | CF33: 0 | CG33: 0 | CH33: 215072.3233
A34: 1977 | C34: ='2011 to 2015 Distribution RAB'!C34 -> 425564.15 | D34: ='2011 to 2015 Distribution RAB'!D34 -> 18542857.25 | E34: ='2011 to 2015 Distribution RAB'!E34 -> 0 | F34: ='2011 to 2015 Distribution RAB'!F34 -> 0 | G34: ='2011 to 2015 Distribution RAB'!G34 -> 0 | H34: ='2011 to 2015 Distribution RAB'!H34 -> 0 | I34: ='2011 to 2015 Distribution RAB'!I34 -> 0 | J34: ='2011 to 2015 Distribution RAB'!J34 -> 0 | K34: ='2011 to 2015 Distribution RAB'!K34 -> 1955478.21 | L34: ='2011 to 2015 Distribution RAB'!L34 -> 39556.15 | M34: ='2011 to 2015 Distribution RAB'!M34 -> 0 | N34: ='2011 to 2015 Distribution RAB'!N34 -> 0 | O34: ='2011 to 2015 Distribution RAB'!O34 -> -3480351.858 | P34: ='2011 to 2015 Distribution RAB'!P34 -> 0 | Q34: 17483103.9 | S34: 1 | U34: 425564.15 | V34: 18542857.25 | W34: 0 | X34: 0 | Y34: 0 | Z34: 0 | AA34: 0 | AB34: 0 | AC34: 1955478.21 | AD34: 39556.15 | AE34: 0 | AF34: 0 | AG34: -3480351.858 | AH34: 0 | AI34: 17483103.9 | AL34: 85112.83 | AM34: 741714.29 | AN34: 0 | AO34: 0 | AP34: 0 | AQ34: 0 | AR34: 0 | AS34: 0 | AT34: 1016848.669 | AU34: 0 | AV34: 0 | AW34: 0 | AX34: -139214.0743 | AY34: 0 | AZ34: 1704461.715 | BC34: 58515.07063 | BD34: 509928.5744 | BE34: 0 | BF34: 0 | BG34: 0 | BH34: 0 | BI34: 0 | BJ34: 0 | BK34: 821300.8482 | BL34: 0 | BM34: 0 | BN34: 0 | BO34: -95709.6761 | BP34: 0 | BQ34: 1294034.817 | BT34: 21943.15148 | BU34: 191223.2154 | BV34: 0 | BW34: 0 | BX34: 0 | BY34: 0 | BZ34: 0 | CA34: 0 | CB34: 430205.2062 | CC34: 0 | CD34: 0 | CE34: 0 | CF34: -35891.12854 | CG34: 0 | CH34: 607480.4445
A35: 1978 | C35: ='2011 to 2015 Distribution RAB'!C35 -> 333571.62 | D35: ='2011 to 2015 Distribution RAB'!D35 -> 20245103.32 | E35: ='2011 to 2015 Distribution RAB'!E35 -> 0 | F35: ='2011 to 2015 Distribution RAB'!F35 -> 0 | G35: ='2011 to 2015 Distribution RAB'!G35 -> 0 | H35: ='2011 to 2015 Distribution RAB'!H35 -> 0 | I35: ='2011 to 2015 Distribution RAB'!I35 -> 0 | J35: ='2011 to 2015 Distribution RAB'!J35 -> 0 | K35: ='2011 to 2015 Distribution RAB'!K35 -> 1171040.07 | L35: ='2011 to 2015 Distribution RAB'!L35 -> 31401.89 | M35: ='2011 to 2015 Distribution RAB'!M35 -> 0 | N35: ='2011 to 2015 Distribution RAB'!N35 -> 0 | O35: ='2011 to 2015 Distribution RAB'!O35 -> -15342879.12 | P35: ='2011 to 2015 Distribution RAB'!P35 -> 0 | Q35: 6438237.777 | S35: 1 | U35: 333571.62 | V35: 20245103.32 | W35: 0 | X35: 0 | Y35: 0 | Z35: 0 | AA35: 0 | AB35: 0 | AC35: 1171040.07 | AD35: 31401.89 | AE35: 0 | AF35: 0 | AG35: -15342879.12 | AH35: 0 | AI35: 6438237.777 | AL35: 77833.378 | AM35: 1619608.266 | AN35: 0 | AO35: 0 | AP35: 0 | AQ35: 0 | AR35: 0 | AS35: 0 | AT35: 632361.6378 | AU35: 0 | AV35: 0 | AW35: 0 | AX35: -1227430.33 | AY35: 0 | AZ35: 1102372.952 | BC35: 54941.208 | BD35: 1143252.893 | BE35: 0 | BF35: 0 | BG35: 0 | BH35: 0 | BI35: 0 | BJ35: 0 | BK35: 515257.6308 | BL35: 0 | BM35: 0 | BN35: 0 | BO35: -866421.4093 | BP35: 0 | BQ35: 847030.3229 | BT35: 22622.85035 | BU35: 470751.1914 | BV35: 0 | BW35: 0 | BX35: 0 | BY35: 0 | BZ35: 0 | CA35: 0 | CB35: 281049.6168 | CC35: 0 | CD35: 0 | CE35: 0 | CF35: -356761.7568 | CG35: 0 | CH35: 417661.9018
A36: 1979 | C36: ='2011 to 2015 Distribution RAB'!C36 -> 1106339.29 | D36: ='2011 to 2015 Distribution RAB'!D36 -> 25536226.78 | E36: ='2011 to 2015 Distribution RAB'!E36 -> 0 | F36: ='2011 to 2015 Distribution RAB'!F36 -> 0 | G36: ='2011 to 2015 Distribution RAB'!G36 -> 0 | H36: ='2011 to 2015 Distribution RAB'!H36 -> 0 | I36: ='2011 to 2015 Distribution RAB'!I36 -> 0 | J36: ='2011 to 2015 Distribution RAB'!J36 -> 29511.25 | K36: ='2011 to 2015 Distribution RAB'!K36 -> 1735434.91 | L36: ='2011 to 2015 Distribution RAB'!L36 -> 58617.45 | M36: ='2011 to 2015 Distribution RAB'!M36 -> 0 | N36: ='2011 to 2015 Distribution RAB'!N36 -> 0 | O36: ='2011 to 2015 Distribution RAB'!O36 -> -15797445.33 | P36: ='2011 to 2015 Distribution RAB'!P36 -> 0 | Q36: 12668684.35 | S36: 1 | U36: 1106339.29 | V36: 25536226.78 | W36: 0 | X36: 0 | Y36: 0 | Z36: 0 | AA36: 0 | AB36: 29511.25 | AC36: 1735434.91 | AD36: 58617.45 | AE36: 0 | AF36: 0 | AG36: -15797445.33 | AH36: 0 | AI36: 12668684.35 | AL36: 295023.8107 | AM36: 3064347.214 | AN36: 0 | AO36: 0 | AP36: 0 | AQ36: 0 | AR36: 0 | AS36: 0 | AT36: 971843.5496 | AU36: 0 | AV36: 0 | AW36: 0 | AX36: -1895693.439 | AY36: 0 | AZ36: 2435521.135 | BC36: 213072.7521 | BD36: 2213139.654 | BE36: 0 | BF36: 0 | BG36: 0 | BH36: 0 | BI36: 0 | BJ36: 0 | BK36: 798300.0586 | BL36: 0 | BM36: 0 | BN36: 0 | BO36: -1369111.928 | BP36: 0 | BQ36: 1855400.537 | BT36: 94699.00095 | BU36: 983617.6241 | BV36: 0 | BW36: 0 | BX36: 0 | BY36: 0 | BZ36: 0 | CA36: 0 | CB36: 451213.0766 | CC36: 0 | CD36: 0 | CE36: 0 | CF36: -608494.1904 | CG36: 0 | CH36: 921035.5113
A37: 1980 | C37: ='2011 to 2015 Distribution RAB'!C37 -> 1522339.45 | D37: ='2011 to 2015 Distribution RAB'!D37 -> 32884789.86 | E37: ='2011 to 2015 Distribution RAB'!E37 -> 0 | F37: ='2011 to 2015 Distribution RAB'!F37 -> 0 | G37: ='2011 to 2015 Distribution RAB'!G37 -> 0 | H37: ='2011 to 2015 Distribution RAB'!H37 -> 0 | I37: ='2011 to 2015 Distribution RAB'!I37 -> 0 | J37: ='2011 to 2015 Distribution RAB'!J37 -> 5392.58 | K37: ='2011 to 2015 Distribution RAB'!K37 -> 1030878.15 | L37: ='2011 to 2015 Distribution RAB'!L37 -> 205984.53 | M37: ='2011 to 2015 Distribution RAB'!M37 -> 14385.6238 | N37: ='2011 to 2015 Distribution RAB'!N37 -> 0 | O37: ='2011 to 2015 Distribution RAB'!O37 -> -13280189.74 | P37: ='2011 to 2015 Distribution RAB'!P37 -> 0 | Q37: 22383580.45 | S37: 1 | U37: 1522339.45 | V37: 32884789.86 | W37: 0 | X37: 0 | Y37: 0 | Z37: 0 | AA37: 0 | AB37: 5392.58 | AC37: 1030878.15 | AD37: 205984.53 | AE37: 14385.6238 | AF37: 0 | AG37: -13280189.74 | AH37: 0 | AI37: 22383580.45 | AL37: 456701.835 | AM37: 5261566.378 | AN37: 0 | AO37: 0 | AP37: 0 | AQ37: 0 | AR37: 0 | AS37: 0 | AT37: 597909.327 | AU37: 0 | AV37: 0 | AW37: 0 | AX37: -2124830.359 | AY37: 0 | AZ37: 4191347.181 | BC37: 336517.1416 | BD37: 3876943.647 | BE37: 0 | BF37: 0 | BG37: 0 | BH37: 0 | BI37: 0 | BJ37: 0 | BK37: 494821.512 | BL37: 0 | BM37: 0 | BN37: 0 | BO37: -1565664.475 | BP37: 0 | BQ37: 3142617.825 | BT37: 159402.8565 | BU37: 1836446.991 | BV37: 0 | BW37: 0 | BX37: 0 | BY37: 0 | BZ37: 0 | CA37: 0 | CB37: 288645.882 | CC37: 0 | CD37: 0 | CE37: 0 | CF37: -741630.5407 | CG37: 0 | CH37: 1542865.188
A38: 1981 | C38: ='2011 to 2015 Distribution RAB'!C38 -> 4386656.6 | D38: ='2011 to 2015 Distribution RAB'!D38 -> 36803953.12 | E38: ='2011 to 2015 Distribution RAB'!E38 -> 0 | F38: ='2011 to 2015 Distribution RAB'!F38 -> 0 | G38: ='2011 to 2015 Distribution RAB'!G38 -> 0 | H38: ='2011 to 2015 Distribution RAB'!H38 -> 0 | I38: ='2011 to 2015 Distribution RAB'!I38 -> 0 | J38: ='2011 to 2015 Distribution RAB'!J38 -> 0 | K38: ='2011 to 2015 Distribution RAB'!K38 -> 3928916.06 | L38: ='2011 to 2015 Distribution RAB'!L38 -> 285094.29 | M38: ='2011 to 2015 Distribution RAB'!M38 -> 0 | N38: ='2011 to 2015 Distribution RAB'!N38 -> 0 | O38: ='2011 to 2015 Distribution RAB'!O38 -> -15939053.49 | P38: ='2011 to 2015 Distribution RAB'!P38 -> 0 | Q38: 29465566.58 | S38: 1 | U38: 4386656.6 | V38: 36803953.12 | W38: =+E38*$S38 -> 0 | X38: 0 | Y38: 0 | Z38: 0 | AA38: 0 | AB38: 0 | AC38: 3928916.06 | AD38: 285094.29 | AE38: 0 | AF38: 0 | AG38: -15939053.49 | AH38: 0 | AI38: 29465566.58 | AL38: 1462218.867 | AM38: 7360790.624 | AN38: 0 | AO38: 0 | AP38: 0 | AQ38: 0 | AR38: 0 | AS38: 0 | AT38: 2357349.636 | AU38: 0 | AV38: 0 | AW38: 0 | AX38: -3187810.698 | AY38: 0 | AZ38: 7992548.429 | BC38: 1096664.15 | BD38: 5520592.968 | BE38: 0 | BF38: 0 | BG38: 0 | BH38: 0 | BI38: 0 | BJ38: 0 | BK38: 1964458.03 | BL38: 0 | BM38: 0 | BN38: 0 | BO38: -2390858.023 | BP38: 0 | BQ38: 6190857.125 | BT38: 548332.075 | BU38: 2760296.484 | BV38: 0 | BW38: 0 | BX38: 0 | BY38: 0 | BZ38: 0 | CA38: 0 | CB38: 1178674.818 | CC38: 0 | CD38: 0 | CE38: 0 | CF38: -1195429.012 | CG38: 0 | CH38: 3291874.365
A39: 1982 | C39: ='2011 to 2015 Distribution RAB'!C39 -> 6698911.87 | D39: ='2011 to 2015 Distribution RAB'!D39 -> 42381283.71 | E39: ='2011 to 2015 Distribution RAB'!E39 -> 0 | F39: ='2011 to 2015 Distribution RAB'!F39 -> 0 | G39: ='2011 to 2015 Distribution RAB'!G39 -> 0 | H39: ='2011 to 2015 Distribution RAB'!H39 -> 0 | I39: ='2011 to 2015 Distribution RAB'!I39 -> 0 | J39: ='2011 to 2015 Distribution RAB'!J39 -> 55732.61 | K39: ='2011 to 2015 Distribution RAB'!K39 -> 3108323.89 | L39: ='2011 to 2015 Distribution RAB'!L39 -> 300007.34 | M39: ='2011 to 2015 Distribution RAB'!M39 -> 23004.6849 | N39: ='2011 to 2015 Distribution RAB'!N39 -> 0 | O39: ='2011 to 2015 Distribution RAB'!O39 -> -17191488.11 | P39: ='2011 to 2015 Distribution RAB'!P39 -> 0 | Q39: 35375775.99 | S39: 1 | U39: =+C39*$S39 -> 6698911.87 | V39: 42381283.71 | W39: 0 | X39: 0 | Y39: 0 | Z39: 0 | AA39: 0 | AB39: 55732.61 | AC39: 3108323.89 | AD39: 300007.34 | AE39: 23004.6849 | AF39: 0 | AG39: -17191488.11 | AH39: 0 | AI39: 35375775.99 | AL39: 2456267.686 | AM39: 10171508.09 | AN39: 0 | AO39: 0 | AP39: 0 | AQ39: 0 | AR39: 0 | AS39: 0 | AT39: 1927160.812 | AU39: 0 | AV39: 0 | AW39: 0 | AX39: -4125957.147 | AY39: 0 | AZ39: 10428979.44 | BC39: 1871442.046 | BD39: 7749720.45 | BE39: 0 | BF39: 0 | BG39: 0 | BH39: 0 | BI39: 0 | BJ39: 0 | BK39: 1616328.423 | BL39: 0 | BM39: 0 | BN39: 0 | BO39: -3143586.398 | BP39: 0 | BQ39: 8093904.521 | BT39: 980279.1671 | BU39: 4059377.378 | BV39: 0 | BW39: 0 | BX39: 0 | BY39: 0 | BZ39: 0 | CA39: 0 | CB39: 994663.6448 | CC39: 0 | CD39: 0 | CE39: 0 | CF39: -1646640.494 | CG39: 0 | CH39: 4387679.696
A40: 1983 | C40: ='2011 to 2015 Distribution RAB'!C40 -> 3593919.03 | D40: ='2011 to 2015 Distribution RAB'!D40 -> 34612142.18 | E40: ='2011 to 2015 Distribution RAB'!E40 -> 0 | F40: ='2011 to 2015 Distribution RAB'!F40 -> 0 | G40: ='2011 to 2015 Distribution RAB'!G40 -> 0 | H40: ='2011 to 2015 Distribution RAB'!H40 -> 0 | I40: ='2011 to 2015 Distribution RAB'!I40 -> 0 | J40: ='2011 to 2015 Distribution RAB'!J40 -> 30579.1 | K40: ='2011 to 2015 Distribution RAB'!K40 -> 0 | L40: ='2011 to 2015 Distribution RAB'!L40 -> 164763.74 | M40: ='2011 to 2015 Distribution RAB'!M40 -> 0 | N40: ='2011 to 2015 Distribution RAB'!N40 -> 0 | O40: ='2011 to 2015 Distribution RAB'!O40 -> -16377025.49 | P40: ='2011 to 2015 Distribution RAB'!P40 -> 0 | Q40: 22024378.56 | S40: 1 | U40: 3593919.03 | V40: 34612142.18 | W40: 0 | X40: 0 | Y40: 0 | Z40: 0 | AA40: 0 | AB40: 30579.1 | AC40: 0 | AD40: 164763.74 | AE40: 0 | AF40: 0 | AG40: -16377025.49 | AH40: 0 | AI40: 22024378.56 | AL40: 1437567.612 | AM40: 9691399.81 | AN40: 0 | AO40: 0 | AP40: 0 | AQ40: 0 | AR40: 0 | AS40: 0 | AT40: 0 | AU40: 0 | AV40: 0 | AW40: 0 | AX40: -4585567.138 | AY40: 0 | AZ40: 6543400.285 | BC40: 1110847.7 | BD40: 7488808.944 | BE40: 0 | BF40: 0 | BG40: 0 | BH40: 0 | BI40: 0 | BJ40: 0 | BK40: 0 | BL40: 0 | BM40: 0 | BN40: 0 | BO40: -3543392.788 | BP40: 0 | BQ40: 5056263.856 | BT40: 605916.9274 | BU40: 4084804.879 | BV40: 0 | BW40: 0 | BX40: 0 | BY40: 0 | BZ40: 0 | CA40: 0 | CB40: 0 | CC40: 0 | CD40: 0 | CE40: 0 | CF40: -1932759.703 | CG40: 0 | CH40: 2757962.103
A41: 1984 | C41: ='2011 to 2015 Distribution RAB'!C41 -> 5277851.73 | D41: ='2011 to 2015 Distribution RAB'!D41 -> 47133201.21 | E41: ='2011 to 2015 Distribution RAB'!E41 -> 0 | F41: ='2011 to 2015 Distribution RAB'!F41 -> 0 | G41: ='2011 to 2015 Distribution RAB'!G41 -> 0 | H41: ='2011 to 2015 Distribution RAB'!H41 -> 0 | I41: ='2011 to 2015 Distribution RAB'!I41 -> 0 | J41: ='2011 to 2015 Distribution RAB'!J41 -> 31564.42 | K41: ='2011 to 2015 Distribution RAB'!K41 -> 8160463.83 | L41: ='2011 to 2015 Distribution RAB'!L41 -> 13042.75 | M41: ='2011 to 2015 Distribution RAB'!M41 -> 0 | N41: ='2011 to 2015 Distribution RAB'!N41 -> 0 | O41: ='2011 to 2015 Distribution RAB'!O41 -> -16878944.67 | P41: ='2011 to 2015 Distribution RAB'!P41 -> 0 | Q41: 43737179.27 | S41: 1 | U41: 5277851.73 | V41: 47133201.21 | W41: 0 | X41: 0 | Y41: 0 | Z41: 0 | AA41: 0 | AB41: 31564.42 | AC41: 8160463.83 | AD41: 13042.75 | AE41: 0 | AF41: 0 | AG41: -16878944.67 | AH41: 0 | AI41: 43737179.27 | AL41: 2287069.083 | AM41: 15082624.39 | AN41: 0 | AO41: 0 | AP41: 0 | AQ41: 0 | AR41: 0 | AS41: 0 | AT41: 5385906.128 | AU41: 0 | AV41: 0 | AW41: 0 | AX41: -5401262.294 | AY41: 0 | AZ41: 17354337.3 | BC41: 1789880.152 | BD41: 11803793 | BE41: 0 | BF41: 0 | BG41: 0 | BH41: 0 | BI41: 0 | BJ41: 0 | BK41: 4569859.745 | BL41: 0 | BM41: 0 | BN41: 0 | BO41: -4227074.839 | BP41: 0 | BQ41: 13936458.06 | BT41: 1011671.39 | BU41: 6671709.086 | BV41: 0 | BW41: =IF(AND(($CE$1-$A41)<BW$3,$A41<$CE$1),((BW$3-($CE$1-$A41))/(BW$3-(2006-$A41))*BF41),0) -> 0 | BX41: 0 | BY41: 0 | BZ41: 0 | CA41: 0 | CB41: 2937766.979 | CC41: 0 | CD41: 0 | CE41: 0 | CF41: -2389216.213 | CG41: 0 | CH41: 8231931.242
A42: 1985 | C42: ='2011 to 2015 Distribution RAB'!C42 -> 7545396.96 | D42: ='2011 to 2015 Distribution RAB'!D42 -> 34009357.39 | E42: ='2011 to 2015 Distribution RAB'!E42 -> 0 | F42: ='2011 to 2015 Distribution RAB'!F42 -> 0 | G42: ='2011 to 2015 Distribution RAB'!G42 -> 0 | H42: ='2011 to 2015 Distribution RAB'!H42 -> 0 | I42: ='2011 to 2015 Distribution RAB'!I42 -> 0 | J42: ='2011 to 2015 Distribution RAB'!J42 -> 0 | K42: ='2011 to 2015 Distribution RAB'!K42 -> 237537.51 | L42: ='2011 to 2015 Distribution RAB'!L42 -> 121059.36 | M42: ='2011 to 2015 Distribution RAB'!M42 -> 0 | N42: ='2011 to 2015 Distribution RAB'!N42 -> 0 | O42: ='2011 to 2015 Distribution RAB'!O42 -> -17449057.03 | P42: ='2011 to 2015 Distribution RAB'!P42 -> 0 | Q42: 24464294.19 | S42: 1 | U42: 7545396.96 | V42: 34009357.39 | W42: 0 | X42: 0 | Y42: 0 | Z42: 0 | AA42: 0 | AB42: 0 | AC42: 237537.51 | AD42: 121059.36 | AE42: 0 | AF42: 0 | AG42: -17449057.03 | AH42: 0 | AI42: 24464294.19 | AL42: 3521185.248 | AM42: 12243368.66 | AN42: 0 | AO42: 0 | AP42: 0 | AQ42: 0 | AR42: 0 | AS42: 0 | AT42: 161525.5068 | AU42: 0 | AV42: 0 | AW42: 0 | AX42: -6281660.531 | AY42: 0 | AZ42: 9644418.884 | BC42: 2787604.988 | BD42: 9692666.856 | BE42: 0 | BF42: 0 | BG42: 0 | BH42: 0 | BI42: 0 | BJ42: 0 | BK42: 137771.7558 | BL42: 0 | BM42: 0 | BN42: 0 | BO42: -4972981.254 | BP42: 0 | BQ42: 7645062.346 | BT42: =IF(AND(($CE$1-$A42)<BT$3,$A42<$CE$1),((BT$3-($CE$1-$A42))/(BT$3-(2006-$A42))*BC42),0) -> 1626102.91 | BU42: 5654055.666 | BV42: 0 | BW42: 0 | BX42: 0 | BY42: 0 | BZ42: 0 | CA42: 0 | CB42: 90264.2538 | CC42: 0 | CD42: 0 | CE42: 0 | CF42: -2900905.731 | CG42: 0 | CH42: 4469517.098
A43: 1986 | C43: ='2011 to 2015 Distribution RAB'!C43 -> 2805191.69 | D43: ='2011 to 2015 Distribution RAB'!D43 -> 33005357.2 | E43: ='2011 to 2015 Distribution RAB'!E43 -> 0 | F43: ='2011 to 2015 Distribution RAB'!F43 -> 0 | G43: ='2011 to 2015 Distribution RAB'!G43 -> 0 | H43: ='2011 to 2015 Distribution RAB'!H43 -> 0 | I43: ='2011 to 2015 Distribution RAB'!I43 -> 0 | J43: ='2011 to 2015 Distribution RAB'!J43 -> 0 | K43: ='2011 to 2015 Distribution RAB'!K43 -> 88493.12 | L43: ='2011 to 2015 Distribution RAB'!L43 -> 82275.21 | M43: ='2011 to 2015 Distribution RAB'!M43 -> 14960.8047 | N43: ='2011 to 2015 Distribution RAB'!N43 -> 0 | O43: ='2011 to 2015 Distribution RAB'!O43 -> -18162332.35 | P43: ='2011 to 2015 Distribution RAB'!P43 -> 0 | Q43: 17833945.67 | S43: 1 | U43: 2805191.69 | V43: 33005357.2 | W43: 0 | X43: 0 | Y43: 0 | Z43: 0 | AA43: 0 | AB43: 0 | AC43: 88493.12 | AD43: 82275.21 | AE43: 14960.8047 | AF43: 0 | AG43: -18162332.35 | AH43: 0 | AI43: 17833945.67 | AL43: 1402595.845 | AM43: 13202142.88 | AN43: 0 | AO43: 0 | AP43: 0 | AQ43: 0 | AR43: 0 | AS43: 0 | AT43: 61945.184 | AU43: 0 | AV43: 0 | AW43: 0 | AX43: -7264932.941 | AY43: 0 | AZ43: 7401750.968 | BC43: 1122076.676 | BD43: 10561714.3 | BE43: 0 | BF43: 0 | BG43: 0 | BH43: 0 | BI43: 0 | BJ43: 0 | BK43: 53095.872 | BL43: 0 | BM43: 0 | BN43: 0 | BO43: -5811946.353 | BP43: 0 | BQ43: 5924940.499 | BT43: 673246.0056 | BU43: 6337028.582 | BV43: 0 | BW43: 0 | BX43: 0 | BY43: 0 | BZ43: 0 | CA43: 0 | CB43: 35397.248 | CC43: 0 | CD43: 0 | CE43: 0 | CF43: -3487167.812 | CG43: 0 | CH43: 3558504.024
A44: 1987 | C44: ='2011 to 2015 Distribution RAB'!C44 -> 1787226.19 | D44: ='2011 to 2015 Distribution RAB'!D44 -> 50918902.19 | E44: ='2011 to 2015 Distribution RAB'!E44 -> 0 | F44: ='2011 to 2015 Distribution RAB'!F44 -> 0 | G44: ='2011 to 2015 Distribution RAB'!G44 -> 0 | H44: ='2011 to 2015 Distribution RAB'!H44 -> 0 | I44: ='2011 to 2015 Distribution RAB'!I44 -> 0 | J44: ='2011 to 2015 Distribution RAB'!J44 -> 65928.61 | K44: ='2011 to 2015 Distribution RAB'!K44 -> 994151.58 | L44: ='2011 to 2015 Distribution RAB'!L44 -> 187026.05 | M44: ='2011 to 2015 Distribution RAB'!M44 -> 300290.0586 | N44: ='2011 to 2015 Distribution RAB'!N44 -> 0 | O44: ='2011 to 2015 Distribution RAB'!O44 -> -14741658.18 | P44: ='2011 to 2015 Distribution RAB'!P44 -> 0 | Q44: 39511866.5 | S44: 1 | U44: 1787226.19 | V44: 50918902.19 | W44: 0 | X44: 0 | Y44: 0 | Z44: 0 | AA44: 0 | AB44: 65928.61 | AC44: 994151.58 | AD44: 187026.05 | AE44: 300290.0586 | AF44: 0 | AG44: -14741658.18 | AH44: 0 | AI44: 39511866.5 | AL44: 953187.3013 | AM44: 22404316.96 | AN44: 0 | AO44: 0 | AP44: 0 | AQ44: 0 | AR44: 0 | AS44: 0 | AT44: 715789.1376 | AU44: 0 | AV44: 20019.33724 | AW44: 0 | AX44: -6486329.599 | AY44: 0 | AZ44: 17606983.14 | BC44: 769882.0511 | BD44: 18095794.47 | BE44: 0 | BF44: 0 | BG44: 0 | BH44: 0 | BI44: 0 | BJ44: 0 | BK44: 616373.9796 | BL44: 0 | BM44: 0 | BN44: 0 | BO44: -5238958.522 | BP44: 0 | BQ44: 14243091.98 | BT44: 473773.5699 | BU44: 11135873.52 | BV44: 0 | BW44: 0 | BX44: 0 | BY44: 0 | BZ44: 0 | CA44: 0 | CB44: 417543.6636 | CC44: 0 | CD44: 0 | CE44: 0 | CF44: -3223974.475 | CG44: 0 | CH44: 8803216.279
A45: 1988 | C45: ='2011 to 2015 Distribution RAB'!C45 -> 1672278.08 | D45: ='2011 to 2015 Distribution RAB'!D45 -> 52465543.22 | E45: ='2011 to 2015 Distribution RAB'!E45 -> 0 | F45: ='2011 to 2015 Distribution RAB'!F45 -> 0 | G45: ='2011 to 2015 Distribution RAB'!G45 -> 0 | H45: ='2011 to 2015 Distribution RAB'!H45 -> 0 | I45: ='2011 to 2015 Distribution RAB'!I45 -> 0 | J45: ='2011 to 2015 Distribution RAB'!J45 -> 0 | K45: ='2011 to 2015 Distribution RAB'!K45 -> 3304204.15 | L45: ='2011 to 2015 Distribution RAB'!L45 -> 168203.48 | M45: ='2011 to 2015 Distribution RAB'!M45 -> 148307.4128 | N45: ='2011 to 2015 Distribution RAB'!N45 -> 0 | O45: ='2011 to 2015 Distribution RAB'!O45 -> -12125997.9 | P45: ='2011 to 2015 Distribution RAB'!P45 -> 0 | Q45: 45632538.44 | S45: 1 | U45: 1672278.08 | V45: 52465543.22 | W45: 0 | X45: 0 | Y45: 0 | Z45: 0 | AA45: 0 | AB45: 0 | AC45: 3304204.15 | AD45: 168203.48 | AE45: 148307.4128 | AF45: 0 | AG45: -12125997.9 | AH45: 0 | AI45: 45632538.44 | AL45: 947624.2453 | AM45: 25183460.75 | AN45: 0 | AO45: 0 | AP45: 0 | AQ45: 0 | AR45: 0 | AS45: 0 | AT45: 2445111.071 | AU45: 0 | AV45: 19774.32171 | AW45: 0 | AX45: -5820478.992 | AY45: 0 | AZ45: 22775491.39 | BC45: 772138.274 | BD45: 20519856.9 | BE45: 0 | BF45: 0 | BG45: 0 | BH45: 0 | BI45: 0 | BJ45: 0 | BK45: 2114690.656 | BL45: 0 | BM45: 0 | BN45: 0 | BO45: -4742612.512 | BP45: 0 | BQ45: 18664073.32 | BT45: 486161.1355 | BU45: 12919909.9 | BV45: 0 | BW45: 0 | BX45: 0 | BY45: 0 | BZ45: 0 | CA45: 0 | CB45: 1453849.826 | CC45: 0 | CD45: 0 | CE45: 0 | CF45: -2986089.359 | CG45: 0 | CH45: 11873831.5
A46: 1989 | C46: ='2011 to 2015 Distribution RAB'!C46 -> 996376.18 | D46: ='2011 to 2015 Distribution RAB'!D46 -> 57928050.07 | E46: ='2011 to 2015 Distribution RAB'!E46 -> 0 | F46: ='2011 to 2015 Distribution RAB'!F46 -> 0 | G46: ='2011 to 2015 Distribution RAB'!G46 -> 0 | H46: ='2011 to 2015 Distribution RAB'!H46 -> 0 | I46: ='2011 to 2015 Distribution RAB'!I46 -> 0 | J46: ='2011 to 2015 Distribution RAB'!J46 -> 135959.75 | K46: ='2011 to 2015 Distribution RAB'!K46 -> 2171557.56 | L46: ='2011 to 2015 Distribution RAB'!L46 -> 166250.61 | M46: ='2011 to 2015 Distribution RAB'!M46 -> 738400.0646 | N46: ='2011 to 2015 Distribution RAB'!N46 -> 0 | O46: ='2011 to 2015 Distribution RAB'!O46 -> -15019730.8 | P46: ='2011 to 2015 Distribution RAB'!P46 -> 0 | Q46: 47116863.43 | S46: 1 | U46: 996376.18 | V46: 57928050.07 | W46: 0 | X46: 0 | Y46: 0 | Z46: 0 | AA46: 0 | AB46: 135959.75 | AC46: 2171557.56 | AD46: 166250.61 | AE46: 738400.0646 | AF46: 0 | AG46: -15019730.8 | AH46: 0 | AI46: 47116863.43 | AL46: 597825.708 | AM46: 30122586.04 | AN46: 0 | AO46: 0 | AP46: 0 | AQ46: 0 | AR46: =IF(AND(($AX$1-$A46)<AR$3,$A46<$AX$1),((AR$3-($AX$1-$A46))/AR$3*AA46),0) -> 0 | AS46: 0 | AT46: 1650383.746 | AU46: 0 | AV46: 147680.0129 | AW46: 0 | AX46: -7810260.017 | AY46: 0 | AZ46: 24708215.49 | BC46: 491071.1173 | BD46: 24743552.82 | BE46: 0 | BF46: 0 | BG46: 0 | BH46: 0 | BI46: =IF(AND(($BO$1-$A46)<BI$3,$A46<$BO$1),((BI$3-($BO$1-$A46))/(BI$3-(2001-$A46))*AR46),0) -> 0 | BJ46: 0 | BK46: 1433227.99 | BL46: 0 | BM46: 0 | BN46: 0 | BO46: -6415570.728 | BP46: 0 | BQ46: 20252281.19 | BT46: 315688.5754 | BU46: 15906569.67 | BV46: 0 | BW46: 0 | BX46: 0 | BY46: 0 | BZ46: 0 | CA46: 0 | CB46: 998916.4776 | CC46: 0 | CD46: 0 | CE46: 0 | CF46: -4124295.468 | CG46: 0 | CH46: 13096879.25
A47: 1990 | C47: ='2011 to 2015 Distribution RAB'!C47 -> 3171753.66 | D47: ='2011 to 2015 Distribution RAB'!D47 -> 64882462.31 | E47: ='2011 to 2015 Distribution RAB'!E47 -> 0 | F47: ='2011 to 2015 Distribution RAB'!F47 -> 0 | G47: ='2011 to 2015 Distribution RAB'!G47 -> 0 | H47: ='2011 to 2015 Distribution RAB'!H47 -> 0 | I47: ='2011 to 2015 Distribution RAB'!I47 -> 0 | J47: ='2011 to 2015 Distribution RAB'!J47 -> 335492.75 | K47: ='2011 to 2015 Distribution RAB'!K47 -> 6109579.83 | L47: ='2011 to 2015 Distribution RAB'!L47 -> 293086 | M47: ='2011 to 2015 Distribution RAB'!M47 -> 1129549.878 | N47: ='2011 to 2015 Distribution RAB'!N47 -> 0 | O47: ='2011 to 2015 Distribution RAB'!O47 -> -18314700.91 | P47: ='2011 to 2015 Distribution RAB'!P47 -> 0 | Q47: 57607223.52 | S47: 1 | U47: 3171753.66 | V47: 64882462.31 | W47: 0 | X47: 0 | Y47: 0 | Z47: 0 | AA47: 0 | AB47: 335492.75 | AC47: 6109579.83 | AD47: 293086 | AE47: 1129549.878 | AF47: 0 | AG47: -18314700.91 | AH47: 0 | AI47: 57607223.52 | AL47: 2008777.318 | AM47: 36334178.89 | AN47: 0 | AO47: 0 | AP47: 0 | AQ47: 0 | AR47: 0 | AS47: 0 | AT47: 4765472.267 | AU47: 0 | AV47: 301213.3007 | AW47: 0 | AX47: -10256232.51 | AY47: 0 | AZ47: 33153409.27 | BC47: 1662436.401 | BD47: 30069665.29 | BE47: 0 | BF47: 0 | BG47: 0 | BH47: 0 | BI47: 0 | BJ47: 0 | BK47: 4154514.284 | BL47: 0 | BM47: 0 | BN47: 0 | BO47: -8487916.561 | BP47: 0 | BQ47: 27398699.42 | BT47: 1089182.47 | BU47: 19700815.19 | BV47: 0 | BW47: 0 | BX47: 0 | BY47: 0 | BZ47: 0 | CA47: 0 | CB47: 2932598.318 | CC47: 0 | CD47: 0 | CE47: 0 | CF47: -5561048.781 | CG47: 0 | CH47: 18161547.2
A48: 1991 | C48: ='2011 to 2015 Distribution RAB'!C48 -> 2419623.04 | D48: ='2011 to 2015 Distribution RAB'!D48 -> 86593877.49 | E48: ='2011 to 2015 Distribution RAB'!E48 -> 0 | F48: ='2011 to 2015 Distribution RAB'!F48 -> 0 | G48: ='2011 to 2015 Distribution RAB'!G48 -> 0 | H48: ='2011 to 2015 Distribution RAB'!H48 -> 0 | I48: ='2011 to 2015 Distribution RAB'!I48 -> 159325.7107 | J48: ='2011 to 2015 Distribution RAB'!J48 -> 290442.43 | K48: ='2011 to 2015 Distribution RAB'!K48 -> 3055160.02 | L48: ='2011 to 2015 Distribution RAB'!L48 -> 361283.65 | M48: ='2011 to 2015 Distribution RAB'!M48 -> 616638.3217 | N48: ='2011 to 2015 Distribution RAB'!N48 -> 0 | O48: ='2011 to 2015 Distribution RAB'!O48 -> -15545402.33 | P48: ='2011 to 2015 Distribution RAB'!P48 -> 0 | Q48: 77950948.33 | S48: 1 | U48: 2419623.04 | V48: 86593877.49 | W48: 0 | X48: 0 | Y48: 0 | Z48: 0 | AA48: 159325.7107 | AB48: 290442.43 | AC48: 3055160.02 | AD48: 361283.65 | AE48: 616638.3217 | AF48: 0 | AG48: -15545402.33 | AH48: 0 | AI48: 77950948.33 | AL48: 1613082.027 | AM48: 51956326.49 | AN48: 0 | AO48: 0 | AP48: 0 | AQ48: 0 | AR48: 53108.57023 | AS48: 0 | AT48: 2444128.016 | AU48: 0 | AV48: 205546.1072 | AW48: 0 | AX48: -9327241.4 | AY48: 0 | AZ48: 46944949.81 | BC48: 1344235.022 | BD48: 43296938.75 | BE48: 0 | BF48: 0 | BG48: 0 | BH48: 0 | BI48: 0 | BJ48: 0 | BK48: 2138612.014 | BL48: 0 | BM48: 0 | BN48: 0 | BO48: -7772701.167 | BP48: 0 | BQ48: 39007084.61 | BT48: 896156.6815 | BU48: 28864625.83 | BV48: 0 | BW48: 0 | BX48: 0 | BY48: 0 | BZ48: 0 | CA48: 0 | CB48: 1527580.01 | CC48: 0 | CD48: 0 | CE48: 0 | CF48: -5181800.778 | CG48: 0 | CH48: 26106561.74
A49: 1992 | C49: ='2011 to 2015 Distribution RAB'!C49 -> 1851909.17 | D49: ='2011 to 2015 Distribution RAB'!D49 -> 50758966.79 | E49: ='2011 to 2015 Distribution RAB'!E49 -> 0 | F49: ='2011 to 2015 Distribution RAB'!F49 -> 0 | G49: ='2011 to 2015 Distribution RAB'!G49 -> 0 | H49: ='2011 to 2015 Distribution RAB'!H49 -> 0 | I49: ='2011 to 2015 Distribution RAB'!I49 -> 2422136.424 | J49: ='2011 to 2015 Distribution RAB'!J49 -> 718916.81 | K49: ='2011 to 2015 Distribution RAB'!K49 -> 1290707.81 | L49: ='2011 to 2015 Distribution RAB'!L49 -> 324729.16 | M49: ='2011 to 2015 Distribution RAB'!M49 -> 1927300.498 | N49: ='2011 to 2015 Distribution RAB'!N49 -> 0 | O49: ='2011 to 2015 Distribution RAB'!O49 -> -16642507.98 | P49: ='2011 to 2015 Distribution RAB'!P49 -> 0 | Q49: 42652158.68 | S49: 1 | U49: 1851909.17 | V49: 50758966.79 | W49: 0 | X49: 0 | Y49: 0 | Z49: 0 | AA49: 2422136.424 | AB49: 718916.81 | AC49: 1290707.81 | AD49: 324729.16 | AE49: 1927300.498 | AF49: 0 | AG49: -16642507.98 | AH49: 0 | AI49: 42652158.68 | AL49: 1296336.419 | AM49: 32485738.75 | AN49: 0 | AO49: 0 | AP49: 0 | AQ49: 0 | AR49: 968854.5697 | AS49: 0 | AT49: 1058380.404 | AU49: 0 | AV49: 770920.1992 | AW49: 0 | AX49: -10651205.11 | AY49: 0 | AZ49: 25929025.23 | BC49: 1087249.9 | BD49: 27246103.46 | BE49: 0 | BF49: 0 | BG49: 0 | BH49: 0 | BI49: 161475.7616 | BJ49: 0 | BK49: 929309.6232 | BL49: 0 | BM49: 128486.6999 | BN49: 0 | BO49: -8933268.801 | BP49: 0 | BQ49: 20619356.65 | BT49: 736524.1257 | BU49: 18457037.83 | BV49: 0 | BW49: 0 | BX49: 0 | BY49: 0 | BZ49: 0 | CA49: 0 | CB49: 671168.0612 | CC49: 0 | CD49: 0 | CE49: 0 | CF49: -6051569.188 | CG49: 0 | CH49: 13813160.83
A50: 1993 | C50: ='2011 to 2015 Distribution RAB'!C50 -> 6956025.44 | D50: ='2011 to 2015 Distribution RAB'!D50 -> 105102669.7 | E50: ='2011 to 2015 Distribution RAB'!E50 -> 0 | F50: ='2011 to 2015 Distribution RAB'!F50 -> 0 | G50: ='2011 to 2015 Distribution RAB'!G50 -> 0 | H50: ='2011 to 2015 Distribution RAB'!H50 -> 0 | I50: ='2011 to 2015 Distribution RAB'!I50 -> 940606.769 | J50: ='2011 to 2015 Distribution RAB'!J50 -> 1577861.65 | K50: ='2011 to 2015 Distribution RAB'!K50 -> 3309484.68 | L50: ='2011 to 2015 Distribution RAB'!L50 -> 494036.03 | M50: ='2011 to 2015 Distribution RAB'!M50 -> 3410538.449 | N50: ='2011 to 2015 Distribution RAB'!N50 -> 0 | O50: ='2011 to 2015 Distribution RAB'!O50 -> -14243920.88 | P50: ='2011 to 2015 Distribution RAB'!P50 -> 0 | Q50: 107547301.9 | S50: 1 | U50: 6956025.44 | V50: 105102669.7 | W50: 0 | X50: 0 | Y50: 0 | Z50: 0 | AA50: 940606.769 | AB50: 1577861.65 | AC50: 3309484.68 | AD50: 494036.03 | AE50: 3410538.449 | AF50: 0 | AG50: -14243920.88 | AH50: 0 | AI50: 107547301.9 | AL50: 5101085.323 | AM50: 71469815.42 | AN50: 0 | AO50: 0 | AP50: 0 | AQ50: 0 | AR50: 438949.8255 | AS50: 0 | AT50: 2779967.131 | AU50: 0 | AV50: 1591584.61 | AW50: 0 | AX50: -9685866.201 | AY50: 0 | AZ50: 71695536.11 | BC50: 4304040.741 | BD50: 60302656.76 | BE50: 0 | BF50: 0 | BG50: 0 | BH50: 0 | BI50: 125414.2359 | BJ50: 0 | BK50: 2449018.663 | BL50: 0 | BM50: 454738.4599 | BN50: 0 | BO50: -8172449.607 | BP50: 0 | BQ50: 59463419.26 | BT50: 2959028.009 | BU50: 41458076.52 | BV50: 0 | BW50: 0 | BX50: 0 | BY50: 0 | BZ50: 0 | CA50: 0 | CB50: 1787121.727 | CC50: 0 | CD50: 0 | CE50: 0 | CF50: -5618559.105 | CG50: 0 | CH50: 40585667.16
A51: 1994 | C51: ='2011 to 2015 Distribution RAB'!C51 -> 10121188.18 | D51: ='2011 to 2015 Distribution RAB'!D51 -> 101425375.1 | E51: ='2011 to 2015 Distribution RAB'!E51 -> 0 | F51: ='2011 to 2015 Distribution RAB'!F51 -> 0 | G51: ='2011 to 2015 Distribution RAB'!G51 -> 56883.5645 | H51: ='2011 to 2015 Distribution RAB'!H51 -> 343253.5508 | I51: ='2011 to 2015 Distribution RAB'!I51 -> 520943.1172 | J51: ='2011 to 2015 Distribution RAB'!J51 -> 3090444.71 | K51: ='2011 to 2015 Distribution RAB'!K51 -> 1036163.2 | L51: ='2011 to 2015 Distribution RAB'!L51 -> 1740276.37 | M51: ='2011 to 2015 Distribution RAB'!M51 -> 3399403.131 | N51: ='2011 to 2015 Distribution RAB'!N51 -> 0 | O51: ='2011 to 2015 Distribution RAB'!O51 -> -19359695.29 | P51: ='2011 to 2015 Distribution RAB'!P51 -> 0 | Q51: 102374235.7 | S51: 1 | U51: 10121188.18 | V51: 101425375.1 | W51: 0 | X51: 0 | Y51: 56883.5645 | Z51: 343253.5508 | AA51: 520943.1172 | AB51: 3090444.71 | AC51: 1036163.2 | AD51: 1740276.37 | AE51: 3399403.131 | AF51: 0 | AG51: -19359695.29 | AH51: 0 | AI51: 102374235.7 | AL51: 7759577.605 | AM51: 73026270.09 | AN51: 0 | AO51: 0 | AP51: 17065.06935 | AQ51: 0 | AR51: 277836.3292 | AS51: 0 | AT51: 891100.352 | AU51: 0 | AV51: 1813015.003 | AW51: 0 | AX51: -13938980.61 | AY51: 0 | AZ51: 69845883.84 | BC51: 6583884.028 | BD51: 61961683.71 | BE51: 0 | BF51: 0 | BG51: 0 | BH51: 0 | BI51: 104188.6234 | BJ51: 0 | BK51: 787484.032 | BL51: 0 | BM51: 679880.6261 | BN51: 0 | BO51: -11827013.85 | BP51: 0 | BQ51: 58290107.17 | BT51: 4588767.656 | BU51: 43185415.92 | BV51: 0 | BW51: 0 | BX51: 0 | BY51: 0 | BZ51: 0 | CA51: 0 | CB51: 580251.392 | CC51: 0 | CD51: 0 | CE51: 0 | CF51: -8243070.257 | CG51: 0 | CH51: 40111364.71
A52: 1995 | C52: ='2011 to 2015 Distribution RAB'!C52 -> 6599715.06 | D52: ='2011 to 2015 Distribution RAB'!D52 -> 114724692.7 | E52: ='2011 to 2015 Distribution RAB'!E52 -> 0 | F52: ='2011 to 2015 Distribution RAB'!F52 -> 0 | G52: ='2011 to 2015 Distribution RAB'!G52 -> 162029.1783 | H52: ='2011 to 2015 Distribution RAB'!H52 -> 55208.5297 | I52: ='2011 to 2015 Distribution RAB'!I52 -> 427636.1012 | J52: ='2011 to 2015 Distribution RAB'!J52 -> 3323694.36 | K52: ='2011 to 2015 Distribution RAB'!K52 -> 1879386.32 | L52: ='2011 to 2015 Distribution RAB'!L52 -> 1065410.18 | M52: ='2011 to 2015 Distribution RAB'!M52 -> 903201.6872 | N52: ='2011 to 2015 Distribution RAB'!N52 -> 0 | O52: ='2011 to 2015 Distribution RAB'!O52 -> -22106138.58 | P52: ='2011 to 2015 Distribution RAB'!P52 -> 0 | Q52: 107034835.5 | S52: 1 | U52: 6599715.06 | V52: 114724692.7 | W52: 0 | X52: 0 | Y52: 162029.1783 | Z52: 55208.5297 | AA52: 427636.1012 | AB52: 3323694.36 | AC52: 1879386.32 | AD52: 1065410.18 | AE52: 903201.6872 | AF52: 0 | AG52: -22106138.58 | AH52: 0 | AI52: 107034835.5 | AL52: 5279772.048 | AM52: 87190766.45 | AN52: 0 | AO52: 0 | AP52: 64811.67132 | AQ52: 0 | AR52: 256581.6607 | AS52: 474813.48 | AT52: 1653859.962 | AU52: 0 | AV52: 541921.0123 | AW52: 0 | AX52: -16800665.32 | AY52: 0 | AZ52: 78661860.97 | BC52: 4503334.982 | BD52: 74368594.91 | BE52: 0 | BF52: 0 | BG52: 0 | BH52: 0 | BI52: 114036.2937 | BJ52: 0 | BK52: 1465921.33 | BL52: 0 | BM52: 240853.7833 | BN52: 0 | BO52: -14329979.24 | BP52: 0 | BQ52: 66362762.06 | BT52: 3178824.693 | BU52: 52495478.76 | BV52: 0 | BW52: 0 | BX52: 0 | BY52: 0 | BZ52: 0 | CA52: 0 | CB52: 1090044.066 | CC52: 0 | CD52: 0 | CE52: 0 | CF52: -10115279.47 | CG52: 0 | CH52: 46649068.06
A53: 1996 | C53: ='2011 to 2015 Distribution RAB'!C53 -> 5899441.43 | D53: ='2011 to 2015 Distribution RAB'!D53 -> 121523642.4 | E53: ='2011 to 2015 Distribution RAB'!E53 -> 0 | F53: ='2011 to 2015 Distribution RAB'!F53 -> 0 | G53: ='2011 to 2015 Distribution RAB'!G53 -> 22879.0505 | H53: ='2011 to 2015 Distribution RAB'!H53 -> 247898.2925 | I53: ='2011 to 2015 Distribution RAB'!I53 -> 338531.4356 | J53: ='2011 to 2015 Distribution RAB'!J53 -> 3858744.23 | K53: ='2011 to 2015 Distribution RAB'!K53 -> 6151835.27 | L53: ='2011 to 2015 Distribution RAB'!L53 -> 1435165.95 | M53: ='2011 to 2015 Distribution RAB'!M53 -> 439186.4635 | N53: ='2011 to 2015 Distribution RAB'!N53 -> 0 | O53: ='2011 to 2015 Distribution RAB'!O53 -> -28316670.86 | P53: ='2011 to 2015 Distribution RAB'!P53 -> 0 | Q53: 111600653.7 | S53: 1 | U53: 5899441.43 | V53: 121523642.4 | W53: 0 | X53: 0 | Y53: 22879.0505 | Z53: 247898.2925 | AA53: 338531.4356 | AB53: 3858744.23 | AC53: 6151835.27 | AD53: 1435165.95 | AE53: 439186.4635 | AF53: 0 | AG53: -28316670.86 | AH53: 0 | AI53: 111600653.7 | AL53: 4916201.192 | AM53: 97218913.94 | AN53: 0 | AO53: 0 | AP53: 11439.52525 | AQ53: 0 | AR53: 225687.6237 | AS53: 1102498.351 | AT53: 5536651.743 | AU53: 0 | AV53: 292790.9757 | AW53: 0 | AX53: -22653336.68 | AY53: 0 | AZ53: 86650846.66 | BC53: 4213886.736 | BD53: 83330497.66 | BE53: 0 | BF53: 0 | BG53: 0 | BH53: 0 | BI53: 112843.8119 | BJ53: 0 | BK53: 4921468.216 | BL53: 0 | BM53: 146395.4878 | BN53: 0 | BO53: -19417145.73 | BP53: 0 | BQ53: 73307946.18 | BT53: 3009919.097 | BU53: 59521784.04 | BV53: 0 | BW53: 0 | BX53: 0 | BY53: 0 | BZ53: 0 | CA53: 0 | CB53: 3691101.162 | CC53: 0 | CD53: 0 | CE53: 0 | CF53: -13869389.81 | CG53: 0 | CH53: 52353414.49
A54: 1997 | C54: ='2011 to 2015 Distribution RAB'!C54 -> 4924663.94 | D54: ='2011 to 2015 Distribution RAB'!D54 -> 141074173.7 | E54: ='2011 to 2015 Distribution RAB'!E54 -> 0 | F54: ='2011 to 2015 Distribution RAB'!F54 -> 0 | G54: ='2011 to 2015 Distribution RAB'!G54 -> 17338.27 | H54: ='2011 to 2015 Distribution RAB'!H54 -> 224840.13 | I54: ='2011 to 2015 Distribution RAB'!I54 -> 0 | J54: ='2011 to 2015 Distribution RAB'!J54 -> 5917408.96 | K54: ='2011 to 2015 Distribution RAB'!K54 -> 2458777.74 | L54: ='2011 to 2015 Distribution RAB'!L54 -> 621269.2 | M54: ='2011 to 2015 Distribution RAB'!M54 -> 529492.21 | N54: ='2011 to 2015 Distribution RAB'!N54 -> 0 | O54: ='2011 to 2015 Distribution RAB'!O54 -> -34155952.2 | P54: ='2011 to 2015 Distribution RAB'!P54 -> 0 | Q54: 121612012 | S54: 1 | U54: 4924663.94 | V54: 141074173.7 | W54: 0 | X54: 0 | Y54: 17338.27 | Z54: 224840.13 | AA54: 0 | AB54: 5917408.96 | AC54: 2458777.74 | AD54: 621269.2 | AE54: 529492.21 | AF54: 0 | AG54: -34155952.2 | AH54: 0 | AI54: 121612012 | AL54: 4268042.081 | AM54: 118502305.9 | AN54: 0 | AO54: 0 | AP54: 10402.962 | AQ54: 44968.026 | AR54: 0 | AS54: 2536032.411 | AT54: 2262075.521 | AU54: 124253.84 | AV54: 388294.2873 | AW54: 0 | AX54: -28690999.85 | AY54: 0 | AZ54: 99445375.22 | BC54: 3675258.459 | BD54: 102043652.3 | BE54: 0 | BF54: 0 | BG54: 1733.827 | BH54: 0 | BI54: 0 | BJ54: 0 | BK54: 2016197.747 | BL54: 0 | BM54: 211796.884 | BN54: 0 | BO54: -24706138.76 | BP54: 0 | BQ54: 83242500.5 | BT54: 2654353.331 | BU54: 73698193.36 | BV54: 0 | BW54: 0 | BX54: 0 | BY54: 0 | BZ54: 0 | CA54: 0 | CB54: 1524442.199 | CC54: 0 | CD54: 0 | CE54: 0 | CF54: -17843322.44 | CG54: 0 | CH54: 60033666.45
A55: 1998 | C55: ='2011 to 2015 Distribution RAB'!C55 -> 14761618.45 | D55: ='2011 to 2015 Distribution RAB'!D55 -> 189654100.9 | E55: ='2011 to 2015 Distribution RAB'!E55 -> 5463651.21 | F55: ='2011 to 2015 Distribution RAB'!F55 -> 0 | G55: ='2011 to 2015 Distribution RAB'!G55 -> 51706.27 | H55: ='2011 to 2015 Distribution RAB'!H55 -> 173627.79 | I55: ='2011 to 2015 Distribution RAB'!I55 -> 0 | J55: ='2011 to 2015 Distribution RAB'!J55 -> 12421795.29 | K55: ='2011 to 2015 Distribution RAB'!K55 -> 4260430.76 | L55: ='2011 to 2015 Distribution RAB'!L55 -> 3010951.51 | M55: ='2011 to 2015 Distribution RAB'!M55 -> 1200717.66 | N55: ='2011 to 2015 Distribution RAB'!N55 -> 0 | O55: ='2011 to 2015 Distribution RAB'!O55 -> -36918054.09 | P55: ='2011 to 2015 Distribution RAB'!P55 -> 0 | Q55: 194080545.8 | S55: 1 | U55: 14761618.45 | V55: 189654100.9 | W55: 5463651.21 | X55: 0 | Y55: 51706.27 | Z55: 173627.79 | AA55: 0 | AB55: 12421795.29 | AC55: 4260430.76 | AD55: 3010951.51 | AE55: 1200717.66 | AF55: 0 | AG55: -36918054.09 | AH55: 0 | AI55: 194080545.8 | AL55: 13285456.61 | AM55: 166895608.8 | AN55: 2185460.484 | AO55: 0 | AP55: 36194.389 | AQ55: 69451.116 | AR55: 0 | AS55: 7098168.737 | AT55: 4004804.914 | AU55: 1204380.604 | AV55: 960574.128 | AW55: 0 | AX55: -32487887.6 | AY55: 0 | AZ55: 163252212.2 | BC55: 11490124.63 | BD55: 144342148.2 | BE55: 0 | BF55: 0 | BG55: 10341.254 | BH55: 0 | BI55: 0 | BJ55: 0 | BK55: 3578761.838 | BL55: 0 | BM55: 560334.908 | BN55: 0 | BO55: -28097632.52 | BP55: 0 | BQ55: 131884078.3 | BT55: 8384685.542 | BU55: 105330756.8 | BV55: 0 | BW55: 0 | BX55: 0 | BY55: 0 | BZ55: 0 | CA55: 0 | CB55: 2726675.686 | CC55: 0 | CD55: 0 | CE55: 0 | CF55: -20503677.79 | CG55: 0 | CH55: 95938440.21
A56: 1999 | C56: ='2011 to 2015 Distribution RAB'!C56 -> 15187269.75 | D56: ='2011 to 2015 Distribution RAB'!D56 -> 230993452.7 | E56: ='2011 to 2015 Distribution RAB'!E56 -> 1978822.46 | F56: ='2011 to 2015 Distribution RAB'!F56 -> 0 | G56: ='2011 to 2015 Distribution RAB'!G56 -> 252274.56 | H56: ='2011 to 2015 Distribution RAB'!H56 -> 355029.69 | I56: ='2011 to 2015 Distribution RAB'!I56 -> 0 | J56: ='2011 to 2015 Distribution RAB'!J56 -> 10152016.84 | K56: ='2011 to 2015 Distribution RAB'!K56 -> 523000.39 | L56: ='2011 to 2015 Distribution RAB'!L56 -> 6032700.28 | M56: ='2011 to 2015 Distribution RAB'!M56 -> 0 | N56: ='2011 to 2015 Distribution RAB'!N56 -> -8931841.203 | O56: ='2011 to 2015 Distribution RAB'!O56 -> -47552192.21 | P56: ='2011 to 2015 Distribution RAB'!P56 -> 0 | Q56: 208990533.3 | S56: 1 | U56: 15187269.75 | V56: 230993452.7 | W56: 1978822.46 | X56: 0 | Y56: 252274.56 | Z56: 355029.69 | AA56: 0 | AB56: 10152016.84 | AC56: 523000.39 | AD56: 6032700.28 | AE56: 0 | AF56: -8931841.203 | AG56: -47552192.21 | AH56: 0 | AI56: 208990533.3 | AL56: 14174785.1 | AM56: 212513976.5 | AN56: 1187293.476 | AO56: 0 | AP56: 201819.648 | AQ56: 213017.814 | AR56: 0 | AS56: 7251440.6 | AT56: 502080.3744 | AU56: 3619620.168 | AV56: 0 | AW56: -8217293.906 | AX56: -43748016.83 | AY56: 0 | AZ56: 187698723 | BC56: 12309681.8 | BD56: 184551611.2 | BE56: 0 | BF56: 0 | BG56: 75682.368 | BH56: 0 | BI56: 0 | BJ56: 0 | BK56: 449780.3354 | BL56: 0 | BM56: 0 | BN56: -7136071.024 | BO56: -37991698.83 | BP56: 0 | BQ56: 152258985.8 | BT56: 9070291.851 | BU56: 135985397.7 | BV56: 0 | BW56: 0 | BX56: 0 | BY56: 0 | BZ56: 0 | CA56: 0 | CB56: 345180.2574 | CC56: 0 | CD56: 0 | CE56: -5258157.597 | CF56: -27993883.35 | CG56: 0 | CH56: 112148828.9
A57: 2000 | C57: ='2011 to 2015 Distribution RAB'!C57 -> 43427949.5 | D57: ='2011 to 2015 Distribution RAB'!D57 -> 200787052.9 | E57: ='2011 to 2015 Distribution RAB'!E57 -> 1564822.89 | F57: ='2011 to 2015 Distribution RAB'!F57 -> 0 | G57: ='2011 to 2015 Distribution RAB'!G57 -> 24586.29 | H57: ='2011 to 2015 Distribution RAB'!H57 -> 349654.84 | I57: ='2011 to 2015 Distribution RAB'!I57 -> 0 | J57: ='2011 to 2015 Distribution RAB'!J57 -> 9740059.59 | K57: ='2011 to 2015 Distribution RAB'!K57 -> 856943.36 | L57: ='2011 to 2015 Distribution RAB'!L57 -> 3978205.8 | M57: ='2011 to 2015 Distribution RAB'!M57 -> 0 | N57: ='2011 to 2015 Distribution RAB'!N57 -> -1041058.388 | O57: ='2011 to 2015 Distribution RAB'!O57 -> -47132547.79 | P57: ='2011 to 2015 Distribution RAB'!P57 -> 0 | Q57: 212555669 | S57: 1 | U57: 43427949.5 | V57: 200787052.9 | W57: 1564822.89 | X57: 0 | Y57: 24586.29 | Z57: 349654.84 | AA57: 0 | AB57: 9740059.59 | AC57: 856943.36 | AD57: 3978205.8 | AE57: 0 | AF57: -1041058.388 | AG57: -47132547.79 | AH57: 0 | AI57: 212555669 | AL57: 41980351.18 | AM57: 192755570.8 | AN57: 1251858.312 | AO57: 0 | AP57: 22127.661 | AQ57: 279723.872 | AR57: 0 | AS57: 8348622.506 | AT57: 839804.4928 | AU57: 3182564.64 | AV57: 0 | AW57: -999416.0528 | AX57: -45247245.88 | AY57: 0 | AZ57: 202413961.5 | BC57: 36598254.88 | BD57: 168043318.1 | BE57: 0 | BF57: 0 | BG57: 9834.516 | BH57: 0 | BI57: 0 | BJ57: 1391437.084 | BK57: 754110.1568 | BL57: 0 | BM57: 0 | BN57: -871285.7896 | BO57: -39446316.92 | BP57: 0 | BQ57: 166479352.1 | BT57: 27214086.96 | BU57: 124955287.8 | BV57: 0 | BW57: 0 | BX57: 0 | BY57: 0 | BZ57: 0 | CA57: 0 | CB57: 582721.4848 | CC57: 0 | CD57: 0 | CE57: -647879.1769 | CF57: -29331876.68 | CG57: 0 | CH57: 122772340.4
A58: 2000 | B58: WIP | C58: ='2011 to 2015 Distribution RAB'!C58 -> 0 | D58: ='2011 to 2015 Distribution RAB'!D58 -> 94323931.58 | E58: ='2011 to 2015 Distribution RAB'!E58 -> 0 | F58: ='2011 to 2015 Distribution RAB'!F58 -> 0 | G58: ='2011 to 2015 Distribution RAB'!G58 -> 0 | H58: ='2011 to 2015 Distribution RAB'!H58 -> 0 | I58: ='2011 to 2015 Distribution RAB'!I58 -> 0 | J58: ='2011 to 2015 Distribution RAB'!J58 -> 6463679.43 | K58: ='2011 to 2015 Distribution RAB'!K58 -> 13842791.51 | L58: ='2011 to 2015 Distribution RAB'!L58 -> 6576622.92 | M58: ='2011 to 2015 Distribution RAB'!M58 -> 0 | N58: ='2011 to 2015 Distribution RAB'!N58 -> 0 | O58: ='2011 to 2015 Distribution RAB'!O58 -> 0 | P58: ='2011 to 2015 Distribution RAB'!P58 -> 0 | Q58: =SUM(C58:P58) -> 121207025.4 | S58: 1 | U58: 0 | V58: =+D58*$S58 -> 94323931.58 | W58: 0 | X58: 0 | Y58: 0 | Z58: 0 | AA58: 0 | AB58: 6463679.43 | AC58: 13842791.51 | AD58: 6576622.92 | AE58: 0 | AF58: 0 | AG58: 0 | AH58: 0 | AI58: 121207025.4 | AL58: =IF(AND(($AX$1-$A58)<AL$3,$A58<$AX$1),((AL$3-($AX$1-$A58))/AL$3*U58),0) -> 0 | AM58: 90550974.32 | AN58: 0 | AO58: 0 | AP58: 0 | AQ58: 0 | AR58: 0 | AS58: 5540296.654 | AT58: 13565935.68 | AU58: 5261298.336 | AV58: 0 | AW58: 0 | AX58: 0 | AY58: 0 | AZ58: 114918505 | BC58: =IF(AND(($BO$1-$A58)<BC$3,$A58<$BO$1),((BC$3-($BO$1-$A58))/(BC$3-(2001-$A58))*AL58),0) -> 0 | BD58: 78941875.05 | BE58: 0 | BF58: 0 | BG58: 0 | BH58: 0 | BI58: 0 | BJ58: 923382.7757 | BK58: 12181656.53 | BL58: 0 | BM58: 0 | BN58: 0 | BO58: 0 | BP58: 0 | BQ58: 92046914.35 | BT58: 0 | BU58: 58700368.62 | BV58: 0 | BW58: 0 | BX58: 0 | BY58: 0 | BZ58: 0 | CA58: 0 | CB58: 9413098.227 | CC58: 0 | CD58: 0 | CE58: 0 | CF58: 0 | CG58: 0 | CH58: 68113466.85
C59: ='2011 to 2015 Distribution RAB'!C59 -> 0 | D59: ='2011 to 2015 Distribution RAB'!D59 -> 0 | E59: ='2011 to 2015 Distribution RAB'!E59 -> 0 | F59: ='2011 to 2015 Distribution RAB'!F59 -> 0 | G59: ='2011 to 2015 Distribution RAB'!G59 -> 0 | H59: ='2011 to 2015 Distribution RAB'!H59 -> 0 | I59: ='2011 to 2015 Distribution RAB'!I59 -> 0 | J59: ='2011 to 2015 Distribution RAB'!J59 -> 0 | K59: ='2011 to 2015 Distribution RAB'!K59 -> 0 | L59: ='2011 to 2015 Distribution RAB'!L59 -> 0 | M59: ='2011 to 2015 Distribution RAB'!M59 -> 0 | N59: ='2011 to 2015 Distribution RAB'!N59 -> 0 | O59: ='2011 to 2015 Distribution RAB'!O59 -> 0 | P59: ='2011 to 2015 Distribution RAB'!P59 -> 0
A60: 2001 | C60: ='2011 to 2015 Distribution RAB'!C60 -> 0 | D60: ='2011 to 2015 Distribution RAB'!D60 -> 291831394 | E60: ='2011 to 2015 Distribution RAB'!E60 -> 17981395.8 | F60: ='2011 to 2015 Distribution RAB'!F60 -> 7447393.16 | G60: ='2011 to 2015 Distribution RAB'!G60 -> 1331955.244 | H60: ='2011 to 2015 Distribution RAB'!H60 -> 266391.0489 | I60: ='2011 to 2015 Distribution RAB'!I60 -> 0 | J60: ='2011 to 2015 Distribution RAB'!J60 -> 9323686.71 | K60: ='2011 to 2015 Distribution RAB'!K60 -> 665977.6221 | L60: ='2011 to 2015 Distribution RAB'!L60 -> 5993798.599 | M60: ='2011 to 2015 Distribution RAB'!M60 -> 0 | N60: ='2011 to 2015 Distribution RAB'!N60 -> -2131128.391 | O60: ='2011 to 2015 Distribution RAB'!O60 -> -45020087.26 | P60: ='2011 to 2015 Distribution RAB'!P60 -> 932368.671 | Q60: =SUM(C60:P60) -> 288623145.2 | S60: 1 | U60: =+C60*$S60 -> 0 | V60: =+D60*$S60 -> 291831394 | W60: 17981395.8 | X60: 7447393.16 | Y60: 1331955.244 | Z60: 266391.0489 | AA60: 0 | AB60: 9323686.71 | AC60: 665977.6221 | AD60: 5993798.599 | AE60: 0 | AF60: -2131128.391 | AG60: -45020087.26 | AH60: 932368.671 | AI60: =SUM(U60:AH60) -> 288623145.2 | BC60: =IF(AND(($BO$1-$A60)<BC$3,$A60<$BO$1),((BC$3-($BO$1-$A60))/BC$3*U60),0) -> 0 | BD60: =IF(AND(($BO$1-$A60)<BD$3,$A60<$BO$1),((BD$3-($BO$1-$A60))/BD$3*V60),0) -> 255352469.8 | BE60: 0 | BF60: 2127826.617 | BG60: 665977.6221 | BH60: 0 | BI60: 0 | BJ60: 2663910.489 | BK60: 599379.8599 | BL60: 0 | BM60: 0 | BN60: -1864737.342 | BO60: -39392576.35 | BP60: 815822.5871 | BQ60: 220968073.3 | BT60: 0 | BU60: 191514352.3 | BV60: 0 | BW60: 0 | BX60: 0 | BY60: 0 | BZ60: 0 | CA60: 0 | CB60: 466184.3355 | CC60: 0 | CD60: 0 | CE60: -1398553.006 | CF60: -29544432.26 | CG60: 611866.9403 | CH60: 161649418.3
A61: 2002 | C61: ='2011 to 2015 Distribution RAB'!C61 -> 0 | D61: ='2011 to 2015 Distribution RAB'!D61 -> 333120141.9 | E61: ='2011 to 2015 Distribution RAB'!E61 -> 18808540 | F61: ='2011 to 2015 Distribution RAB'!F61 -> 0 | G61: ='2011 to 2015 Distribution RAB'!G61 -> 3630133.186 | H61: ='2011 to 2015 Distribution RAB'!H61 -> 278645.0371 | I61: ='2011 to 2015 Distribution RAB'!I61 -> 0 | J61: ='2011 to 2015 Distribution RAB'!J61 -> 9752576.299 | K61: ='2011 to 2015 Distribution RAB'!K61 -> 1114580.148 | L61: ='2011 to 2015 Distribution RAB'!L61 -> 6269513.335 | M61: ='2011 to 2015 Distribution RAB'!M61 -> 0 | N61: ='2011 to 2015 Distribution RAB'!N61 -> 0 | O61: ='2011 to 2015 Distribution RAB'!O61 -> -45976431.12 | P61: ='2011 to 2015 Distribution RAB'!P61 -> 278645.0371 | Q61: =SUM(C61:P61) -> 327276343.8 | S61: 1 | U61: =+C61*$S61 -> 0 | V61: 333120141.9 | W61: 18808540 | X61: 0 | Y61: 3630133.186 | Z61: 278645.0371 | AA61: 0 | AB61: 9752576.299 | AC61: 1114580.148 | AD61: 6269513.335 | AE61: 0 | AF61: 0 | AG61: -45976431.12 | AH61: 278645.0371 | AI61: =SUM(U61:AH61) -> 327276343.8 | BC61: =IF(AND(($BO$1-$A61)<BC$3,$A61<$BO$1),((BC$3-($BO$1-$A61))/BC$3*U61),0) -> 0 | BD61: 299808127.7 | BE61: 3761708.001 | BF61: 0 | BG61: 2178079.911 | BH61: 55729.00742 | BI61: 0 | BJ61: 4179675.557 | BK61: 1025413.737 | BL61: 1253902.667 | BM61: 0 | BN61: 0 | BO61: -41378788.01 | BP61: 250780.5334 | BQ61: 271134629.1 | BT61: 0 | BU61: 226684194.1 | BV61: 0 | BW61: 0 | BX61: 0 | BY61: 0 | BZ61: 0 | CA61: 0 | CB61: 802497.7069 | CC61: 0 | CD61: 0 | CE61: 0 | CF61: -31286400.69 | CG61: 189614.5496 | CH61: 196389905.7
A62: 2003 | C62: ='2011 to 2015 Distribution RAB'!C62 -> 0 | D62: ='2011 to 2015 Distribution RAB'!D62 -> 417897610.4 | E62: ='2011 to 2015 Distribution RAB'!E62 -> 19466838.9 | F62: ='2011 to 2015 Distribution RAB'!F62 -> -3816046.967 | G62: ='2011 to 2015 Distribution RAB'!G62 -> 2373495.067 | H62: ='2011 to 2015 Distribution RAB'!H62 -> 288397.6134 | I62: ='2011 to 2015 Distribution RAB'!I62 -> 0 | J62: ='2011 to 2015 Distribution RAB'!J62 -> 6344747.495 | K62: ='2011 to 2015 Distribution RAB'!K62 -> 1153590.454 | L62: ='2011 to 2015 Distribution RAB'!L62 -> 5335355.848 | M62: ='2011 to 2015 Distribution RAB'!M62 -> 0 | N62: ='2011 to 2015 Distribution RAB'!N62 -> 0 | O62: ='2011 to 2015 Distribution RAB'!O62 -> -49171793.08 | P62: ='2011 to 2015 Distribution RAB'!P62 -> 1441988.067 | Q62: 401314183.8 | S62: 1 | U62: 0 | V62: 417897610.4 | W62: 19466838.9 | X62: -3816046.967 | Y62: 2373495.067 | Z62: 288397.6134 | AA62: 0 | AB62: 6344747.495 | AC62: 1153590.454 | AD62: 5335355.848 | AE62: 0 | AF62: 0 | AG62: -49171793.08 | AH62: 1441988.067 | AI62: 401314183.8 | BC62: 0 | BD62: 386555289.6 | BE62: 7786735.562 | BF62: -2180598.267 | BG62: 1661446.547 | BH62: 115359.0454 | BI62: 0 | BJ62: 3625569.997 | BK62: 1084375.026 | BL62: 2134142.339 | BM62: 0 | BN62: 0 | BO62: -45483908.6 | BP62: 1333838.962 | BQ62: 356632250.2 | BT62: 0 | BU62: 294518315.9 | BV62: 0 | BW62: 0 | BX62: 0 | BY62: 0 | BZ62: 0 | CA62: 0 | CB62: 853656.9357 | CC62: 0 | CD62: 0 | CE62: 0 | CF62: -34654406.55 | CG62: 1016258.257 | CH62: 261733824.5
A63: 2004 | C63: ='2011 to 2015 Distribution RAB'!C63 -> 0 | D63: ='2011 to 2015 Distribution RAB'!D63 -> 480465541 | E63: ='2011 to 2015 Distribution RAB'!E63 -> 11052838.53 | F63: ='2011 to 2015 Distribution RAB'!F63 -> 39550000 | G63: ='2011 to 2015 Distribution RAB'!G63 -> 3060366.804 | H63: ='2011 to 2015 Distribution RAB'!H63 -> 294742.3609 | I63: ='2011 to 2015 Distribution RAB'!I63 -> 0 | J63: ='2011 to 2015 Distribution RAB'!J63 -> 10315982.63 | K63: ='2011 to 2015 Distribution RAB'!K63 -> 1178969.444 | L63: ='2011 to 2015 Distribution RAB'!L63 -> 5452733.677 | M63: ='2011 to 2015 Distribution RAB'!M63 -> 0 | N63: ='2011 to 2015 Distribution RAB'!N63 -> 0 | O63: ='2011 to 2015 Distribution RAB'!O63 -> -52169397.88 | P63: ='2011 to 2015 Distribution RAB'!P63 -> 5157991.316 | Q63: 504359767.9 | S63: 1 | U63: 0 | V63: 480465541 | W63: 11052838.53 | X63: 39550000 | Y63: 3060366.804 | Z63: 294742.3609 | AA63: 0 | AB63: 10315982.63 | AC63: 1178969.444 | AD63: 5452733.677 | AE63: 0 | AF63: 0 | AG63: -52169397.88 | AH63: 5157991.316 | AI63: 504359767.9 | BC63: 0 | BD63: 456442264 | BE63: 6631703.12 | BF63: 28250000 | BG63: 2448293.444 | BH63: 176845.4165 | BI63: 0 | BJ63: 7368559.022 | BK63: 1131810.666 | BL63: 3271640.206 | BM63: 0 | BN63: 0 | BO63: -49560927.98 | BP63: 4900091.75 | BQ63: 461060279.6 | BT63: 0 | BU63: 350292900.3 | BV63: 0 | BW63: 0 | BX63: 0 | BY63: 0 | BZ63: 0 | CA63: 0 | CB63: 896016.7771 | CC63: 0 | CD63: 0 | CE63: 0 | CF63: -38035130.78 | CG63: 3760535.529 | CH63: 316914321.8
A64: 2005 | C64: ='2011 to 2015 Distribution RAB'!C64 -> 0 | D64: ='2011 to 2015 Distribution RAB'!D64 -> 492720625 | E64: ='2011 to 2015 Distribution RAB'!E64 -> 11321615.11 | F64: ='2011 to 2015 Distribution RAB'!F64 -> 9332123.799 | G64: ='2011 to 2015 Distribution RAB'!G64 -> 1509548.681 | H64: ='2011 to 2015 Distribution RAB'!H64 -> 301909.7362 | I64: ='2011 to 2015 Distribution RAB'!I64 -> 0 | J64: ='2011 to 2015 Distribution RAB'!J64 -> 10566840.77 | K64: ='2011 to 2015 Distribution RAB'!K64 -> 6863468.042 | L64: ='2011 to 2015 Distribution RAB'!L64 -> 5585330.12 | M64: ='2011 to 2015 Distribution RAB'!M64 -> 0 | N64: ='2011 to 2015 Distribution RAB'!N64 -> -2264323.021 | O64: ='2011 to 2015 Distribution RAB'!O64 -> -53588978.17 | P64: ='2011 to 2015 Distribution RAB'!P64 -> 6491059.328 | Q64: 488839219.4 | S64: 1 | U64: 0 | V64: 492720625 | W64: 11321615.11 | X64: 9332123.799 | Y64: 1509548.681 | Z64: 301909.7362 | AA64: 0 | AB64: 10566840.77 | AC64: 6863468.042 | AD64: 5585330.12 | AE64: 0 | AF64: -2264323.021 | AG64: -53588978.17 | AH64: 6491059.328 | AI64: 488839219.4 | BC64: 0 | BD64: 480402609.3 | BE64: 9057292.086 | BF64: 7998963.256 | BG64: 1358593.813 | BH64: 241527.789 | BI64: 0 | BJ64: 9057292.086 | BK64: 6726198.682 | BL64: 4468264.096 | BM64: 0 | BN64: -2207714.946 | BO64: -52249253.72 | BP64: 6328782.845 | BQ64: 471182555.3 | BT64: 0 | BU64: 371220198.1 | BV64: 0 | BW64: 0 | BX64: 0 | BY64: 0 | BZ64: 0 | CA64: 0 | CB64: 5353505.073 | CC64: 0 | CD64: 0 | CE64: -1705961.549 | CF64: -40374423.33 | CG64: 4890423.108 | CH64: 339383741.4
C65: ='2011 to 2015 Distribution RAB'!C65 -> 0 | D65: ='2011 to 2015 Distribution RAB'!D65 -> 0 | E65: ='2011 to 2015 Distribution RAB'!E65 -> 0 | F65: ='2011 to 2015 Distribution RAB'!F65 -> 0 | G65: ='2011 to 2015 Distribution RAB'!G65 -> 0 | H65: ='2011 to 2015 Distribution RAB'!H65 -> 0 | I65: ='2011 to 2015 Distribution RAB'!I65 -> 0 | J65: ='2011 to 2015 Distribution RAB'!J65 -> 0 | K65: ='2011 to 2015 Distribution RAB'!K65 -> 0 | L65: ='2011 to 2015 Distribution RAB'!L65 -> 0 | M65: ='2011 to 2015 Distribution RAB'!M65 -> 0 | N65: ='2011 to 2015 Distribution RAB'!N65 -> 0 | O65: ='2011 to 2015 Distribution RAB'!O65 -> 0 | P65: ='2011 to 2015 Distribution RAB'!P65 -> 0
A66: 2006 | C66: ='2011 to 2015 Distribution RAB'!C66 -> 0 | D66: ='2011 to 2015 Distribution RAB'!D66 -> 153777467.1 | E66: ='2011 to 2015 Distribution RAB'!E66 -> 0 | F66: ='2011 to 2015 Distribution RAB'!F66 -> 0 | G66: ='2011 to 2015 Distribution RAB'!G66 -> -3309376.858 | H66: ='2011 to 2015 Distribution RAB'!H66 -> 0 | I66: ='2011 to 2015 Distribution RAB'!I66 -> 0 | J66: ='2011 to 2015 Distribution RAB'!J66 -> -5828324.171 | K66: ='2011 to 2015 Distribution RAB'!K66 -> 10998760.24 | L66: ='2011 to 2015 Distribution RAB'!L66 -> -12481565.59 | M66: ='2011 to 2015 Distribution RAB'!M66 -> 0 | N66: ='2011 to 2015 Distribution RAB'!N66 -> 0 | O66: ='2011 to 2015 Distribution RAB'!O66 -> -80248063.96 | P66: ='2011 to 2015 Distribution RAB'!P66 -> 0 | Q66: =SUM(C66:P66) -> 62908896.76 | S66: 1 | U66: =+C66*$S66 -> 0 | V66: 153777467.1 | W66: 0 | X66: 0 | Y66: -3309376.858 | Z66: 0 | AA66: 0 | AB66: -5828324.171 | AC66: 10998760.24 | AD66: -12481565.59 | AE66: 0 | AF66: 0 | AG66: -80248063.96 | AH66: =+P66*$S66 -> 0 | AI66: =SUM(U66:AH66) -> 62908896.76 | BT66: =IF($CE$1=2006,U66,IF(AND(($CE$1-$A66)<BT$3,$A66<$CE$1),((BT$3-($CE$1-$A66))/BT$3*U66),0)) -> 0 | BU66: =IF($CE$1=2006,V66,IF(AND(($CE$1-$A66)<BU$3,$A66<$CE$1),((BU$3-($CE$1-$A66))/BU$3*V66),0)) -> 119604696.6 | BV66: =IF($CE$1=2006,W66,IF(AND(($CE$1-$A66)<BV$3,$A66<$CE$1),((BV$3-($CE$1-$A66))/BV$3*W66),0)) -> 0 | BX66: =IF($CE$1=2006,Y66,IF(AND(($CE$1-$A66)<BX$3,$A66<$CE$1),((BX$3-($CE$1-$A66))/BX$3*Y66),0)) -> 0 | BY66: 0 | BZ66: 0 | CA66: 0 | CB66: 8799008.196 | CC66: 0 | CD66: 0 | CE66: 0 | CF66: -62415160.86 | CG66: 0 | CH66: =SUM(BT66:CG66) -> 65988543.97
C67: ='2011 to 2015 Distribution RAB'!C67 -> 0 | D67: ='2011 to 2015 Distribution RAB'!D67 -> 0 | E67: ='2011 to 2015 Distribution RAB'!E67 -> 0 | F67: ='2011 to 2015 Distribution RAB'!F67 -> 0 | G67: ='2011 to 2015 Distribution RAB'!G67 -> 0 | H67: ='2011 to 2015 Distribution RAB'!H67 -> 0 | I67: ='2011 to 2015 Distribution RAB'!I67 -> 0 | J67: ='2011 to 2015 Distribution RAB'!J67 -> 0 | K67: ='2011 to 2015 Distribution RAB'!K67 -> 0 | L67: ='2011 to 2015 Distribution RAB'!L67 -> 0 | M67: ='2011 to 2015 Distribution RAB'!M67 -> 0 | N67: ='2011 to 2015 Distribution RAB'!N67 -> 0 | O67: ='2011 to 2015 Distribution RAB'!O67 -> 0 | P67: ='2011 to 2015 Distribution RAB'!P67 -> 0
A68: 2006 | C68: ='2011 to 2015 Distribution RAB'!C68 -> 0 | D68: ='2011 to 2015 Distribution RAB'!D68 -> 560253130.6 | E68: ='2011 to 2015 Distribution RAB'!E68 -> 14041734.52 | F68: ='2011 to 2015 Distribution RAB'!F68 -> 0 | G68: ='2011 to 2015 Distribution RAB'!G68 -> 1264095.582 | H68: ='2011 to 2015 Distribution RAB'!H68 -> 0 | I68: ='2011 to 2015 Distribution RAB'!I68 -> 0 | J68: ='2011 to 2015 Distribution RAB'!J68 -> 22239946.02 | K68: ='2011 to 2015 Distribution RAB'!K68 -> 0 | L68: ='2011 to 2015 Distribution RAB'!L68 -> 0 | M68: ='2011 to 2015 Distribution RAB'!M68 -> 0 | N68: ='2011 to 2015 Distribution RAB'!N68 -> 0 | O68: ='2011 to 2015 Distribution RAB'!O68 -> -130995771 | P68: ='2011 to 2015 Distribution RAB'!P68 -> 17354022.88 | Q68: =SUM(C68:P68) -> 484157158.6 | S68: 1 | U68: =+C68*$S68 -> 0 | V68: =+D68*$S68 -> 560253130.6 | W68: 14041734.52 | X68: 0 | Y68: 1264095.582 | Z68: 0 | AA68: 0 | AB68: 22239946.02 | AC68: 0 | AD68: 0 | AE68: 0 | AF68: 0 | AG68: -130995771 | AH68: 17354022.88 | AI68: 484157158.6 | BT68: =IF(AND(($CE$1-$A68)<(BT$3+1),$A68<$CE$1),((BT$3-($CE$1-$A68)+0.5)/BT$3*U68),0) -> 0 | BU68: =IF(AND(($CE$1-$A68)<(BU$3+1),$A68<$CE$1),((BU$3-($CE$1-$A68)+0.5)/BU$3*V68),0) -> 441977469.7 | BV68: =IF(AND(($CE$1-$A68)<(BV$3+1),$A68<$CE$1),((BV$3-($CE$1-$A68)+0.5)/BV$3*W68),0) -> 0 | BW68: 0 | BX68: 63204.77908 | BY68: 0 | BZ68: 0 | CA68: 0 | CB68: 0 | CC68: 0 | CD68: 0 | CE68: 0 | CF68: -103341108.2 | CG68: 13690395.83 | CH68: 352389962.1
A69: 2007 | C69: ='2011 to 2015 Distribution RAB'!C69 -> 0 | D69: ='2011 to 2015 Distribution RAB'!D69 -> 561870621.3 | E69: ='2011 to 2015 Distribution RAB'!E69 -> 18579726.24 | F69: ='2011 to 2015 Distribution RAB'!F69 -> 6036000 | G69: ='2011 to 2015 Distribution RAB'!G69 -> 2746074.767 | H69: ='2011 to 2015 Distribution RAB'!H69 -> 0 | I69: ='2011 to 2015 Distribution RAB'!I69 -> 0 | J69: ='2011 to 2015 Distribution RAB'!J69 -> 16912924.34 | K69: ='2011 to 2015 Distribution RAB'!K69 -> 0 | L69: ='2011 to 2015 Distribution RAB'!L69 -> 0 | M69: ='2011 to 2015 Distribution RAB'!M69 -> 0 | N69: ='2011 to 2015 Distribution RAB'!N69 -> 0 | O69: ='2011 to 2015 Distribution RAB'!O69 -> -180750041.1 | P69: ='2011 to 2015 Distribution RAB'!P69 -> 14625785.7 | Q69: =SUM(C69:P69) -> 440021091.3 | S69: 1 | U69: =+C69*$S69 -> 0 | V69: 561870621.3 | W69: 18579726.24 | X69: 6036000 | Y69: 2746074.767 | Z69: 0 | AA69: 0 | AB69: 16912924.34 | AC69: 0 | AD69: 0 | AE69: 0 | AF69: 0 | AG69: -180750041.1 | AH69: 14625785.7 | AI69: 440021091.3 | BT69: =IF(AND(($CE$1-$A69)<(BT$3+1),$A69<$CE$1),((BT$3-($CE$1-$A69)+0.5)/BT$3*U69),0) -> 0 | BU69: 455739503.9 | BV69: 0 | BW69: 0 | BX69: 411911.215 | BY69: 0 | BZ69: 0 | CA69: 0 | CB69: 0 | CC69: 0 | CD69: 0 | CE69: 0 | CF69: -146608366.7 | CG69: 11863137.29 | CH69: 321406185.8
A70: 2008 | C70: ='2011 to 2015 Distribution RAB'!C70 -> 0 | D70: ='2011 to 2015 Distribution RAB'!D70 -> 515688017 | E70: ='2011 to 2015 Distribution RAB'!E70 -> 9024899.978 | F70: ='2011 to 2015 Distribution RAB'!F70 -> 78000 | G70: ='2011 to 2015 Distribution RAB'!G70 -> 6693730.775 | H70: ='2011 to 2015 Distribution RAB'!H70 -> 0 | I70: ='2011 to 2015 Distribution RAB'!I70 -> 0 | J70: ='2011 to 2015 Distribution RAB'!J70 -> 16812114.17 | K70: ='2011 to 2015 Distribution RAB'!K70 -> -23810838.93 | L70: ='2011 to 2015 Distribution RAB'!L70 -> 0 | M70: ='2011 to 2015 Distribution RAB'!M70 -> 0 | N70: ='2011 to 2015 Distribution RAB'!N70 -> 0 | O70: ='2011 to 2015 Distribution RAB'!O70 -> -138735566.8 | P70: ='2011 to 2015 Distribution RAB'!P70 -> 15450924 | Q70: 401201280.2 | S70: 1 | U70: 0 | V70: 515688017 | W70: 9024899.978 | X70: 78000 | Y70: 6693730.775 | Z70: 0 | AA70: 0 | AB70: 16812114.17 | AC70: -23810838.93 | AD70: 0 | AE70: 0 | AF70: 0 | AG70: -138735566.8 | AH70: 15450924 | AI70: 401201280.2 | BT70: 0 | BU70: 429740014.2 | BV70: 0 | BW70: 0 | BX70: 1673432.694 | BY70: 0 | BZ70: 0 | CA70: 0 | CB70: -20239213.09 | CC70: 0 | CD70: 0 | CE70: 0 | CF70: -115612972.3 | CG70: 12875770 | CH70: 308437031.5
A71: 2009 | C71: ='2011 to 2015 Distribution RAB'!C71 -> 0 | D71: ='2011 to 2015 Distribution RAB'!D71 -> 394701065 | E71: ='2011 to 2015 Distribution RAB'!E71 -> 6930379.422 | F71: ='2011 to 2015 Distribution RAB'!F71 -> 779685 | G71: ='2011 to 2015 Distribution RAB'!G71 -> 10190639.84 | H71: ='2011 to 2015 Distribution RAB'!H71 -> 0 | I71: ='2011 to 2015 Distribution RAB'!I71 -> 0 | J71: ='2011 to 2015 Distribution RAB'!J71 -> 19283339.63 | K71: ='2011 to 2015 Distribution RAB'!K71 -> 0 | L71: ='2011 to 2015 Distribution RAB'!L71 -> 0 | M71: ='2011 to 2015 Distribution RAB'!M71 -> 0 | N71: ='2011 to 2015 Distribution RAB'!N71 -> 0 | O71: ='2011 to 2015 Distribution RAB'!O71 -> -98754611.57 | P71: ='2011 to 2015 Distribution RAB'!P71 -> 12872323.33 | Q71: 346002820.6 | S71: 1 | U71: 0 | V71: 394701065 | W71: 6930379.422 | X71: 779685 | Y71: 10190639.84 | Z71: 0 | AA71: 0 | AB71: 19283339.63 | AC71: 0 | AD71: 0 | AE71: 0 | AF71: 0 | AG71: -98754611.57 | AH71: 12872323.33 | AI71: 346002820.6 | BT71: 0 | BU71: 337688688.9 | BV71: 0 | BW71: 55691.78571 | BX71: 3566723.944 | BY71: 0 | BZ71: 0 | CA71: 1377381.402 | CB71: 0 | CC71: 0 | CD71: 0 | CE71: 0 | CF71: -84490056.57 | CG71: 11012987.74 | CH71: 269211417.2
A72: 2010 | C72: ='2011 to 2015 Distribution RAB'!C72 -> 0 | D72: ='2011 to 2015 Distribution RAB'!D72 -> 327624888.3 | E72: ='2011 to 2015 Distribution RAB'!E72 -> 5174843.263 | F72: ='2011 to 2015 Distribution RAB'!F72 -> 0 | G72: ='2011 to 2015 Distribution RAB'!G72 -> 5738088 | H72: ='2011 to 2015 Distribution RAB'!H72 -> 0 | I72: ='2011 to 2015 Distribution RAB'!I72 -> 0 | J72: ='2011 to 2015 Distribution RAB'!J72 -> 10454522.37 | K72: ='2011 to 2015 Distribution RAB'!K72 -> 0 | L72: ='2011 to 2015 Distribution RAB'!L72 -> 0 | M72: ='2011 to 2015 Distribution RAB'!M72 -> 0 | N72: ='2011 to 2015 Distribution RAB'!N72 -> 0 | O72: ='2011 to 2015 Distribution RAB'!O72 -> -39076517.57 | P72: ='2011 to 2015 Distribution RAB'!P72 -> 12761355.03 | Q72: 322677179.4 | S72: ='Cashflow (Nominal)'!D5 -> 0.985 | U72: 0 | V72: 322710515 | W72: 5097220.614 | X72: 0 | Y72: 5652016.68 | Z72: 0 | AA72: 0 | AB72: 10297704.53 | AC72: 0 | AD72: 0 | AE72: 0 | AF72: 0 | AG72: -38490369.81 | AH72: 12569934.7 | AI72: 317837021.7 | BT72: =IF(AND(($CE$1-$A72)<(BT$3+1),$A72<$CE$1),((BT$3-($CE$1-$A72)+0.5)/BT$3*U72),0) -> 0 | BU72: 283268118.7 | BV72: 0 | BW72: 0 | BX72: 2543407.506 | BY72: 0 | BZ72: 0 | CA72: 2206650.971 | CB72: 0 | CC72: 0 | CD72: 0 | CE72: 0 | CF72: -33785991.28 | CG72: 11033609.35 | CH72: =SUM(BT72:CG72) -> 265265795.3
C73: ='2011 to 2015 Distribution RAB'!C73 -> 0 | D73: ='2011 to 2015 Distribution RAB'!D73 -> 0 | E73: ='2011 to 2015 Distribution RAB'!E73 -> 0 | F73: ='2011 to 2015 Distribution RAB'!F73 -> 0 | G73: ='2011 to 2015 Distribution RAB'!G73 -> 0 | H73: ='2011 to 2015 Distribution RAB'!H73 -> 0 | I73: ='2011 to 2015 Distribution RAB'!I73 -> 0 | J73: ='2011 to 2015 Distribution RAB'!J73 -> 0 | K73: ='2011 to 2015 Distribution RAB'!K73 -> 0 | L73: ='2011 to 2015 Distribution RAB'!L73 -> 0 | M73: ='2011 to 2015 Distribution RAB'!M73 -> 0 | N73: ='2011 to 2015 Distribution RAB'!N73 -> 0 | O73: ='2011 to 2015 Distribution RAB'!O73 -> 0 | P73: ='2011 to 2015 Distribution RAB'!P73 -> 0
A74: 2011 | C74: ='2011 to 2015 Distribution RAB'!C74 -> 0 | D74: ='2011 to 2015 Distribution RAB'!D74 -> 21952486.43 | E74: ='2011 to 2015 Distribution RAB'!E74 -> 0 | F74: ='2011 to 2015 Distribution RAB'!F74 -> 0 | G74: ='2011 to 2015 Distribution RAB'!G74 -> 0 | H74: ='2011 to 2015 Distribution RAB'!H74 -> 0 | I74: ='2011 to 2015 Distribution RAB'!I74 -> 0 | J74: ='2011 to 2015 Distribution RAB'!J74 -> 0 | K74: ='2011 to 2015 Distribution RAB'!K74 -> 0 | L74: ='2011 to 2015 Distribution RAB'!L74 -> 0 | M74: ='2011 to 2015 Distribution RAB'!M74 -> 0 | N74: ='2011 to 2015 Distribution RAB'!N74 -> 0 | O74: ='2011 to 2015 Distribution RAB'!O74 -> 0 | P74: ='2011 to 2015 Distribution RAB'!P74 -> 0 | Q74: 21952486.43 | S74: ='Cashflow (Nominal)'!E5 -> 0.989925 | U74: 0 | V74: 21731315.13 | W74: 0 | X74: 0 | Y74: 0 | Z74: 0 | AA74: 0 | AB74: 0 | AC74: 0 | AD74: 0 | AE74: 0 | AF74: 0 | AG74: 0 | AH74: 0 | AI74: 21731315.13 | BT74: =IF($CE$1=2011,U74,IF(AND(($CE$1-$A74)<BT$3,$A74<$CE$1),((BT$3-($CE$1-$A74))/BT$3*U74),0)) -> 0 | BU74: =IF($CE$1=2011,V74,IF(AND(($CE$1-$A74)<BU$3,$A74<$CE$1),((BU$3-($CE$1-$A74))/BU$3*V74),0)) -> 19316724.56 | BV74: 0 | BW74: 0 | BX74: 0 | BY74: 0 | BZ74: 0 | CA74: 0 | CB74: 0 | CC74: 0 | CD74: 0 | CE74: 0 | CF74: 0 | CG74: 0 | CH74: =SUM(BT74:CG74) -> 19316724.56
C75: ='2011 to 2015 Distribution RAB'!C75 -> 0 | D75: ='2011 to 2015 Distribution RAB'!D75 -> 0 | E75: ='2011 to 2015 Distribution RAB'!E75 -> 0 | F75: ='2011 to 2015 Distribution RAB'!F75 -> 0 | G75: ='2011 to 2015 Distribution RAB'!G75 -> 0 | H75: ='2011 to 2015 Distribution RAB'!H75 -> 0 | I75: ='2011 to 2015 Distribution RAB'!I75 -> 0 | J75: ='2011 to 2015 Distribution RAB'!J75 -> 0 | K75: ='2011 to 2015 Distribution RAB'!K75 -> 0 | L75: ='2011 to 2015 Distribution RAB'!L75 -> 0 | M75: ='2011 to 2015 Distribution RAB'!M75 -> 0 | N75: ='2011 to 2015 Distribution RAB'!N75 -> 0 | O75: ='2011 to 2015 Distribution RAB'!O75 -> 0 | P75: ='2011 to 2015 Distribution RAB'!P75 -> 0 | Q75: 0 | U75: =+C75*$S75 -> 0 | V75: =+D75*$S75 -> 0 | W75: =+E75*$S75 -> 0 | X75: =+F75*$S75 -> 0 | Y75: =+G75*$S75 -> 0 | Z75: =+H75*$S75 -> 0 | AA75: =+I75*$S75 -> 0 | AB75: =+J75*$S75 -> 0 | AC75: =+K75*$S75 -> 0 | AD75: =+L75*$S75 -> 0 | AE75: =+M75*$S75 -> 0 | AF75: =+N75*$S75 -> 0 | AG75: =+O75*$S75 -> 0 | AH75: =+P75*$S75 -> 0 | AI75: =SUM(U75:AH75) -> 0 | BT75: =IF($CE$1=2011,U75,IF(AND(($CE$1-$A75)<BT$3,$A75<$CE$1),((BT$3-($CE$1-$A75))/BT$3*U75),0)) -> 0 | BU75: =IF($CE$1=2011,V75,IF(AND(($CE$1-$A75)<BU$3,$A75<$CE$1),((BU$3-($CE$1-$A75))/BU$3*V75),0)) -> 0 | BV75: =IF($CE$1=2011,W75,IF(AND(($CE$1-$A75)<BV$3,$A75<$CE$1),((BV$3-($CE$1-$A75))/BV$3*W75),0)) -> 0 | BW75: =IF($CE$1=2011,X75,IF(AND(($CE$1-$A75)<BW$3,$A75<$CE$1),((BW$3-($CE$1-$A75))/BW$3*X75),0)) -> 0 | BX75: =IF($CE$1=2011,Y75,IF(AND(($CE$1-$A75)<BX$3,$A75<$CE$1),((BX$3-($CE$1-$A75))/BX$3*Y75),0)) -> 0 | BY75: =IF($CE$1=2011,Z75,IF(AND(($CE$1-$A75)<BY$3,$A75<$CE$1),((BY$3-($CE$1-$A75))/BY$3*Z75),0)) -> 0 | BZ75: =IF($CE$1=2011,AA75,IF(AND(($CE$1-$A75)<BZ$3,$A75<$CE$1),((BZ$3-($CE$1-$A75))/BZ$3*AA75),0)) -> 0 | CA75: =IF($CE$1=2011,AB75,IF(AND(($CE$1-$A75)<CA$3,$A75<$CE$1),((CA$3-($CE$1-$A75))/CA$3*AB75),0)) -> 0 | CB75: =IF($CE$1=2011,AC75,IF(AND(($CE$1-$A75)<CB$3,$A75<$CE$1),((CB$3-($CE$1-$A75))/CB$3*AC75),0)) -> 0 | CC75: =IF($CE$1=2011,AD75,IF(AND(($CE$1-$A75)<CC$3,$A75<$CE$1),((CC$3-($CE$1-$A75))/CC$3*AD75),0)) -> 0 | CD75: =IF($CE$1=2011,AE75,IF(AND(($CE$1-$A75)<CD$3,$A75<$CE$1),((CD$3-($CE$1-$A75))/CD$3*AE75),0)) -> 0 | CE75: =IF($CE$1=2011,AF75,IF(AND(($CE$1-$A75)<CE$3,$A75<$CE$1),((CE$3-($CE$1-$A75))/CE$3*AF75),0)) -> 0 | CF75: =IF($CE$1=2011,AG75,IF(AND(($CE$1-$A75)<CF$3,$A75<$CE$1),((CF$3-($CE$1-$A75))/CF$3*AG75),0)) -> 0 | CG75: =IF($CE$1=2011,AH75,IF(AND(($CE$1-$A75)<CG$3,$A75<$CE$1),((CG$3-($CE$1-$A75))/CG$3*AH75),0)) -> 0 | CH75: =SUM(BT75:CG75) -> 0
A76: 2011 | C76: ='2011 to 2015 Distribution RAB'!C76 -> 0 | D76: ='2011 to 2015 Distribution RAB'!D76 -> 360970351.7 | E76: ='2011 to 2015 Distribution RAB'!E76 -> 6772000 | F76: ='2011 to 2015 Distribution RAB'!F76 -> 0 | G76: ='2011 to 2015 Distribution RAB'!G76 -> 16061150.15 | H76: ='2011 to 2015 Distribution RAB'!H76 -> 356250 | I76: ='2011 to 2015 Distribution RAB'!I76 -> 6000000 | J76: ='2011 to 2015 Distribution RAB'!J76 -> 7040000 | K76: ='2011 to 2015 Distribution RAB'!K76 -> 3545250 | L76: ='2011 to 2015 Distribution RAB'!L76 -> 3580920 | M76: ='2011 to 2015 Distribution RAB'!M76 -> 0 | N76: ='2011 to 2015 Distribution RAB'!N76 -> 0 | O76: ='2011 to 2015 Distribution RAB'!O76 -> -49957720.29 | P76: ='2011 to 2015 Distribution RAB'!P76 -> 0 | Q76: 354368201.6 | S76: ='Cashflow (Nominal)'!E5 -> 0.989925 | U76: 0 | V76: 357333575.4 | W76: 6703772.1 | X76: 0 | Y76: 15899334.06 | Z76: 352660.7812 | AA76: 5939550 | AB76: 6969072 | AC76: 3509531.606 | AD76: 3544842.231 | AE76: 0 | AF76: 0 | AG76: -49454396.25 | AH76: 0 | AI76: 350797942 | BT76: =IF(AND(($CE$1-$A76)<(BT$3+1),$A76<$CE$1),((BT$3-($CE$1-$A76)+0.5)/BT$3*U76),0) -> 0 | BU76: =IF(AND(($CE$1-$A76)<(BU$3+1),$A76<$CE$1),((BU$3-($CE$1-$A76)+0.5)/BU$3*V76),0) -> 321600217.9 | BV76: =IF(AND(($CE$1-$A76)<(BV$3+1),$A76<$CE$1),((BV$3-($CE$1-$A76)+0.5)/BV$3*W76),0) -> 670377.21 | BW76: =IF(AND(($CE$1-$A76)<(BW$3+1),$A76<$CE$1),((BW$3-($CE$1-$A76)+0.5)/BW$3*X76),0) -> 0 | BX76: =IF(AND(($CE$1-$A76)<(BX$3+1),$A76<$CE$1),((BX$3-($CE$1-$A76)+0.5)/BX$3*Y76),0) -> 8744633.732 | BY76: =IF(AND(($CE$1-$A76)<(BY$3+1),$A76<$CE$1),((BY$3-($CE$1-$A76)+0.5)/BY$3*Z76),0) -> 35266.07812 | BZ76: =IF(AND(($CE$1-$A76)<(BZ$3+1),$A76<$CE$1),((BZ$3-($CE$1-$A76)+0.5)/BZ$3*AA76),0) -> 4157685 | CA76: =IF(AND(($CE$1-$A76)<(CA$3+1),$A76<$CE$1),((CA$3-($CE$1-$A76)+0.5)/CA$3*AB76),0) -> 2488954.286 | CB76: =IF(AND(($CE$1-$A76)<(CB$3+1),$A76<$CE$1),((CB$3-($CE$1-$A76)+0.5)/CB$3*AC76),0) -> 3193673.762 | CC76: =IF(AND(($CE$1-$A76)<(CC$3+1),$A76<$CE$1),((CC$3-($CE$1-$A76)+0.5)/CC$3*AD76),0) -> 354484.2231 | CD76: =IF(AND(($CE$1-$A76)<(CD$3+1),$A76<$CE$1),((CD$3-($CE$1-$A76)+0.5)/CD$3*AE76),0) -> 0 | CE76: =IF(AND(($CE$1-$A76)<(CE$3+1),$A76<$CE$1),((CE$3-($CE$1-$A76)+0.5)/CE$3*AF76),0) -> 0 | CF76: =IF(AND(($CE$1-$A76)<(CF$3+1),$A76<$CE$1),((CF$3-($CE$1-$A76)+0.5)/CF$3*AG76),0) -> -44508956.63 | CG76: =IF(AND(($CE$1-$A76)<(CG$3+1),$A76<$CE$1),((CG$3-($CE$1-$A76)+0.5)/CG$3*AH76),0) -> 0 | CH76: 296736335.6
A77: 2012 | C77: ='2011 to 2015 Distribution RAB'!C77 -> 0 | D77: ='2011 to 2015 Distribution RAB'!D77 -> 391921954.6 | E77: ='2011 to 2015 Distribution RAB'!E77 -> 6682000 | F77: ='2011 to 2015 Distribution RAB'!F77 -> 2500000 | G77: ='2011 to 2015 Distribution RAB'!G77 -> 21950572.2 | H77: ='2011 to 2015 Distribution RAB'!H77 -> 285000 | I77: ='2011 to 2015 Distribution RAB'!I77 -> 5500000 | J77: ='2011 to 2015 Distribution RAB'!J77 -> 7040000 | K77: ='2011 to 2015 Distribution RAB'!K77 -> 3545250 | L77: ='2011 to 2015 Distribution RAB'!L77 -> 3398640 | M77: ='2011 to 2015 Distribution RAB'!M77 -> 0 | N77: ='2011 to 2015 Distribution RAB'!N77 -> 0 | O77: ='2011 to 2015 Distribution RAB'!O77 -> -84221445.54 | P77: ='2011 to 2015 Distribution RAB'!P77 -> 0 | Q77: 358601971.3 | S77: ='Cashflow (Nominal)'!F5 -> 1.0097235 | U77: 0 | V77: 395732807.7 | W77: 6746972.427 | X77: 2524308.75 | Y77: 22164008.59 | Z77: 287771.1975 | AA77: 5553479.25 | AB77: 7108453.44 | AC77: 3579722.238 | AD77: 3431686.676 | AE77: 0 | AF77: 0 | AG77: -85040372.77 | AH77: 0 | AI77: 362088837.5 | BT77: 0 | BU77: 364953589.3 | BV77: 2024091.728 | BW77: 1262154.375 | BX77: 14406605.58 | BY77: 86331.35925 | BZ77: 4257667.425 | CA77: 3554226.72 | CB77: 3329141.682 | CC77: 1029506.003 | CD77: 0 | CE77: 0 | CF77: -78426121.55 | CG77: 0 | CH77: 316477192.7
A78: 2013 | C78: ='2011 to 2015 Distribution RAB'!C78 -> 0 | D78: ='2011 to 2015 Distribution RAB'!D78 -> 383130949.2 | E78: ='2011 to 2015 Distribution RAB'!E78 -> 5772000 | F78: ='2011 to 2015 Distribution RAB'!F78 -> 8500000 | G78: ='2011 to 2015 Distribution RAB'!G78 -> 141121585.1 | H78: ='2011 to 2015 Distribution RAB'!H78 -> 285000 | I78: ='2011 to 2015 Distribution RAB'!I78 -> 0 | J78: ='2011 to 2015 Distribution RAB'!J78 -> 7040000 | K78: ='2011 to 2015 Distribution RAB'!K78 -> 3665250 | L78: ='2011 to 2015 Distribution RAB'!L78 -> 3128160 | M78: ='2011 to 2015 Distribution RAB'!M78 -> 0 | N78: ='2011 to 2015 Distribution RAB'!N78 -> 0 | O78: ='2011 to 2015 Distribution RAB'!O78 -> -77101874.8 | P78: ='2011 to 2015 Distribution RAB'!P78 -> 0 | Q78: 475541069.5 | S78: ='Cashflow (Nominal)'!G5 -> 1.02991797 | U78: 0 | V78: 394593449.5 | W78: 5944686.523 | X78: 8754302.745 | Y78: 145343656.4 | Z78: 293526.6215 | AA78: 0 | AB78: 7250622.509 | AC78: 3774906.84 | AD78: 3221748.197 | AE78: 0 | AF78: 0 | AG78: -79408606.37 | AH78: 0 | AI78: 489768293 | BT78: 0 | BU78: 372671591.2 | BV78: 2972343.261 | BW78: 5627766.05 | BX78: 109007742.3 | BY78: 146763.3107 | BZ78: 0 | CA78: 4661114.47 | CB78: 3586161.498 | CC78: 1610874.099 | CD78: 0 | CE78: 0 | CF78: -74997017.13 | CG78: 0 | CH78: 425287339
A79: 2014 | C79: ='2011 to 2015 Distribution RAB'!C79 -> 0 | D79: ='2011 to 2015 Distribution RAB'!D79 -> 367937962.7 | E79: ='2011 to 2015 Distribution RAB'!E79 -> 14272000 | F79: ='2011 to 2015 Distribution RAB'!F79 -> 3000000 | G79: ='2011 to 2015 Distribution RAB'!G79 -> 127660934.5 | H79: ='2011 to 2015 Distribution RAB'!H79 -> 285000 | I79: ='2011 to 2015 Distribution RAB'!I79 -> 0 | J79: ='2011 to 2015 Distribution RAB'!J79 -> 7040000 | K79: ='2011 to 2015 Distribution RAB'!K79 -> 53728674.49 | L79: ='2011 to 2015 Distribution RAB'!L79 -> 2822400 | M79: ='2011 to 2015 Distribution RAB'!M79 -> 0 | N79: ='2011 to 2015 Distribution RAB'!N79 -> 0 | O79: ='2011 to 2015 Distribution RAB'!O79 -> -63021884.84 | P79: ='2011 to 2015 Distribution RAB'!P79 -> 0 | Q79: 513725086.8 | S79: ='Cashflow (Nominal)'!H5 -> 1.050516329 | U79: 0 | V79: 386524838 | W79: 14992969.05 | X79: 3151548.988 | Y79: 134109896.3 | Z79: 299397.1539 | AA79: 0 | AB79: 7395634.959 | AC79: 56442849.91 | AD79: 2964977.288 | AE79: 0 | AF79: 0 | AG79: -66205519.14 | AH79: 0 | AI79: 539676592.5 | BT79: 0 | BU79: 373640676.7 | BV79: 10495078.34 | BW79: 2476217.062 | BX79: 113993411.8 | BY79: 209578.0077 | BZ79: 0 | CA79: 5810856.039 | CB79: 54749564.41 | CC79: 2075484.102 | CD79: 0 | CE79: 0 | CF79: -63998668.5 | CG79: 0 | CH79: 499452198
A80: 2015 | C80: ='2011 to 2015 Distribution RAB'!C80 -> 0 | D80: ='2011 to 2015 Distribution RAB'!D80 -> 418278513.5 | E80: ='2011 to 2015 Distribution RAB'!E80 -> 14972000 | F80: ='2011 to 2015 Distribution RAB'!F80 -> 2500000 | G80: ='2011 to 2015 Distribution RAB'!G80 -> 225758964.4 | H80: ='2011 to 2015 Distribution RAB'!H80 -> 213750 | I80: ='2011 to 2015 Distribution RAB'!I80 -> 0 | J80: ='2011 to 2015 Distribution RAB'!J80 -> 7040000 | K80: ='2011 to 2015 Distribution RAB'!K80 -> 53719429.92 | L80: ='2011 to 2015 Distribution RAB'!L80 -> 2748900 | M80: ='2011 to 2015 Distribution RAB'!M80 -> 0 | N80: ='2011 to 2015 Distribution RAB'!N80 -> 0 | O80: ='2011 to 2015 Distribution RAB'!O80 -> -114531460.3 | P80: ='2011 to 2015 Distribution RAB'!P80 -> 0 | Q80: 610700097.5 | S80: ='Cashflow (Nominal)'!I5 -> 1.071526656 | U80: 0 | V80: 448196576.8 | W80: 16042897.09 | X80: 2678816.64 | Y80: 241906748.2 | Z80: 229038.8227 | AA80: 0 | AB80: 7543547.658 | AC80: 57561801.1 | AD80: 2945519.625 | AE80: 0 | AF80: 0 | AG80: -122723512.7 | AH80: 0 | AI80: 654381433.3 | BT80: 0 | BU80: 443216614.9 | BV80: 14438607.38 | BW80: 2487472.594 | BX80: 229811410.8 | BY80: 206134.9404 | BZ80: 0 | CA80: 7004722.825 | CB80: 56986183.09 | CC80: 2650967.662 | CD80: 0 | CE80: 0 | CF80: -121359918.1 | CG80: 0 | CH80: 635442196.1
BT82: =SUM(BT7:BT80) -> 70905907.53 | BU82: =SUM(BU7:BU80) -> 6233012770 | BV82: 30600497.92 | BW82: 11909301.87 | BX82: 484222484.4 | BY82: 684073.6963 | BZ82: 8415352.425 | CA82: 27103906.71 | CB82: 155617973.8 | CC82: 7721316.088 | CD82: 0 | CE82: -9010551.329 | CF82: -1279381865 | CG82: 70944598.59 | CH82: =SUM(CH7:CH80) -> 5812745767

Sheet RAB Summary (Nominal)
A2: Distribution RAB 2011 to 2015
B3: Nominal
C4: 2011 | D4: 2012 | E4: 2013 | F4: 2014 | G4: 2015
B5: OAV | C5: 4294731585 | D5: =C8 -> 4498051914 | E5: =D8 -> 4706643512 | F5: 5027336440 | G5: 5376762687
B6: Capex | C6: ='Nominal Asset Base'!AI76 -> 350797942 | D6: ='Nominal Asset Base'!AI77 -> 362088837.5 | E6: ='Nominal Asset Base'!AI78 -> 489768293 | F6: ='Nominal Asset Base'!AI79 -> 539676592.5 | G6: ='Nominal Asset Base'!AI80 -> 654381433.3
B7: Depreciation | C7: -147477613.2 | D7: -153497239.5 | E7: -169075364.4 | F7: -190250345.6 | G7: -218398353.8
B8: CAV | C8: =C5+C6+C7 -> 4498051914 | D8: =D5+D6+D7 -> 4706643512 | E8: =E5+E6+E7 -> 5027336440 | F8: 5376762687 | G8: 5812745767
